Workbook

Sheet Erläuterung

Sheet Eingabe
A1: Eingabe
A2: Berechneter Wert
A4: Parameter | B4: Wert | C4: Einheit | AC4: Hilfsdaten für Plot sommerlicher Wärmebedarf
A5: Berechnungsjahr | B5: 2023 | AC5: =DATE($B$5,1,1) -> 2023-01-01 | AD5: =#N/A -> 
AC6: =DATE($B$5,5,1) -> 2023-05-01 | AD6: =#N/A -> 
A7: Lastprofil | AC7: =DATE($B$5,5,1) -> 2023-05-01 | AD7: =Tagesbasis!L7 -> 1925.193467
A8: Jährlicher Wärmebedarf | B8: 3000 | C8: MWh/a | AC8: =DATE($B$5,9,30) -> 2023-09-30 | AD8: =Tagesbasis!L7 -> 1925.193467
A9: wd cluster | B9: 2 | C9: [-] | AC9: =DATE($B$5,9,30) -> 2023-09-30 | AD9: =#N/A -> 
A10: wknd cluster | B10: 2 | C10: [-] | AC10: =DATE($B$5,12,31) -> 2023-12-31 | AD10: =#N/A -> 
A11: Tageslastprofil | B11: Constant | C11: [-]
A12: Wochenprofil | B12: 7-Tage-Woche | C12: [-]
A14: Temperaturniveau
A15: Vorlauf | B15: 80 | C15: °C
A16: Rücklauf | B16: 60 | C16: °C
A18: Solaranlage
A19: Auswahl Kollektortyp | B19: Vakuumröhrenkollektor
A20: Optischer Wirkungsgrad η_0 | B20: 0.82 | C20: [-]
A21: linearer Verlustkoeffizient a_1 | B21: 1.84 | C21: Km²/kW
A22: quadratischer Verlustkoeffizient a_2 | B22: 0.012 | C22: K²m²/kW
A23: Auslegung Solarfeld nach VDI 3988 | B23: =ROUND(IF(B19="Flachkollektor",Tagesbasis!L7/'VDI3988'!D19,Tagesbasis!L7/'VDI3988'!C19),0) -> 644 | C23: m²
A24: Solarertrag nach VDI 3988 | B24: =IF(B19="Flachkollektor",'VDI3988'!D23,'VDI3988'!C23) -> 346.5422058 | C24: kWh/m²a
A25: Solarertrag nach VDI 3988 | B25: =B24*B23/1000 -> 223.1731806 | C25: MWh/a
A26: Solare Deckungsrate | B26: =Stundenlastprofil_norm!S3/Eingabe!B8 -> 0.07435598184 | C26: [-]
A28: Wärmespeicher
A29: Spez. Speicherkapazität | B29: 100 | C29: l/m²
A30: Speichermaximaltemperatur | B30: 95 | C30: °C
A31: Speichergröße m³ | B31: =B23*B29/1000 -> 64.4 | C31: m³
A33: BHKW
A34: Vorgabe Volllaststunden | B34: 5500 | C34: h
A35: therm. KWK-Leistung | B35: 399.838442 | C35: kW_th
A36: max. KWK-Speichertemperatur | B36: 95 | C36: °C
A37: KWK-Speichergröße in m³ | B37: =B35/(1.16*(B36-B16)) -> 9.848237487 | C37: m³
A38: Deckungsrate BHKW | B38: =Stundenlastprofil_norm!U3/Eingabe!B8 -> 0.7330372308

Sheet Wetterdaten
A1: Monat | B1: DoY | C1: Stunde | D1: Hour of Year | E1: Globalstrahlung hor | F1: diffusstrahl hor | G1: Globalstrahlung gen | H1: diffusstrahl gen | I1: Direktnormalstrahlung | J1: Temperatur
A2: 1 | B2: 1 | C2: 1 | D2: 1 | E2: 0 | F2: 0 | G2: 0 | H2: 0 | I2: 0 | J2: 8.8
A3: 1 | B3: 1 | C3: 2 | D3: 2 | E3: 0 | F3: 0 | G3: 0 | H3: 0 | I3: 0 | J3: 8.7
A4: 1 | B4: 1 | C4: 3 | D4: 3 | E4: 0 | F4: 0 | G4: 0 | H4: 0 | I4: 0 | J4: 8.5
A5: 1 | B5: 1 | C5: 4 | D5: 4 | E5: 0 | F5: 0 | G5: 0 | H5: 0 | I5: 0 | J5: 8.4
A6: 1 | B6: 1 | C6: 5 | D6: 5 | E6: 0 | F6: 0 | G6: 0 | H6: 0 | I6: 0 | J6: 8.3
A7: 1 | B7: 1 | C7: 6 | D7: 6 | E7: 0 | F7: 0 | G7: 0 | H7: 0 | I7: 0 | J7: 8.2
A8: 1 | B8: 1 | C8: 7 | D8: 7 | E8: 0 | F8: 0 | G8: 0 | H8: 0 | I8: 0 | J8: 8.1
A9: 1 | B9: 1 | C9: 8 | D9: 8 | E9: 0 | F9: 0 | G9: 0 | H9: 0 | I9: 0 | J9: 8
A10: 1 | B10: 1 | C10: 9 | D10: 9 | E10: 1 | F10: 1 | G10: 0 | H10: 0 | I10: 0 | J10: 8.1
A11: 1 | B11: 1 | C11: 10 | D11: 10 | E11: 22 | F11: 22 | G11: 18 | H11: 18 | I11: 0 | J11: 8.7
A12: 1 | B12: 1 | C12: 11 | D12: 11 | E12: 41 | F12: 41 | G12: 36 | H12: 36 | I12: 0 | J12: 9.2
A13: 1 | B13: 1 | C13: 12 | D13: 12 | E13: 62 | F13: 62 | G13: 57 | H13: 57 | I13: 0 | J13: 9.7
A14: 1 | B14: 1 | C14: 13 | D14: 13 | E14: 90 | F14: 90 | G14: 89 | H14: 89 | I14: 0 | J14: 10.4
A15: 1 | B15: 1 | C15: 14 | D15: 14 | E15: 73 | F15: 73 | G15: 70 | H15: 70 | I15: 0 | J15: 10.6
A16: 1 | B16: 1 | C16: 15 | D16: 15 | E16: 45 | F16: 45 | G16: 41 | H16: 41 | I16: 0 | J16: 10.6
A17: 1 | B17: 1 | C17: 16 | D17: 16 | E17: 18 | F17: 18 | G17: 14 | H17: 14 | I17: 0 | J17: 10.3
A18: 1 | B18: 1 | C18: 17 | D18: 17 | E18: 0 | F18: 0 | G18: 0 | H18: 0 | I18: 0 | J18: 9.9
A19: 1 | B19: 1 | C19: 18 | D19: 18 | E19: 0 | F19: 0 | G19: 0 | H19: 0 | I19: 0 | J19: 9.5
A20: 1 | B20: 1 | C20: 19 | D20: 19 | E20: 0 | F20: 0 | G20: 0 | H20: 0 | I20: 0 | J20: 9.2
A21: 1 | B21: 1 | C21: 20 | D21: 20 | E21: 0 | F21: 0 | G21: 0 | H21: 0 | I21: 0 | J21: 8.9
A22: 1 | B22: 1 | C22: 21 | D22: 21 | E22: 0 | F22: 0 | G22: 0 | H22: 0 | I22: 0 | J22: 8.5
A23: 1 | B23: 1 | C23: 22 | D23: 22 | E23: 0 | F23: 0 | G23: 0 | H23: 0 | I23: 0 | J23: 8.2
A24: 1 | B24: 1 | C24: 23 | D24: 23 | E24: 0 | F24: 0 | G24: 0 | H24: 0 | I24: 0 | J24: 7.8
A25: 1 | B25: 1 | C25: 24 | D25: 24 | E25: 0 | F25: 0 | G25: 0 | H25: 0 | I25: 0 | J25: 7.5
A26: 1 | B26: 2 | C26: 1 | D26: 25 | E26: 0 | F26: 0 | G26: 0 | H26: 0 | I26: 0 | J26: 7
A27: 1 | B27: 2 | C27: 2 | D27: 26 | E27: 0 | F27: 0 | G27: 0 | H27: 0 | I27: 0 | J27: 6.3
A28: 1 | B28: 2 | C28: 3 | D28: 27 | E28: 0 | F28: 0 | G28: 0 | H28: 0 | I28: 0 | J28: 5.8
A29: 1 | B29: 2 | C29: 4 | D29: 28 | E29: 0 | F29: 0 | G29: 0 | H29: 0 | I29: 0 | J29: 5.5
A30: 1 | B30: 2 | C30: 5 | D30: 29 | E30: 0 | F30: 0 | G30: 0 | H30: 0 | I30: 0 | J30: 5.2
A31: 1 | B31: 2 | C31: 6 | D31: 30 | E31: 0 | F31: 0 | G31: 0 | H31: 0 | I31: 0 | J31: 4.9
A32: 1 | B32: 2 | C32: 7 | D32: 31 | E32: 0 | F32: 0 | G32: 0 | H32: 0 | I32: 0 | J32: 4.6
A33: 1 | B33: 2 | C33: 8 | D33: 32 | E33: 0 | F33: 0 | G33: 0 | H33: 0 | I33: 0 | J33: 4.4
A34: 1 | B34: 2 | C34: 9 | D34: 33 | E34: 1 | F34: 1 | G34: 0 | H34: 0 | I34: 0 | J34: 4.3
A35: 1 | B35: 2 | C35: 10 | D35: 34 | E35: 19 | F35: 19 | G35: 15 | H35: 15 | I35: 0 | J35: 4.5
A36: 1 | B36: 2 | C36: 11 | D36: 35 | E36: 40 | F36: 40 | G36: 34 | H36: 34 | I36: 0 | J36: 4.7
A37: 1 | B37: 2 | C37: 12 | D37: 36 | E37: 56 | F37: 56 | G37: 50 | H37: 50 | I37: 0 | J37: 4.8
A38: 1 | B38: 2 | C38: 13 | D38: 37 | E38: 56 | F38: 56 | G38: 50 | H38: 50 | I38: 0 | J38: 4.9
A39: 1 | B39: 2 | C39: 14 | D39: 38 | E39: 46 | F39: 46 | G39: 40 | H39: 40 | I39: 0 | J39: 4.9
A40: 1 | B40: 2 | C40: 15 | D40: 39 | E40: 32 | F40: 32 | G40: 26 | H40: 26 | I40: 0 | J40: 4.8
A41: 1 | B41: 2 | C41: 16 | D41: 40 | E41: 14 | F41: 14 | G41: 9 | H41: 9 | I41: 0 | J41: 4.6
A42: 1 | B42: 2 | C42: 17 | D42: 41 | E42: 0 | F42: 0 | G42: 0 | H42: 0 | I42: 0 | J42: 4.3
A43: 1 | B43: 2 | C43: 18 | D43: 42 | E43: 0 | F43: 0 | G43: 0 | H43: 0 | I43: 0 | J43: 4.2
A44: 1 | B44: 2 | C44: 19 | D44: 43 | E44: 0 | F44: 0 | G44: 0 | H44: 0 | I44: 0 | J44: 4.1
A45: 1 | B45: 2 | C45: 20 | D45: 44 | E45: 0 | F45: 0 | G45: 0 | H45: 0 | I45: 0 | J45: 4
A46: 1 | B46: 2 | C46: 21 | D46: 45 | E46: 0 | F46: 0 | G46: 0 | H46: 0 | I46: 0 | J46: 3.9
A47: 1 | B47: 2 | C47: 22 | D47: 46 | E47: 0 | F47: 0 | G47: 0 | H47: 0 | I47: 0 | J47: 3.8
A48: 1 | B48: 2 | C48: 23 | D48: 47 | E48: 0 | F48: 0 | G48: 0 | H48: 0 | I48: 0 | J48: 3.7
A49: 1 | B49: 2 | C49: 24 | D49: 48 | E49: 0 | F49: 0 | G49: 0 | H49: 0 | I49: 0 | J49: 3.3
A50: 1 | B50: 3 | C50: 1 | D50: 49 | E50: 0 | F50: 0 | G50: 0 | H50: 0 | I50: 0 | J50: 3.9
A51: 1 | B51: 3 | C51: 2 | D51: 50 | E51: 0 | F51: 0 | G51: 0 | H51: 0 | I51: 0 | J51: 4.1
A52: 1 | B52: 3 | C52: 3 | D52: 51 | E52: 0 | F52: 0 | G52: 0 | H52: 0 | I52: 0 | J52: 4.3
A53: 1 | B53: 3 | C53: 4 | D53: 52 | E53: 0 | F53: 0 | G53: 0 | H53: 0 | I53: 0 | J53: 4.4
A54: 1 | B54: 3 | C54: 5 | D54: 53 | E54: 0 | F54: 0 | G54: 0 | H54: 0 | I54: 0 | J54: 4.7
A55: 1 | B55: 3 | C55: 6 | D55: 54 | E55: 0 | F55: 0 | G55: 0 | H55: 0 | I55: 0 | J55: 4.9
A56: 1 | B56: 3 | C56: 7 | D56: 55 | E56: 0 | F56: 0 | G56: 0 | H56: 0 | I56: 0 | J56: 5
A57: 1 | B57: 3 | C57: 8 | D57: 56 | E57: 0 | F57: 0 | G57: 0 | H57: 0 | I57: 0 | J57: 5.1
A58: 1 | B58: 3 | C58: 9 | D58: 57 | E58: 1 | F58: 1 | G58: 0 | H58: 0 | I58: 0 | J58: 5.3
A59: 1 | B59: 3 | C59: 10 | D59: 58 | E59: 20 | F59: 20 | G59: 15 | H59: 15 | I59: 0 | J59: 6.1
A60: 1 | B60: 3 | C60: 11 | D60: 59 | E60: 42 | F60: 42 | G60: 36 | H60: 36 | I60: 0 | J60: 7.1
A61: 1 | B61: 3 | C61: 12 | D61: 60 | E61: 53 | F61: 53 | G61: 47 | H61: 47 | I61: 0 | J61: 7.8
A62: 1 | B62: 3 | C62: 13 | D62: 61 | E62: 45 | F62: 45 | G62: 38 | H62: 38 | I62: 0 | J62: 8.2
A63: 1 | B63: 3 | C63: 14 | D63: 62 | E63: 41 | F63: 41 | G63: 35 | H63: 35 | I63: 0 | J63: 8.4
A64: 1 | B64: 3 | C64: 15 | D64: 63 | E64: 33 | F64: 33 | G64: 27 | H64: 27 | I64: 0 | J64: 8.4
A65: 1 | B65: 3 | C65: 16 | D65: 64 | E65: 15 | F65: 15 | G65: 11 | H65: 11 | I65: 0 | J65: 8.1
A66: 1 | B66: 3 | C66: 17 | D66: 65 | E66: 0 | F66: 0 | G66: 0 | H66: 0 | I66: 0 | J66: 7.7
A67: 1 | B67: 3 | C67: 18 | D67: 66 | E67: 0 | F67: 0 | G67: 0 | H67: 0 | I67: 0 | J67: 7.6
A68: 1 | B68: 3 | C68: 19 | D68: 67 | E68: 0 | F68: 0 | G68: 0 | H68: 0 | I68: 0 | J68: 7.4
A69: 1 | B69: 3 | C69: 20 | D69: 68 | E69: 0 | F69: 0 | G69: 0 | H69: 0 | I69: 0 | J69: 7.3
A70: 1 | B70: 3 | C70: 21 | D70: 69 | E70: 0 | F70: 0 | G70: 0 | H70: 0 | I70: 0 | J70: 7.1
A71: 1 | B71: 3 | C71: 22 | D71: 70 | E71: 0 | F71: 0 | G71: 0 | H71: 0 | I71: 0 | J71: 6.8
A72: 1 | B72: 3 | C72: 23 | D72: 71 | E72: 0 | F72: 0 | G72: 0 | H72: 0 | I72: 0 | J72: 6.8
A73: 1 | B73: 3 | C73: 24 | D73: 72 | E73: 0 | F73: 0 | G73: 0 | H73: 0 | I73: 0 | J73: 6.3
A74: 1 | B74: 4 | C74: 1 | D74: 73 | E74: 0 | F74: 0 | G74: 0 | H74: 0 | I74: 0 | J74: 6.1
A75: 1 | B75: 4 | C75: 2 | D75: 74 | E75: 0 | F75: 0 | G75: 0 | H75: 0 | I75: 0 | J75: 5.4
A76: 1 | B76: 4 | C76: 3 | D76: 75 | E76: 0 | F76: 0 | G76: 0 | H76: 0 | I76: 0 | J76: 4.7
A77: 1 | B77: 4 | C77: 4 | D77: 76 | E77: 0 | F77: 0 | G77: 0 | H77: 0 | I77: 0 | J77: 4.3
A78: 1 | B78: 4 | C78: 5 | D78: 77 | E78: 0 | F78: 0 | G78: 0 | H78: 0 | I78: 0 | J78: 4
A79: 1 | B79: 4 | C79: 6 | D79: 78 | E79: 0 | F79: 0 | G79: 0 | H79: 0 | I79: 0 | J79: 3.6
A80: 1 | B80: 4 | C80: 7 | D80: 79 | E80: 0 | F80: 0 | G80: 0 | H80: 0 | I80: 0 | J80: 3.3
A81: 1 | B81: 4 | C81: 8 | D81: 80 | E81: 0 | F81: 0 | G81: 0 | H81: 0 | I81: 0 | J81: 3.1
A82: 1 | B82: 4 | C82: 9 | D82: 81 | E82: 1 | F82: 1 | G82: 0 | H82: 0 | I82: 0 | J82: 3.1
A83: 1 | B83: 4 | C83: 10 | D83: 82 | E83: 28 | F83: 28 | G83: 25 | H83: 25 | I83: 0 | J83: 3.5
A84: 1 | B84: 4 | C84: 11 | D84: 83 | E84: 43 | F84: 43 | G84: 38 | H84: 38 | I84: 0 | J84: 3.8
A85: 1 | B85: 4 | C85: 12 | D85: 84 | E85: 72 | F85: 72 | G85: 68 | H85: 68 | I85: 0 | J85: 4.2
A86: 1 | B86: 4 | C86: 13 | D86: 85 | E86: 94 | F86: 94 | G86: 94 | H86: 94 | I86: 0 | J86: 4.6
A87: 1 | B87: 4 | C87: 14 | D87: 86 | E87: 81 | F87: 81 | G87: 79 | H87: 79 | I87: 0 | J87: 4.8
A88: 1 | B88: 4 | C88: 15 | D88: 87 | E88: 87 | F88: 75 | G88: 129 | H88: 88 | I88: 62 | J88: 4.9
A89: 1 | B89: 4 | C89: 16 | D89: 88 | E89: 26 | F89: 26 | G89: 23 | H89: 23 | I89: 0 | J89: 4.6
A90: 1 | B90: 4 | C90: 17 | D90: 89 | E90: 0 | F90: 0 | G90: 0 | H90: 0 | I90: 0 | J90: 4.2
A91: 1 | B91: 4 | C91: 18 | D91: 90 | E91: 0 | F91: 0 | G91: 0 | H91: 0 | I91: 0 | J91: 3.6
A92: 1 | B92: 4 | C92: 19 | D92: 91 | E92: 0 | F92: 0 | G92: 0 | H92: 0 | I92: 0 | J92: 3.1
A93: 1 | B93: 4 | C93: 20 | D93: 92 | E93: 0 | F93: 0 | G93: 0 | H93: 0 | I93: 0 | J93: 2.6
A94: 1 | B94: 4 | C94: 21 | D94: 93 | E94: 0 | F94: 0 | G94: 0 | H94: 0 | I94: 0 | J94: 2.1
A95: 1 | B95: 4 | C95: 22 | D95: 94 | E95: 0 | F95: 0 | G95: 0 | H95: 0 | I95: 0 | J95: 1.6
A96: 1 | B96: 4 | C96: 23 | D96: 95 | E96: 0 | F96: 0 | G96: 0 | H96: 0 | I96: 0 | J96: 1.1
A97: 1 | B97: 4 | C97: 24 | D97: 96 | E97: 0 | F97: 0 | G97: 0 | H97: 0 | I97: 0 | J97: 0.5
A98: 1 | B98: 5 | C98: 1 | D98: 97 | E98: 0 | F98: 0 | G98: 0 | H98: 0 | I98: 0 | J98: 0.1
A99: 1 | B99: 5 | C99: 2 | D99: 98 | E99: 0 | F99: 0 | G99: 0 | H99: 0 | I99: 0 | J99: -0.3
A100: 1 | B100: 5 | C100: 3 | D100: 99 | E100: 0 | F100: 0 | G100: 0 | H100: 0 | I100: 0 | J100: -0.7
A101: 1 | B101: 5 | C101: 4 | D101: 100 | E101: 0 | F101: 0 | G101: 0 | H101: 0 | I101: 0 | J101: -0.9
A102: 1 | B102: 5 | C102: 5 | D102: 101 | E102: 0 | F102: 0 | G102: 0 | H102: 0 | I102: 0 | J102: -1.1
A103: 1 | B103: 5 | C103: 6 | D103: 102 | E103: 0 | F103: 0 | G103: 0 | H103: 0 | I103: 0 | J103: -1.3
A104: 1 | B104: 5 | C104: 7 | D104: 103 | E104: 0 | F104: 0 | G104: 0 | H104: 0 | I104: 0 | J104: -1.5
A105: 1 | B105: 5 | C105: 8 | D105: 104 | E105: 0 | F105: 0 | G105: 0 | H105: 0 | I105: 0 | J105: -1.6
A106: 1 | B106: 5 | C106: 9 | D106: 105 | E106: 2 | F106: 2 | G106: 1 | H106: 1 | I106: 0 | J106: -1.5
A107: 1 | B107: 5 | C107: 10 | D107: 106 | E107: 71 | F107: 37 | G107: 236 | H107: 79 | I107: 300 | J107: 0.5
A108: 1 | B108: 5 | C108: 11 | D108: 107 | E108: 140 | F108: 59 | G108: 377 | H108: 110 | I108: 401 | J108: 2.6
A109: 1 | B109: 5 | C109: 12 | D109: 108 | E109: 184 | F109: 77 | G109: 442 | H109: 132 | I109: 413 | J109: 4.2
A110: 1 | B110: 5 | C110: 13 | D110: 109 | E110: 215 | F110: 71 | G110: 540 | H110: 132 | I110: 524 | J110: 5.6
A111: 1 | B111: 5 | C111: 14 | D111: 110 | E111: 191 | F111: 68 | G111: 487 | H111: 127 | I111: 484 | J111: 6.3
A112: 1 | B112: 5 | C112: 15 | D112: 111 | E112: 141 | F112: 53 | G112: 397 | H112: 104 | I112: 450 | J112: 6.3
A113: 1 | B113: 5 | C113: 16 | D113: 112 | E113: 60 | F113: 37 | G113: 192 | H113: 77 | I113: 226 | J113: 5.4
A114: 1 | B114: 5 | C114: 17 | D114: 113 | E114: 0 | F114: 0 | G114: 0 | H114: 0 | I114: 0 | J114: 4
A115: 1 | B115: 5 | C115: 18 | D115: 114 | E115: 0 | F115: 0 | G115: 0 | H115: 0 | I115: 0 | J115: 3.6
A116: 1 | B116: 5 | C116: 19 | D116: 115 | E116: 0 | F116: 0 | G116: 0 | H116: 0 | I116: 0 | J116: 3.2
A117: 1 | B117: 5 | C117: 20 | D117: 116 | E117: 0 | F117: 0 | G117: 0 | H117: 0 | I117: 0 | J117: 2.8
A118: 1 | B118: 5 | C118: 21 | D118: 117 | E118: 0 | F118: 0 | G118: 0 | H118: 0 | I118: 0 | J118: 2.4
A119: 1 | B119: 5 | C119: 22 | D119: 118 | E119: 0 | F119: 0 | G119: 0 | H119: 0 | I119: 0 | J119: 2
A120: 1 | B120: 5 | C120: 23 | D120: 119 | E120: 0 | F120: 0 | G120: 0 | H120: 0 | I120: 0 | J120: 1.6
A121: 1 | B121: 5 | C121: 24 | D121: 120 | E121: 0 | F121: 0 | G121: 0 | H121: 0 | I121: 0 | J121: 1.3
A122: 1 | B122: 6 | C122: 1 | D122: 121 | E122: 0 | F122: 0 | G122: 0 | H122: 0 | I122: 0 | J122: 0.9
A123: 1 | B123: 6 | C123: 2 | D123: 122 | E123: 0 | F123: 0 | G123: 0 | H123: 0 | I123: 0 | J123: 0.5
A124: 1 | B124: 6 | C124: 3 | D124: 123 | E124: 0 | F124: 0 | G124: 0 | H124: 0 | I124: 0 | J124: 0
A125: 1 | B125: 6 | C125: 4 | D125: 124 | E125: 0 | F125: 0 | G125: 0 | H125: 0 | I125: 0 | J125: -0.2
A126: 1 | B126: 6 | C126: 5 | D126: 125 | E126: 0 | F126: 0 | G126: 0 | H126: 0 | I126: 0 | J126: -0.4
A127: 1 | B127: 6 | C127: 6 | D127: 126 | E127: 0 | F127: 0 | G127: 0 | H127: 0 | I127: 0 | J127: -0.6
A128: 1 | B128: 6 | C128: 7 | D128: 127 | E128: 0 | F128: 0 | G128: 0 | H128: 0 | I128: 0 | J128: -0.8
A129: 1 | B129: 6 | C129: 8 | D129: 128 | E129: 0 | F129: 0 | G129: 0 | H129: 0 | I129: 0 | J129: -0.9
A130: 1 | B130: 6 | C130: 9 | D130: 129 | E130: 1 | F130: 1 | G130: 0 | H130: 0 | I130: 0 | J130: -0.9
A131: 1 | B131: 6 | C131: 10 | D131: 130 | E131: 16 | F131: 16 | G131: 12 | H131: 12 | I131: 0 | J131: -0.6
A132: 1 | B132: 6 | C132: 11 | D132: 131 | E132: 20 | F132: 20 | G132: 15 | H132: 15 | I132: 0 | J132: -0.5
A133: 1 | B133: 6 | C133: 12 | D133: 132 | E133: 29 | F133: 29 | G133: 23 | H133: 23 | I133: 0 | J133: -0.2
A134: 1 | B134: 6 | C134: 13 | D134: 133 | E134: 38 | F134: 38 | G134: 32 | H134: 32 | I134: 0 | J134: 0
A135: 1 | B135: 6 | C135: 14 | D135: 134 | E135: 153 | F135: 100 | G135: 298 | H135: 146 | I135: 204 | J135: 1.1
A136: 1 | B136: 6 | C136: 15 | D136: 135 | E136: 107 | F136: 83 | G136: 191 | H136: 112 | I136: 121 | J136: 1.5
A137: 1 | B137: 6 | C137: 16 | D137: 136 | E137: 51 | F137: 36 | G137: 133 | H137: 61 | I137: 141 | J137: 1.5
A138: 1 | B138: 6 | C138: 17 | D138: 137 | E138: 0 | F138: 0 | G138: 0 | H138: 0 | I138: 0 | J138: 0.9
A139: 1 | B139: 6 | C139: 18 | D139: 138 | E139: 0 | F139: 0 | G139: 0 | H139: 0 | I139: 0 | J139: 0.7
A140: 1 | B140: 6 | C140: 19 | D140: 139 | E140: 0 | F140: 0 | G140: 0 | H140: 0 | I140: 0 | J140: 0.5
A141: 1 | B141: 6 | C141: 20 | D141: 140 | E141: 0 | F141: 0 | G141: 0 | H141: 0 | I141: 0 | J141: 0.3
A142: 1 | B142: 6 | C142: 21 | D142: 141 | E142: 0 | F142: 0 | G142: 0 | H142: 0 | I142: 0 | J142: 0.1
A143: 1 | B143: 6 | C143: 22 | D143: 142 | E143: 0 | F143: 0 | G143: 0 | H143: 0 | I143: 0 | J143: -0.1
A144: 1 | B144: 6 | C144: 23 | D144: 143 | E144: 0 | F144: 0 | G144: 0 | H144: 0 | I144: 0 | J144: -0.3
A145: 1 | B145: 6 | C145: 24 | D145: 144 | E145: 0 | F145: 0 | G145: 0 | H145: 0 | I145: 0 | J145: -0.4
A146: 1 | B146: 7 | C146: 1 | D146: 145 | E146: 0 | F146: 0 | G146: 0 | H146: 0 | I146: 0 | J146: -0.5
A147: 1 | B147: 7 | C147: 2 | D147: 146 | E147: 0 | F147: 0 | G147: 0 | H147: 0 | I147: 0 | J147: -0.6
A148: 1 | B148: 7 | C148: 3 | D148: 147 | E148: 0 | F148: 0 | G148: 0 | H148: 0 | I148: 0 | J148: -0.6
A149: 1 | B149: 7 | C149: 4 | D149: 148 | E149: 0 | F149: 0 | G149: 0 | H149: 0 | I149: 0 | J149: -0.6
A150: 1 | B150: 7 | C150: 5 | D150: 149 | E150: 0 | F150: 0 | G150: 0 | H150: 0 | I150: 0 | J150: -0.7
A151: 1 | B151: 7 | C151: 6 | D151: 150 | E151: 0 | F151: 0 | G151: 0 | H151: 0 | I151: 0 | J151: -0.7
A152: 1 | B152: 7 | C152: 7 | D152: 151 | E152: 0 | F152: 0 | G152: 0 | H152: 0 | I152: 0 | J152: -0.7
A153: 1 | B153: 7 | C153: 8 | D153: 152 | E153: 0 | F153: 0 | G153: 0 | H153: 0 | I153: 0 | J153: -0.7
A154: 1 | B154: 7 | C154: 9 | D154: 153 | E154: 1 | F154: 1 | G154: 0 | H154: 0 | I154: 0 | J154: -0.6
A155: 1 | B155: 7 | C155: 10 | D155: 154 | E155: 28 | F155: 28 | G155: 24 | H155: 24 | I155: 0 | J155: 0.3
A156: 1 | B156: 7 | C156: 11 | D156: 155 | E156: 47 | F156: 47 | G156: 42 | H156: 42 | I156: 0 | J156: 1
A157: 1 | B157: 7 | C157: 12 | D157: 156 | E157: 71 | F157: 71 | G157: 66 | H157: 66 | I157: 0 | J157: 1.7
A158: 1 | B158: 7 | C158: 13 | D158: 157 | E158: 75 | F158: 75 | G158: 70 | H158: 70 | I158: 0 | J158: 2.2
A159: 1 | B159: 7 | C159: 14 | D159: 158 | E159: 61 | F159: 61 | G159: 56 | H159: 56 | I159: 0 | J159: 2.4
A160: 1 | B160: 7 | C160: 15 | D160: 159 | E160: 43 | F160: 43 | G160: 37 | H160: 37 | I160: 0 | J160: 2.3
A161: 1 | B161: 7 | C161: 16 | D161: 160 | E161: 20 | F161: 20 | G161: 16 | H161: 16 | I161: 0 | J161: 2
A162: 1 | B162: 7 | C162: 17 | D162: 161 | E162: 1 | F162: 1 | G162: 0 | H162: 0 | I162: 0 | J162: 1.5
A163: 1 | B163: 7 | C163: 18 | D163: 162 | E163: 0 | F163: 0 | G163: 0 | H163: 0 | I163: 0 | J163: 1.3
A164: 1 | B164: 7 | C164: 19 | D164: 163 | E164: 0 | F164: 0 | G164: 0 | H164: 0 | I164: 0 | J164: 1.1
A165: 1 | B165: 7 | C165: 20 | D165: 164 | E165: 0 | F165: 0 | G165: 0 | H165: 0 | I165: 0 | J165: 0.7
A166: 1 | B166: 7 | C166: 21 | D166: 165 | E166: 0 | F166: 0 | G166: 0 | H166: 0 | I166: 0 | J166: 0.7
A167: 1 | B167: 7 | C167: 22 | D167: 166 | E167: 0 | F167: 0 | G167: 0 | H167: 0 | I167: 0 | J167: 0.4
A168: 1 | B168: 7 | C168: 23 | D168: 167 | E168: 0 | F168: 0 | G168: 0 | H168: 0 | I168: 0 | J168: 0.2
A169: 1 | B169: 7 | C169: 24 | D169: 168 | E169: 0 | F169: 0 | G169: 0 | H169: 0 | I169: 0 | J169: 0
A170: 1 | B170: 8 | C170: 1 | D170: 169 | E170: 0 | F170: 0 | G170: 0 | H170: 0 | I170: 0 | J170: -0.3
A171: 1 | B171: 8 | C171: 2 | D171: 170 | E171: 0 | F171: 0 | G171: 0 | H171: 0 | I171: 0 | J171: -0.6
A172: 1 | B172: 8 | C172: 3 | D172: 171 | E172: 0 | F172: 0 | G172: 0 | H172: 0 | I172: 0 | J172: -1
A173: 1 | B173: 8 | C173: 4 | D173: 172 | E173: 0 | F173: 0 | G173: 0 | H173: 0 | I173: 0 | J173: -1.1
A174: 1 | B174: 8 | C174: 5 | D174: 173 | E174: 0 | F174: 0 | G174: 0 | H174: 0 | I174: 0 | J174: -1.3
A175: 1 | B175: 8 | C175: 6 | D175: 174 | E175: 0 | F175: 0 | G175: 0 | H175: 0 | I175: 0 | J175: -1.5
A176: 1 | B176: 8 | C176: 7 | D176: 175 | E176: 0 | F176: 0 | G176: 0 | H176: 0 | I176: 0 | J176: -1.6
A177: 1 | B177: 8 | C177: 8 | D177: 176 | E177: 0 | F177: 0 | G177: 0 | H177: 0 | I177: 0 | J177: -1.7
A178: 1 | B178: 8 | C178: 9 | D178: 177 | E178: 1 | F178: 1 | G178: 1 | H178: 1 | I178: 0 | J178: -1.7
A179: 1 | B179: 8 | C179: 10 | D179: 178 | E179: 35 | F179: 35 | G179: 33 | H179: 33 | I179: 0 | J179: -0.8
A180: 1 | B180: 8 | C180: 11 | D180: 179 | E180: 54 | F180: 54 | G180: 50 | H180: 50 | I180: 0 | J180: -0.3
A181: 1 | B181: 8 | C181: 12 | D181: 180 | E181: 65 | F181: 65 | G181: 60 | H181: 60 | I181: 0 | J181: 0.2
A182: 1 | B182: 8 | C182: 13 | D182: 181 | E182: 57 | F182: 57 | G182: 51 | H182: 51 | I182: 0 | J182: 0.3
A183: 1 | B183: 8 | C183: 14 | D183: 182 | E183: 69 | F183: 69 | G183: 65 | H183: 65 | I183: 0 | J183: 0.5
A184: 1 | B184: 8 | C184: 15 | D184: 183 | E184: 55 | F184: 55 | G184: 52 | H184: 52 | I184: 0 | J184: 0.6
A185: 1 | B185: 8 | C185: 16 | D185: 184 | E185: 25 | F185: 25 | G185: 21 | H185: 21 | I185: 0 | J185: 0.3
A186: 1 | B186: 8 | C186: 17 | D186: 185 | E186: 1 | F186: 1 | G186: 0 | H186: 0 | I186: 0 | J186: -0.1
A187: 1 | B187: 8 | C187: 18 | D187: 186 | E187: 0 | F187: 0 | G187: 0 | H187: 0 | I187: 0 | J187: -0.4
A188: 1 | B188: 8 | C188: 19 | D188: 187 | E188: 0 | F188: 0 | G188: 0 | H188: 0 | I188: 0 | J188: -0.8
A189: 1 | B189: 8 | C189: 20 | D189: 188 | E189: 0 | F189: 0 | G189: 0 | H189: 0 | I189: 0 | J189: -1.2
A190: 1 | B190: 8 | C190: 21 | D190: 189 | E190: 0 | F190: 0 | G190: 0 | H190: 0 | I190: 0 | J190: -1.3
A191: 1 | B191: 8 | C191: 22 | D191: 190 | E191: 0 | F191: 0 | G191: 0 | H191: 0 | I191: 0 | J191: -1.7
A192: 1 | B192: 8 | C192: 23 | D192: 191 | E192: 0 | F192: 0 | G192: 0 | H192: 0 | I192: 0 | J192: -2
A193: 1 | B193: 8 | C193: 24 | D193: 192 | E193: 0 | F193: 0 | G193: 0 | H193: 0 | I193: 0 | J193: -2.3
A194: 1 | B194: 9 | C194: 1 | D194: 193 | E194: 0 | F194: 0 | G194: 0 | H194: 0 | I194: 0 | J194: -2.6
A195: 1 | B195: 9 | C195: 2 | D195: 194 | E195: 0 | F195: 0 | G195: 0 | H195: 0 | I195: 0 | J195: -3
A196: 1 | B196: 9 | C196: 3 | D196: 195 | E196: 0 | F196: 0 | G196: 0 | H196: 0 | I196: 0 | J196: -3
A197: 1 | B197: 9 | C197: 4 | D197: 196 | E197: 0 | F197: 0 | G197: 0 | H197: 0 | I197: 0 | J197: -3.2
A198: 1 | B198: 9 | C198: 5 | D198: 197 | E198: 0 | F198: 0 | G198: 0 | H198: 0 | I198: 0 | J198: -3.3
A199: 1 | B199: 9 | C199: 6 | D199: 198 | E199: 0 | F199: 0 | G199: 0 | H199: 0 | I199: 0 | J199: -3.4
A200: 1 | B200: 9 | C200: 7 | D200: 199 | E200: 0 | F200: 0 | G200: 0 | H200: 0 | I200: 0 | J200: -3.5
... 8561 more rows

Sheet Tagesbasis (hidden)
G2: Wärmekapazität | H2: 15 | I2: kJ/m²K
H3: =H2/3600 -> 0.004166666667 | I3: kWh/m²K
G4: Rücklauftemperatur | H4: =Eingabe!B16 -> 60
G5: Solltemperatur Solar | H5: =H4+5 -> 65
K7: Sommerlicher Wärmebedarf | L7: =MEDIAN((IF((D12:D376>5)*(D12:D376<9)*(C12:C376<6),J12:J376))) -> 1925.193467 | M7: kWh/d
L10: =SUM(L12:L377)/1000 -> 223.1731806 | M10: MWh/a
B11: Datum | C11: Tag | D11: Monat | E11: DoY | F11: Tagesmittel- temperatur in°C [Weste-XL] | G11: Tagessumme Globalstrahlung geneigt in kWh/m² | H11: Wärmekapazität in kWh/m² | I11: Möglicher Solarertrag | J11: Wärmebedarf/Tag in kWh | K11: Solarertrag in kWh/m² | L11: Solarertrag in kWh | M11: Solarertrag mit Speicher in kWh | N11: KWK -Wärme in kWh
B12: =DATE(Eingabe!$B$5,1,1) -> 2023-01-01 | C12: =WEEKDAY(B12,2) -> 7 | D12: =MONTH(B12) -> 1 | E12: 1 | F12: =AVERAGE(OFFSET(Wetterdaten!J$2:J$25,(Wetterdaten!$D2-1)*24,0)) -> 8.920833333 | G12: =SUM(OFFSET(Wetterdaten!H$2:H$25,(Wetterdaten!$D2-1)*24,0))/1000 -> 0.325 | H12: =$H$3*($H$5-F12) -> 0.2336631944 | I12: =MAX(G12-H12,0) -> 0.09133680556 | J12: =Calculation!L2*1000 -> 8473.547729 | K12: =SUM(OFFSET(Stundenlastprofil_norm!$M$5:$M$28,(Stundenlastprofil_norm!$H5-1)*24,)) -> 0 | L12: =SUM(OFFSET(Stundenlastprofil_norm!$N$5:$N$28,(Stundenlastprofil_norm!$H5-1)*24,)) -> 0 | M12: =SUM(OFFSET(Stundenlastprofil_norm!$S$5:$S$28,(Stundenlastprofil_norm!$H5-1)*24,)) -> 0 | N12: =SUM(OFFSET(Stundenlastprofil_norm!$U$5:$U$28,(Stundenlastprofil_norm!$H5-1)*24,)) -> 8333.677459
B13: =B12+1 -> 2023-01-02 | C13: 1 | D13: =MONTH(B13) -> 1 | E13: 2 | F13: =AVERAGE(OFFSET(Wetterdaten!J$2:J$25,(Wetterdaten!$D3-1)*24,0)) -> 4.6875 | G13: =SUM(OFFSET(Wetterdaten!H$2:H$25,(Wetterdaten!$D3-1)*24,0))/1000 -> 0.224 | H13: =$H$3*($H$5-F13) -> 0.2513020833 | I13: =MAX(G13-H13,0) -> 0 | J13: =Calculation!L3*1000 -> 12233.72849 | K13: =SUM(OFFSET(Stundenlastprofil_norm!$M$5:$M$28,(Stundenlastprofil_norm!$H6-1)*24,)) -> 0 | L13: =SUM(OFFSET(Stundenlastprofil_norm!$N$5:$N$28,(Stundenlastprofil_norm!$H6-1)*24,)) -> 0 | M13: =SUM(OFFSET(Stundenlastprofil_norm!$S$5:$S$28,(Stundenlastprofil_norm!$H6-1)*24,)) -> 0 | N13: =SUM(OFFSET(Stundenlastprofil_norm!$U$5:$U$28,(Stundenlastprofil_norm!$H6-1)*24,)) -> 9558.811488
B14: =B13+1 -> 2023-01-03 | C14: 2 | D14: 1 | E14: 3 | F14: =AVERAGE(OFFSET(Wetterdaten!J$2:J$25,(Wetterdaten!$D4-1)*24,0)) -> 6.366666667 | G14: =SUM(OFFSET(Wetterdaten!H$2:H$25,(Wetterdaten!$D4-1)*24,0))/1000 -> 0.209 | H14: 0.2443055556 | I14: 0 | J14: =Calculation!L4*1000 -> 10742.23947 | K14: =SUM(OFFSET(Stundenlastprofil_norm!$M$5:$M$28,(Stundenlastprofil_norm!$H7-1)*24,)) -> 0 | L14: =SUM(OFFSET(Stundenlastprofil_norm!$N$5:$N$28,(Stundenlastprofil_norm!$H7-1)*24,)) -> 0 | M14: =SUM(OFFSET(Stundenlastprofil_norm!$S$5:$S$28,(Stundenlastprofil_norm!$H7-1)*24,)) -> 0 | N14: =SUM(OFFSET(Stundenlastprofil_norm!$U$5:$U$28,(Stundenlastprofil_norm!$H7-1)*24,)) -> 9252.475188
B15: 2023-01-04 | C15: 3 | D15: 1 | E15: 4 | F15: =AVERAGE(OFFSET(Wetterdaten!J$2:J$25,(Wetterdaten!$D5-1)*24,0)) -> 3.616666667 | G15: =SUM(OFFSET(Wetterdaten!H$2:H$25,(Wetterdaten!$D5-1)*24,0))/1000 -> 0.415 | H15: 0.2557638889 | I15: 0.1592361111 | J15: =Calculation!L5*1000 -> 13184.87658 | K15: =SUM(OFFSET(Stundenlastprofil_norm!$M$5:$M$28,(Stundenlastprofil_norm!$H8-1)*24,)) -> 0 | L15: =SUM(OFFSET(Stundenlastprofil_norm!$N$5:$N$28,(Stundenlastprofil_norm!$H8-1)*24,)) -> 0 | M15: =SUM(OFFSET(Stundenlastprofil_norm!$S$5:$S$28,(Stundenlastprofil_norm!$H8-1)*24,)) -> 0 | N15: =SUM(OFFSET(Stundenlastprofil_norm!$U$5:$U$28,(Stundenlastprofil_norm!$H8-1)*24,)) -> 9596.122607
B16: 2023-01-05 | C16: 4 | D16: 1 | E16: 5 | F16: =AVERAGE(OFFSET(Wetterdaten!J$2:J$25,(Wetterdaten!$D6-1)*24,0)) -> 1.791666667 | G16: =SUM(OFFSET(Wetterdaten!H$2:H$25,(Wetterdaten!$D6-1)*24,0))/1000 -> 0.762 | H16: 0.2633680556 | I16: 0.4986319444 | J16: =Calculation!L6*1000 -> 14805.89939 | K16: =SUM(OFFSET(Stundenlastprofil_norm!$M$5:$M$28,(Stundenlastprofil_norm!$H9-1)*24,)) -> 0.6436551978 | L16: =SUM(OFFSET(Stundenlastprofil_norm!$N$5:$N$28,(Stundenlastprofil_norm!$H9-1)*24,)) -> 414.5139474 | M16: =SUM(OFFSET(Stundenlastprofil_norm!$S$5:$S$28,(Stundenlastprofil_norm!$H9-1)*24,)) -> 414.5139474 | N16: =SUM(OFFSET(Stundenlastprofil_norm!$U$5:$U$28,(Stundenlastprofil_norm!$H9-1)*24,)) -> 9596.122607
B17: 2023-01-06 | C17: 5 | D17: 1 | E17: 6 | F17: =AVERAGE(OFFSET(Wetterdaten!J$2:J$25,(Wetterdaten!$D7-1)*24,0)) -> 0.0875 | G17: =SUM(OFFSET(Wetterdaten!H$2:H$25,(Wetterdaten!$D7-1)*24,0))/1000 -> 0.401 | H17: 0.27046875 | I17: 0.13053125 | J17: =Calculation!L7*1000 -> 13634.40723 | K17: =SUM(OFFSET(Stundenlastprofil_norm!$M$5:$M$28,(Stundenlastprofil_norm!$H10-1)*24,)) -> 0.03060605671 | L17: =SUM(OFFSET(Stundenlastprofil_norm!$N$5:$N$28,(Stundenlastprofil_norm!$H10-1)*24,)) -> 19.71030052 | M17: =SUM(OFFSET(Stundenlastprofil_norm!$S$5:$S$28,(Stundenlastprofil_norm!$H10-1)*24,)) -> 19.71030052 | N17: =SUM(OFFSET(Stundenlastprofil_norm!$U$5:$U$28,(Stundenlastprofil_norm!$H10-1)*24,)) -> 9596.122607
B18: 2023-01-07 | C18: 6 | D18: 1 | E18: 7 | F18: =AVERAGE(OFFSET(Wetterdaten!J$2:J$25,(Wetterdaten!$D8-1)*24,0)) -> 0.5041666667 | G18: =SUM(OFFSET(Wetterdaten!H$2:H$25,(Wetterdaten!$D8-1)*24,0))/1000 -> 0.311 | H18: 0.2687326389 | I18: 0.04226736111 | J18: =Calculation!L8*1000 -> 13379.46306 | K18: =SUM(OFFSET(Stundenlastprofil_norm!$M$5:$M$28,(Stundenlastprofil_norm!$H11-1)*24,)) -> 0 | L18: =SUM(OFFSET(Stundenlastprofil_norm!$N$5:$N$28,(Stundenlastprofil_norm!$H11-1)*24,)) -> 0 | M18: =SUM(OFFSET(Stundenlastprofil_norm!$S$5:$S$28,(Stundenlastprofil_norm!$H11-1)*24,)) -> 0 | N18: =SUM(OFFSET(Stundenlastprofil_norm!$U$5:$U$28,(Stundenlastprofil_norm!$H11-1)*24,)) -> 9596.122607
B19: 2023-01-08 | C19: 7 | D19: 1 | E19: 8 | F19: =AVERAGE(OFFSET(Wetterdaten!J$2:J$25,(Wetterdaten!$D9-1)*24,0)) -> -0.825 | G19: =SUM(OFFSET(Wetterdaten!H$2:H$25,(Wetterdaten!$D9-1)*24,0))/1000 -> 0.333 | H19: 0.2742708333 | I19: 0.05872916667 | J19: =Calculation!L9*1000 -> 17130.1056 | K19: =SUM(OFFSET(Stundenlastprofil_norm!$M$5:$M$28,(Stundenlastprofil_norm!$H12-1)*24,)) -> 0 | L19: =SUM(OFFSET(Stundenlastprofil_norm!$N$5:$N$28,(Stundenlastprofil_norm!$H12-1)*24,)) -> 0 | M19: =SUM(OFFSET(Stundenlastprofil_norm!$S$5:$S$28,(Stundenlastprofil_norm!$H12-1)*24,)) -> 0 | N19: =SUM(OFFSET(Stundenlastprofil_norm!$U$5:$U$28,(Stundenlastprofil_norm!$H12-1)*24,)) -> 9596.122607
B20: 2023-01-09 | C20: 1 | D20: 1 | E20: 9 | F20: =AVERAGE(OFFSET(Wetterdaten!J$2:J$25,(Wetterdaten!$D10-1)*24,0)) -> -2.625 | G20: =SUM(OFFSET(Wetterdaten!H$2:H$25,(Wetterdaten!$D10-1)*24,0))/1000 -> 0.307 | H20: 0.2817708333 | I20: 0.02522916667 | J20: =Calculation!L10*1000 -> 18728.92262 | K20: =SUM(OFFSET(Stundenlastprofil_norm!$M$5:$M$28,(Stundenlastprofil_norm!$H13-1)*24,)) -> 0 | L20: =SUM(OFFSET(Stundenlastprofil_norm!$N$5:$N$28,(Stundenlastprofil_norm!$H13-1)*24,)) -> 0 | M20: =SUM(OFFSET(Stundenlastprofil_norm!$S$5:$S$28,(Stundenlastprofil_norm!$H13-1)*24,)) -> 0 | N20: =SUM(OFFSET(Stundenlastprofil_norm!$U$5:$U$28,(Stundenlastprofil_norm!$H13-1)*24,)) -> 9596.122607
B21: 2023-01-10 | C21: 2 | D21: 1 | E21: 10 | F21: =AVERAGE(OFFSET(Wetterdaten!J$2:J$25,(Wetterdaten!$D11-1)*24,0)) -> -2.191666667 | G21: =SUM(OFFSET(Wetterdaten!H$2:H$25,(Wetterdaten!$D11-1)*24,0))/1000 -> 0.316 | H21: 0.2799652778 | I21: 0.03603472222 | J21: =Calculation!L11*1000 -> 18344.02223 | K21: =SUM(OFFSET(Stundenlastprofil_norm!$M$5:$M$28,(Stundenlastprofil_norm!$H14-1)*24,)) -> 0 | L21: =SUM(OFFSET(Stundenlastprofil_norm!$N$5:$N$28,(Stundenlastprofil_norm!$H14-1)*24,)) -> 0 | M21: =SUM(OFFSET(Stundenlastprofil_norm!$S$5:$S$28,(Stundenlastprofil_norm!$H14-1)*24,)) -> 0 | N21: =SUM(OFFSET(Stundenlastprofil_norm!$U$5:$U$28,(Stundenlastprofil_norm!$H14-1)*24,)) -> 9596.122607
B22: 2023-01-11 | C22: 3 | D22: 1 | E22: 11 | F22: =AVERAGE(OFFSET(Wetterdaten!J$2:J$25,(Wetterdaten!$D12-1)*24,0)) -> -0.4 | G22: =SUM(OFFSET(Wetterdaten!H$2:H$25,(Wetterdaten!$D12-1)*24,0))/1000 -> 0.759 | H22: 0.2725 | I22: 0.4865 | J22: =Calculation!L12*1000 -> 16752.60714 | K22: =SUM(OFFSET(Stundenlastprofil_norm!$M$5:$M$28,(Stundenlastprofil_norm!$H15-1)*24,)) -> 0 | L22: =SUM(OFFSET(Stundenlastprofil_norm!$N$5:$N$28,(Stundenlastprofil_norm!$H15-1)*24,)) -> 0 | M22: =SUM(OFFSET(Stundenlastprofil_norm!$S$5:$S$28,(Stundenlastprofil_norm!$H15-1)*24,)) -> 0 | N22: =SUM(OFFSET(Stundenlastprofil_norm!$U$5:$U$28,(Stundenlastprofil_norm!$H15-1)*24,)) -> 9596.122607
B23: 2023-01-12 | C23: 4 | D23: 1 | E23: 12 | F23: =AVERAGE(OFFSET(Wetterdaten!J$2:J$25,(Wetterdaten!$D13-1)*24,0)) -> -7.354166667 | G23: =SUM(OFFSET(Wetterdaten!H$2:H$25,(Wetterdaten!$D13-1)*24,0))/1000 -> 0.61 | H23: 0.3014756944 | I23: 0.3085243056 | J23: =Calculation!L13*1000 -> 22929.51826 | K23: =SUM(OFFSET(Stundenlastprofil_norm!$M$5:$M$28,(Stundenlastprofil_norm!$H16-1)*24,)) -> 0 | L23: =SUM(OFFSET(Stundenlastprofil_norm!$N$5:$N$28,(Stundenlastprofil_norm!$H16-1)*24,)) -> 0 | M23: =SUM(OFFSET(Stundenlastprofil_norm!$S$5:$S$28,(Stundenlastprofil_norm!$H16-1)*24,)) -> 0 | N23: =SUM(OFFSET(Stundenlastprofil_norm!$U$5:$U$28,(Stundenlastprofil_norm!$H16-1)*24,)) -> 9596.122607
B24: 2023-01-13 | C24: 5 | D24: 1 | E24: 13 | F24: =AVERAGE(OFFSET(Wetterdaten!J$2:J$25,(Wetterdaten!$D14-1)*24,0)) -> -5.820833333 | G24: =SUM(OFFSET(Wetterdaten!H$2:H$25,(Wetterdaten!$D14-1)*24,0))/1000 -> 0.857 | H24: 0.2950868056 | I24: 0.5619131944 | J24: =Calculation!L14*1000 -> 17249.51558 | K24: =SUM(OFFSET(Stundenlastprofil_norm!$M$5:$M$28,(Stundenlastprofil_norm!$H17-1)*24,)) -> 0.002081322825 | L24: =SUM(OFFSET(Stundenlastprofil_norm!$N$5:$N$28,(Stundenlastprofil_norm!$H17-1)*24,)) -> 1.340371899 | M24: =SUM(OFFSET(Stundenlastprofil_norm!$S$5:$S$28,(Stundenlastprofil_norm!$H17-1)*24,)) -> 1.340371899 | N24: =SUM(OFFSET(Stundenlastprofil_norm!$U$5:$U$28,(Stundenlastprofil_norm!$H17-1)*24,)) -> 9596.122607
B25: 2023-01-14 | C25: 6 | D25: 1 | E25: 14 | F25: =AVERAGE(OFFSET(Wetterdaten!J$2:J$25,(Wetterdaten!$D15-1)*24,0)) -> -4.791666667 | G25: =SUM(OFFSET(Wetterdaten!H$2:H$25,(Wetterdaten!$D15-1)*24,0))/1000 -> 0.34 | H25: 0.2907986111 | I25: 0.04920138889 | J25: =Calculation!L15*1000 -> 16619.80348 | K25: =SUM(OFFSET(Stundenlastprofil_norm!$M$5:$M$28,(Stundenlastprofil_norm!$H18-1)*24,)) -> 0 | L25: =SUM(OFFSET(Stundenlastprofil_norm!$N$5:$N$28,(Stundenlastprofil_norm!$H18-1)*24,)) -> 0 | M25: =SUM(OFFSET(Stundenlastprofil_norm!$S$5:$S$28,(Stundenlastprofil_norm!$H18-1)*24,)) -> 0 | N25: =SUM(OFFSET(Stundenlastprofil_norm!$U$5:$U$28,(Stundenlastprofil_norm!$H18-1)*24,)) -> 9596.122607
B26: 2023-01-15 | C26: 7 | D26: 1 | E26: 15 | F26: =AVERAGE(OFFSET(Wetterdaten!J$2:J$25,(Wetterdaten!$D16-1)*24,0)) -> -9.375 | G26: =SUM(OFFSET(Wetterdaten!H$2:H$25,(Wetterdaten!$D16-1)*24,0))/1000 -> 0.193 | H26: 0.3098958333 | I26: 0 | J26: =Calculation!L16*1000 -> 24724.48643 | K26: =SUM(OFFSET(Stundenlastprofil_norm!$M$5:$M$28,(Stundenlastprofil_norm!$H19-1)*24,)) -> 0 | L26: =SUM(OFFSET(Stundenlastprofil_norm!$N$5:$N$28,(Stundenlastprofil_norm!$H19-1)*24,)) -> 0 | M26: =SUM(OFFSET(Stundenlastprofil_norm!$S$5:$S$28,(Stundenlastprofil_norm!$H19-1)*24,)) -> 0 | N26: =SUM(OFFSET(Stundenlastprofil_norm!$U$5:$U$28,(Stundenlastprofil_norm!$H19-1)*24,)) -> 9596.122607
B27: =B26+1 -> 2023-01-16 | C27: 1 | D27: 1 | E27: 16 | F27: =AVERAGE(OFFSET(Wetterdaten!J$2:J$25,(Wetterdaten!$D17-1)*24,0)) -> -4.116666667 | G27: =SUM(OFFSET(Wetterdaten!H$2:H$25,(Wetterdaten!$D17-1)*24,0))/1000 -> 0.307 | H27: 0.2879861111 | I27: 0.01901388889 | J27: =Calculation!L17*1000 -> 20053.8682 | K27: =SUM(OFFSET(Stundenlastprofil_norm!$M$5:$M$28,(Stundenlastprofil_norm!$H20-1)*24,)) -> 0 | L27: =SUM(OFFSET(Stundenlastprofil_norm!$N$5:$N$28,(Stundenlastprofil_norm!$H20-1)*24,)) -> 0 | M27: =SUM(OFFSET(Stundenlastprofil_norm!$S$5:$S$28,(Stundenlastprofil_norm!$H20-1)*24,)) -> 0 | N27: =SUM(OFFSET(Stundenlastprofil_norm!$U$5:$U$28,(Stundenlastprofil_norm!$H20-1)*24,)) -> 9596.122607
B28: 2023-01-17 | C28: 2 | D28: 1 | E28: 17 | F28: =AVERAGE(OFFSET(Wetterdaten!J$2:J$25,(Wetterdaten!$D18-1)*24,0)) -> -1.283333333 | G28: =SUM(OFFSET(Wetterdaten!H$2:H$25,(Wetterdaten!$D18-1)*24,0))/1000 -> 0.46 | H28: 0.2761805556 | I28: 0.1838194444 | J28: =Calculation!L18*1000 -> 17537.21179 | K28: =SUM(OFFSET(Stundenlastprofil_norm!$M$5:$M$28,(Stundenlastprofil_norm!$H21-1)*24,)) -> 0.148752412 | L28: =SUM(OFFSET(Stundenlastprofil_norm!$N$5:$N$28,(Stundenlastprofil_norm!$H21-1)*24,)) -> 95.79655334 | M28: =SUM(OFFSET(Stundenlastprofil_norm!$S$5:$S$28,(Stundenlastprofil_norm!$H21-1)*24,)) -> 95.79655334 | N28: =SUM(OFFSET(Stundenlastprofil_norm!$U$5:$U$28,(Stundenlastprofil_norm!$H21-1)*24,)) -> 9596.122607
B29: 2023-01-18 | C29: 3 | D29: 1 | E29: 18 | F29: =AVERAGE(OFFSET(Wetterdaten!J$2:J$25,(Wetterdaten!$D19-1)*24,0)) -> 1.4 | G29: =SUM(OFFSET(Wetterdaten!H$2:H$25,(Wetterdaten!$D19-1)*24,0))/1000 -> 0.46 | H29: 0.265 | I29: 0.195 | J29: =Calculation!L19*1000 -> 15153.79013 | K29: =SUM(OFFSET(Stundenlastprofil_norm!$M$5:$M$28,(Stundenlastprofil_norm!$H22-1)*24,)) -> 0.1920628578 | L29: =SUM(OFFSET(Stundenlastprofil_norm!$N$5:$N$28,(Stundenlastprofil_norm!$H22-1)*24,)) -> 123.6884804 | M29: =SUM(OFFSET(Stundenlastprofil_norm!$S$5:$S$28,(Stundenlastprofil_norm!$H22-1)*24,)) -> 123.6884804 | N29: =SUM(OFFSET(Stundenlastprofil_norm!$U$5:$U$28,(Stundenlastprofil_norm!$H22-1)*24,)) -> 9596.122607
B30: 2023-01-19 | C30: 4 | D30: 1 | E30: 19 | F30: =AVERAGE(OFFSET(Wetterdaten!J$2:J$25,(Wetterdaten!$D20-1)*24,0)) -> 3.220833333 | G30: =SUM(OFFSET(Wetterdaten!H$2:H$25,(Wetterdaten!$D20-1)*24,0))/1000 -> 0.512 | H30: 0.2574131944 | I30: 0.2545868056 | J30: =Calculation!L20*1000 -> 13536.46828 | K30: =SUM(OFFSET(Stundenlastprofil_norm!$M$5:$M$28,(Stundenlastprofil_norm!$H23-1)*24,)) -> 0.2453222997 | L30: =SUM(OFFSET(Stundenlastprofil_norm!$N$5:$N$28,(Stundenlastprofil_norm!$H23-1)*24,)) -> 157.987561 | M30: =SUM(OFFSET(Stundenlastprofil_norm!$S$5:$S$28,(Stundenlastprofil_norm!$H23-1)*24,)) -> 157.987561 | N30: =SUM(OFFSET(Stundenlastprofil_norm!$U$5:$U$28,(Stundenlastprofil_norm!$H23-1)*24,)) -> 9596.122607
B31: 2023-01-20 | C31: 5 | D31: 1 | E31: 20 | F31: =AVERAGE(OFFSET(Wetterdaten!J$2:J$25,(Wetterdaten!$D21-1)*24,0)) -> 2.520833333 | G31: =SUM(OFFSET(Wetterdaten!H$2:H$25,(Wetterdaten!$D21-1)*24,0))/1000 -> 0.875 | H31: 0.2603298611 | I31: 0.6146701389 | J31: =Calculation!L21*1000 -> 12145.53327 | K31: =SUM(OFFSET(Stundenlastprofil_norm!$M$5:$M$28,(Stundenlastprofil_norm!$H24-1)*24,)) -> 0.387395782 | L31: =SUM(OFFSET(Stundenlastprofil_norm!$N$5:$N$28,(Stundenlastprofil_norm!$H24-1)*24,)) -> 249.4828836 | M31: =SUM(OFFSET(Stundenlastprofil_norm!$S$5:$S$28,(Stundenlastprofil_norm!$H24-1)*24,)) -> 249.4828836 | N31: =SUM(OFFSET(Stundenlastprofil_norm!$U$5:$U$28,(Stundenlastprofil_norm!$H24-1)*24,)) -> 9550.432942
B32: 2023-01-21 | C32: 6 | D32: 1 | E32: 21 | F32: =AVERAGE(OFFSET(Wetterdaten!J$2:J$25,(Wetterdaten!$D22-1)*24,0)) -> 5.725 | G32: =SUM(OFFSET(Wetterdaten!H$2:H$25,(Wetterdaten!$D22-1)*24,0))/1000 -> 0.969 | H32: 0.2469791667 | I32: 0.7220208333 | J32: =Calculation!L22*1000 -> 10185.01259 | K32: =SUM(OFFSET(Stundenlastprofil_norm!$M$5:$M$28,(Stundenlastprofil_norm!$H25-1)*24,)) -> 0.1390698381 | L32: =SUM(OFFSET(Stundenlastprofil_norm!$N$5:$N$28,(Stundenlastprofil_norm!$H25-1)*24,)) -> 89.56097575 | M32: =SUM(OFFSET(Stundenlastprofil_norm!$S$5:$S$28,(Stundenlastprofil_norm!$H25-1)*24,)) -> 89.56097575 | N32: =SUM(OFFSET(Stundenlastprofil_norm!$U$5:$U$28,(Stundenlastprofil_norm!$H25-1)*24,)) -> 9068.20453
B33: 2023-01-22 | C33: 7 | D33: 1 | E33: 22 | F33: =AVERAGE(OFFSET(Wetterdaten!J$2:J$25,(Wetterdaten!$D23-1)*24,0)) -> 7.116666667 | G33: =SUM(OFFSET(Wetterdaten!H$2:H$25,(Wetterdaten!$D23-1)*24,0))/1000 -> 0.413 | H33: 0.2411805556 | I33: 0.1718194444 | J33: =Calculation!L23*1000 -> 10076.06571 | K33: =SUM(OFFSET(Stundenlastprofil_norm!$M$5:$M$28,(Stundenlastprofil_norm!$H26-1)*24,)) -> 0 | L33: =SUM(OFFSET(Stundenlastprofil_norm!$N$5:$N$28,(Stundenlastprofil_norm!$H26-1)*24,)) -> 0 | M33: =SUM(OFFSET(Stundenlastprofil_norm!$S$5:$S$28,(Stundenlastprofil_norm!$H26-1)*24,)) -> 0 | N33: =SUM(OFFSET(Stundenlastprofil_norm!$U$5:$U$28,(Stundenlastprofil_norm!$H26-1)*24,)) -> 9026.804716
B34: 2023-01-23 | C34: 1 | D34: 1 | E34: 23 | F34: =AVERAGE(OFFSET(Wetterdaten!J$2:J$25,(Wetterdaten!$D24-1)*24,0)) -> 2.075 | G34: =SUM(OFFSET(Wetterdaten!H$2:H$25,(Wetterdaten!$D24-1)*24,0))/1000 -> 0.118 | H34: 0.2621875 | I34: 0 | J34: =Calculation!L24*1000 -> 14554.23374 | K34: =SUM(OFFSET(Stundenlastprofil_norm!$M$5:$M$28,(Stundenlastprofil_norm!$H27-1)*24,)) -> 0 | L34: =SUM(OFFSET(Stundenlastprofil_norm!$N$5:$N$28,(Stundenlastprofil_norm!$H27-1)*24,)) -> 0 | M34: =SUM(OFFSET(Stundenlastprofil_norm!$S$5:$S$28,(Stundenlastprofil_norm!$H27-1)*24,)) -> 0 | N34: =SUM(OFFSET(Stundenlastprofil_norm!$U$5:$U$28,(Stundenlastprofil_norm!$H27-1)*24,)) -> 9596.122607
B35: 2023-01-24 | C35: 2 | D35: 1 | E35: 24 | F35: =AVERAGE(OFFSET(Wetterdaten!J$2:J$25,(Wetterdaten!$D25-1)*24,0)) -> -3.066666667 | G35: =SUM(OFFSET(Wetterdaten!H$2:H$25,(Wetterdaten!$D25-1)*24,0))/1000 -> 0.326 | H35: 0.2836111111 | I35: 0.04238888889 | J35: =Calculation!L25*1000 -> 19121.22494 | K35: =SUM(OFFSET(Stundenlastprofil_norm!$M$5:$M$28,(Stundenlastprofil_norm!$H28-1)*24,)) -> 0 | L35: =SUM(OFFSET(Stundenlastprofil_norm!$N$5:$N$28,(Stundenlastprofil_norm!$H28-1)*24,)) -> 0 | M35: =SUM(OFFSET(Stundenlastprofil_norm!$S$5:$S$28,(Stundenlastprofil_norm!$H28-1)*24,)) -> 0 | N35: =SUM(OFFSET(Stundenlastprofil_norm!$U$5:$U$28,(Stundenlastprofil_norm!$H28-1)*24,)) -> 9596.122607
B36: 2023-01-25 | C36: 3 | D36: 1 | E36: 25 | F36: =AVERAGE(OFFSET(Wetterdaten!J$2:J$25,(Wetterdaten!$D26-1)*24,0)) -> -1.720833333 | G36: =SUM(OFFSET(Wetterdaten!H$2:H$25,(Wetterdaten!$D26-1)*24,0))/1000 -> 1.053 | H36: 0.2780034722 | I36: 0.7749965278 | J36: =Calculation!L26*1000 -> 17925.81315 | K36: =SUM(OFFSET(Stundenlastprofil_norm!$M$5:$M$28,(Stundenlastprofil_norm!$H29-1)*24,)) -> 0.1264942746 | L36: =SUM(OFFSET(Stundenlastprofil_norm!$N$5:$N$28,(Stundenlastprofil_norm!$H29-1)*24,)) -> 81.46231287 | M36: =SUM(OFFSET(Stundenlastprofil_norm!$S$5:$S$28,(Stundenlastprofil_norm!$H29-1)*24,)) -> 81.46231287 | N36: =SUM(OFFSET(Stundenlastprofil_norm!$U$5:$U$28,(Stundenlastprofil_norm!$H29-1)*24,)) -> 9596.122607
B37: 2023-01-26 | C37: 4 | D37: 1 | E37: 26 | F37: =AVERAGE(OFFSET(Wetterdaten!J$2:J$25,(Wetterdaten!$D27-1)*24,0)) -> 4.979166667 | G37: =SUM(OFFSET(Wetterdaten!H$2:H$25,(Wetterdaten!$D27-1)*24,0))/1000 -> 1.02 | H37: 0.2500868056 | I37: 0.7699131944 | J37: =Calculation!L27*1000 -> 11974.66092 | K37: =SUM(OFFSET(Stundenlastprofil_norm!$M$5:$M$28,(Stundenlastprofil_norm!$H30-1)*24,)) -> 0.39158017 | L37: =SUM(OFFSET(Stundenlastprofil_norm!$N$5:$N$28,(Stundenlastprofil_norm!$H30-1)*24,)) -> 252.1776295 | M37: =SUM(OFFSET(Stundenlastprofil_norm!$S$5:$S$28,(Stundenlastprofil_norm!$H30-1)*24,)) -> 252.1776295 | N37: =SUM(OFFSET(Stundenlastprofil_norm!$U$5:$U$28,(Stundenlastprofil_norm!$H30-1)*24,)) -> 9524.850805
B38: 2023-01-27 | C38: 5 | D38: 1 | E38: 27 | F38: =AVERAGE(OFFSET(Wetterdaten!J$2:J$25,(Wetterdaten!$D28-1)*24,0)) -> 4.3125 | G38: =SUM(OFFSET(Wetterdaten!H$2:H$25,(Wetterdaten!$D28-1)*24,0))/1000 -> 0.724 | H38: 0.2528645833 | I38: 0.4711354167 | J38: =Calculation!L28*1000 -> 11049.27333 | K38: =SUM(OFFSET(Stundenlastprofil_norm!$M$5:$M$28,(Stundenlastprofil_norm!$H31-1)*24,)) -> 1.488579095 | L38: =SUM(OFFSET(Stundenlastprofil_norm!$N$5:$N$28,(Stundenlastprofil_norm!$H31-1)*24,)) -> 958.6449375 | M38: =SUM(OFFSET(Stundenlastprofil_norm!$S$5:$S$28,(Stundenlastprofil_norm!$H31-1)*24,)) -> 958.6449375 | N38: =SUM(OFFSET(Stundenlastprofil_norm!$U$5:$U$28,(Stundenlastprofil_norm!$H31-1)*24,)) -> 9133.633551
B39: 2023-01-28 | C39: 6 | D39: 1 | E39: 28 | F39: =AVERAGE(OFFSET(Wetterdaten!J$2:J$25,(Wetterdaten!$D29-1)*24,0)) -> 0.9958333333 | G39: =SUM(OFFSET(Wetterdaten!H$2:H$25,(Wetterdaten!$D29-1)*24,0))/1000 -> 0.529 | H39: 0.2666840278 | I39: 0.2623159722 | J39: =Calculation!L29*1000 -> 13078.62894 | K39: =SUM(OFFSET(Stundenlastprofil_norm!$M$5:$M$28,(Stundenlastprofil_norm!$H32-1)*24,)) -> 0.1266420998 | L39: =SUM(OFFSET(Stundenlastprofil_norm!$N$5:$N$28,(Stundenlastprofil_norm!$H32-1)*24,)) -> 81.55751225 | M39: =SUM(OFFSET(Stundenlastprofil_norm!$S$5:$S$28,(Stundenlastprofil_norm!$H32-1)*24,)) -> 81.55751225 | N39: =SUM(OFFSET(Stundenlastprofil_norm!$U$5:$U$28,(Stundenlastprofil_norm!$H32-1)*24,)) -> 9596.122607
B40: 2023-01-29 | C40: 7 | D40: 1 | E40: 29 | F40: =AVERAGE(OFFSET(Wetterdaten!J$2:J$25,(Wetterdaten!$D30-1)*24,0)) -> 2.8625 | G40: =SUM(OFFSET(Wetterdaten!H$2:H$25,(Wetterdaten!$D30-1)*24,0))/1000 -> 1.021 | H40: 0.25890625 | I40: 0.76209375 | J40: =Calculation!L30*1000 -> 13854.7513 | K40: =SUM(OFFSET(Stundenlastprofil_norm!$M$5:$M$28,(Stundenlastprofil_norm!$H33-1)*24,)) -> 0.7185841052 | L40: =SUM(OFFSET(Stundenlastprofil_norm!$N$5:$N$28,(Stundenlastprofil_norm!$H33-1)*24,)) -> 462.7681637 | M40: =SUM(OFFSET(Stundenlastprofil_norm!$S$5:$S$28,(Stundenlastprofil_norm!$H33-1)*24,)) -> 462.7681637 | N40: =SUM(OFFSET(Stundenlastprofil_norm!$U$5:$U$28,(Stundenlastprofil_norm!$H33-1)*24,)) -> 9596.122607
B41: 2023-01-30 | C41: 1 | D41: 1 | E41: 30 | F41: =AVERAGE(OFFSET(Wetterdaten!J$2:J$25,(Wetterdaten!$D31-1)*24,0)) -> 3.979166667 | G41: =SUM(OFFSET(Wetterdaten!H$2:H$25,(Wetterdaten!$D31-1)*24,0))/1000 -> 0.9 | H41: 0.2542534722 | I41: 0.6457465278 | J41: =Calculation!L31*1000 -> 12862.89259 | K41: =SUM(OFFSET(Stundenlastprofil_norm!$M$5:$M$28,(Stundenlastprofil_norm!$H34-1)*24,)) -> 0.1310393685 | L41: =SUM(OFFSET(Stundenlastprofil_norm!$N$5:$N$28,(Stundenlastprofil_norm!$H34-1)*24,)) -> 84.38935332 | M41: =SUM(OFFSET(Stundenlastprofil_norm!$S$5:$S$28,(Stundenlastprofil_norm!$H34-1)*24,)) -> 84.38935332 | N41: =SUM(OFFSET(Stundenlastprofil_norm!$U$5:$U$28,(Stundenlastprofil_norm!$H34-1)*24,)) -> 9595.033836
B42: 2023-01-31 | C42: 2 | D42: 1 | E42: 31 | F42: =AVERAGE(OFFSET(Wetterdaten!J$2:J$25,(Wetterdaten!$D32-1)*24,0)) -> 7.604166667 | G42: =SUM(OFFSET(Wetterdaten!H$2:H$25,(Wetterdaten!$D32-1)*24,0))/1000 -> 1.048 | H42: 0.2391493056 | I42: 0.8088506944 | J42: =Calculation!L32*1000 -> 9643.052769 | K42: =SUM(OFFSET(Stundenlastprofil_norm!$M$5:$M$28,(Stundenlastprofil_norm!$H35-1)*24,)) -> 0.8244316905 | L42: =SUM(OFFSET(Stundenlastprofil_norm!$N$5:$N$28,(Stundenlastprofil_norm!$H35-1)*24,)) -> 530.9340087 | M42: =SUM(OFFSET(Stundenlastprofil_norm!$S$5:$S$28,(Stundenlastprofil_norm!$H35-1)*24,)) -> 530.9340087 | N42: =SUM(OFFSET(Stundenlastprofil_norm!$U$5:$U$28,(Stundenlastprofil_norm!$H35-1)*24,)) -> 8602.835289
B43: 2023-02-01 | C43: 3 | D43: 2 | E43: 32 | F43: =AVERAGE(OFFSET(Wetterdaten!J$2:J$25,(Wetterdaten!$D33-1)*24,0)) -> 8.595833333 | G43: =SUM(OFFSET(Wetterdaten!H$2:H$25,(Wetterdaten!$D33-1)*24,0))/1000 -> 0.674 | H43: 0.2350173611 | I43: 0.4389826389 | J43: =Calculation!L33*1000 -> 8762.223023 | K43: =SUM(OFFSET(Stundenlastprofil_norm!$M$5:$M$28,(Stundenlastprofil_norm!$H36-1)*24,)) -> 0 | L43: =SUM(OFFSET(Stundenlastprofil_norm!$N$5:$N$28,(Stundenlastprofil_norm!$H36-1)*24,)) -> 0 | M43: =SUM(OFFSET(Stundenlastprofil_norm!$S$5:$S$28,(Stundenlastprofil_norm!$H36-1)*24,)) -> 0 | N43: =SUM(OFFSET(Stundenlastprofil_norm!$U$5:$U$28,(Stundenlastprofil_norm!$H36-1)*24,)) -> 8484.642608
B44: 2023-02-02 | C44: 4 | D44: 2 | E44: 33 | F44: =AVERAGE(OFFSET(Wetterdaten!J$2:J$25,(Wetterdaten!$D34-1)*24,0)) -> 6.2 | G44: =SUM(OFFSET(Wetterdaten!H$2:H$25,(Wetterdaten!$D34-1)*24,0))/1000 -> 0.97 | H44: 0.245 | I44: 0.725 | J44: =Calculation!L34*1000 -> 10890.27808 | K44: =SUM(OFFSET(Stundenlastprofil_norm!$M$5:$M$28,(Stundenlastprofil_norm!$H37-1)*24,)) -> 0.1169578116 | L44: =SUM(OFFSET(Stundenlastprofil_norm!$N$5:$N$28,(Stundenlastprofil_norm!$H37-1)*24,)) -> 75.32083069 | M44: =SUM(OFFSET(Stundenlastprofil_norm!$S$5:$S$28,(Stundenlastprofil_norm!$H37-1)*24,)) -> 75.32083069 | N44: =SUM(OFFSET(Stundenlastprofil_norm!$U$5:$U$28,(Stundenlastprofil_norm!$H37-1)*24,)) -> 9294.229041
B45: 2023-02-03 | C45: 5 | D45: 2 | E45: 34 | F45: =AVERAGE(OFFSET(Wetterdaten!J$2:J$25,(Wetterdaten!$D35-1)*24,0)) -> 3.366666667 | G45: =SUM(OFFSET(Wetterdaten!H$2:H$25,(Wetterdaten!$D35-1)*24,0))/1000 -> 0.982 | H45: 0.2568055556 | I45: 0.7251944444 | J45: =Calculation!L35*1000 -> 11627.9966 | K45: =SUM(OFFSET(Stundenlastprofil_norm!$M$5:$M$28,(Stundenlastprofil_norm!$H38-1)*24,)) -> 1.334373782 | L45: =SUM(OFFSET(Stundenlastprofil_norm!$N$5:$N$28,(Stundenlastprofil_norm!$H38-1)*24,)) -> 859.3367158 | M45: =SUM(OFFSET(Stundenlastprofil_norm!$S$5:$S$28,(Stundenlastprofil_norm!$H38-1)*24,)) -> 859.3367158 | N45: =SUM(OFFSET(Stundenlastprofil_norm!$U$5:$U$28,(Stundenlastprofil_norm!$H38-1)*24,)) -> 9464.551293
B46: 2023-02-04 | C46: 6 | D46: 2 | E46: 35 | F46: =AVERAGE(OFFSET(Wetterdaten!J$2:J$25,(Wetterdaten!$D36-1)*24,0)) -> -2.9625 | G46: =SUM(OFFSET(Wetterdaten!H$2:H$25,(Wetterdaten!$D36-1)*24,0))/1000 -> 0.85 | H46: 0.2831770833 | I46: 0.5668229167 | J46: =Calculation!L36*1000 -> 15500.59857 | K46: =SUM(OFFSET(Stundenlastprofil_norm!$M$5:$M$28,(Stundenlastprofil_norm!$H39-1)*24,)) -> 0.2013293842 | L46: =SUM(OFFSET(Stundenlastprofil_norm!$N$5:$N$28,(Stundenlastprofil_norm!$H39-1)*24,)) -> 129.6561234 | M46: =SUM(OFFSET(Stundenlastprofil_norm!$S$5:$S$28,(Stundenlastprofil_norm!$H39-1)*24,)) -> 129.6561234 | N46: =SUM(OFFSET(Stundenlastprofil_norm!$U$5:$U$28,(Stundenlastprofil_norm!$H39-1)*24,)) -> 9596.122607
B47: 2023-02-05 | C47: 7 | D47: 2 | E47: 36 | F47: =AVERAGE(OFFSET(Wetterdaten!J$2:J$25,(Wetterdaten!$D37-1)*24,0)) -> 1.033333333 | G47: =SUM(OFFSET(Wetterdaten!H$2:H$25,(Wetterdaten!$D37-1)*24,0))/1000 -> 1.142 | H47: 0.2665277778 | I47: 0.8754722222 | J47: =Calculation!L37*1000 -> 15479.47507 | K47: =SUM(OFFSET(Stundenlastprofil_norm!$M$5:$M$28,(Stundenlastprofil_norm!$H40-1)*24,)) -> 0.6515757271 | L47: =SUM(OFFSET(Stundenlastprofil_norm!$N$5:$N$28,(Stundenlastprofil_norm!$H40-1)*24,)) -> 419.6147683 | M47: =SUM(OFFSET(Stundenlastprofil_norm!$S$5:$S$28,(Stundenlastprofil_norm!$H40-1)*24,)) -> 419.6147683 | N47: =SUM(OFFSET(Stundenlastprofil_norm!$U$5:$U$28,(Stundenlastprofil_norm!$H40-1)*24,)) -> 9596.122607
B48: 2023-02-06 | C48: 1 | D48: 2 | E48: 37 | F48: =AVERAGE(OFFSET(Wetterdaten!J$2:J$25,(Wetterdaten!$D38-1)*24,0)) -> 0.25 | G48: =SUM(OFFSET(Wetterdaten!H$2:H$25,(Wetterdaten!$D38-1)*24,0))/1000 -> 1.09 | H48: 0.2697916667 | I48: 0.8202083333 | J48: =Calculation!L38*1000 -> 16175.25655 | K48: =SUM(OFFSET(Stundenlastprofil_norm!$M$5:$M$28,(Stundenlastprofil_norm!$H41-1)*24,)) -> 0.1219743516 | L48: =SUM(OFFSET(Stundenlastprofil_norm!$N$5:$N$28,(Stundenlastprofil_norm!$H41-1)*24,)) -> 78.55148245 | M48: =SUM(OFFSET(Stundenlastprofil_norm!$S$5:$S$28,(Stundenlastprofil_norm!$H41-1)*24,)) -> 78.55148245 | N48: =SUM(OFFSET(Stundenlastprofil_norm!$U$5:$U$28,(Stundenlastprofil_norm!$H41-1)*24,)) -> 9596.122607
B49: 2023-02-07 | C49: 2 | D49: 2 | E49: 38 | F49: =AVERAGE(OFFSET(Wetterdaten!J$2:J$25,(Wetterdaten!$D39-1)*24,0)) -> 1.4875 | G49: =SUM(OFFSET(Wetterdaten!H$2:H$25,(Wetterdaten!$D39-1)*24,0))/1000 -> 0.982 | H49: 0.2646354167 | I49: 0.7173645833 | J49: =Calculation!L39*1000 -> 15076.06985 | K49: =SUM(OFFSET(Stundenlastprofil_norm!$M$5:$M$28,(Stundenlastprofil_norm!$H42-1)*24,)) -> 0.2335573459 | L49: =SUM(OFFSET(Stundenlastprofil_norm!$N$5:$N$28,(Stundenlastprofil_norm!$H42-1)*24,)) -> 150.4109308 | M49: =SUM(OFFSET(Stundenlastprofil_norm!$S$5:$S$28,(Stundenlastprofil_norm!$H42-1)*24,)) -> 150.4109308 | N49: =SUM(OFFSET(Stundenlastprofil_norm!$U$5:$U$28,(Stundenlastprofil_norm!$H42-1)*24,)) -> 9596.122607
B50: 2023-02-08 | C50: 3 | D50: 2 | E50: 39 | F50: =AVERAGE(OFFSET(Wetterdaten!J$2:J$25,(Wetterdaten!$D40-1)*24,0)) -> -2.370833333 | G50: =SUM(OFFSET(Wetterdaten!H$2:H$25,(Wetterdaten!$D40-1)*24,0))/1000 -> 0.203 | H50: 0.2807118056 | I50: 0 | J50: =Calculation!L40*1000 -> 18503.16374 | K50: =SUM(OFFSET(Stundenlastprofil_norm!$M$5:$M$28,(Stundenlastprofil_norm!$H43-1)*24,)) -> 0 | L50: =SUM(OFFSET(Stundenlastprofil_norm!$N$5:$N$28,(Stundenlastprofil_norm!$H43-1)*24,)) -> 0 | M50: =SUM(OFFSET(Stundenlastprofil_norm!$S$5:$S$28,(Stundenlastprofil_norm!$H43-1)*24,)) -> 0 | N50: =SUM(OFFSET(Stundenlastprofil_norm!$U$5:$U$28,(Stundenlastprofil_norm!$H43-1)*24,)) -> 9596.122607
B51: 2023-02-09 | C51: 4 | D51: 2 | E51: 40 | F51: =AVERAGE(OFFSET(Wetterdaten!J$2:J$25,(Wetterdaten!$D41-1)*24,0)) -> -3.695833333 | G51: =SUM(OFFSET(Wetterdaten!H$2:H$25,(Wetterdaten!$D41-1)*24,0))/1000 -> 1.085 | H51: 0.2862326389 | I51: 0.7987673611 | J51: =Calculation!L41*1000 -> 19680.07071 | K51: =SUM(OFFSET(Stundenlastprofil_norm!$M$5:$M$28,(Stundenlastprofil_norm!$H44-1)*24,)) -> 1.307874458 | L51: =SUM(OFFSET(Stundenlastprofil_norm!$N$5:$N$28,(Stundenlastprofil_norm!$H44-1)*24,)) -> 842.2711511 | M51: =SUM(OFFSET(Stundenlastprofil_norm!$S$5:$S$28,(Stundenlastprofil_norm!$H44-1)*24,)) -> 842.2711511 | N51: =SUM(OFFSET(Stundenlastprofil_norm!$U$5:$U$28,(Stundenlastprofil_norm!$H44-1)*24,)) -> 9596.122607
B52: 2023-02-10 | C52: 5 | D52: 2 | E52: 41 | F52: =AVERAGE(OFFSET(Wetterdaten!J$2:J$25,(Wetterdaten!$D42-1)*24,0)) -> -1.079166667 | G52: =SUM(OFFSET(Wetterdaten!H$2:H$25,(Wetterdaten!$D42-1)*24,0))/1000 -> 0.785 | H52: 0.2753298611 | I52: 0.5096701389 | J52: =Calculation!L42*1000 -> 14348.25091 | K52: =SUM(OFFSET(Stundenlastprofil_norm!$M$5:$M$28,(Stundenlastprofil_norm!$H45-1)*24,)) -> 1.734381098 | L52: =SUM(OFFSET(Stundenlastprofil_norm!$N$5:$N$28,(Stundenlastprofil_norm!$H45-1)*24,)) -> 1116.941427 | M52: =SUM(OFFSET(Stundenlastprofil_norm!$S$5:$S$28,(Stundenlastprofil_norm!$H45-1)*24,)) -> 1116.941427 | N52: =SUM(OFFSET(Stundenlastprofil_norm!$U$5:$U$28,(Stundenlastprofil_norm!$H45-1)*24,)) -> 9596.122607
B53: 2023-02-11 | C53: 6 | D53: 2 | E53: 42 | F53: =AVERAGE(OFFSET(Wetterdaten!J$2:J$25,(Wetterdaten!$D43-1)*24,0)) -> -0.65 | G53: =SUM(OFFSET(Wetterdaten!H$2:H$25,(Wetterdaten!$D43-1)*24,0))/1000 -> 1.265 | H53: 0.2735416667 | I53: 0.9914583333 | J53: =Calculation!L43*1000 -> 14085.65841 | K53: =SUM(OFFSET(Stundenlastprofil_norm!$M$5:$M$28,(Stundenlastprofil_norm!$H46-1)*24,)) -> 0.1016134557 | L53: =SUM(OFFSET(Stundenlastprofil_norm!$N$5:$N$28,(Stundenlastprofil_norm!$H46-1)*24,)) -> 65.43906545 | M53: =SUM(OFFSET(Stundenlastprofil_norm!$S$5:$S$28,(Stundenlastprofil_norm!$H46-1)*24,)) -> 65.43906545 | N53: =SUM(OFFSET(Stundenlastprofil_norm!$U$5:$U$28,(Stundenlastprofil_norm!$H46-1)*24,)) -> 9596.122607
B54: 2023-02-12 | C54: 7 | D54: 2 | E54: 43 | F54: =AVERAGE(OFFSET(Wetterdaten!J$2:J$25,(Wetterdaten!$D44-1)*24,0)) -> -1.466666667 | G54: =SUM(OFFSET(Wetterdaten!H$2:H$25,(Wetterdaten!$D44-1)*24,0))/1000 -> 1.359 | H54: 0.2769444444 | I54: 1.082055556 | J54: =Calculation!L44*1000 -> 17700.05426 | K54: =SUM(OFFSET(Stundenlastprofil_norm!$M$5:$M$28,(Stundenlastprofil_norm!$H47-1)*24,)) -> 1.025598679 | L54: =SUM(OFFSET(Stundenlastprofil_norm!$N$5:$N$28,(Stundenlastprofil_norm!$H47-1)*24,)) -> 660.485549 | M54: =SUM(OFFSET(Stundenlastprofil_norm!$S$5:$S$28,(Stundenlastprofil_norm!$H47-1)*24,)) -> 660.485549 | N54: =SUM(OFFSET(Stundenlastprofil_norm!$U$5:$U$28,(Stundenlastprofil_norm!$H47-1)*24,)) -> 9596.122607
B55: 2023-02-13 | C55: 1 | D55: 2 | E55: 44 | F55: =AVERAGE(OFFSET(Wetterdaten!J$2:J$25,(Wetterdaten!$D45-1)*24,0)) -> 2.795833333 | G55: =SUM(OFFSET(Wetterdaten!H$2:H$25,(Wetterdaten!$D45-1)*24,0))/1000 -> 0.869 | H55: 0.2591840278 | I55: 0.6098159722 | J55: =Calculation!L45*1000 -> 13913.96674 | K55: =SUM(OFFSET(Stundenlastprofil_norm!$M$5:$M$28,(Stundenlastprofil_norm!$H48-1)*24,)) -> 0.8626570265 | L55: =SUM(OFFSET(Stundenlastprofil_norm!$N$5:$N$28,(Stundenlastprofil_norm!$H48-1)*24,)) -> 555.551125 | M55: =SUM(OFFSET(Stundenlastprofil_norm!$S$5:$S$28,(Stundenlastprofil_norm!$H48-1)*24,)) -> 555.551125 | N55: =SUM(OFFSET(Stundenlastprofil_norm!$U$5:$U$28,(Stundenlastprofil_norm!$H48-1)*24,)) -> 9596.122607
B56: 2023-02-14 | C56: 2 | D56: 2 | E56: 45 | F56: =AVERAGE(OFFSET(Wetterdaten!J$2:J$25,(Wetterdaten!$D46-1)*24,0)) -> -6.754166667 | G56: =SUM(OFFSET(Wetterdaten!H$2:H$25,(Wetterdaten!$D46-1)*24,0))/1000 -> 1.285 | H56: 0.2989756944 | I56: 0.9860243056 | J56: =Calculation!L46*1000 -> 22396.57925 | K56: =SUM(OFFSET(Stundenlastprofil_norm!$M$5:$M$28,(Stundenlastprofil_norm!$H49-1)*24,)) -> 0 | L56: =SUM(OFFSET(Stundenlastprofil_norm!$N$5:$N$28,(Stundenlastprofil_norm!$H49-1)*24,)) -> 0 | M56: =SUM(OFFSET(Stundenlastprofil_norm!$S$5:$S$28,(Stundenlastprofil_norm!$H49-1)*24,)) -> 0 | N56: =SUM(OFFSET(Stundenlastprofil_norm!$U$5:$U$28,(Stundenlastprofil_norm!$H49-1)*24,)) -> 9596.122607
B57: 2023-02-15 | C57: 3 | D57: 2 | E57: 46 | F57: =AVERAGE(OFFSET(Wetterdaten!J$2:J$25,(Wetterdaten!$D47-1)*24,0)) -> -5.379166667 | G57: =SUM(OFFSET(Wetterdaten!H$2:H$25,(Wetterdaten!$D47-1)*24,0))/1000 -> 1.266 | H57: 0.2932465278 | I57: 0.9727534722 | J57: =Calculation!L47*1000 -> 21175.2607 | K57: =SUM(OFFSET(Stundenlastprofil_norm!$M$5:$M$28,(Stundenlastprofil_norm!$H50-1)*24,)) -> 0.4620415817 | L57: =SUM(OFFSET(Stundenlastprofil_norm!$N$5:$N$28,(Stundenlastprofil_norm!$H50-1)*24,)) -> 297.5547786 | M57: =SUM(OFFSET(Stundenlastprofil_norm!$S$5:$S$28,(Stundenlastprofil_norm!$H50-1)*24,)) -> 297.5547786 | N57: =SUM(OFFSET(Stundenlastprofil_norm!$U$5:$U$28,(Stundenlastprofil_norm!$H50-1)*24,)) -> 9596.122607
B58: 2023-02-16 | C58: 4 | D58: 2 | E58: 47 | F58: =AVERAGE(OFFSET(Wetterdaten!J$2:J$25,(Wetterdaten!$D48-1)*24,0)) -> 0.6583333333 | G58: =SUM(OFFSET(Wetterdaten!H$2:H$25,(Wetterdaten!$D48-1)*24,0))/1000 -> 1.488 | H58: 0.2680902778 | I58: 1.219909722 | J58: =Calculation!L48*1000 -> 15812.56195 | K58: =SUM(OFFSET(Stundenlastprofil_norm!$M$5:$M$28,(Stundenlastprofil_norm!$H51-1)*24,)) -> 0.8210106847 | L58: =SUM(OFFSET(Stundenlastprofil_norm!$N$5:$N$28,(Stundenlastprofil_norm!$H51-1)*24,)) -> 528.730881 | M58: =SUM(OFFSET(Stundenlastprofil_norm!$S$5:$S$28,(Stundenlastprofil_norm!$H51-1)*24,)) -> 528.730881 | N58: =SUM(OFFSET(Stundenlastprofil_norm!$U$5:$U$28,(Stundenlastprofil_norm!$H51-1)*24,)) -> 9596.122607
B59: 2023-02-17 | C59: 5 | D59: 2 | E59: 48 | F59: =AVERAGE(OFFSET(Wetterdaten!J$2:J$25,(Wetterdaten!$D49-1)*24,0)) -> 3.8125 | G59: =SUM(OFFSET(Wetterdaten!H$2:H$25,(Wetterdaten!$D49-1)*24,0))/1000 -> 1.598 | H59: 0.2549479167 | I59: 1.343052083 | J59: =Calculation!L49*1000 -> 11355.20634 | K59: =SUM(OFFSET(Stundenlastprofil_norm!$M$5:$M$28,(Stundenlastprofil_norm!$H52-1)*24,)) -> 0.36961914 | L59: =SUM(OFFSET(Stundenlastprofil_norm!$N$5:$N$28,(Stundenlastprofil_norm!$H52-1)*24,)) -> 238.0347262 | M59: =SUM(OFFSET(Stundenlastprofil_norm!$S$5:$S$28,(Stundenlastprofil_norm!$H52-1)*24,)) -> 238.0347262 | N59: =SUM(OFFSET(Stundenlastprofil_norm!$U$5:$U$28,(Stundenlastprofil_norm!$H52-1)*24,)) -> 9408.950971
B60: 2023-02-18 | C60: 6 | D60: 2 | E60: 49 | F60: =AVERAGE(OFFSET(Wetterdaten!J$2:J$25,(Wetterdaten!$D50-1)*24,0)) -> -0.175 | G60: =SUM(OFFSET(Wetterdaten!H$2:H$25,(Wetterdaten!$D50-1)*24,0))/1000 -> 1.353 | H60: 0.2715625 | I60: 1.0814375 | J60: =Calculation!L50*1000 -> 13795.02206 | K60: =SUM(OFFSET(Stundenlastprofil_norm!$M$5:$M$28,(Stundenlastprofil_norm!$H53-1)*24,)) -> 0.06650727548 | L60: =SUM(OFFSET(Stundenlastprofil_norm!$N$5:$N$28,(Stundenlastprofil_norm!$H53-1)*24,)) -> 42.83068541 | M60: =SUM(OFFSET(Stundenlastprofil_norm!$S$5:$S$28,(Stundenlastprofil_norm!$H53-1)*24,)) -> 42.83068541 | N60: =SUM(OFFSET(Stundenlastprofil_norm!$U$5:$U$28,(Stundenlastprofil_norm!$H53-1)*24,)) -> 9596.122607
B61: 2023-02-19 | C61: 7 | D61: 2 | E61: 50 | F61: =AVERAGE(OFFSET(Wetterdaten!J$2:J$25,(Wetterdaten!$D51-1)*24,0)) -> 2.383333333 | G61: =SUM(OFFSET(Wetterdaten!H$2:H$25,(Wetterdaten!$D51-1)*24,0))/1000 -> 1.639 | H61: 0.2609027778 | I61: 1.378097222 | J61: =Calculation!L51*1000 -> 14280.36231 | K61: =SUM(OFFSET(Stundenlastprofil_norm!$M$5:$M$28,(Stundenlastprofil_norm!$H54-1)*24,)) -> 0.3897066423 | L61: =SUM(OFFSET(Stundenlastprofil_norm!$N$5:$N$28,(Stundenlastprofil_norm!$H54-1)*24,)) -> 250.9710777 | M61: =SUM(OFFSET(Stundenlastprofil_norm!$S$5:$S$28,(Stundenlastprofil_norm!$H54-1)*24,)) -> 250.9710777 | N61: =SUM(OFFSET(Stundenlastprofil_norm!$U$5:$U$28,(Stundenlastprofil_norm!$H54-1)*24,)) -> 9596.122607
B62: 2023-02-20 | C62: 1 | D62: 2 | E62: 51 | F62: =AVERAGE(OFFSET(Wetterdaten!J$2:J$25,(Wetterdaten!$D52-1)*24,0)) -> 5.741666667 | G62: =SUM(OFFSET(Wetterdaten!H$2:H$25,(Wetterdaten!$D52-1)*24,0))/1000 -> 1.354 | H62: 0.2469097222 | I62: 1.107090278 | J62: =Calculation!L52*1000 -> 11297.38427 | K62: =SUM(OFFSET(Stundenlastprofil_norm!$M$5:$M$28,(Stundenlastprofil_norm!$H55-1)*24,)) -> 0.08022358374 | L62: =SUM(OFFSET(Stundenlastprofil_norm!$N$5:$N$28,(Stundenlastprofil_norm!$H55-1)*24,)) -> 51.66398793 | M62: =SUM(OFFSET(Stundenlastprofil_norm!$S$5:$S$28,(Stundenlastprofil_norm!$H55-1)*24,)) -> 51.66398793 | N62: =SUM(OFFSET(Stundenlastprofil_norm!$U$5:$U$28,(Stundenlastprofil_norm!$H55-1)*24,)) -> 9395.651895
B63: 2023-02-21 | C63: 2 | D63: 2 | E63: 52 | F63: =AVERAGE(OFFSET(Wetterdaten!J$2:J$25,(Wetterdaten!$D53-1)*24,0)) -> 9.4375 | G63: =SUM(OFFSET(Wetterdaten!H$2:H$25,(Wetterdaten!$D53-1)*24,0))/1000 -> 0.84 | H63: 0.2315104167 | I63: 0.6084895833 | J63: =Calculation!L53*1000 -> 8014.628029 | K63: =SUM(OFFSET(Stundenlastprofil_norm!$M$5:$M$28,(Stundenlastprofil_norm!$H56-1)*24,)) -> 0 | L63: =SUM(OFFSET(Stundenlastprofil_norm!$N$5:$N$28,(Stundenlastprofil_norm!$H56-1)*24,)) -> 0 | M63: =SUM(OFFSET(Stundenlastprofil_norm!$S$5:$S$28,(Stundenlastprofil_norm!$H56-1)*24,)) -> 0 | N63: =SUM(OFFSET(Stundenlastprofil_norm!$U$5:$U$28,(Stundenlastprofil_norm!$H56-1)*24,)) -> 8003.934523
B64: 2023-02-22 | C64: 3 | D64: 2 | E64: 53 | F64: =AVERAGE(OFFSET(Wetterdaten!J$2:J$25,(Wetterdaten!$D54-1)*24,0)) -> 10.3625 | G64: =SUM(OFFSET(Wetterdaten!H$2:H$25,(Wetterdaten!$D54-1)*24,0))/1000 -> 1.381 | H64: 0.22765625 | I64: 1.15334375 | J64: =Calculation!L54*1000 -> 7193.013729 | K64: =SUM(OFFSET(Stundenlastprofil_norm!$M$5:$M$28,(Stundenlastprofil_norm!$H57-1)*24,)) -> 0.1425983843 | L64: =SUM(OFFSET(Stundenlastprofil_norm!$N$5:$N$28,(Stundenlastprofil_norm!$H57-1)*24,)) -> 91.83335949 | M64: =SUM(OFFSET(Stundenlastprofil_norm!$S$5:$S$28,(Stundenlastprofil_norm!$H57-1)*24,)) -> 91.83335949 | N64: =SUM(OFFSET(Stundenlastprofil_norm!$U$5:$U$28,(Stundenlastprofil_norm!$H57-1)*24,)) -> 7108.373383
B65: 2023-02-23 | C65: 4 | D65: 2 | E65: 54 | F65: =AVERAGE(OFFSET(Wetterdaten!J$2:J$25,(Wetterdaten!$D55-1)*24,0)) -> 4.8375 | G65: =SUM(OFFSET(Wetterdaten!H$2:H$25,(Wetterdaten!$D55-1)*24,0))/1000 -> 1.564 | H65: 0.2506770833 | I65: 1.313322917 | J65: =Calculation!L55*1000 -> 12100.49374 | K65: =SUM(OFFSET(Stundenlastprofil_norm!$M$5:$M$28,(Stundenlastprofil_norm!$H58-1)*24,)) -> 1.080536567 | L65: =SUM(OFFSET(Stundenlastprofil_norm!$N$5:$N$28,(Stundenlastprofil_norm!$H58-1)*24,)) -> 695.8655492 | M65: =SUM(OFFSET(Stundenlastprofil_norm!$S$5:$S$28,(Stundenlastprofil_norm!$H58-1)*24,)) -> 695.8655492 | N65: =SUM(OFFSET(Stundenlastprofil_norm!$U$5:$U$28,(Stundenlastprofil_norm!$H58-1)*24,)) -> 9545.109889
B66: 2023-02-24 | C66: 5 | D66: 2 | E66: 55 | F66: =AVERAGE(OFFSET(Wetterdaten!J$2:J$25,(Wetterdaten!$D56-1)*24,0)) -> 5.25 | G66: =SUM(OFFSET(Wetterdaten!H$2:H$25,(Wetterdaten!$D56-1)*24,0))/1000 -> 1.602 | H66: 0.2489583333 | I66: 1.353041667 | J66: =Calculation!L56*1000 -> 10475.64895 | K66: =SUM(OFFSET(Stundenlastprofil_norm!$M$5:$M$28,(Stundenlastprofil_norm!$H59-1)*24,)) -> 0.2709021595 | L66: =SUM(OFFSET(Stundenlastprofil_norm!$N$5:$N$28,(Stundenlastprofil_norm!$H59-1)*24,)) -> 174.4609907 | M66: =SUM(OFFSET(Stundenlastprofil_norm!$S$5:$S$28,(Stundenlastprofil_norm!$H59-1)*24,)) -> 174.4609907 | N66: =SUM(OFFSET(Stundenlastprofil_norm!$U$5:$U$28,(Stundenlastprofil_norm!$H59-1)*24,)) -> 9169.934479
B67: 2023-02-25 | C67: 6 | D67: 2 | E67: 56 | F67: =AVERAGE(OFFSET(Wetterdaten!J$2:J$25,(Wetterdaten!$D57-1)*24,0)) -> 4.229166667 | G67: =SUM(OFFSET(Wetterdaten!H$2:H$25,(Wetterdaten!$D57-1)*24,0))/1000 -> 0.632 | H67: 0.2532118056 | I67: 0.3787881944 | J67: =Calculation!L57*1000 -> 11100.26217 | K67: =SUM(OFFSET(Stundenlastprofil_norm!$M$5:$M$28,(Stundenlastprofil_norm!$H60-1)*24,)) -> 0 | L67: =SUM(OFFSET(Stundenlastprofil_norm!$N$5:$N$28,(Stundenlastprofil_norm!$H60-1)*24,)) -> 0 | M67: =SUM(OFFSET(Stundenlastprofil_norm!$S$5:$S$28,(Stundenlastprofil_norm!$H60-1)*24,)) -> 0 | N67: =SUM(OFFSET(Stundenlastprofil_norm!$U$5:$U$28,(Stundenlastprofil_norm!$H60-1)*24,)) -> 9350.084808
B68: 2023-02-26 | C68: 7 | D68: 2 | E68: 57 | F68: =AVERAGE(OFFSET(Wetterdaten!J$2:J$25,(Wetterdaten!$D58-1)*24,0)) -> 1.929166667 | G68: =SUM(OFFSET(Wetterdaten!H$2:H$25,(Wetterdaten!$D58-1)*24,0))/1000 -> 0.738 | H68: 0.2627951389 | I68: 0.4752048611 | J68: =Calculation!L58*1000 -> 14683.76753 | K68: =SUM(OFFSET(Stundenlastprofil_norm!$M$5:$M$28,(Stundenlastprofil_norm!$H61-1)*24,)) -> 0 | L68: =SUM(OFFSET(Stundenlastprofil_norm!$N$5:$N$28,(Stundenlastprofil_norm!$H61-1)*24,)) -> 0 | M68: =SUM(OFFSET(Stundenlastprofil_norm!$S$5:$S$28,(Stundenlastprofil_norm!$H61-1)*24,)) -> 0 | N68: =SUM(OFFSET(Stundenlastprofil_norm!$U$5:$U$28,(Stundenlastprofil_norm!$H61-1)*24,)) -> 9596.122607
B69: 2023-02-27 | C69: 1 | D69: 2 | E69: 58 | F69: =AVERAGE(OFFSET(Wetterdaten!J$2:J$25,(Wetterdaten!$D59-1)*24,0)) -> 6.620833333 | G69: =SUM(OFFSET(Wetterdaten!H$2:H$25,(Wetterdaten!$D59-1)*24,0))/1000 -> 1.002 | H69: 0.2432465278 | I69: 0.7587534722 | J69: =Calculation!L59*1000 -> 10516.48058 | K69: =SUM(OFFSET(Stundenlastprofil_norm!$M$5:$M$28,(Stundenlastprofil_norm!$H62-1)*24,)) -> 0.5080469074 | L69: =SUM(OFFSET(Stundenlastprofil_norm!$N$5:$N$28,(Stundenlastprofil_norm!$H62-1)*24,)) -> 327.1822084 | M69: =SUM(OFFSET(Stundenlastprofil_norm!$S$5:$S$28,(Stundenlastprofil_norm!$H62-1)*24,)) -> 327.1822084 | N69: =SUM(OFFSET(Stundenlastprofil_norm!$U$5:$U$28,(Stundenlastprofil_norm!$H62-1)*24,)) -> 9089.246518
B70: 2023-02-28 | C70: 2 | D70: 2 | E70: 59 | F70: =AVERAGE(OFFSET(Wetterdaten!J$2:J$25,(Wetterdaten!$D60-1)*24,0)) -> 7.6625 | G70: =SUM(OFFSET(Wetterdaten!H$2:H$25,(Wetterdaten!$D60-1)*24,0))/1000 -> 1.291 | H70: 0.23890625 | I70: 1.05209375 | J70: =Calculation!L60*1000 -> 9591.239254 | K70: =SUM(OFFSET(Stundenlastprofil_norm!$M$5:$M$28,(Stundenlastprofil_norm!$H63-1)*24,)) -> 0.4237779038 | L70: =SUM(OFFSET(Stundenlastprofil_norm!$N$5:$N$28,(Stundenlastprofil_norm!$H63-1)*24,)) -> 272.9129701 | M70: =SUM(OFFSET(Stundenlastprofil_norm!$S$5:$S$28,(Stundenlastprofil_norm!$H63-1)*24,)) -> 272.9129701 | N70: =SUM(OFFSET(Stundenlastprofil_norm!$U$5:$U$28,(Stundenlastprofil_norm!$H63-1)*24,)) -> 8732.426092
B71: 2023-03-01 | C71: 3 | D71: 3 | E71: 60 | F71: =AVERAGE(OFFSET(Wetterdaten!J$2:J$25,(Wetterdaten!$D61-1)*24,0)) -> 4.825 | G71: =SUM(OFFSET(Wetterdaten!H$2:H$25,(Wetterdaten!$D61-1)*24,0))/1000 -> 0.721 | H71: 0.2507291667 | I71: 0.4702708333 | J71: =Calculation!L61*1000 -> 12111.59663 | K71: =SUM(OFFSET(Stundenlastprofil_norm!$M$5:$M$28,(Stundenlastprofil_norm!$H64-1)*24,)) -> 0 | L71: =SUM(OFFSET(Stundenlastprofil_norm!$N$5:$N$28,(Stundenlastprofil_norm!$H64-1)*24,)) -> 0 | M71: =SUM(OFFSET(Stundenlastprofil_norm!$S$5:$S$28,(Stundenlastprofil_norm!$H64-1)*24,)) -> 0 | N71: =SUM(OFFSET(Stundenlastprofil_norm!$U$5:$U$28,(Stundenlastprofil_norm!$H64-1)*24,)) -> 9546.897456
B72: 2023-03-02 | C72: 4 | D72: 3 | E72: 61 | F72: =AVERAGE(OFFSET(Wetterdaten!J$2:J$25,(Wetterdaten!$D62-1)*24,0)) -> 4.483333333 | G72: =SUM(OFFSET(Wetterdaten!H$2:H$25,(Wetterdaten!$D62-1)*24,0))/1000 -> 1.869 | H72: 0.2521527778 | I72: 1.616847222 | J72: =Calculation!L62*1000 -> 12415.07579 | K72: =SUM(OFFSET(Stundenlastprofil_norm!$M$5:$M$28,(Stundenlastprofil_norm!$H65-1)*24,)) -> 0.9076017769 | L72: =SUM(OFFSET(Stundenlastprofil_norm!$N$5:$N$28,(Stundenlastprofil_norm!$H65-1)*24,)) -> 584.4955443 | M72: =SUM(OFFSET(Stundenlastprofil_norm!$S$5:$S$28,(Stundenlastprofil_norm!$H65-1)*24,)) -> 584.4955443 | N72: =SUM(OFFSET(Stundenlastprofil_norm!$U$5:$U$28,(Stundenlastprofil_norm!$H65-1)*24,)) -> 9576.039482
B73: 2023-03-03 | C73: 5 | D73: 3 | E73: 62 | F73: =AVERAGE(OFFSET(Wetterdaten!J$2:J$25,(Wetterdaten!$D63-1)*24,0)) -> 1.470833333 | G73: =SUM(OFFSET(Wetterdaten!H$2:H$25,(Wetterdaten!$D63-1)*24,0))/1000 -> 1.783 | H73: 0.2647048611 | I73: 1.518295139 | J73: =Calculation!L63*1000 -> 12787.99258 | K73: =SUM(OFFSET(Stundenlastprofil_norm!$M$5:$M$28,(Stundenlastprofil_norm!$H66-1)*24,)) -> 0.9880766976 | L73: =SUM(OFFSET(Stundenlastprofil_norm!$N$5:$N$28,(Stundenlastprofil_norm!$H66-1)*24,)) -> 636.3213933 | M73: =SUM(OFFSET(Stundenlastprofil_norm!$S$5:$S$28,(Stundenlastprofil_norm!$H66-1)*24,)) -> 636.3213933 | N73: =SUM(OFFSET(Stundenlastprofil_norm!$U$5:$U$28,(Stundenlastprofil_norm!$H66-1)*24,)) -> 9592.711935
B74: 2023-03-04 | C74: 6 | D74: 3 | E74: 63 | F74: =AVERAGE(OFFSET(Wetterdaten!J$2:J$25,(Wetterdaten!$D64-1)*24,0)) -> 0.6083333333 | G74: =SUM(OFFSET(Wetterdaten!H$2:H$25,(Wetterdaten!$D64-1)*24,0))/1000 -> 1.78 | H74: 0.2682986111 | I74: 1.511701389 | J74: =Calculation!L64*1000 -> 13315.72702 | K74: =SUM(OFFSET(Stundenlastprofil_norm!$M$5:$M$28,(Stundenlastprofil_norm!$H67-1)*24,)) -> 1.12096708 | L74: =SUM(OFFSET(Stundenlastprofil_norm!$N$5:$N$28,(Stundenlastprofil_norm!$H67-1)*24,)) -> 721.9027996 | M74: =SUM(OFFSET(Stundenlastprofil_norm!$S$5:$S$28,(Stundenlastprofil_norm!$H67-1)*24,)) -> 721.9027996 | N74: =SUM(OFFSET(Stundenlastprofil_norm!$U$5:$U$28,(Stundenlastprofil_norm!$H67-1)*24,)) -> 9596.122607
B75: 2023-03-05 | C75: 7 | D75: 3 | E75: 64 | F75: =AVERAGE(OFFSET(Wetterdaten!J$2:J$25,(Wetterdaten!$D65-1)*24,0)) -> 1.883333333 | G75: =SUM(OFFSET(Wetterdaten!H$2:H$25,(Wetterdaten!$D65-1)*24,0))/1000 -> 1.297 | H75: 0.2629861111 | I75: 1.034013889 | J75: =Calculation!L65*1000 -> 14724.47815 | K75: =SUM(OFFSET(Stundenlastprofil_norm!$M$5:$M$28,(Stundenlastprofil_norm!$H68-1)*24,)) -> 1.964406098 | L75: =SUM(OFFSET(Stundenlastprofil_norm!$N$5:$N$28,(Stundenlastprofil_norm!$H68-1)*24,)) -> 1265.077527 | M75: =SUM(OFFSET(Stundenlastprofil_norm!$S$5:$S$28,(Stundenlastprofil_norm!$H68-1)*24,)) -> 1265.077527 | N75: =SUM(OFFSET(Stundenlastprofil_norm!$U$5:$U$28,(Stundenlastprofil_norm!$H68-1)*24,)) -> 9596.122607
B76: 2023-03-06 | C76: =WEEKDAY(B76,2) -> 1 | D76: 3 | E76: 65 | F76: =AVERAGE(OFFSET(Wetterdaten!J$2:J$25,(Wetterdaten!$D66-1)*24,0)) -> 3.379166667 | G76: =SUM(OFFSET(Wetterdaten!H$2:H$25,(Wetterdaten!$D66-1)*24,0))/1000 -> 1.661 | H76: 0.2567534722 | I76: 1.404246528 | J76: =Calculation!L66*1000 -> 13395.8316 | K76: =SUM(OFFSET(Stundenlastprofil_norm!$M$5:$M$28,(Stundenlastprofil_norm!$H69-1)*24,)) -> 1.667184125 | L76: =SUM(OFFSET(Stundenlastprofil_norm!$N$5:$N$28,(Stundenlastprofil_norm!$H69-1)*24,)) -> 1073.666576 | M76: =SUM(OFFSET(Stundenlastprofil_norm!$S$5:$S$28,(Stundenlastprofil_norm!$H69-1)*24,)) -> 1073.666576 | N76: =SUM(OFFSET(Stundenlastprofil_norm!$U$5:$U$28,(Stundenlastprofil_norm!$H69-1)*24,)) -> 9596.122607
B77: 2023-03-07 | C77: 2 | D77: =MONTH(B77) -> 3 | E77: 66 | F77: =AVERAGE(OFFSET(Wetterdaten!J$2:J$25,(Wetterdaten!$D67-1)*24,0)) -> 2.579166667 | G77: =SUM(OFFSET(Wetterdaten!H$2:H$25,(Wetterdaten!$D67-1)*24,0))/1000 -> 0.538 | H77: =$H$3*($H$5-F77) -> 0.2600868056 | I77: =MAX(G77-H77,0) -> 0.2779131944 | J77: =Calculation!L67*1000 -> 14106.41694 | K77: =SUM(OFFSET(Stundenlastprofil_norm!$M$5:$M$28,(Stundenlastprofil_norm!$H70-1)*24,)) -> 0 | L77: =SUM(OFFSET(Stundenlastprofil_norm!$N$5:$N$28,(Stundenlastprofil_norm!$H70-1)*24,)) -> 0 | M77: =SUM(OFFSET(Stundenlastprofil_norm!$S$5:$S$28,(Stundenlastprofil_norm!$H70-1)*24,)) -> 0 | N77: =SUM(OFFSET(Stundenlastprofil_norm!$U$5:$U$28,(Stundenlastprofil_norm!$H70-1)*24,)) -> 9596.122607
B78: =B77+1 -> 2023-03-08 | C78: 3 | D78: 3 | E78: 67 | F78: =AVERAGE(OFFSET(Wetterdaten!J$2:J$25,(Wetterdaten!$D68-1)*24,0)) -> -1.308333333 | G78: =SUM(OFFSET(Wetterdaten!H$2:H$25,(Wetterdaten!$D68-1)*24,0))/1000 -> 1.118 | H78: 0.2762847222 | I78: 0.8417152778 | J78: =Calculation!L68*1000 -> 17559.41758 | K78: =SUM(OFFSET(Stundenlastprofil_norm!$M$5:$M$28,(Stundenlastprofil_norm!$H71-1)*24,)) -> 0.3729179772 | L78: =SUM(OFFSET(Stundenlastprofil_norm!$N$5:$N$28,(Stundenlastprofil_norm!$H71-1)*24,)) -> 240.1591773 | M78: =SUM(OFFSET(Stundenlastprofil_norm!$S$5:$S$28,(Stundenlastprofil_norm!$H71-1)*24,)) -> 240.1591773 | N78: =SUM(OFFSET(Stundenlastprofil_norm!$U$5:$U$28,(Stundenlastprofil_norm!$H71-1)*24,)) -> 9596.122607
B79: 2023-03-09 | C79: 4 | D79: 3 | E79: 68 | F79: =AVERAGE(OFFSET(Wetterdaten!J$2:J$25,(Wetterdaten!$D69-1)*24,0)) -> -0.4083333333 | G79: =SUM(OFFSET(Wetterdaten!H$2:H$25,(Wetterdaten!$D69-1)*24,0))/1000 -> 1.111 | H79: 0.2725347222 | I79: 0.8384652778 | J79: =Calculation!L69*1000 -> 16760.00907 | K79: =SUM(OFFSET(Stundenlastprofil_norm!$M$5:$M$28,(Stundenlastprofil_norm!$H72-1)*24,)) -> 0.2741633691 | L79: =SUM(OFFSET(Stundenlastprofil_norm!$N$5:$N$28,(Stundenlastprofil_norm!$H72-1)*24,)) -> 176.5612097 | M79: =SUM(OFFSET(Stundenlastprofil_norm!$S$5:$S$28,(Stundenlastprofil_norm!$H72-1)*24,)) -> 176.5612097 | N79: =SUM(OFFSET(Stundenlastprofil_norm!$U$5:$U$28,(Stundenlastprofil_norm!$H72-1)*24,)) -> 9596.122607
B80: 2023-03-10 | C80: 5 | D80: 3 | E80: 69 | F80: =AVERAGE(OFFSET(Wetterdaten!J$2:J$25,(Wetterdaten!$D70-1)*24,0)) -> 0.9958333333 | G80: =SUM(OFFSET(Wetterdaten!H$2:H$25,(Wetterdaten!$D70-1)*24,0))/1000 -> 0.689 | H80: 0.2666840278 | I80: 0.4223159722 | J80: =Calculation!L70*1000 -> 13078.62894 | K80: =SUM(OFFSET(Stundenlastprofil_norm!$M$5:$M$28,(Stundenlastprofil_norm!$H73-1)*24,)) -> 0 | L80: =SUM(OFFSET(Stundenlastprofil_norm!$N$5:$N$28,(Stundenlastprofil_norm!$H73-1)*24,)) -> 0 | M80: =SUM(OFFSET(Stundenlastprofil_norm!$S$5:$S$28,(Stundenlastprofil_norm!$H73-1)*24,)) -> 0 | N80: =SUM(OFFSET(Stundenlastprofil_norm!$U$5:$U$28,(Stundenlastprofil_norm!$H73-1)*24,)) -> 9596.122607
B81: 2023-03-11 | C81: 6 | D81: 3 | E81: 70 | F81: =AVERAGE(OFFSET(Wetterdaten!J$2:J$25,(Wetterdaten!$D71-1)*24,0)) -> 2.954166667 | G81: =SUM(OFFSET(Wetterdaten!H$2:H$25,(Wetterdaten!$D71-1)*24,0))/1000 -> 1.099 | H81: 0.2585243056 | I81: 0.8404756944 | J81: =Calculation!L71*1000 -> 11880.39133 | K81: =SUM(OFFSET(Stundenlastprofil_norm!$M$5:$M$28,(Stundenlastprofil_norm!$H74-1)*24,)) -> 0.429678966 | L81: =SUM(OFFSET(Stundenlastprofil_norm!$N$5:$N$28,(Stundenlastprofil_norm!$H74-1)*24,)) -> 276.7132541 | M81: =SUM(OFFSET(Stundenlastprofil_norm!$S$5:$S$28,(Stundenlastprofil_norm!$H74-1)*24,)) -> 276.7132541 | N81: =SUM(OFFSET(Stundenlastprofil_norm!$U$5:$U$28,(Stundenlastprofil_norm!$H74-1)*24,)) -> 9509.673402
B82: 2023-03-12 | C82: 7 | D82: 3 | E82: 71 | F82: =AVERAGE(OFFSET(Wetterdaten!J$2:J$25,(Wetterdaten!$D72-1)*24,0)) -> 2.2625 | G82: =SUM(OFFSET(Wetterdaten!H$2:H$25,(Wetterdaten!$D72-1)*24,0))/1000 -> 1.375 | H82: 0.26140625 | I82: 1.11359375 | J82: =Calculation!L72*1000 -> 14387.6903 | K82: =SUM(OFFSET(Stundenlastprofil_norm!$M$5:$M$28,(Stundenlastprofil_norm!$H75-1)*24,)) -> 0.3266132014 | L82: =SUM(OFFSET(Stundenlastprofil_norm!$N$5:$N$28,(Stundenlastprofil_norm!$H75-1)*24,)) -> 210.3389017 | M82: =SUM(OFFSET(Stundenlastprofil_norm!$S$5:$S$28,(Stundenlastprofil_norm!$H75-1)*24,)) -> 210.3389017 | N82: =SUM(OFFSET(Stundenlastprofil_norm!$U$5:$U$28,(Stundenlastprofil_norm!$H75-1)*24,)) -> 9596.122607
B83: 2023-03-13 | C83: 1 | D83: 3 | E83: 72 | F83: =AVERAGE(OFFSET(Wetterdaten!J$2:J$25,(Wetterdaten!$D73-1)*24,0)) -> 3.695833333 | G83: =SUM(OFFSET(Wetterdaten!H$2:H$25,(Wetterdaten!$D73-1)*24,0))/1000 -> 0.795 | H83: 0.2554340278 | I83: 0.5395659722 | J83: =Calculation!L73*1000 -> 13114.55824 | K83: =SUM(OFFSET(Stundenlastprofil_norm!$M$5:$M$28,(Stundenlastprofil_norm!$H76-1)*24,)) -> 0 | L83: =SUM(OFFSET(Stundenlastprofil_norm!$N$5:$N$28,(Stundenlastprofil_norm!$H76-1)*24,)) -> 0 | M83: =SUM(OFFSET(Stundenlastprofil_norm!$S$5:$S$28,(Stundenlastprofil_norm!$H76-1)*24,)) -> 0 | N83: =SUM(OFFSET(Stundenlastprofil_norm!$U$5:$U$28,(Stundenlastprofil_norm!$H76-1)*24,)) -> 9596.122607
B84: 2023-03-14 | C84: 2 | D84: 3 | E84: 73 | F84: =AVERAGE(OFFSET(Wetterdaten!J$2:J$25,(Wetterdaten!$D74-1)*24,0)) -> 4.095833333 | G84: =SUM(OFFSET(Wetterdaten!H$2:H$25,(Wetterdaten!$D74-1)*24,0))/1000 -> 1.521 | H84: 0.2537673611 | I84: 1.267232639 | J84: =Calculation!L74*1000 -> 12759.26557 | K84: =SUM(OFFSET(Stundenlastprofil_norm!$M$5:$M$28,(Stundenlastprofil_norm!$H77-1)*24,)) -> 0.4607107557 | L84: =SUM(OFFSET(Stundenlastprofil_norm!$N$5:$N$28,(Stundenlastprofil_norm!$H77-1)*24,)) -> 296.6977266 | M84: =SUM(OFFSET(Stundenlastprofil_norm!$S$5:$S$28,(Stundenlastprofil_norm!$H77-1)*24,)) -> 296.6977266 | N84: =SUM(OFFSET(Stundenlastprofil_norm!$U$5:$U$28,(Stundenlastprofil_norm!$H77-1)*24,)) -> 9591.821398
B85: 2023-03-15 | C85: 3 | D85: 3 | E85: 74 | F85: =AVERAGE(OFFSET(Wetterdaten!J$2:J$25,(Wetterdaten!$D75-1)*24,0)) -> 5.566666667 | G85: =SUM(OFFSET(Wetterdaten!H$2:H$25,(Wetterdaten!$D75-1)*24,0))/1000 -> 1.508 | H85: 0.2476388889 | I85: 1.260361111 | J85: =Calculation!L75*1000 -> 11452.82481 | K85: =SUM(OFFSET(Stundenlastprofil_norm!$M$5:$M$28,(Stundenlastprofil_norm!$H78-1)*24,)) -> 0.429198263 | L85: =SUM(OFFSET(Stundenlastprofil_norm!$N$5:$N$28,(Stundenlastprofil_norm!$H78-1)*24,)) -> 276.4036814 | M85: =SUM(OFFSET(Stundenlastprofil_norm!$S$5:$S$28,(Stundenlastprofil_norm!$H78-1)*24,)) -> 276.4036814 | N85: =SUM(OFFSET(Stundenlastprofil_norm!$U$5:$U$28,(Stundenlastprofil_norm!$H78-1)*24,)) -> 9430.392793
B86: 2023-03-16 | C86: 4 | D86: 3 | E86: 75 | F86: =AVERAGE(OFFSET(Wetterdaten!J$2:J$25,(Wetterdaten!$D76-1)*24,0)) -> 6.475 | G86: =SUM(OFFSET(Wetterdaten!H$2:H$25,(Wetterdaten!$D76-1)*24,0))/1000 -> 1.984 | H86: 0.2438541667 | I86: 1.740145833 | J86: =Calculation!L76*1000 -> 10646.01437 | K86: =SUM(OFFSET(Stundenlastprofil_norm!$M$5:$M$28,(Stundenlastprofil_norm!$H79-1)*24,)) -> 0.3602443589 | L86: =SUM(OFFSET(Stundenlastprofil_norm!$N$5:$N$28,(Stundenlastprofil_norm!$H79-1)*24,)) -> 231.9973671 | M86: =SUM(OFFSET(Stundenlastprofil_norm!$S$5:$S$28,(Stundenlastprofil_norm!$H79-1)*24,)) -> 231.9973671 | N86: =SUM(OFFSET(Stundenlastprofil_norm!$U$5:$U$28,(Stundenlastprofil_norm!$H79-1)*24,)) -> 9223.318984
B87: 2023-03-17 | C87: 5 | D87: 3 | E87: 76 | F87: =AVERAGE(OFFSET(Wetterdaten!J$2:J$25,(Wetterdaten!$D77-1)*24,0)) -> 11.84583333 | G87: =SUM(OFFSET(Wetterdaten!H$2:H$25,(Wetterdaten!$D77-1)*24,0))/1000 -> 1.064 | H87: 0.2214756944 | I87: 0.8425243056 | J87: =Calculation!L77*1000 -> 6439.882713 | K87: =SUM(OFFSET(Stundenlastprofil_norm!$M$5:$M$28,(Stundenlastprofil_norm!$H80-1)*24,)) -> 0 | L87: =SUM(OFFSET(Stundenlastprofil_norm!$N$5:$N$28,(Stundenlastprofil_norm!$H80-1)*24,)) -> 0 | M87: =SUM(OFFSET(Stundenlastprofil_norm!$S$5:$S$28,(Stundenlastprofil_norm!$H80-1)*24,)) -> 0 | N87: =SUM(OFFSET(Stundenlastprofil_norm!$U$5:$U$28,(Stundenlastprofil_norm!$H80-1)*24,)) -> 6446.322596
B88: 2023-03-18 | C88: 6 | D88: 3 | E88: 77 | F88: =AVERAGE(OFFSET(Wetterdaten!J$2:J$25,(Wetterdaten!$D78-1)*24,0)) -> 8.5375 | G88: =SUM(OFFSET(Wetterdaten!H$2:H$25,(Wetterdaten!$D78-1)*24,0))/1000 -> 2.077 | H88: 0.2352604167 | I88: 1.841739583 | J88: =Calculation!L78*1000 -> 8464.139434 | K88: =SUM(OFFSET(Stundenlastprofil_norm!$M$5:$M$28,(Stundenlastprofil_norm!$H81-1)*24,)) -> 1.6547961 | L88: =SUM(OFFSET(Stundenlastprofil_norm!$N$5:$N$28,(Stundenlastprofil_norm!$H81-1)*24,)) -> 1065.688688 | M88: =SUM(OFFSET(Stundenlastprofil_norm!$S$5:$S$28,(Stundenlastprofil_norm!$H81-1)*24,)) -> 1065.688688 | N88: =SUM(OFFSET(Stundenlastprofil_norm!$U$5:$U$28,(Stundenlastprofil_norm!$H81-1)*24,)) -> 7377.106105
B89: 2023-03-19 | C89: 7 | D89: 3 | E89: 78 | F89: =AVERAGE(OFFSET(Wetterdaten!J$2:J$25,(Wetterdaten!$D79-1)*24,0)) -> 7.879166667 | G89: =SUM(OFFSET(Wetterdaten!H$2:H$25,(Wetterdaten!$D79-1)*24,0))/1000 -> 1.463 | H89: 0.2380034722 | I89: 1.224996528 | J89: =Calculation!L79*1000 -> 9398.789058 | K89: =SUM(OFFSET(Stundenlastprofil_norm!$M$5:$M$28,(Stundenlastprofil_norm!$H82-1)*24,)) -> 0.9570031947 | L89: =SUM(OFFSET(Stundenlastprofil_norm!$N$5:$N$28,(Stundenlastprofil_norm!$H82-1)*24,)) -> 616.3100574 | M89: =SUM(OFFSET(Stundenlastprofil_norm!$S$5:$S$28,(Stundenlastprofil_norm!$H82-1)*24,)) -> 616.3100574 | N89: =SUM(OFFSET(Stundenlastprofil_norm!$U$5:$U$28,(Stundenlastprofil_norm!$H82-1)*24,)) -> 8378.937839
B90: 2023-03-20 | C90: 1 | D90: 3 | E90: 79 | F90: =AVERAGE(OFFSET(Wetterdaten!J$2:J$25,(Wetterdaten!$D80-1)*24,0)) -> 5.25 | G90: =SUM(OFFSET(Wetterdaten!H$2:H$25,(Wetterdaten!$D80-1)*24,0))/1000 -> 2.248 | H90: 0.2489583333 | I90: 1.999041667 | J90: =Calculation!L80*1000 -> 11734.09817 | K90: =SUM(OFFSET(Stundenlastprofil_norm!$M$5:$M$28,(Stundenlastprofil_norm!$H83-1)*24,)) -> 1.373278417 | L90: =SUM(OFFSET(Stundenlastprofil_norm!$N$5:$N$28,(Stundenlastprofil_norm!$H83-1)*24,)) -> 884.3913003 | M90: =SUM(OFFSET(Stundenlastprofil_norm!$S$5:$S$28,(Stundenlastprofil_norm!$H83-1)*24,)) -> 884.3913003 | N90: =SUM(OFFSET(Stundenlastprofil_norm!$U$5:$U$28,(Stundenlastprofil_norm!$H83-1)*24,)) -> 9485.241099
B91: 2023-03-21 | C91: 2 | D91: 3 | E91: 80 | F91: =AVERAGE(OFFSET(Wetterdaten!J$2:J$25,(Wetterdaten!$D81-1)*24,0)) -> 5.870833333 | G91: =SUM(OFFSET(Wetterdaten!H$2:H$25,(Wetterdaten!$D81-1)*24,0))/1000 -> 2.13 | H91: 0.2463715278 | I91: 1.883628472 | J91: =Calculation!L81*1000 -> 11182.65434 | K91: =SUM(OFFSET(Stundenlastprofil_norm!$M$5:$M$28,(Stundenlastprofil_norm!$H84-1)*24,)) -> 0.4443404808 | L91: =SUM(OFFSET(Stundenlastprofil_norm!$N$5:$N$28,(Stundenlastprofil_norm!$H84-1)*24,)) -> 286.1552696 | M91: =SUM(OFFSET(Stundenlastprofil_norm!$S$5:$S$28,(Stundenlastprofil_norm!$H84-1)*24,)) -> 286.1552696 | N91: =SUM(OFFSET(Stundenlastprofil_norm!$U$5:$U$28,(Stundenlastprofil_norm!$H84-1)*24,)) -> 9369.264012
B92: 2023-03-22 | C92: 3 | D92: 3 | E92: 81 | F92: =AVERAGE(OFFSET(Wetterdaten!J$2:J$25,(Wetterdaten!$D82-1)*24,0)) -> 9.033333333 | G92: =SUM(OFFSET(Wetterdaten!H$2:H$25,(Wetterdaten!$D82-1)*24,0))/1000 -> 1.466 | H92: 0.2331944444 | I92: 1.232805556 | J92: =Calculation!L82*1000 -> 8373.621665 | K92: =SUM(OFFSET(Stundenlastprofil_norm!$M$5:$M$28,(Stundenlastprofil_norm!$H85-1)*24,)) -> 2.550878603 | L92: =SUM(OFFSET(Stundenlastprofil_norm!$N$5:$N$28,(Stundenlastprofil_norm!$H85-1)*24,)) -> 1642.76582 | M92: =SUM(OFFSET(Stundenlastprofil_norm!$S$5:$S$28,(Stundenlastprofil_norm!$H85-1)*24,)) -> 1642.76582 | N92: =SUM(OFFSET(Stundenlastprofil_norm!$U$5:$U$28,(Stundenlastprofil_norm!$H85-1)*24,)) -> 6718.291427
B93: 2023-03-23 | C93: 4 | D93: 3 | E93: 82 | F93: =AVERAGE(OFFSET(Wetterdaten!J$2:J$25,(Wetterdaten!$D83-1)*24,0)) -> 7.375 | G93: =SUM(OFFSET(Wetterdaten!H$2:H$25,(Wetterdaten!$D83-1)*24,0))/1000 -> 2.274 | H93: 0.2401041667 | I93: 2.033895833 | J93: =Calculation!L83*1000 -> 9846.605861 | K93: =SUM(OFFSET(Stundenlastprofil_norm!$M$5:$M$28,(Stundenlastprofil_norm!$H86-1)*24,)) -> 1.539714901 | L93: =SUM(OFFSET(Stundenlastprofil_norm!$N$5:$N$28,(Stundenlastprofil_norm!$H86-1)*24,)) -> 991.5763965 | M93: =SUM(OFFSET(Stundenlastprofil_norm!$S$5:$S$28,(Stundenlastprofil_norm!$H86-1)*24,)) -> 991.5763965 | N93: =SUM(OFFSET(Stundenlastprofil_norm!$U$5:$U$28,(Stundenlastprofil_norm!$H86-1)*24,)) -> 8552.734349
B94: 2023-03-24 | C94: 5 | D94: 3 | E94: 83 | F94: =AVERAGE(OFFSET(Wetterdaten!J$2:J$25,(Wetterdaten!$D84-1)*24,0)) -> 8.0875 | G94: =SUM(OFFSET(Wetterdaten!H$2:H$25,(Wetterdaten!$D84-1)*24,0))/1000 -> 0.338 | H94: 0.2371354167 | I94: 0.1008645833 | J94: =Calculation!L84*1000 -> 8739.479139 | K94: =SUM(OFFSET(Stundenlastprofil_norm!$M$5:$M$28,(Stundenlastprofil_norm!$H87-1)*24,)) -> 0 | L94: =SUM(OFFSET(Stundenlastprofil_norm!$N$5:$N$28,(Stundenlastprofil_norm!$H87-1)*24,)) -> 0 | M94: =SUM(OFFSET(Stundenlastprofil_norm!$S$5:$S$28,(Stundenlastprofil_norm!$H87-1)*24,)) -> 0 | N94: =SUM(OFFSET(Stundenlastprofil_norm!$U$5:$U$28,(Stundenlastprofil_norm!$H87-1)*24,)) -> 8472.997739
B95: 2023-03-25 | C95: 6 | D95: 3 | E95: 84 | F95: =AVERAGE(OFFSET(Wetterdaten!J$2:J$25,(Wetterdaten!$D85-1)*24,0)) -> 7.0875 | G95: =SUM(OFFSET(Wetterdaten!H$2:H$25,(Wetterdaten!$D85-1)*24,0))/1000 -> 2.153 | H95: 0.2413020833 | I95: 1.911697917 | J95: =Calculation!L85*1000 -> 9351.345151 | K95: =SUM(OFFSET(Stundenlastprofil_norm!$M$5:$M$28,(Stundenlastprofil_norm!$H88-1)*24,)) -> 1.961870957 | L95: =SUM(OFFSET(Stundenlastprofil_norm!$N$5:$N$28,(Stundenlastprofil_norm!$H88-1)*24,)) -> 1263.444897 | M95: =SUM(OFFSET(Stundenlastprofil_norm!$S$5:$S$28,(Stundenlastprofil_norm!$H88-1)*24,)) -> 1263.444897 | N95: =SUM(OFFSET(Stundenlastprofil_norm!$U$5:$U$28,(Stundenlastprofil_norm!$H88-1)*24,)) -> 7894.784783
B96: 2023-03-26 | C96: 7 | D96: 3 | E96: 85 | F96: =AVERAGE(OFFSET(Wetterdaten!J$2:J$25,(Wetterdaten!$D86-1)*24,0)) -> 6.129166667 | G96: =SUM(OFFSET(Wetterdaten!H$2:H$25,(Wetterdaten!$D86-1)*24,0))/1000 -> 0.728 | H96: 0.2452951389 | I96: 0.4827048611 | J96: =Calculation!L86*1000 -> 10953.19449 | K96: =SUM(OFFSET(Stundenlastprofil_norm!$M$5:$M$28,(Stundenlastprofil_norm!$H89-1)*24,)) -> 0 | L96: =SUM(OFFSET(Stundenlastprofil_norm!$N$5:$N$28,(Stundenlastprofil_norm!$H89-1)*24,)) -> 0 | M96: =SUM(OFFSET(Stundenlastprofil_norm!$S$5:$S$28,(Stundenlastprofil_norm!$H89-1)*24,)) -> 0 | N96: =SUM(OFFSET(Stundenlastprofil_norm!$U$5:$U$28,(Stundenlastprofil_norm!$H89-1)*24,)) -> 9310.964806
B97: 2023-03-27 | C97: 1 | D97: 3 | E97: 86 | F97: =AVERAGE(OFFSET(Wetterdaten!J$2:J$25,(Wetterdaten!$D87-1)*24,0)) -> 10.0375 | G97: =SUM(OFFSET(Wetterdaten!H$2:H$25,(Wetterdaten!$D87-1)*24,0))/1000 -> 1.758 | H97: 0.2290104167 | I97: 1.528989583 | J97: =Calculation!L87*1000 -> 7481.689024 | K97: =SUM(OFFSET(Stundenlastprofil_norm!$M$5:$M$28,(Stundenlastprofil_norm!$H90-1)*24,)) -> 0.9592501136 | L97: =SUM(OFFSET(Stundenlastprofil_norm!$N$5:$N$28,(Stundenlastprofil_norm!$H90-1)*24,)) -> 617.7570732 | M97: =SUM(OFFSET(Stundenlastprofil_norm!$S$5:$S$28,(Stundenlastprofil_norm!$H90-1)*24,)) -> 617.7570732 | N97: =SUM(OFFSET(Stundenlastprofil_norm!$U$5:$U$28,(Stundenlastprofil_norm!$H90-1)*24,)) -> 6871.413639
B98: 2023-03-28 | C98: 2 | D98: 3 | E98: 87 | F98: =AVERAGE(OFFSET(Wetterdaten!J$2:J$25,(Wetterdaten!$D88-1)*24,0)) -> 9.570833333 | G98: =SUM(OFFSET(Wetterdaten!H$2:H$25,(Wetterdaten!$D88-1)*24,0))/1000 -> 1.901 | H98: 0.2309548611 | I98: 1.670045139 | J98: =Calculation!L88*1000 -> 7896.197139 | K98: =SUM(OFFSET(Stundenlastprofil_norm!$M$5:$M$28,(Stundenlastprofil_norm!$H91-1)*24,)) -> 0.5904985534 | L98: =SUM(OFFSET(Stundenlastprofil_norm!$N$5:$N$28,(Stundenlastprofil_norm!$H91-1)*24,)) -> 380.2810684 | M98: =SUM(OFFSET(Stundenlastprofil_norm!$S$5:$S$28,(Stundenlastprofil_norm!$H91-1)*24,)) -> 380.2810684 | N98: =SUM(OFFSET(Stundenlastprofil_norm!$U$5:$U$28,(Stundenlastprofil_norm!$H91-1)*24,)) -> 7523.812268
B99: 2023-03-29 | C99: 3 | D99: 3 | E99: 88 | F99: =AVERAGE(OFFSET(Wetterdaten!J$2:J$25,(Wetterdaten!$D89-1)*24,0)) -> 6.729166667 | G99: =SUM(OFFSET(Wetterdaten!H$2:H$25,(Wetterdaten!$D89-1)*24,0))/1000 -> 1.954 | H99: 0.2427951389 | I99: 1.711204861 | J99: =Calculation!L89*1000 -> 10420.25549 | K99: =SUM(OFFSET(Stundenlastprofil_norm!$M$5:$M$28,(Stundenlastprofil_norm!$H92-1)*24,)) -> 0.3375556316 | L99: =SUM(OFFSET(Stundenlastprofil_norm!$N$5:$N$28,(Stundenlastprofil_norm!$H92-1)*24,)) -> 217.3858268 | M99: =SUM(OFFSET(Stundenlastprofil_norm!$S$5:$S$28,(Stundenlastprofil_norm!$H92-1)*24,)) -> 217.3858268 | N99: =SUM(OFFSET(Stundenlastprofil_norm!$U$5:$U$28,(Stundenlastprofil_norm!$H92-1)*24,)) -> 9151.045308
B100: 2023-03-30 | C100: 4 | D100: 3 | E100: 89 | F100: =AVERAGE(OFFSET(Wetterdaten!J$2:J$25,(Wetterdaten!$D90-1)*24,0)) -> 7.654166667 | G100: =SUM(OFFSET(Wetterdaten!H$2:H$25,(Wetterdaten!$D90-1)*24,0))/1000 -> 1.062 | H100: 0.2389409722 | I100: 0.8230590278 | J100: =Calculation!L90*1000 -> 9598.641185 | K100: =SUM(OFFSET(Stundenlastprofil_norm!$M$5:$M$28,(Stundenlastprofil_norm!$H93-1)*24,)) -> 3.001390854 | L100: =SUM(OFFSET(Stundenlastprofil_norm!$N$5:$N$28,(Stundenlastprofil_norm!$H93-1)*24,)) -> 1932.89571 | M100: =SUM(OFFSET(Stundenlastprofil_norm!$S$5:$S$28,(Stundenlastprofil_norm!$H93-1)*24,)) -> 1932.89571 | N100: =SUM(OFFSET(Stundenlastprofil_norm!$U$5:$U$28,(Stundenlastprofil_norm!$H93-1)*24,)) -> 7460.5547
B101: 2023-03-31 | C101: 5 | D101: 3 | E101: 90 | F101: =AVERAGE(OFFSET(Wetterdaten!J$2:J$25,(Wetterdaten!$D91-1)*24,0)) -> 10.97083333 | G101: =SUM(OFFSET(Wetterdaten!H$2:H$25,(Wetterdaten!$D91-1)*24,0))/1000 -> 2.179 | H101: 0.2251215278 | I101: 1.953878472 | J101: =Calculation!L91*1000 -> 6975.265473 | K101: =SUM(OFFSET(Stundenlastprofil_norm!$M$5:$M$28,(Stundenlastprofil_norm!$H94-1)*24,)) -> 0.4145524907 | L101: =SUM(OFFSET(Stundenlastprofil_norm!$N$5:$N$28,(Stundenlastprofil_norm!$H94-1)*24,)) -> 266.971804 | M101: =SUM(OFFSET(Stundenlastprofil_norm!$S$5:$S$28,(Stundenlastprofil_norm!$H94-1)*24,)) -> 266.971804 | N101: =SUM(OFFSET(Stundenlastprofil_norm!$U$5:$U$28,(Stundenlastprofil_norm!$H94-1)*24,)) -> 6715.268934
B102: 2023-04-01 | C102: 6 | D102: 4 | E102: 91 | F102: =AVERAGE(OFFSET(Wetterdaten!J$2:J$25,(Wetterdaten!$D92-1)*24,0)) -> 3.258333333 | G102: =SUM(OFFSET(Wetterdaten!H$2:H$25,(Wetterdaten!$D92-1)*24,0))/1000 -> 2.298 | H102: 0.2572569444 | I102: 2.040743056 | J102: =Calculation!L92*1000 -> 11694.28209 | K102: =SUM(OFFSET(Stundenlastprofil_norm!$M$5:$M$28,(Stundenlastprofil_norm!$H95-1)*24,)) -> 1.270578443 | L102: =SUM(OFFSET(Stundenlastprofil_norm!$N$5:$N$28,(Stundenlastprofil_norm!$H95-1)*24,)) -> 818.2525176 | M102: =SUM(OFFSET(Stundenlastprofil_norm!$S$5:$S$28,(Stundenlastprofil_norm!$H95-1)*24,)) -> 818.2525176 | N102: =SUM(OFFSET(Stundenlastprofil_norm!$U$5:$U$28,(Stundenlastprofil_norm!$H95-1)*24,)) -> 9353.12935
B103: 2023-04-02 | C103: 7 | D103: 4 | E103: 92 | F103: =AVERAGE(OFFSET(Wetterdaten!J$2:J$25,(Wetterdaten!$D93-1)*24,0)) -> 4.133333333 | G103: =SUM(OFFSET(Wetterdaten!H$2:H$25,(Wetterdaten!$D93-1)*24,0))/1000 -> 2.208 | H103: 0.2536111111 | I103: 1.954388889 | J103: =Calculation!L93*1000 -> 12725.95688 | K103: =SUM(OFFSET(Stundenlastprofil_norm!$M$5:$M$28,(Stundenlastprofil_norm!$H96-1)*24,)) -> 2.126045524 | L103: =SUM(OFFSET(Stundenlastprofil_norm!$N$5:$N$28,(Stundenlastprofil_norm!$H96-1)*24,)) -> 1369.173317 | M103: =SUM(OFFSET(Stundenlastprofil_norm!$S$5:$S$28,(Stundenlastprofil_norm!$H96-1)*24,)) -> 1369.173317 | N103: =SUM(OFFSET(Stundenlastprofil_norm!$U$5:$U$28,(Stundenlastprofil_norm!$H96-1)*24,)) -> 9519.131139
B104: 2023-04-03 | C104: 1 | D104: 4 | E104: 93 | F104: =AVERAGE(OFFSET(Wetterdaten!J$2:J$25,(Wetterdaten!$D94-1)*24,0)) -> 2.408333333 | G104: =SUM(OFFSET(Wetterdaten!H$2:H$25,(Wetterdaten!$D94-1)*24,0))/1000 -> 1.304 | H104: 0.2607986111 | I104: 1.043201389 | J104: =Calculation!L94*1000 -> 14258.15652 | K104: =SUM(OFFSET(Stundenlastprofil_norm!$M$5:$M$28,(Stundenlastprofil_norm!$H97-1)*24,)) -> 2.784738599 | L104: =SUM(OFFSET(Stundenlastprofil_norm!$N$5:$N$28,(Stundenlastprofil_norm!$H97-1)*24,)) -> 1793.371658 | M104: =SUM(OFFSET(Stundenlastprofil_norm!$S$5:$S$28,(Stundenlastprofil_norm!$H97-1)*24,)) -> 1793.371658 | N104: =SUM(OFFSET(Stundenlastprofil_norm!$U$5:$U$28,(Stundenlastprofil_norm!$H97-1)*24,)) -> 9596.122607
B105: 2023-04-04 | C105: 2 | D105: 4 | E105: 94 | F105: =AVERAGE(OFFSET(Wetterdaten!J$2:J$25,(Wetterdaten!$D95-1)*24,0)) -> 4.695833333 | G105: =SUM(OFFSET(Wetterdaten!H$2:H$25,(Wetterdaten!$D95-1)*24,0))/1000 -> 0.993 | H105: 0.2512673611 | I105: 0.7417326389 | J105: =Calculation!L95*1000 -> 12226.32656 | K105: =SUM(OFFSET(Stundenlastprofil_norm!$M$5:$M$28,(Stundenlastprofil_norm!$H98-1)*24,)) -> 3.215162033 | L105: =SUM(OFFSET(Stundenlastprofil_norm!$N$5:$N$28,(Stundenlastprofil_norm!$H98-1)*24,)) -> 2070.564349 | M105: =SUM(OFFSET(Stundenlastprofil_norm!$S$5:$S$28,(Stundenlastprofil_norm!$H98-1)*24,)) -> 2070.564349 | N105: =SUM(OFFSET(Stundenlastprofil_norm!$U$5:$U$28,(Stundenlastprofil_norm!$H98-1)*24,)) -> 9063.648819
B106: 2023-04-05 | C106: 3 | D106: 4 | E106: 95 | F106: =AVERAGE(OFFSET(Wetterdaten!J$2:J$25,(Wetterdaten!$D96-1)*24,0)) -> 11.40416667 | G106: =SUM(OFFSET(Wetterdaten!H$2:H$25,(Wetterdaten!$D96-1)*24,0))/1000 -> 1.099 | H106: 0.2233159722 | I106: 0.8756840278 | J106: =Calculation!L96*1000 -> 6267.7724 | K106: =SUM(OFFSET(Stundenlastprofil_norm!$M$5:$M$28,(Stundenlastprofil_norm!$H99-1)*24,)) -> 3.176053803 | L106: =SUM(OFFSET(Stundenlastprofil_norm!$N$5:$N$28,(Stundenlastprofil_norm!$H99-1)*24,)) -> 2045.378649 | M106: =SUM(OFFSET(Stundenlastprofil_norm!$S$5:$S$28,(Stundenlastprofil_norm!$H99-1)*24,)) -> 2045.378649 | N106: =SUM(OFFSET(Stundenlastprofil_norm!$U$5:$U$28,(Stundenlastprofil_norm!$H99-1)*24,)) -> 4228.661523
B107: 2023-04-06 | C107: 4 | D107: 4 | E107: 96 | F107: =AVERAGE(OFFSET(Wetterdaten!J$2:J$25,(Wetterdaten!$D97-1)*24,0)) -> 11.02916667 | G107: =SUM(OFFSET(Wetterdaten!H$2:H$25,(Wetterdaten!$D97-1)*24,0))/1000 -> 1.647 | H107: 0.2248784722 | I107: 1.422121528 | J107: =Calculation!L97*1000 -> 6600.859278 | K107: =SUM(OFFSET(Stundenlastprofil_norm!$M$5:$M$28,(Stundenlastprofil_norm!$H100-1)*24,)) -> 2.835657067 | L107: =SUM(OFFSET(Stundenlastprofil_norm!$N$5:$N$28,(Stundenlastprofil_norm!$H100-1)*24,)) -> 1826.163151 | M107: =SUM(OFFSET(Stundenlastprofil_norm!$S$5:$S$28,(Stundenlastprofil_norm!$H100-1)*24,)) -> 1826.163151 | N107: =SUM(OFFSET(Stundenlastprofil_norm!$U$5:$U$28,(Stundenlastprofil_norm!$H100-1)*24,)) -> 4781.296987
B108: 2023-04-07 | C108: 5 | D108: 4 | E108: 97 | F108: =AVERAGE(OFFSET(Wetterdaten!J$2:J$25,(Wetterdaten!$D98-1)*24,0)) -> 13.82916667 | G108: =SUM(OFFSET(Wetterdaten!H$2:H$25,(Wetterdaten!$D98-1)*24,0))/1000 -> 2.531 | H108: 0.2132118056 | I108: 2.317788194 | J108: =Calculation!L98*1000 -> 5226.348457 | K108: =SUM(OFFSET(Stundenlastprofil_norm!$M$5:$M$28,(Stundenlastprofil_norm!$H101-1)*24,)) -> 1.316642196 | L108: =SUM(OFFSET(Stundenlastprofil_norm!$N$5:$N$28,(Stundenlastprofil_norm!$H101-1)*24,)) -> 847.9175744 | M108: =SUM(OFFSET(Stundenlastprofil_norm!$S$5:$S$28,(Stundenlastprofil_norm!$H101-1)*24,)) -> 847.9175744 | N108: =SUM(OFFSET(Stundenlastprofil_norm!$U$5:$U$28,(Stundenlastprofil_norm!$H101-1)*24,)) -> 4383.657231
B109: 2023-04-08 | C109: 6 | D109: 4 | E109: 98 | F109: =AVERAGE(OFFSET(Wetterdaten!J$2:J$25,(Wetterdaten!$D99-1)*24,0)) -> 13.26666667 | G109: =SUM(OFFSET(Wetterdaten!H$2:H$25,(Wetterdaten!$D99-1)*24,0))/1000 -> 1.729 | H109: 0.2155555556 | I109: 1.513444444 | J109: =Calculation!L99*1000 -> 5570.523088 | K109: =SUM(OFFSET(Stundenlastprofil_norm!$M$5:$M$28,(Stundenlastprofil_norm!$H102-1)*24,)) -> 1.550895383 | L109: =SUM(OFFSET(Stundenlastprofil_norm!$N$5:$N$28,(Stundenlastprofil_norm!$H102-1)*24,)) -> 998.7766267 | M109: =SUM(OFFSET(Stundenlastprofil_norm!$S$5:$S$28,(Stundenlastprofil_norm!$H102-1)*24,)) -> 998.7766267 | N109: =SUM(OFFSET(Stundenlastprofil_norm!$U$5:$U$28,(Stundenlastprofil_norm!$H102-1)*24,)) -> 4577.316985
B110: 2023-04-09 | C110: 7 | D110: 4 | E110: 99 | F110: =AVERAGE(OFFSET(Wetterdaten!J$2:J$25,(Wetterdaten!$D100-1)*24,0)) -> 11.82083333 | G110: =SUM(OFFSET(Wetterdaten!H$2:H$25,(Wetterdaten!$D100-1)*24,0))/1000 -> 2.361 | H110: 0.2215798611 | I110: 2.139420139 | J110: =Calculation!L100*1000 -> 5897.675868 | K110: =SUM(OFFSET(Stundenlastprofil_norm!$M$5:$M$28,(Stundenlastprofil_norm!$H103-1)*24,)) -> 1.198630124 | L110: =SUM(OFFSET(Stundenlastprofil_norm!$N$5:$N$28,(Stundenlastprofil_norm!$H103-1)*24,)) -> 771.9177996 | M110: =SUM(OFFSET(Stundenlastprofil_norm!$S$5:$S$28,(Stundenlastprofil_norm!$H103-1)*24,)) -> 771.9177996 | N110: =SUM(OFFSET(Stundenlastprofil_norm!$U$5:$U$28,(Stundenlastprofil_norm!$H103-1)*24,)) -> 5131.655744
B111: 2023-04-10 | C111: 1 | D111: 4 | E111: 100 | F111: =AVERAGE(OFFSET(Wetterdaten!J$2:J$25,(Wetterdaten!$D101-1)*24,0)) -> 15.09166667 | G111: =SUM(OFFSET(Wetterdaten!H$2:H$25,(Wetterdaten!$D101-1)*24,0))/1000 -> 3.022 | H111: 0.2079513889 | I111: 2.814048611 | J111: =Calculation!L101*1000 -> 2992.418094 | K111: =SUM(OFFSET(Stundenlastprofil_norm!$M$5:$M$28,(Stundenlastprofil_norm!$H104-1)*24,)) -> 1.448920136 | L111: =SUM(OFFSET(Stundenlastprofil_norm!$N$5:$N$28,(Stundenlastprofil_norm!$H104-1)*24,)) -> 933.1045675 | M111: =SUM(OFFSET(Stundenlastprofil_norm!$S$5:$S$28,(Stundenlastprofil_norm!$H104-1)*24,)) -> 933.1045675 | N111: =SUM(OFFSET(Stundenlastprofil_norm!$U$5:$U$28,(Stundenlastprofil_norm!$H104-1)*24,)) -> 2062.305945
B112: 2023-04-11 | C112: 2 | D112: 4 | E112: 101 | F112: =AVERAGE(OFFSET(Wetterdaten!J$2:J$25,(Wetterdaten!$D102-1)*24,0)) -> 16.30416667 | G112: =SUM(OFFSET(Wetterdaten!H$2:H$25,(Wetterdaten!$D102-1)*24,0))/1000 -> 1.995 | H112: 0.2028993056 | I112: 1.792100694 | J112: =Calculation!L102*1000 -> 1915.437187 | K112: =SUM(OFFSET(Stundenlastprofil_norm!$M$5:$M$28,(Stundenlastprofil_norm!$H105-1)*24,)) -> 1.971990064 | L112: =SUM(OFFSET(Stundenlastprofil_norm!$N$5:$N$28,(Stundenlastprofil_norm!$H105-1)*24,)) -> 1269.961601 | M112: =SUM(OFFSET(Stundenlastprofil_norm!$S$5:$S$28,(Stundenlastprofil_norm!$H105-1)*24,)) -> 1116.590822 | N112: =SUM(OFFSET(Stundenlastprofil_norm!$U$5:$U$28,(Stundenlastprofil_norm!$H105-1)*24,)) -> 800.7618028
B113: 2023-04-12 | C113: 3 | D113: 4 | E113: 102 | F113: =AVERAGE(OFFSET(Wetterdaten!J$2:J$25,(Wetterdaten!$D103-1)*24,0)) -> 12.28333333 | G113: =SUM(OFFSET(Wetterdaten!H$2:H$25,(Wetterdaten!$D103-1)*24,0))/1000 -> 2.906 | H113: 0.2196527778 | I113: 2.686347222 | J113: =Calculation!L103*1000 -> 5486.868718 | K113: =SUM(OFFSET(Stundenlastprofil_norm!$M$5:$M$28,(Stundenlastprofil_norm!$H106-1)*24,)) -> 1.409020096 | L113: =SUM(OFFSET(Stundenlastprofil_norm!$N$5:$N$28,(Stundenlastprofil_norm!$H106-1)*24,)) -> 907.408942 | M113: =SUM(OFFSET(Stundenlastprofil_norm!$S$5:$S$28,(Stundenlastprofil_norm!$H106-1)*24,)) -> 1060.779722 | N113: =SUM(OFFSET(Stundenlastprofil_norm!$U$5:$U$28,(Stundenlastprofil_norm!$H106-1)*24,)) -> 4431.575865
B114: 2023-04-13 | C114: 4 | D114: 4 | E114: 103 | F114: =AVERAGE(OFFSET(Wetterdaten!J$2:J$25,(Wetterdaten!$D104-1)*24,0)) -> 8.9625 | G114: =SUM(OFFSET(Wetterdaten!H$2:H$25,(Wetterdaten!$D104-1)*24,0))/1000 -> 2.549 | H114: 0.2334895833 | I114: 2.315510417 | J114: =Calculation!L104*1000 -> 8436.538075 | K114: =SUM(OFFSET(Stundenlastprofil_norm!$M$5:$M$28,(Stundenlastprofil_norm!$H107-1)*24,)) -> 2.043837186 | L114: =SUM(OFFSET(Stundenlastprofil_norm!$N$5:$N$28,(Stundenlastprofil_norm!$H107-1)*24,)) -> 1316.231148 | M114: =SUM(OFFSET(Stundenlastprofil_norm!$S$5:$S$28,(Stundenlastprofil_norm!$H107-1)*24,)) -> 1316.231148 | N114: =SUM(OFFSET(Stundenlastprofil_norm!$U$5:$U$28,(Stundenlastprofil_norm!$H107-1)*24,)) -> 7101.639618
B115: 2023-04-14 | C115: 5 | D115: 4 | E115: 104 | F115: =AVERAGE(OFFSET(Wetterdaten!J$2:J$25,(Wetterdaten!$D105-1)*24,0)) -> 9.266666667 | G115: =SUM(OFFSET(Wetterdaten!H$2:H$25,(Wetterdaten!$D105-1)*24,0))/1000 -> 1.466 | H115: 0.2322222222 | I115: 1.233777778 | J115: =Calculation!L105*1000 -> 8017.987134 | K115: =SUM(OFFSET(Stundenlastprofil_norm!$M$5:$M$28,(Stundenlastprofil_norm!$H108-1)*24,)) -> 1.182899577 | L115: =SUM(OFFSET(Stundenlastprofil_norm!$N$5:$N$28,(Stundenlastprofil_norm!$H108-1)*24,)) -> 761.7873274 | M115: =SUM(OFFSET(Stundenlastprofil_norm!$S$5:$S$28,(Stundenlastprofil_norm!$H108-1)*24,)) -> 761.7873274 | N115: =SUM(OFFSET(Stundenlastprofil_norm!$U$5:$U$28,(Stundenlastprofil_norm!$H108-1)*24,)) -> 7249.92694
B116: 2023-04-15 | C116: 6 | D116: 4 | E116: 105 | F116: =AVERAGE(OFFSET(Wetterdaten!J$2:J$25,(Wetterdaten!$D106-1)*24,0)) -> 8.725 | G116: =SUM(OFFSET(Wetterdaten!H$2:H$25,(Wetterdaten!$D106-1)*24,0))/1000 -> 2.949 | H116: 0.2344791667 | I116: 2.714520833 | J116: =Calculation!L106*1000 -> 8349.414557 | K116: =SUM(OFFSET(Stundenlastprofil_norm!$M$5:$M$28,(Stundenlastprofil_norm!$H109-1)*24,)) -> 0.8961577013 | L116: =SUM(OFFSET(Stundenlastprofil_norm!$N$5:$N$28,(Stundenlastprofil_norm!$H109-1)*24,)) -> 577.1255596 | M116: =SUM(OFFSET(Stundenlastprofil_norm!$S$5:$S$28,(Stundenlastprofil_norm!$H109-1)*24,)) -> 577.1255596 | N116: =SUM(OFFSET(Stundenlastprofil_norm!$U$5:$U$28,(Stundenlastprofil_norm!$H109-1)*24,)) -> 7762.072669
B117: 2023-04-16 | C117: 7 | D117: 4 | E117: 106 | F117: =AVERAGE(OFFSET(Wetterdaten!J$2:J$25,(Wetterdaten!$D107-1)*24,0)) -> 7.925 | G117: =SUM(OFFSET(Wetterdaten!H$2:H$25,(Wetterdaten!$D107-1)*24,0))/1000 -> 1.923 | H117: 0.2378125 | I117: 1.6851875 | J117: =Calculation!L107*1000 -> 9358.078439 | K117: =SUM(OFFSET(Stundenlastprofil_norm!$M$5:$M$28,(Stundenlastprofil_norm!$H110-1)*24,)) -> 0.3538517653 | L117: =SUM(OFFSET(Stundenlastprofil_norm!$N$5:$N$28,(Stundenlastprofil_norm!$H110-1)*24,)) -> 227.8805369 | M117: =SUM(OFFSET(Stundenlastprofil_norm!$S$5:$S$28,(Stundenlastprofil_norm!$H110-1)*24,)) -> 227.8805369 | N117: =SUM(OFFSET(Stundenlastprofil_norm!$U$5:$U$28,(Stundenlastprofil_norm!$H110-1)*24,)) -> 8728.928576
B118: 2023-04-17 | C118: 1 | D118: 4 | E118: 107 | F118: =AVERAGE(OFFSET(Wetterdaten!J$2:J$25,(Wetterdaten!$D108-1)*24,0)) -> 9.704166667 | G118: =SUM(OFFSET(Wetterdaten!H$2:H$25,(Wetterdaten!$D108-1)*24,0))/1000 -> 2.232 | H118: 0.2303993056 | I118: 2.001600694 | J118: =Calculation!L108*1000 -> 7777.766249 | K118: =SUM(OFFSET(Stundenlastprofil_norm!$M$5:$M$28,(Stundenlastprofil_norm!$H111-1)*24,)) -> 0.5518550272 | L118: =SUM(OFFSET(Stundenlastprofil_norm!$N$5:$N$28,(Stundenlastprofil_norm!$H111-1)*24,)) -> 355.3946375 | M118: =SUM(OFFSET(Stundenlastprofil_norm!$S$5:$S$28,(Stundenlastprofil_norm!$H111-1)*24,)) -> 355.3946375 | N118: =SUM(OFFSET(Stundenlastprofil_norm!$U$5:$U$28,(Stundenlastprofil_norm!$H111-1)*24,)) -> 7430.149378
B119: 2023-04-18 | C119: 2 | D119: 4 | E119: 108 | F119: =AVERAGE(OFFSET(Wetterdaten!J$2:J$25,(Wetterdaten!$D109-1)*24,0)) -> 6.141666667 | G119: =SUM(OFFSET(Wetterdaten!H$2:H$25,(Wetterdaten!$D109-1)*24,0))/1000 -> 3.043 | H119: 0.2452430556 | I119: 2.797756944 | J119: =Calculation!L109*1000 -> 10942.09159 | K119: =SUM(OFFSET(Stundenlastprofil_norm!$M$5:$M$28,(Stundenlastprofil_norm!$H112-1)*24,)) -> 0.8712080839 | L119: =SUM(OFFSET(Stundenlastprofil_norm!$N$5:$N$28,(Stundenlastprofil_norm!$H112-1)*24,)) -> 561.058006 | M119: =SUM(OFFSET(Stundenlastprofil_norm!$S$5:$S$28,(Stundenlastprofil_norm!$H112-1)*24,)) -> 561.058006 | N119: =SUM(OFFSET(Stundenlastprofil_norm!$U$5:$U$28,(Stundenlastprofil_norm!$H112-1)*24,)) -> 9308.011436
B120: 2023-04-19 | C120: 3 | D120: 4 | E120: 109 | F120: =AVERAGE(OFFSET(Wetterdaten!J$2:J$25,(Wetterdaten!$D110-1)*24,0)) -> 5.7625 | G120: =SUM(OFFSET(Wetterdaten!H$2:H$25,(Wetterdaten!$D110-1)*24,0))/1000 -> 3.143 | H120: 0.2468229167 | I120: 2.896177083 | J120: =Calculation!L110*1000 -> 11278.87944 | K120: =SUM(OFFSET(Stundenlastprofil_norm!$M$5:$M$28,(Stundenlastprofil_norm!$H113-1)*24,)) -> 1.665790757 | L120: =SUM(OFFSET(Stundenlastprofil_norm!$N$5:$N$28,(Stundenlastprofil_norm!$H113-1)*24,)) -> 1072.769248 | M120: =SUM(OFFSET(Stundenlastprofil_norm!$S$5:$S$28,(Stundenlastprofil_norm!$H113-1)*24,)) -> 1072.769248 | N120: =SUM(OFFSET(Stundenlastprofil_norm!$U$5:$U$28,(Stundenlastprofil_norm!$H113-1)*24,)) -> 9341.430461
B121: 2023-04-20 | C121: 4 | D121: 4 | E121: 110 | F121: =AVERAGE(OFFSET(Wetterdaten!J$2:J$25,(Wetterdaten!$D111-1)*24,0)) -> 6.829166667 | G121: =SUM(OFFSET(Wetterdaten!H$2:H$25,(Wetterdaten!$D111-1)*24,0))/1000 -> 1.994 | H121: 0.2423784722 | I121: 1.751621528 | J121: =Calculation!L111*1000 -> 10331.43232 | K121: =SUM(OFFSET(Stundenlastprofil_norm!$M$5:$M$28,(Stundenlastprofil_norm!$H114-1)*24,)) -> 0.07244639393 | L121: =SUM(OFFSET(Stundenlastprofil_norm!$N$5:$N$28,(Stundenlastprofil_norm!$H114-1)*24,)) -> 46.65547769 | M121: =SUM(OFFSET(Stundenlastprofil_norm!$S$5:$S$28,(Stundenlastprofil_norm!$H114-1)*24,)) -> 46.65547769 | N121: =SUM(OFFSET(Stundenlastprofil_norm!$U$5:$U$28,(Stundenlastprofil_norm!$H114-1)*24,)) -> 9120.756608
B122: 2023-04-21 | C122: 5 | D122: 4 | E122: 111 | F122: =AVERAGE(OFFSET(Wetterdaten!J$2:J$25,(Wetterdaten!$D112-1)*24,0)) -> 7.2 | G122: =SUM(OFFSET(Wetterdaten!H$2:H$25,(Wetterdaten!$D112-1)*24,0))/1000 -> 1.491 | H122: 0.2408333333 | I122: 1.250166667 | J122: =Calculation!L112*1000 -> 9282.510225 | K122: =SUM(OFFSET(Stundenlastprofil_norm!$M$5:$M$28,(Stundenlastprofil_norm!$H115-1)*24,)) -> 0.005014997174 | L122: =SUM(OFFSET(Stundenlastprofil_norm!$N$5:$N$28,(Stundenlastprofil_norm!$H115-1)*24,)) -> 3.22965818 | M122: =SUM(OFFSET(Stundenlastprofil_norm!$S$5:$S$28,(Stundenlastprofil_norm!$H115-1)*24,)) -> 3.22965818 | N122: =SUM(OFFSET(Stundenlastprofil_norm!$U$5:$U$28,(Stundenlastprofil_norm!$H115-1)*24,)) -> 8724.563129
B123: 2023-04-22 | C123: 6 | D123: 4 | E123: 112 | F123: =AVERAGE(OFFSET(Wetterdaten!J$2:J$25,(Wetterdaten!$D113-1)*24,0)) -> 8.320833333 | G123: =SUM(OFFSET(Wetterdaten!H$2:H$25,(Wetterdaten!$D113-1)*24,0))/1000 -> 2.491 | H123: 0.2361631944 | I123: 2.254836806 | J123: =Calculation!L113*1000 -> 8596.710403 | K123: =SUM(OFFSET(Stundenlastprofil_norm!$M$5:$M$28,(Stundenlastprofil_norm!$H116-1)*24,)) -> 0.3420924971 | L123: =SUM(OFFSET(Stundenlastprofil_norm!$N$5:$N$28,(Stundenlastprofil_norm!$H116-1)*24,)) -> 220.3075681 | M123: =SUM(OFFSET(Stundenlastprofil_norm!$S$5:$S$28,(Stundenlastprofil_norm!$H116-1)*24,)) -> 220.3075681 | N123: =SUM(OFFSET(Stundenlastprofil_norm!$U$5:$U$28,(Stundenlastprofil_norm!$H116-1)*24,)) -> 8323.680294
B124: 2023-04-23 | C124: 7 | D124: 4 | E124: 113 | F124: =AVERAGE(OFFSET(Wetterdaten!J$2:J$25,(Wetterdaten!$D114-1)*24,0)) -> 9.370833333 | G124: =SUM(OFFSET(Wetterdaten!H$2:H$25,(Wetterdaten!$D114-1)*24,0))/1000 -> 1.196 | H124: 0.2317881944 | I124: 0.9642118056 | J124: =Calculation!L114*1000 -> 8073.843474 | K124: =SUM(OFFSET(Stundenlastprofil_norm!$M$5:$M$28,(Stundenlastprofil_norm!$H117-1)*24,)) -> 0 | L124: =SUM(OFFSET(Stundenlastprofil_norm!$N$5:$N$28,(Stundenlastprofil_norm!$H117-1)*24,)) -> 0 | M124: =SUM(OFFSET(Stundenlastprofil_norm!$S$5:$S$28,(Stundenlastprofil_norm!$H117-1)*24,)) -> 0 | N124: =SUM(OFFSET(Stundenlastprofil_norm!$U$5:$U$28,(Stundenlastprofil_norm!$H117-1)*24,)) -> 8054.208436
B125: 2023-04-24 | C125: 1 | D125: 4 | E125: 114 | F125: =AVERAGE(OFFSET(Wetterdaten!J$2:J$25,(Wetterdaten!$D115-1)*24,0)) -> 7.645833333 | G125: =SUM(OFFSET(Wetterdaten!H$2:H$25,(Wetterdaten!$D115-1)*24,0))/1000 -> 2.718 | H125: 0.2389756944 | I125: 2.479024306 | J125: =Calculation!L115*1000 -> 9606.043115 | K125: =SUM(OFFSET(Stundenlastprofil_norm!$M$5:$M$28,(Stundenlastprofil_norm!$H118-1)*24,)) -> 1.756593837 | L125: =SUM(OFFSET(Stundenlastprofil_norm!$N$5:$N$28,(Stundenlastprofil_norm!$H118-1)*24,)) -> 1131.246431 | M125: =SUM(OFFSET(Stundenlastprofil_norm!$S$5:$S$28,(Stundenlastprofil_norm!$H118-1)*24,)) -> 1131.246431 | N125: =SUM(OFFSET(Stundenlastprofil_norm!$U$5:$U$28,(Stundenlastprofil_norm!$H118-1)*24,)) -> 8225.660072
B126: 2023-04-25 | C126: 2 | D126: 4 | E126: 115 | F126: =AVERAGE(OFFSET(Wetterdaten!J$2:J$25,(Wetterdaten!$D116-1)*24,0)) -> 10.59166667 | G126: =SUM(OFFSET(Wetterdaten!H$2:H$25,(Wetterdaten!$D116-1)*24,0))/1000 -> 1.853 | H126: 0.2267013889 | I126: 1.626298611 | J126: =Calculation!L116*1000 -> 6989.460637 | K126: =SUM(OFFSET(Stundenlastprofil_norm!$M$5:$M$28,(Stundenlastprofil_norm!$H119-1)*24,)) -> 3.151785456 | L126: =SUM(OFFSET(Stundenlastprofil_norm!$N$5:$N$28,(Stundenlastprofil_norm!$H119-1)*24,)) -> 2029.749834 | M126: =SUM(OFFSET(Stundenlastprofil_norm!$S$5:$S$28,(Stundenlastprofil_norm!$H119-1)*24,)) -> 2029.749834 | N126: =SUM(OFFSET(Stundenlastprofil_norm!$U$5:$U$28,(Stundenlastprofil_norm!$H119-1)*24,)) -> 4966.700264
B127: 2023-04-26 | C127: 3 | D127: 4 | E127: 116 | F127: =AVERAGE(OFFSET(Wetterdaten!J$2:J$25,(Wetterdaten!$D117-1)*24,0)) -> 10.20833333 | G127: =SUM(OFFSET(Wetterdaten!H$2:H$25,(Wetterdaten!$D117-1)*24,0))/1000 -> 2.8 | H127: 0.2282986111 | I127: 2.571701389 | J127: =Calculation!L117*1000 -> 7329.949446 | K127: =SUM(OFFSET(Stundenlastprofil_norm!$M$5:$M$28,(Stundenlastprofil_norm!$H120-1)*24,)) -> 2.394136463 | L127: =SUM(OFFSET(Stundenlastprofil_norm!$N$5:$N$28,(Stundenlastprofil_norm!$H120-1)*24,)) -> 1541.823882 | M127: =SUM(OFFSET(Stundenlastprofil_norm!$S$5:$S$28,(Stundenlastprofil_norm!$H120-1)*24,)) -> 1541.823882 | N127: =SUM(OFFSET(Stundenlastprofil_norm!$U$5:$U$28,(Stundenlastprofil_norm!$H120-1)*24,)) -> 5795.455513
B128: 2023-04-27 | C128: 4 | D128: 4 | E128: 117 | F128: =AVERAGE(OFFSET(Wetterdaten!J$2:J$25,(Wetterdaten!$D118-1)*24,0)) -> 12.72916667 | G128: =SUM(OFFSET(Wetterdaten!H$2:H$25,(Wetterdaten!$D118-1)*24,0))/1000 -> 2.9 | H128: 0.2177951389 | I128: 2.682204861 | J128: =Calculation!L118*1000 -> 5090.865429 | K128: =SUM(OFFSET(Stundenlastprofil_norm!$M$5:$M$28,(Stundenlastprofil_norm!$H121-1)*24,)) -> 1.176002138 | L128: =SUM(OFFSET(Stundenlastprofil_norm!$N$5:$N$28,(Stundenlastprofil_norm!$H121-1)*24,)) -> 757.3453767 | M128: =SUM(OFFSET(Stundenlastprofil_norm!$S$5:$S$28,(Stundenlastprofil_norm!$H121-1)*24,)) -> 757.3453767 | N128: =SUM(OFFSET(Stundenlastprofil_norm!$U$5:$U$28,(Stundenlastprofil_norm!$H121-1)*24,)) -> 4338.610918
B129: 2023-04-28 | C129: 5 | D129: 4 | E129: 118 | F129: =AVERAGE(OFFSET(Wetterdaten!J$2:J$25,(Wetterdaten!$D119-1)*24,0)) -> 9.066666667 | G129: =SUM(OFFSET(Wetterdaten!H$2:H$25,(Wetterdaten!$D119-1)*24,0))/1000 -> 1.54 | H129: 0.2330555556 | I129: 1.306944444 | J129: =Calculation!L119*1000 -> 8140.360336 | K129: =SUM(OFFSET(Stundenlastprofil_norm!$M$5:$M$28,(Stundenlastprofil_norm!$H122-1)*24,)) -> 0.003396834962 | L129: =SUM(OFFSET(Stundenlastprofil_norm!$N$5:$N$28,(Stundenlastprofil_norm!$H122-1)*24,)) -> 2.187561716 | M129: =SUM(OFFSET(Stundenlastprofil_norm!$S$5:$S$28,(Stundenlastprofil_norm!$H122-1)*24,)) -> 2.187561716 | N129: =SUM(OFFSET(Stundenlastprofil_norm!$U$5:$U$28,(Stundenlastprofil_norm!$H122-1)*24,)) -> 8108.49369
B130: 2023-04-29 | C130: 6 | D130: 4 | E130: 119 | F130: =AVERAGE(OFFSET(Wetterdaten!J$2:J$25,(Wetterdaten!$D120-1)*24,0)) -> 6.379166667 | G130: =SUM(OFFSET(Wetterdaten!H$2:H$25,(Wetterdaten!$D120-1)*24,0))/1000 -> 0.75 | H130: 0.2442534722 | I130: 0.5057465278 | J130: =Calculation!L120*1000 -> 9784.750242 | K130: =SUM(OFFSET(Stundenlastprofil_norm!$M$5:$M$28,(Stundenlastprofil_norm!$H123-1)*24,)) -> 0 | L130: =SUM(OFFSET(Stundenlastprofil_norm!$N$5:$N$28,(Stundenlastprofil_norm!$H123-1)*24,)) -> 0 | M130: =SUM(OFFSET(Stundenlastprofil_norm!$S$5:$S$28,(Stundenlastprofil_norm!$H123-1)*24,)) -> 0 | N130: =SUM(OFFSET(Stundenlastprofil_norm!$U$5:$U$28,(Stundenlastprofil_norm!$H123-1)*24,)) -> 8916.104838
B131: 2023-04-30 | C131: 7 | D131: 4 | E131: 120 | F131: =AVERAGE(OFFSET(Wetterdaten!J$2:J$25,(Wetterdaten!$D121-1)*24,0)) -> 5.2 | G131: =SUM(OFFSET(Wetterdaten!H$2:H$25,(Wetterdaten!$D121-1)*24,0))/1000 -> 1.254 | H131: 0.2491666667 | I131: 1.004833333 | J131: =Calculation!L121*1000 -> 11778.50976 | K131: =SUM(OFFSET(Stundenlastprofil_norm!$M$5:$M$28,(Stundenlastprofil_norm!$H124-1)*24,)) -> 0 | L131: =SUM(OFFSET(Stundenlastprofil_norm!$N$5:$N$28,(Stundenlastprofil_norm!$H124-1)*24,)) -> 0 | M131: =SUM(OFFSET(Stundenlastprofil_norm!$S$5:$S$28,(Stundenlastprofil_norm!$H124-1)*24,)) -> 0 | N131: =SUM(OFFSET(Stundenlastprofil_norm!$U$5:$U$28,(Stundenlastprofil_norm!$H124-1)*24,)) -> 9493.270468
B132: 2023-05-01 | C132: 1 | D132: 5 | E132: 121 | F132: =AVERAGE(OFFSET(Wetterdaten!J$2:J$25,(Wetterdaten!$D122-1)*24,0)) -> 10.50416667 | G132: =SUM(OFFSET(Wetterdaten!H$2:H$25,(Wetterdaten!$D122-1)*24,0))/1000 -> 0.82 | H132: 0.2270659722 | I132: 0.5929340278 | J132: =Calculation!L122*1000 -> 7067.180908 | K132: =SUM(OFFSET(Stundenlastprofil_norm!$M$5:$M$28,(Stundenlastprofil_norm!$H125-1)*24,)) -> 0 | L132: =SUM(OFFSET(Stundenlastprofil_norm!$N$5:$N$28,(Stundenlastprofil_norm!$H125-1)*24,)) -> 0 | M132: =SUM(OFFSET(Stundenlastprofil_norm!$S$5:$S$28,(Stundenlastprofil_norm!$H125-1)*24,)) -> 0 | N132: =SUM(OFFSET(Stundenlastprofil_norm!$U$5:$U$28,(Stundenlastprofil_norm!$H125-1)*24,)) -> 7074.248089
B133: 2023-05-02 | C133: 2 | D133: 5 | E133: 122 | F133: =AVERAGE(OFFSET(Wetterdaten!J$2:J$25,(Wetterdaten!$D123-1)*24,0)) -> 12.71666667 | G133: =SUM(OFFSET(Wetterdaten!H$2:H$25,(Wetterdaten!$D123-1)*24,0))/1000 -> 2.579 | H133: 0.2178472222 | I133: 2.361152778 | J133: =Calculation!L123*1000 -> 5101.968325 | K133: =SUM(OFFSET(Stundenlastprofil_norm!$M$5:$M$28,(Stundenlastprofil_norm!$H126-1)*24,)) -> 0.4629723314 | L133: =SUM(OFFSET(Stundenlastprofil_norm!$N$5:$N$28,(Stundenlastprofil_norm!$H126-1)*24,)) -> 298.1541814 | M133: =SUM(OFFSET(Stundenlastprofil_norm!$S$5:$S$28,(Stundenlastprofil_norm!$H126-1)*24,)) -> 298.1541814 | N133: =SUM(OFFSET(Stundenlastprofil_norm!$U$5:$U$28,(Stundenlastprofil_norm!$H126-1)*24,)) -> 4808.916112
B134: 2023-05-03 | C134: 3 | D134: 5 | E134: 123 | F134: =AVERAGE(OFFSET(Wetterdaten!J$2:J$25,(Wetterdaten!$D124-1)*24,0)) -> 13.44166667 | G134: =SUM(OFFSET(Wetterdaten!H$2:H$25,(Wetterdaten!$D124-1)*24,0))/1000 -> 2.946 | H134: 0.2148263889 | I134: 2.731173611 | J134: =Calculation!L124*1000 -> 4458.00036 | K134: =SUM(OFFSET(Stundenlastprofil_norm!$M$5:$M$28,(Stundenlastprofil_norm!$H127-1)*24,)) -> 2.469554788 | L134: =SUM(OFFSET(Stundenlastprofil_norm!$N$5:$N$28,(Stundenlastprofil_norm!$H127-1)*24,)) -> 1590.393283 | M134: =SUM(OFFSET(Stundenlastprofil_norm!$S$5:$S$28,(Stundenlastprofil_norm!$H127-1)*24,)) -> 1590.393283 | N134: =SUM(OFFSET(Stundenlastprofil_norm!$U$5:$U$28,(Stundenlastprofil_norm!$H127-1)*24,)) -> 2872.065077
B135: 2023-05-04 | C135: 4 | D135: 5 | E135: 124 | F135: =AVERAGE(OFFSET(Wetterdaten!J$2:J$25,(Wetterdaten!$D125-1)*24,0)) -> 13.04166667 | G135: =SUM(OFFSET(Wetterdaten!H$2:H$25,(Wetterdaten!$D125-1)*24,0))/1000 -> 2.397 | H135: 0.2164930556 | I135: 2.180506944 | J135: =Calculation!L125*1000 -> 4813.29303 | K135: =SUM(OFFSET(Stundenlastprofil_norm!$M$5:$M$28,(Stundenlastprofil_norm!$H128-1)*24,)) -> 0.3168740289 | L135: =SUM(OFFSET(Stundenlastprofil_norm!$N$5:$N$28,(Stundenlastprofil_norm!$H128-1)*24,)) -> 204.0668746 | M135: =SUM(OFFSET(Stundenlastprofil_norm!$S$5:$S$28,(Stundenlastprofil_norm!$H128-1)*24,)) -> 204.0668746 | N135: =SUM(OFFSET(Stundenlastprofil_norm!$U$5:$U$28,(Stundenlastprofil_norm!$H128-1)*24,)) -> 4614.039449
B136: 2023-05-05 | C136: 5 | D136: 5 | E136: 125 | F136: =AVERAGE(OFFSET(Wetterdaten!J$2:J$25,(Wetterdaten!$D126-1)*24,0)) -> 14.3 | G136: =SUM(OFFSET(Wetterdaten!H$2:H$25,(Wetterdaten!$D126-1)*24,0))/1000 -> 2.542 | H136: 0.21125 | I136: 2.33075 | J136: =Calculation!L126*1000 -> 4938.261543 | K136: =SUM(OFFSET(Stundenlastprofil_norm!$M$5:$M$28,(Stundenlastprofil_norm!$H129-1)*24,)) -> 0.3998346344 | L136: =SUM(OFFSET(Stundenlastprofil_norm!$N$5:$N$28,(Stundenlastprofil_norm!$H129-1)*24,)) -> 257.4935046 | M136: =SUM(OFFSET(Stundenlastprofil_norm!$S$5:$S$28,(Stundenlastprofil_norm!$H129-1)*24,)) -> 257.4935046 | N136: =SUM(OFFSET(Stundenlastprofil_norm!$U$5:$U$28,(Stundenlastprofil_norm!$H129-1)*24,)) -> 4685.7063
B137: 2023-05-06 | C137: 6 | D137: 5 | E137: 126 | F137: =AVERAGE(OFFSET(Wetterdaten!J$2:J$25,(Wetterdaten!$D127-1)*24,0)) -> 14.51666667 | G137: =SUM(OFFSET(Wetterdaten!H$2:H$25,(Wetterdaten!$D127-1)*24,0))/1000 -> 1.35 | H137: 0.2103472222 | I137: 1.139652778 | J137: =Calculation!L127*1000 -> 4805.690574 | K137: =SUM(OFFSET(Stundenlastprofil_norm!$M$5:$M$28,(Stundenlastprofil_norm!$H130-1)*24,)) -> 0 | L137: =SUM(OFFSET(Stundenlastprofil_norm!$N$5:$N$28,(Stundenlastprofil_norm!$H130-1)*24,)) -> 0 | M137: =SUM(OFFSET(Stundenlastprofil_norm!$S$5:$S$28,(Stundenlastprofil_norm!$H130-1)*24,)) -> 0 | N137: =SUM(OFFSET(Stundenlastprofil_norm!$U$5:$U$28,(Stundenlastprofil_norm!$H130-1)*24,)) -> 4810.496265
B138: 2023-05-07 | C138: 7 | D138: 5 | E138: 127 | F138: =AVERAGE(OFFSET(Wetterdaten!J$2:J$25,(Wetterdaten!$D128-1)*24,0)) -> 11.69166667 | G138: =SUM(OFFSET(Wetterdaten!H$2:H$25,(Wetterdaten!$D128-1)*24,0))/1000 -> 2.524 | H138: 0.2221180556 | I138: 2.301881944 | J138: =Calculation!L128*1000 -> 6012.405793 | K138: =SUM(OFFSET(Stundenlastprofil_norm!$M$5:$M$28,(Stundenlastprofil_norm!$H131-1)*24,)) -> 0.3552645895 | L138: =SUM(OFFSET(Stundenlastprofil_norm!$N$5:$N$28,(Stundenlastprofil_norm!$H131-1)*24,)) -> 228.7903956 | M138: =SUM(OFFSET(Stundenlastprofil_norm!$S$5:$S$28,(Stundenlastprofil_norm!$H131-1)*24,)) -> 228.7903956 | N138: =SUM(OFFSET(Stundenlastprofil_norm!$U$5:$U$28,(Stundenlastprofil_norm!$H131-1)*24,)) -> 5789.627803
B139: 2023-05-08 | C139: 1 | D139: 5 | E139: 128 | F139: =AVERAGE(OFFSET(Wetterdaten!J$2:J$25,(Wetterdaten!$D129-1)*24,0)) -> 9.908333333 | G139: =SUM(OFFSET(Wetterdaten!H$2:H$25,(Wetterdaten!$D129-1)*24,0))/1000 -> 3.294 | H139: 0.2295486111 | I139: 3.064451389 | J139: =Calculation!L129*1000 -> 7596.418948 | K139: =SUM(OFFSET(Stundenlastprofil_norm!$M$5:$M$28,(Stundenlastprofil_norm!$H132-1)*24,)) -> 0.9715950825 | L139: =SUM(OFFSET(Stundenlastprofil_norm!$N$5:$N$28,(Stundenlastprofil_norm!$H132-1)*24,)) -> 625.7072331 | M139: =SUM(OFFSET(Stundenlastprofil_norm!$S$5:$S$28,(Stundenlastprofil_norm!$H132-1)*24,)) -> 625.7072331 | N139: =SUM(OFFSET(Stundenlastprofil_norm!$U$5:$U$28,(Stundenlastprofil_norm!$H132-1)*24,)) -> 6978.308134
B140: 2023-05-09 | C140: =WEEKDAY(B140,2) -> 2 | D140: 5 | E140: 129 | F140: =AVERAGE(OFFSET(Wetterdaten!J$2:J$25,(Wetterdaten!$D130-1)*24,0)) -> 9.05 | G140: =SUM(OFFSET(Wetterdaten!H$2:H$25,(Wetterdaten!$D130-1)*24,0))/1000 -> 3.473 | H140: 0.233125 | I140: 3.239875 | J140: =Calculation!L130*1000 -> 8358.817804 | K140: =SUM(OFFSET(Stundenlastprofil_norm!$M$5:$M$28,(Stundenlastprofil_norm!$H133-1)*24,)) -> 1.844843833 | L140: =SUM(OFFSET(Stundenlastprofil_norm!$N$5:$N$28,(Stundenlastprofil_norm!$H133-1)*24,)) -> 1188.079428 | M140: =SUM(OFFSET(Stundenlastprofil_norm!$S$5:$S$28,(Stundenlastprofil_norm!$H133-1)*24,)) -> 1188.079428 | N140: =SUM(OFFSET(Stundenlastprofil_norm!$U$5:$U$28,(Stundenlastprofil_norm!$H133-1)*24,)) -> 7159.609932
B141: 2023-05-10 | C141: 3 | D141: =MONTH(B141) -> 5 | E141: 130 | F141: =AVERAGE(OFFSET(Wetterdaten!J$2:J$25,(Wetterdaten!$D131-1)*24,0)) -> 8.058333333 | G141: =SUM(OFFSET(Wetterdaten!H$2:H$25,(Wetterdaten!$D131-1)*24,0))/1000 -> 3.662 | H141: =$H$3*($H$5-F141) -> 0.2372569444 | I141: =MAX(G141-H141,0) -> 3.424743056 | J141: =Calculation!L131*1000 -> 9239.647549 | K141: =SUM(OFFSET(Stundenlastprofil_norm!$M$5:$M$28,(Stundenlastprofil_norm!$H134-1)*24,)) -> 1.519530373 | L141: =SUM(OFFSET(Stundenlastprofil_norm!$N$5:$N$28,(Stundenlastprofil_norm!$H134-1)*24,)) -> 978.57756 | M141: =SUM(OFFSET(Stundenlastprofil_norm!$S$5:$S$28,(Stundenlastprofil_norm!$H134-1)*24,)) -> 978.57756 | N141: =SUM(OFFSET(Stundenlastprofil_norm!$U$5:$U$28,(Stundenlastprofil_norm!$H134-1)*24,)) -> 8108.831474
B142: =B141+1 -> 2023-05-11 | C142: 4 | D142: 5 | E142: 131 | F142: =AVERAGE(OFFSET(Wetterdaten!J$2:J$25,(Wetterdaten!$D132-1)*24,0)) -> 11.06666667 | G142: =SUM(OFFSET(Wetterdaten!H$2:H$25,(Wetterdaten!$D132-1)*24,0))/1000 -> 1.245 | H142: 0.2247222222 | I142: 1.020277778 | J142: =Calculation!L132*1000 -> 6567.55059 | K142: =SUM(OFFSET(Stundenlastprofil_norm!$M$5:$M$28,(Stundenlastprofil_norm!$H135-1)*24,)) -> 3.611436351 | L142: =SUM(OFFSET(Stundenlastprofil_norm!$N$5:$N$28,(Stundenlastprofil_norm!$H135-1)*24,)) -> 2325.76501 | M142: =SUM(OFFSET(Stundenlastprofil_norm!$S$5:$S$28,(Stundenlastprofil_norm!$H135-1)*24,)) -> 2325.76501 | N142: =SUM(OFFSET(Stundenlastprofil_norm!$U$5:$U$28,(Stundenlastprofil_norm!$H135-1)*24,)) -> 4248.353131
B143: 2023-05-12 | C143: 5 | D143: 5 | E143: 132 | F143: =AVERAGE(OFFSET(Wetterdaten!J$2:J$25,(Wetterdaten!$D133-1)*24,0)) -> 7.170833333 | G143: =SUM(OFFSET(Wetterdaten!H$2:H$25,(Wetterdaten!$D133-1)*24,0))/1000 -> 1.499 | H143: 0.2409548611 | I143: 1.258045139 | J143: =Calculation!L133*1000 -> 9300.356317 | K143: =SUM(OFFSET(Stundenlastprofil_norm!$M$5:$M$28,(Stundenlastprofil_norm!$H136-1)*24,)) -> 3.279489445 | L143: =SUM(OFFSET(Stundenlastprofil_norm!$N$5:$N$28,(Stundenlastprofil_norm!$H136-1)*24,)) -> 2111.991203 | M143: =SUM(OFFSET(Stundenlastprofil_norm!$S$5:$S$28,(Stundenlastprofil_norm!$H136-1)*24,)) -> 2111.991203 | N143: =SUM(OFFSET(Stundenlastprofil_norm!$U$5:$U$28,(Stundenlastprofil_norm!$H136-1)*24,)) -> 7059.567541
B144: 2023-05-13 | C144: 6 | D144: 5 | E144: 133 | F144: =AVERAGE(OFFSET(Wetterdaten!J$2:J$25,(Wetterdaten!$D134-1)*24,0)) -> 10.375 | G144: =SUM(OFFSET(Wetterdaten!H$2:H$25,(Wetterdaten!$D134-1)*24,0))/1000 -> 1.274 | H144: 0.2276041667 | I144: 1.046395833 | J144: =Calculation!L134*1000 -> 7339.835638 | K144: =SUM(OFFSET(Stundenlastprofil_norm!$M$5:$M$28,(Stundenlastprofil_norm!$H137-1)*24,)) -> 3.556191526 | L144: =SUM(OFFSET(Stundenlastprofil_norm!$N$5:$N$28,(Stundenlastprofil_norm!$H137-1)*24,)) -> 2290.187343 | M144: =SUM(OFFSET(Stundenlastprofil_norm!$S$5:$S$28,(Stundenlastprofil_norm!$H137-1)*24,)) -> 2290.187343 | N144: =SUM(OFFSET(Stundenlastprofil_norm!$U$5:$U$28,(Stundenlastprofil_norm!$H137-1)*24,)) -> 5056.988131
B145: 2023-05-14 | C145: 7 | D145: 5 | E145: 134 | F145: =AVERAGE(OFFSET(Wetterdaten!J$2:J$25,(Wetterdaten!$D135-1)*24,0)) -> 9.579166667 | G145: =SUM(OFFSET(Wetterdaten!H$2:H$25,(Wetterdaten!$D135-1)*24,0))/1000 -> 1.511 | H145: 0.2309201389 | I145: 1.280079861 | J145: =Calculation!L135*1000 -> 7888.795208 | K145: =SUM(OFFSET(Stundenlastprofil_norm!$M$5:$M$28,(Stundenlastprofil_norm!$H138-1)*24,)) -> 3.377840006 | L145: =SUM(OFFSET(Stundenlastprofil_norm!$N$5:$N$28,(Stundenlastprofil_norm!$H138-1)*24,)) -> 2175.328964 | M145: =SUM(OFFSET(Stundenlastprofil_norm!$S$5:$S$28,(Stundenlastprofil_norm!$H138-1)*24,)) -> 2175.328964 | N145: =SUM(OFFSET(Stundenlastprofil_norm!$U$5:$U$28,(Stundenlastprofil_norm!$H138-1)*24,)) -> 5721.35504
B146: 2023-05-15 | C146: 1 | D146: 5 | E146: 135 | F146: =AVERAGE(OFFSET(Wetterdaten!J$2:J$25,(Wetterdaten!$D136-1)*24,0)) -> 13.76666667 | G146: =SUM(OFFSET(Wetterdaten!H$2:H$25,(Wetterdaten!$D136-1)*24,0))/1000 -> 2.629 | H146: 0.2134722222 | I146: 2.415527778 | J146: =Calculation!L136*1000 -> 4169.325065 | K146: =SUM(OFFSET(Stundenlastprofil_norm!$M$5:$M$28,(Stundenlastprofil_norm!$H139-1)*24,)) -> 3.049419875 | L146: =SUM(OFFSET(Stundenlastprofil_norm!$N$5:$N$28,(Stundenlastprofil_norm!$H139-1)*24,)) -> 1963.826399 | M146: =SUM(OFFSET(Stundenlastprofil_norm!$S$5:$S$28,(Stundenlastprofil_norm!$H139-1)*24,)) -> 1963.826399 | N146: =SUM(OFFSET(Stundenlastprofil_norm!$U$5:$U$28,(Stundenlastprofil_norm!$H139-1)*24,)) -> 2209.667991
B147: 2023-05-16 | C147: 2 | D147: 5 | E147: 136 | F147: =AVERAGE(OFFSET(Wetterdaten!J$2:J$25,(Wetterdaten!$D137-1)*24,0)) -> 12.37083333 | G147: =SUM(OFFSET(Wetterdaten!H$2:H$25,(Wetterdaten!$D137-1)*24,0))/1000 -> 2.248 | H147: 0.2192881944 | I147: 2.028711806 | J147: =Calculation!L137*1000 -> 5409.148446 | K147: =SUM(OFFSET(Stundenlastprofil_norm!$M$5:$M$28,(Stundenlastprofil_norm!$H140-1)*24,)) -> 0.153422703 | L147: =SUM(OFFSET(Stundenlastprofil_norm!$N$5:$N$28,(Stundenlastprofil_norm!$H140-1)*24,)) -> 98.8042207 | M147: =SUM(OFFSET(Stundenlastprofil_norm!$S$5:$S$28,(Stundenlastprofil_norm!$H140-1)*24,)) -> 98.8042207 | N147: =SUM(OFFSET(Stundenlastprofil_norm!$U$5:$U$28,(Stundenlastprofil_norm!$H140-1)*24,)) -> 5315.753374
B148: 2023-05-17 | C148: 3 | D148: 5 | E148: 137 | F148: =AVERAGE(OFFSET(Wetterdaten!J$2:J$25,(Wetterdaten!$D138-1)*24,0)) -> 12.07916667 | G148: =SUM(OFFSET(Wetterdaten!H$2:H$25,(Wetterdaten!$D138-1)*24,0))/1000 -> 3.158 | H148: 0.2205034722 | I148: 2.937496528 | J148: =Calculation!L138*1000 -> 5668.216018 | K148: =SUM(OFFSET(Stundenlastprofil_norm!$M$5:$M$28,(Stundenlastprofil_norm!$H141-1)*24,)) -> 2.467039561 | L148: =SUM(OFFSET(Stundenlastprofil_norm!$N$5:$N$28,(Stundenlastprofil_norm!$H141-1)*24,)) -> 1588.773477 | M148: =SUM(OFFSET(Stundenlastprofil_norm!$S$5:$S$28,(Stundenlastprofil_norm!$H141-1)*24,)) -> 1588.773477 | N148: =SUM(OFFSET(Stundenlastprofil_norm!$U$5:$U$28,(Stundenlastprofil_norm!$H141-1)*24,)) -> 4085.110757
B149: 2023-05-18 | C149: 4 | D149: 5 | E149: 138 | F149: =AVERAGE(OFFSET(Wetterdaten!J$2:J$25,(Wetterdaten!$D139-1)*24,0)) -> 11.44166667 | G149: =SUM(OFFSET(Wetterdaten!H$2:H$25,(Wetterdaten!$D139-1)*24,0))/1000 -> 1.202 | H149: 0.2231597222 | I149: 0.9788402778 | J149: =Calculation!L139*1000 -> 6234.463712 | K149: =SUM(OFFSET(Stundenlastprofil_norm!$M$5:$M$28,(Stundenlastprofil_norm!$H142-1)*24,)) -> 3.653250517 | L149: =SUM(OFFSET(Stundenlastprofil_norm!$N$5:$N$28,(Stundenlastprofil_norm!$H142-1)*24,)) -> 2352.693333 | M149: =SUM(OFFSET(Stundenlastprofil_norm!$S$5:$S$28,(Stundenlastprofil_norm!$H142-1)*24,)) -> 2352.693333 | N149: =SUM(OFFSET(Stundenlastprofil_norm!$U$5:$U$28,(Stundenlastprofil_norm!$H142-1)*24,)) -> 3888.004843
B150: 2023-05-19 | C150: 5 | D150: 5 | E150: 139 | F150: =AVERAGE(OFFSET(Wetterdaten!J$2:J$25,(Wetterdaten!$D140-1)*24,0)) -> 14.0625 | G150: =SUM(OFFSET(Wetterdaten!H$2:H$25,(Wetterdaten!$D140-1)*24,0))/1000 -> 1.345 | H150: 0.2122395833 | I150: 1.132760417 | J150: =Calculation!L140*1000 -> 5083.579721 | K150: =SUM(OFFSET(Stundenlastprofil_norm!$M$5:$M$28,(Stundenlastprofil_norm!$H143-1)*24,)) -> 3.602116654 | L150: =SUM(OFFSET(Stundenlastprofil_norm!$N$5:$N$28,(Stundenlastprofil_norm!$H143-1)*24,)) -> 2319.763125 | M150: =SUM(OFFSET(Stundenlastprofil_norm!$S$5:$S$28,(Stundenlastprofil_norm!$H143-1)*24,)) -> 2319.763125 | N150: =SUM(OFFSET(Stundenlastprofil_norm!$U$5:$U$28,(Stundenlastprofil_norm!$H143-1)*24,)) -> 2768.900176
B151: 2023-05-20 | C151: 6 | D151: 5 | E151: 140 | F151: =AVERAGE(OFFSET(Wetterdaten!J$2:J$25,(Wetterdaten!$D141-1)*24,0)) -> 19.23333333 | G151: =SUM(OFFSET(Wetterdaten!H$2:H$25,(Wetterdaten!$D141-1)*24,0))/1000 -> 1.965 | H151: 0.1906944444 | I151: 1.774305556 | J151: =Calculation!L141*1000 -> 3186.585567 | K151: =SUM(OFFSET(Stundenlastprofil_norm!$M$5:$M$28,(Stundenlastprofil_norm!$H144-1)*24,)) -> 3.508368386 | L151: =SUM(OFFSET(Stundenlastprofil_norm!$N$5:$N$28,(Stundenlastprofil_norm!$H144-1)*24,)) -> 2259.389241 | M151: =SUM(OFFSET(Stundenlastprofil_norm!$S$5:$S$28,(Stundenlastprofil_norm!$H144-1)*24,)) -> 2259.389241 | N151: =SUM(OFFSET(Stundenlastprofil_norm!$U$5:$U$28,(Stundenlastprofil_norm!$H144-1)*24,)) -> 930.3829122
B152: 2023-05-21 | C152: 7 | D152: 5 | E152: 141 | F152: =AVERAGE(OFFSET(Wetterdaten!J$2:J$25,(Wetterdaten!$D142-1)*24,0)) -> 18.25833333 | G152: =SUM(OFFSET(Wetterdaten!H$2:H$25,(Wetterdaten!$D142-1)*24,0))/1000 -> 2.958 | H152: 0.1947569444 | I152: 2.763243056 | J152: =Calculation!L142*1000 -> 1610.9448 | K152: =SUM(OFFSET(Stundenlastprofil_norm!$M$5:$M$28,(Stundenlastprofil_norm!$H145-1)*24,)) -> 0.6639872658 | L152: =SUM(OFFSET(Stundenlastprofil_norm!$N$5:$N$28,(Stundenlastprofil_norm!$H145-1)*24,)) -> 427.6077992 | M152: =SUM(OFFSET(Stundenlastprofil_norm!$S$5:$S$28,(Stundenlastprofil_norm!$H145-1)*24,)) -> 427.6077992 | N152: =SUM(OFFSET(Stundenlastprofil_norm!$U$5:$U$28,(Stundenlastprofil_norm!$H145-1)*24,)) -> 1184.947945
B153: 2023-05-22 | C153: 1 | D153: 5 | E153: 142 | F153: =AVERAGE(OFFSET(Wetterdaten!J$2:J$25,(Wetterdaten!$D143-1)*24,0)) -> 16.52916667 | G153: =SUM(OFFSET(Wetterdaten!H$2:H$25,(Wetterdaten!$D143-1)*24,0))/1000 -> 1.798 | H153: 0.2019618056 | I153: 1.596038194 | J153: =Calculation!L143*1000 -> 1815.067281 | K153: =SUM(OFFSET(Stundenlastprofil_norm!$M$5:$M$28,(Stundenlastprofil_norm!$H146-1)*24,)) -> 0.04383983338 | L153: =SUM(OFFSET(Stundenlastprofil_norm!$N$5:$N$28,(Stundenlastprofil_norm!$H146-1)*24,)) -> 28.2328527 | M153: =SUM(OFFSET(Stundenlastprofil_norm!$S$5:$S$28,(Stundenlastprofil_norm!$H146-1)*24,)) -> 28.2328527 | N153: =SUM(OFFSET(Stundenlastprofil_norm!$U$5:$U$28,(Stundenlastprofil_norm!$H146-1)*24,)) -> 1788.649496
B154: 2023-05-23 | C154: 2 | D154: 5 | E154: 143 | F154: =AVERAGE(OFFSET(Wetterdaten!J$2:J$25,(Wetterdaten!$D144-1)*24,0)) -> 17.02083333 | G154: =SUM(OFFSET(Wetterdaten!H$2:H$25,(Wetterdaten!$D144-1)*24,0))/1000 -> 0.992 | H154: 0.1999131944 | I154: 0.7920868056 | J154: =Calculation!L144*1000 -> 1757.027636 | K154: =SUM(OFFSET(Stundenlastprofil_norm!$M$5:$M$28,(Stundenlastprofil_norm!$H147-1)*24,)) -> 0 | L154: =SUM(OFFSET(Stundenlastprofil_norm!$N$5:$N$28,(Stundenlastprofil_norm!$H147-1)*24,)) -> 0 | M154: =SUM(OFFSET(Stundenlastprofil_norm!$S$5:$S$28,(Stundenlastprofil_norm!$H147-1)*24,)) -> 0 | N154: =SUM(OFFSET(Stundenlastprofil_norm!$U$5:$U$28,(Stundenlastprofil_norm!$H147-1)*24,)) -> 1758.784664
B155: 2023-05-24 | C155: 3 | D155: 5 | E155: 144 | F155: =AVERAGE(OFFSET(Wetterdaten!J$2:J$25,(Wetterdaten!$D145-1)*24,0)) -> 15.225 | G155: =SUM(OFFSET(Wetterdaten!H$2:H$25,(Wetterdaten!$D145-1)*24,0))/1000 -> 1.691 | H155: 0.2073958333 | I155: 1.483604167 | J155: =Calculation!L145*1000 -> 2873.987204 | K155: =SUM(OFFSET(Stundenlastprofil_norm!$M$5:$M$28,(Stundenlastprofil_norm!$H148-1)*24,)) -> 3.514805436 | L155: =SUM(OFFSET(Stundenlastprofil_norm!$N$5:$N$28,(Stundenlastprofil_norm!$H148-1)*24,)) -> 2263.534701 | M155: =SUM(OFFSET(Stundenlastprofil_norm!$S$5:$S$28,(Stundenlastprofil_norm!$H148-1)*24,)) -> 2163.047054 | N155: =SUM(OFFSET(Stundenlastprofil_norm!$U$5:$U$28,(Stundenlastprofil_norm!$H148-1)*24,)) -> 713.8141377
B156: 2023-05-25 | C156: 4 | D156: 5 | E156: 145 | F156: =AVERAGE(OFFSET(Wetterdaten!J$2:J$25,(Wetterdaten!$D146-1)*24,0)) -> 15.725 | G156: =SUM(OFFSET(Wetterdaten!H$2:H$25,(Wetterdaten!$D146-1)*24,0))/1000 -> 2.562 | H156: 0.2053125 | I156: 2.3566875 | J156: =Calculation!L146*1000 -> 2429.871366 | K156: =SUM(OFFSET(Stundenlastprofil_norm!$M$5:$M$28,(Stundenlastprofil_norm!$H149-1)*24,)) -> 0.783961807 | L156: =SUM(OFFSET(Stundenlastprofil_norm!$N$5:$N$28,(Stundenlastprofil_norm!$H149-1)*24,)) -> 504.8714037 | M156: =SUM(OFFSET(Stundenlastprofil_norm!$S$5:$S$28,(Stundenlastprofil_norm!$H149-1)*24,)) -> 605.3590505 | N156: =SUM(OFFSET(Stundenlastprofil_norm!$U$5:$U$28,(Stundenlastprofil_norm!$H149-1)*24,)) -> 1826.942187
B157: 2023-05-26 | C157: 5 | D157: 5 | E157: 146 | F157: =AVERAGE(OFFSET(Wetterdaten!J$2:J$25,(Wetterdaten!$D147-1)*24,0)) -> 16.30833333 | G157: =SUM(OFFSET(Wetterdaten!H$2:H$25,(Wetterdaten!$D147-1)*24,0))/1000 -> 3.138 | H157: 0.2028819444 | I157: 2.935118056 | J157: =Calculation!L147*1000 -> 3709.430637 | K157: =SUM(OFFSET(Stundenlastprofil_norm!$M$5:$M$28,(Stundenlastprofil_norm!$H150-1)*24,)) -> 2.746433893 | L157: =SUM(OFFSET(Stundenlastprofil_norm!$N$5:$N$28,(Stundenlastprofil_norm!$H150-1)*24,)) -> 1768.703427 | M157: =SUM(OFFSET(Stundenlastprofil_norm!$S$5:$S$28,(Stundenlastprofil_norm!$H150-1)*24,)) -> 1768.703427 | N157: =SUM(OFFSET(Stundenlastprofil_norm!$U$5:$U$28,(Stundenlastprofil_norm!$H150-1)*24,)) -> 1944.43664
B158: 2023-05-27 | C158: 6 | D158: 5 | E158: 147 | F158: =AVERAGE(OFFSET(Wetterdaten!J$2:J$25,(Wetterdaten!$D148-1)*24,0)) -> 17.64166667 | G158: =SUM(OFFSET(Wetterdaten!H$2:H$25,(Wetterdaten!$D148-1)*24,0))/1000 -> 2.165 | H158: 0.1973263889 | I158: 1.967673611 | J158: =Calculation!L148*1000 -> 3422.75634 | K158: =SUM(OFFSET(Stundenlastprofil_norm!$M$5:$M$28,(Stundenlastprofil_norm!$H151-1)*24,)) -> 1.417520069 | L158: =SUM(OFFSET(Stundenlastprofil_norm!$N$5:$N$28,(Stundenlastprofil_norm!$H151-1)*24,)) -> 912.8829245 | M158: =SUM(OFFSET(Stundenlastprofil_norm!$S$5:$S$28,(Stundenlastprofil_norm!$H151-1)*24,)) -> 912.8829245 | N158: =SUM(OFFSET(Stundenlastprofil_norm!$U$5:$U$28,(Stundenlastprofil_norm!$H151-1)*24,)) -> 2513.296172
B159: 2023-05-28 | C159: 7 | D159: 5 | E159: 148 | F159: =AVERAGE(OFFSET(Wetterdaten!J$2:J$25,(Wetterdaten!$D149-1)*24,0)) -> 20.15 | G159: =SUM(OFFSET(Wetterdaten!H$2:H$25,(Wetterdaten!$D149-1)*24,0))/1000 -> 3.806 | H159: 0.186875 | I159: 3.619125 | J159: =Calculation!L149*1000 -> 1387.639723 | K159: =SUM(OFFSET(Stundenlastprofil_norm!$M$5:$M$28,(Stundenlastprofil_norm!$H152-1)*24,)) -> 1.716103782 | L159: =SUM(OFFSET(Stundenlastprofil_norm!$N$5:$N$28,(Stundenlastprofil_norm!$H152-1)*24,)) -> 1105.170836 | M159: =SUM(OFFSET(Stundenlastprofil_norm!$S$5:$S$28,(Stundenlastprofil_norm!$H152-1)*24,)) -> 1025.463489 | N159: =SUM(OFFSET(Stundenlastprofil_norm!$U$5:$U$28,(Stundenlastprofil_norm!$H152-1)*24,)) -> 363.5638738
B160: 2023-05-29 | C160: 1 | D160: 5 | E160: 149 | F160: =AVERAGE(OFFSET(Wetterdaten!J$2:J$25,(Wetterdaten!$D150-1)*24,0)) -> 16.025 | G160: =SUM(OFFSET(Wetterdaten!H$2:H$25,(Wetterdaten!$D150-1)*24,0))/1000 -> 3.739 | H160: 0.2040625 | I160: 3.5349375 | J160: =Calculation!L150*1000 -> 2163.401863 | K160: =SUM(OFFSET(Stundenlastprofil_norm!$M$5:$M$28,(Stundenlastprofil_norm!$H153-1)*24,)) -> 1.415620342 | L160: =SUM(OFFSET(Stundenlastprofil_norm!$N$5:$N$28,(Stundenlastprofil_norm!$H153-1)*24,)) -> 911.6595003 | M160: =SUM(OFFSET(Stundenlastprofil_norm!$S$5:$S$28,(Stundenlastprofil_norm!$H153-1)*24,)) -> 991.3668471 | N160: =SUM(OFFSET(Stundenlastprofil_norm!$U$5:$U$28,(Stundenlastprofil_norm!$H153-1)*24,)) -> 1174.198418
B161: 2023-05-30 | C161: 2 | D161: 5 | E161: 150 | F161: =AVERAGE(OFFSET(Wetterdaten!J$2:J$25,(Wetterdaten!$D151-1)*24,0)) -> 14.85 | G161: =SUM(OFFSET(Wetterdaten!H$2:H$25,(Wetterdaten!$D151-1)*24,0))/1000 -> 2.59 | H161: 0.2089583333 | I161: 2.381041667 | J161: =Calculation!L151*1000 -> 3207.074083 | K161: =SUM(OFFSET(Stundenlastprofil_norm!$M$5:$M$28,(Stundenlastprofil_norm!$H154-1)*24,)) -> 0.4607253267 | L161: =SUM(OFFSET(Stundenlastprofil_norm!$N$5:$N$28,(Stundenlastprofil_norm!$H154-1)*24,)) -> 296.7071104 | M161: =SUM(OFFSET(Stundenlastprofil_norm!$S$5:$S$28,(Stundenlastprofil_norm!$H154-1)*24,)) -> 296.7071104 | N161: =SUM(OFFSET(Stundenlastprofil_norm!$U$5:$U$28,(Stundenlastprofil_norm!$H154-1)*24,)) -> 2913.574046
B162: 2023-05-31 | C162: 3 | D162: 5 | E162: 151 | F162: =AVERAGE(OFFSET(Wetterdaten!J$2:J$25,(Wetterdaten!$D152-1)*24,0)) -> 15.37083333 | G162: =SUM(OFFSET(Wetterdaten!H$2:H$25,(Wetterdaten!$D152-1)*24,0))/1000 -> 1.736 | H162: 0.2067881944 | I162: 1.529211806 | J162: =Calculation!L152*1000 -> 2744.453418 | K162: =SUM(OFFSET(Stundenlastprofil_norm!$M$5:$M$28,(Stundenlastprofil_norm!$H155-1)*24,)) -> 0.05555515981 | L162: =SUM(OFFSET(Stundenlastprofil_norm!$N$5:$N$28,(Stundenlastprofil_norm!$H155-1)*24,)) -> 35.77752291 | M162: =SUM(OFFSET(Stundenlastprofil_norm!$S$5:$S$28,(Stundenlastprofil_norm!$H155-1)*24,)) -> 35.77752291 | N162: =SUM(OFFSET(Stundenlastprofil_norm!$U$5:$U$28,(Stundenlastprofil_norm!$H155-1)*24,)) -> 2711.420349
B163: 2023-06-01 | C163: 4 | D163: 6 | E163: 152 | F163: =AVERAGE(OFFSET(Wetterdaten!J$2:J$25,(Wetterdaten!$D153-1)*24,0)) -> 14.1125 | G163: =SUM(OFFSET(Wetterdaten!H$2:H$25,(Wetterdaten!$D153-1)*24,0))/1000 -> 2.531 | H163: 0.21203125 | I163: 2.31896875 | J163: =Calculation!L153*1000 -> 3862.144944 | K163: =SUM(OFFSET(Stundenlastprofil_norm!$M$5:$M$28,(Stundenlastprofil_norm!$H156-1)*24,)) -> 0.3285705843 | L163: =SUM(OFFSET(Stundenlastprofil_norm!$N$5:$N$28,(Stundenlastprofil_norm!$H156-1)*24,)) -> 211.5994563 | M163: =SUM(OFFSET(Stundenlastprofil_norm!$S$5:$S$28,(Stundenlastprofil_norm!$H156-1)*24,)) -> 211.5994563 | N163: =SUM(OFFSET(Stundenlastprofil_norm!$U$5:$U$28,(Stundenlastprofil_norm!$H156-1)*24,)) -> 3654.407632
B164: 2023-06-02 | C164: 5 | D164: 6 | E164: 153 | F164: =AVERAGE(OFFSET(Wetterdaten!J$2:J$25,(Wetterdaten!$D154-1)*24,0)) -> 14.45 | G164: =SUM(OFFSET(Wetterdaten!H$2:H$25,(Wetterdaten!$D154-1)*24,0))/1000 -> 3.744 | H164: 0.210625 | I164: 3.533375 | J164: =Calculation!L154*1000 -> 4846.481642 | K164: =SUM(OFFSET(Stundenlastprofil_norm!$M$5:$M$28,(Stundenlastprofil_norm!$H157-1)*24,)) -> 1.384736492 | L164: =SUM(OFFSET(Stundenlastprofil_norm!$N$5:$N$28,(Stundenlastprofil_norm!$H157-1)*24,)) -> 891.7703008 | M164: =SUM(OFFSET(Stundenlastprofil_norm!$S$5:$S$28,(Stundenlastprofil_norm!$H157-1)*24,)) -> 891.7703008 | N164: =SUM(OFFSET(Stundenlastprofil_norm!$U$5:$U$28,(Stundenlastprofil_norm!$H157-1)*24,)) -> 3959.557822
B165: 2023-06-03 | C165: 6 | D165: 6 | E165: 154 | F165: =AVERAGE(OFFSET(Wetterdaten!J$2:J$25,(Wetterdaten!$D155-1)*24,0)) -> 14.77083333 | G165: =SUM(OFFSET(Wetterdaten!H$2:H$25,(Wetterdaten!$D155-1)*24,0))/1000 -> 2.887 | H165: 0.2092881944 | I165: 2.677711806 | J165: =Calculation!L155*1000 -> 4650.17463 | K165: =SUM(OFFSET(Stundenlastprofil_norm!$M$5:$M$28,(Stundenlastprofil_norm!$H158-1)*24,)) -> 1.867081457 | L165: =SUM(OFFSET(Stundenlastprofil_norm!$N$5:$N$28,(Stundenlastprofil_norm!$H158-1)*24,)) -> 1202.400458 | M165: =SUM(OFFSET(Stundenlastprofil_norm!$S$5:$S$28,(Stundenlastprofil_norm!$H158-1)*24,)) -> 1202.400458 | N165: =SUM(OFFSET(Stundenlastprofil_norm!$U$5:$U$28,(Stundenlastprofil_norm!$H158-1)*24,)) -> 3452.424346
B166: 2023-06-04 | C166: 7 | D166: 6 | E166: 155 | F166: =AVERAGE(OFFSET(Wetterdaten!J$2:J$25,(Wetterdaten!$D156-1)*24,0)) -> 11.92916667 | G166: =SUM(OFFSET(Wetterdaten!H$2:H$25,(Wetterdaten!$D156-1)*24,0))/1000 -> 2.587 | H166: 0.2211284722 | I166: 2.365871528 | J166: =Calculation!L156*1000 -> 5801.45077 | K166: =SUM(OFFSET(Stundenlastprofil_norm!$M$5:$M$28,(Stundenlastprofil_norm!$H159-1)*24,)) -> 3.16021943 | L166: =SUM(OFFSET(Stundenlastprofil_norm!$N$5:$N$28,(Stundenlastprofil_norm!$H159-1)*24,)) -> 2035.181313 | M166: =SUM(OFFSET(Stundenlastprofil_norm!$S$5:$S$28,(Stundenlastprofil_norm!$H159-1)*24,)) -> 2035.181313 | N166: =SUM(OFFSET(Stundenlastprofil_norm!$U$5:$U$28,(Stundenlastprofil_norm!$H159-1)*24,)) -> 3772.070907
B167: 2023-06-05 | C167: 1 | D167: 6 | E167: 156 | F167: =AVERAGE(OFFSET(Wetterdaten!J$2:J$25,(Wetterdaten!$D157-1)*24,0)) -> 13.83333333 | G167: =SUM(OFFSET(Wetterdaten!H$2:H$25,(Wetterdaten!$D157-1)*24,0))/1000 -> 3.874 | H167: 0.2131944444 | I167: 3.660805556 | J167: =Calculation!L157*1000 -> 4110.10962 | K167: =SUM(OFFSET(Stundenlastprofil_norm!$M$5:$M$28,(Stundenlastprofil_norm!$H160-1)*24,)) -> 1.787161694 | L167: =SUM(OFFSET(Stundenlastprofil_norm!$N$5:$N$28,(Stundenlastprofil_norm!$H160-1)*24,)) -> 1150.932131 | M167: =SUM(OFFSET(Stundenlastprofil_norm!$S$5:$S$28,(Stundenlastprofil_norm!$H160-1)*24,)) -> 1150.932131 | N167: =SUM(OFFSET(Stundenlastprofil_norm!$U$5:$U$28,(Stundenlastprofil_norm!$H160-1)*24,)) -> 2963.287598
B168: 2023-06-06 | C168: 2 | D168: 6 | E168: 157 | F168: =AVERAGE(OFFSET(Wetterdaten!J$2:J$25,(Wetterdaten!$D158-1)*24,0)) -> 13.13333333 | G168: =SUM(OFFSET(Wetterdaten!H$2:H$25,(Wetterdaten!$D158-1)*24,0))/1000 -> 3.383 | H168: 0.2161111111 | I168: 3.166888889 | J168: =Calculation!L158*1000 -> 4731.871793 | K168: =SUM(OFFSET(Stundenlastprofil_norm!$M$5:$M$28,(Stundenlastprofil_norm!$H161-1)*24,)) -> 0.8283024859 | L168: =SUM(OFFSET(Stundenlastprofil_norm!$N$5:$N$28,(Stundenlastprofil_norm!$H161-1)*24,)) -> 533.4268009 | M168: =SUM(OFFSET(Stundenlastprofil_norm!$S$5:$S$28,(Stundenlastprofil_norm!$H161-1)*24,)) -> 533.4268009 | N168: =SUM(OFFSET(Stundenlastprofil_norm!$U$5:$U$28,(Stundenlastprofil_norm!$H161-1)*24,)) -> 4203.176864
B169: 2023-06-07 | C169: 3 | D169: 6 | E169: 158 | F169: =AVERAGE(OFFSET(Wetterdaten!J$2:J$25,(Wetterdaten!$D159-1)*24,0)) -> 12.72083333 | G169: =SUM(OFFSET(Wetterdaten!H$2:H$25,(Wetterdaten!$D159-1)*24,0))/1000 -> 2.807 | H169: 0.2178298611 | I169: 2.589170139 | J169: =Calculation!L159*1000 -> 5098.26736 | K169: =SUM(OFFSET(Stundenlastprofil_norm!$M$5:$M$28,(Stundenlastprofil_norm!$H162-1)*24,)) -> 0.4388385236 | L169: =SUM(OFFSET(Stundenlastprofil_norm!$N$5:$N$28,(Stundenlastprofil_norm!$H162-1)*24,)) -> 282.6120092 | M169: =SUM(OFFSET(Stundenlastprofil_norm!$S$5:$S$28,(Stundenlastprofil_norm!$H162-1)*24,)) -> 282.6120092 | N169: =SUM(OFFSET(Stundenlastprofil_norm!$U$5:$U$28,(Stundenlastprofil_norm!$H162-1)*24,)) -> 4820.753618
B170: 2023-06-08 | C170: 4 | D170: 6 | E170: 159 | F170: =AVERAGE(OFFSET(Wetterdaten!J$2:J$25,(Wetterdaten!$D160-1)*24,0)) -> 11.35 | G170: =SUM(OFFSET(Wetterdaten!H$2:H$25,(Wetterdaten!$D160-1)*24,0))/1000 -> 2.981 | H170: 0.2235416667 | I170: 2.757458333 | J170: =Calculation!L160*1000 -> 6315.884949 | K170: =SUM(OFFSET(Stundenlastprofil_norm!$M$5:$M$28,(Stundenlastprofil_norm!$H163-1)*24,)) -> 0.4857821988 | L170: =SUM(OFFSET(Stundenlastprofil_norm!$N$5:$N$28,(Stundenlastprofil_norm!$H163-1)*24,)) -> 312.843736 | M170: =SUM(OFFSET(Stundenlastprofil_norm!$S$5:$S$28,(Stundenlastprofil_norm!$H163-1)*24,)) -> 312.843736 | N170: =SUM(OFFSET(Stundenlastprofil_norm!$U$5:$U$28,(Stundenlastprofil_norm!$H163-1)*24,)) -> 6009.357098
B171: 2023-06-09 | C171: 5 | D171: 6 | E171: 160 | F171: =AVERAGE(OFFSET(Wetterdaten!J$2:J$25,(Wetterdaten!$D161-1)*24,0)) -> 12.38333333 | G171: =SUM(OFFSET(Wetterdaten!H$2:H$25,(Wetterdaten!$D161-1)*24,0))/1000 -> 3.517 | H171: 0.2192361111 | I171: 3.297763889 | J171: =Calculation!L161*1000 -> 6111.004732 | K171: =SUM(OFFSET(Stundenlastprofil_norm!$M$5:$M$28,(Stundenlastprofil_norm!$H164-1)*24,)) -> 2.388084776 | L171: =SUM(OFFSET(Stundenlastprofil_norm!$N$5:$N$28,(Stundenlastprofil_norm!$H164-1)*24,)) -> 1537.926596 | M171: =SUM(OFFSET(Stundenlastprofil_norm!$S$5:$S$28,(Stundenlastprofil_norm!$H164-1)*24,)) -> 1537.926596 | N171: =SUM(OFFSET(Stundenlastprofil_norm!$U$5:$U$28,(Stundenlastprofil_norm!$H164-1)*24,)) -> 4579.189141
B172: 2023-06-10 | C172: 6 | D172: 6 | E172: 161 | F172: =AVERAGE(OFFSET(Wetterdaten!J$2:J$25,(Wetterdaten!$D162-1)*24,0)) -> 13.54583333 | G172: =SUM(OFFSET(Wetterdaten!H$2:H$25,(Wetterdaten!$D162-1)*24,0))/1000 -> 3.578 | H172: 0.2143923611 | I172: 3.363607639 | J172: =Calculation!L162*1000 -> 5399.710494 | K172: =SUM(OFFSET(Stundenlastprofil_norm!$M$5:$M$28,(Stundenlastprofil_norm!$H165-1)*24,)) -> 0.9864073652 | L172: =SUM(OFFSET(Stundenlastprofil_norm!$N$5:$N$28,(Stundenlastprofil_norm!$H165-1)*24,)) -> 635.2463432 | M172: =SUM(OFFSET(Stundenlastprofil_norm!$S$5:$S$28,(Stundenlastprofil_norm!$H165-1)*24,)) -> 635.2463432 | N172: =SUM(OFFSET(Stundenlastprofil_norm!$U$5:$U$28,(Stundenlastprofil_norm!$H165-1)*24,)) -> 4769.863861
B173: 2023-06-11 | C173: 7 | D173: 6 | E173: 162 | F173: =AVERAGE(OFFSET(Wetterdaten!J$2:J$25,(Wetterdaten!$D163-1)*24,0)) -> 15.06666667 | G173: =SUM(OFFSET(Wetterdaten!H$2:H$25,(Wetterdaten!$D163-1)*24,0))/1000 -> 3.175 | H173: 0.2080555556 | I173: 2.966944444 | J173: =Calculation!L163*1000 -> 3014.623886 | K173: =SUM(OFFSET(Stundenlastprofil_norm!$M$5:$M$28,(Stundenlastprofil_norm!$H166-1)*24,)) -> 1.03361692 | L173: =SUM(OFFSET(Stundenlastprofil_norm!$N$5:$N$28,(Stundenlastprofil_norm!$H166-1)*24,)) -> 665.6492964 | M173: =SUM(OFFSET(Stundenlastprofil_norm!$S$5:$S$28,(Stundenlastprofil_norm!$H166-1)*24,)) -> 665.6492964 | N173: =SUM(OFFSET(Stundenlastprofil_norm!$U$5:$U$28,(Stundenlastprofil_norm!$H166-1)*24,)) -> 2351.989214
B174: 2023-06-12 | C174: 1 | D174: 6 | E174: 163 | F174: =AVERAGE(OFFSET(Wetterdaten!J$2:J$25,(Wetterdaten!$D164-1)*24,0)) -> 15.65833333 | G174: =SUM(OFFSET(Wetterdaten!H$2:H$25,(Wetterdaten!$D164-1)*24,0))/1000 -> 3.069 | H174: 0.2055902778 | I174: 2.863409722 | J174: =Calculation!L164*1000 -> 2489.086811 | K174: =SUM(OFFSET(Stundenlastprofil_norm!$M$5:$M$28,(Stundenlastprofil_norm!$H167-1)*24,)) -> 2.074436986 | L174: =SUM(OFFSET(Stundenlastprofil_norm!$N$5:$N$28,(Stundenlastprofil_norm!$H167-1)*24,)) -> 1335.937419 | M174: =SUM(OFFSET(Stundenlastprofil_norm!$S$5:$S$28,(Stundenlastprofil_norm!$H167-1)*24,)) -> 1335.937419 | N174: =SUM(OFFSET(Stundenlastprofil_norm!$U$5:$U$28,(Stundenlastprofil_norm!$H167-1)*24,)) -> 1155.638479
B175: 2023-06-13 | C175: 2 | D175: 6 | E175: 164 | F175: =AVERAGE(OFFSET(Wetterdaten!J$2:J$25,(Wetterdaten!$D165-1)*24,0)) -> 18.0125 | G175: =SUM(OFFSET(Wetterdaten!H$2:H$25,(Wetterdaten!$D165-1)*24,0))/1000 -> 2.884 | H175: 0.19578125 | I175: 2.68821875 | J175: =Calculation!L165*1000 -> 1639.964622 | K175: =SUM(OFFSET(Stundenlastprofil_norm!$M$5:$M$28,(Stundenlastprofil_norm!$H168-1)*24,)) -> 0.6167989678 | L175: =SUM(OFFSET(Stundenlastprofil_norm!$N$5:$N$28,(Stundenlastprofil_norm!$H168-1)*24,)) -> 397.2185353 | M175: =SUM(OFFSET(Stundenlastprofil_norm!$S$5:$S$28,(Stundenlastprofil_norm!$H168-1)*24,)) -> 397.2185353 | N175: =SUM(OFFSET(Stundenlastprofil_norm!$U$5:$U$28,(Stundenlastprofil_norm!$H168-1)*24,)) -> 1244.386052
B176: 2023-06-14 | C176: 3 | D176: 6 | E176: 165 | F176: =AVERAGE(OFFSET(Wetterdaten!J$2:J$25,(Wetterdaten!$D166-1)*24,0)) -> 15.975 | G176: =SUM(OFFSET(Wetterdaten!H$2:H$25,(Wetterdaten!$D166-1)*24,0))/1000 -> 3.032 | H176: 0.2042708333 | I176: 2.827729167 | J176: =Calculation!L166*1000 -> 2207.813447 | K176: =SUM(OFFSET(Stundenlastprofil_norm!$M$5:$M$28,(Stundenlastprofil_norm!$H169-1)*24,)) -> 1.828771637 | L176: =SUM(OFFSET(Stundenlastprofil_norm!$N$5:$N$28,(Stundenlastprofil_norm!$H169-1)*24,)) -> 1177.728934 | M176: =SUM(OFFSET(Stundenlastprofil_norm!$S$5:$S$28,(Stundenlastprofil_norm!$H169-1)*24,)) -> 1177.728934 | N176: =SUM(OFFSET(Stundenlastprofil_norm!$U$5:$U$28,(Stundenlastprofil_norm!$H169-1)*24,)) -> 1032.292326
B177: 2023-06-15 | C177: 4 | D177: 6 | E177: 166 | F177: =AVERAGE(OFFSET(Wetterdaten!J$2:J$25,(Wetterdaten!$D167-1)*24,0)) -> 15.81666667 | G177: =SUM(OFFSET(Wetterdaten!H$2:H$25,(Wetterdaten!$D167-1)*24,0))/1000 -> 1.569 | H177: 0.2049305556 | I177: 1.364069444 | J177: =Calculation!L167*1000 -> 2348.450129 | K177: =SUM(OFFSET(Stundenlastprofil_norm!$M$5:$M$28,(Stundenlastprofil_norm!$H170-1)*24,)) -> 0.02679657424 | L177: =SUM(OFFSET(Stundenlastprofil_norm!$N$5:$N$28,(Stundenlastprofil_norm!$H170-1)*24,)) -> 17.25699381 | M177: =SUM(OFFSET(Stundenlastprofil_norm!$S$5:$S$28,(Stundenlastprofil_norm!$H170-1)*24,)) -> 17.25699381 | N177: =SUM(OFFSET(Stundenlastprofil_norm!$U$5:$U$28,(Stundenlastprofil_norm!$H170-1)*24,)) -> 2333.541586
B178: 2023-06-16 | C178: 5 | D178: 6 | E178: 167 | F178: =AVERAGE(OFFSET(Wetterdaten!J$2:J$25,(Wetterdaten!$D168-1)*24,0)) -> 16.2625 | G178: =SUM(OFFSET(Wetterdaten!H$2:H$25,(Wetterdaten!$D168-1)*24,0))/1000 -> 3.651 | H178: 0.2030729167 | I178: 3.447927083 | J178: =Calculation!L168*1000 -> 3737.474496 | K178: =SUM(OFFSET(Stundenlastprofil_norm!$M$5:$M$28,(Stundenlastprofil_norm!$H171-1)*24,)) -> 1.430466338 | L178: =SUM(OFFSET(Stundenlastprofil_norm!$N$5:$N$28,(Stundenlastprofil_norm!$H171-1)*24,)) -> 921.2203218 | M178: =SUM(OFFSET(Stundenlastprofil_norm!$S$5:$S$28,(Stundenlastprofil_norm!$H171-1)*24,)) -> 921.2203218 | N178: =SUM(OFFSET(Stundenlastprofil_norm!$U$5:$U$28,(Stundenlastprofil_norm!$H171-1)*24,)) -> 2819.991648
B179: 2023-06-17 | C179: 6 | D179: 6 | E179: 168 | F179: =AVERAGE(OFFSET(Wetterdaten!J$2:J$25,(Wetterdaten!$D169-1)*24,0)) -> 16.54583333 | G179: =SUM(OFFSET(Wetterdaten!H$2:H$25,(Wetterdaten!$D169-1)*24,0))/1000 -> 2.949 | H179: 0.2018923611 | I179: 2.747107639 | J179: =Calculation!L169*1000 -> 3585.355589 | K179: =SUM(OFFSET(Stundenlastprofil_norm!$M$5:$M$28,(Stundenlastprofil_norm!$H172-1)*24,)) -> 2.210655233 | L179: =SUM(OFFSET(Stundenlastprofil_norm!$N$5:$N$28,(Stundenlastprofil_norm!$H172-1)*24,)) -> 1423.66197 | M179: =SUM(OFFSET(Stundenlastprofil_norm!$S$5:$S$28,(Stundenlastprofil_norm!$H172-1)*24,)) -> 1423.66197 | N179: =SUM(OFFSET(Stundenlastprofil_norm!$U$5:$U$28,(Stundenlastprofil_norm!$H172-1)*24,)) -> 2165.278974
B180: 2023-06-18 | C180: 7 | D180: 6 | E180: 169 | F180: =AVERAGE(OFFSET(Wetterdaten!J$2:J$25,(Wetterdaten!$D170-1)*24,0)) -> 18.56666667 | G180: =SUM(OFFSET(Wetterdaten!H$2:H$25,(Wetterdaten!$D170-1)*24,0))/1000 -> 1.969 | H180: 0.1934722222 | I180: 1.775527778 | J180: =Calculation!L170*1000 -> 1574.547056 | K180: =SUM(OFFSET(Stundenlastprofil_norm!$M$5:$M$28,(Stundenlastprofil_norm!$H173-1)*24,)) -> 0.06204932244 | L180: =SUM(OFFSET(Stundenlastprofil_norm!$N$5:$N$28,(Stundenlastprofil_norm!$H173-1)*24,)) -> 39.95976365 | M180: =SUM(OFFSET(Stundenlastprofil_norm!$S$5:$S$28,(Stundenlastprofil_norm!$H173-1)*24,)) -> 39.95976365 | N180: =SUM(OFFSET(Stundenlastprofil_norm!$U$5:$U$28,(Stundenlastprofil_norm!$H173-1)*24,)) -> 1536.161839
B181: 2023-06-19 | C181: 1 | D181: 6 | E181: 170 | F181: =AVERAGE(OFFSET(Wetterdaten!J$2:J$25,(Wetterdaten!$D171-1)*24,0)) -> 22.65 | G181: =SUM(OFFSET(Wetterdaten!H$2:H$25,(Wetterdaten!$D171-1)*24,0))/1000 -> 1.616 | H181: 0.1764583333 | I181: 1.439541667 | J181: =Calculation!L171*1000 -> 1092.522882 | K181: =SUM(OFFSET(Stundenlastprofil_norm!$M$5:$M$28,(Stundenlastprofil_norm!$H174-1)*24,)) -> 0.05674118925 | L181: =SUM(OFFSET(Stundenlastprofil_norm!$N$5:$N$28,(Stundenlastprofil_norm!$H174-1)*24,)) -> 36.54132588 | M181: =SUM(OFFSET(Stundenlastprofil_norm!$S$5:$S$28,(Stundenlastprofil_norm!$H174-1)*24,)) -> 36.54132588 | N181: =SUM(OFFSET(Stundenlastprofil_norm!$U$5:$U$28,(Stundenlastprofil_norm!$H174-1)*24,)) -> 1057.074079
B182: 2023-06-20 | C182: 2 | D182: 6 | E182: 171 | F182: =AVERAGE(OFFSET(Wetterdaten!J$2:J$25,(Wetterdaten!$D172-1)*24,0)) -> 21.95833333 | G182: =SUM(OFFSET(Wetterdaten!H$2:H$25,(Wetterdaten!$D172-1)*24,0))/1000 -> 3.202 | H182: 0.1793402778 | I182: 3.022659722 | J182: =Calculation!L172*1000 -> 1174.171875 | K182: =SUM(OFFSET(Stundenlastprofil_norm!$M$5:$M$28,(Stundenlastprofil_norm!$H175-1)*24,)) -> 2.364210848 | L182: =SUM(OFFSET(Stundenlastprofil_norm!$N$5:$N$28,(Stundenlastprofil_norm!$H175-1)*24,)) -> 1522.551786 | M182: =SUM(OFFSET(Stundenlastprofil_norm!$S$5:$S$28,(Stundenlastprofil_norm!$H175-1)*24,)) -> 904.1123434 | N182: =SUM(OFFSET(Stundenlastprofil_norm!$U$5:$U$28,(Stundenlastprofil_norm!$H175-1)*24,)) -> 271.233703
B183: 2023-06-21 | C183: 3 | D183: 6 | E183: 172 | F183: =AVERAGE(OFFSET(Wetterdaten!J$2:J$25,(Wetterdaten!$D173-1)*24,0)) -> 20.6125 | G183: =SUM(OFFSET(Wetterdaten!H$2:H$25,(Wetterdaten!$D173-1)*24,0))/1000 -> 3.216 | H183: 0.1849479167 | I183: 3.031052083 | J183: =Calculation!L173*1000 -> 1333.043107 | K183: =SUM(OFFSET(Stundenlastprofil_norm!$M$5:$M$28,(Stundenlastprofil_norm!$H176-1)*24,)) -> 2.959153754 | L183: =SUM(OFFSET(Stundenlastprofil_norm!$N$5:$N$28,(Stundenlastprofil_norm!$H176-1)*24,)) -> 1905.695018 | M183: =SUM(OFFSET(Stundenlastprofil_norm!$S$5:$S$28,(Stundenlastprofil_norm!$H176-1)*24,)) -> 1334.37615 | N183: =SUM(OFFSET(Stundenlastprofil_norm!$U$5:$U$28,(Stundenlastprofil_norm!$H176-1)*24,)) -> 0
B184: 2023-06-22 | C184: 4 | D184: 6 | E184: 173 | F184: =AVERAGE(OFFSET(Wetterdaten!J$2:J$25,(Wetterdaten!$D174-1)*24,0)) -> 19.59583333 | G184: =SUM(OFFSET(Wetterdaten!H$2:H$25,(Wetterdaten!$D174-1)*24,0))/1000 -> 2.354 | H184: 0.1891840278 | I184: 2.164815972 | J184: =Calculation!L174*1000 -> 1453.057289 | K184: =SUM(OFFSET(Stundenlastprofil_norm!$M$5:$M$28,(Stundenlastprofil_norm!$H177-1)*24,)) -> 0.3284182736 | L184: =SUM(OFFSET(Stundenlastprofil_norm!$N$5:$N$28,(Stundenlastprofil_norm!$H177-1)*24,)) -> 211.5013682 | M184: =SUM(OFFSET(Stundenlastprofil_norm!$S$5:$S$28,(Stundenlastprofil_norm!$H177-1)*24,)) -> 1401.259678 | N184: =SUM(OFFSET(Stundenlastprofil_norm!$U$5:$U$28,(Stundenlastprofil_norm!$H177-1)*24,)) -> 53.25066893
B185: 2023-06-23 | C185: 5 | D185: 6 | E185: 174 | F185: =AVERAGE(OFFSET(Wetterdaten!J$2:J$25,(Wetterdaten!$D175-1)*24,0)) -> 20.10416667 | G185: =SUM(OFFSET(Wetterdaten!H$2:H$25,(Wetterdaten!$D175-1)*24,0))/1000 -> 3.801 | H185: 0.1870659722 | I185: 3.613934028 | J185: =Calculation!L175*1000 -> 3057.371715 | K185: =SUM(OFFSET(Stundenlastprofil_norm!$M$5:$M$28,(Stundenlastprofil_norm!$H178-1)*24,)) -> 1.519928535 | L185: =SUM(OFFSET(Stundenlastprofil_norm!$N$5:$N$28,(Stundenlastprofil_norm!$H178-1)*24,)) -> 978.8339764 | M185: =SUM(OFFSET(Stundenlastprofil_norm!$S$5:$S$28,(Stundenlastprofil_norm!$H178-1)*24,)) -> 978.8339764 | N185: =SUM(OFFSET(Stundenlastprofil_norm!$U$5:$U$28,(Stundenlastprofil_norm!$H178-1)*24,)) -> 2081.595111
B186: 2023-06-24 | C186: 6 | D186: 6 | E186: 175 | F186: =AVERAGE(OFFSET(Wetterdaten!J$2:J$25,(Wetterdaten!$D176-1)*24,0)) -> 19.1125 | G186: =SUM(OFFSET(Wetterdaten!H$2:H$25,(Wetterdaten!$D176-1)*24,0))/1000 -> 3.807 | H186: 0.1911979167 | I186: 3.615802083 | J186: =Calculation!L176*1000 -> 3204.514762 | K186: =SUM(OFFSET(Stundenlastprofil_norm!$M$5:$M$28,(Stundenlastprofil_norm!$H179-1)*24,)) -> 1.59751238 | L186: =SUM(OFFSET(Stundenlastprofil_norm!$N$5:$N$28,(Stundenlastprofil_norm!$H179-1)*24,)) -> 1028.797973 | M186: =SUM(OFFSET(Stundenlastprofil_norm!$S$5:$S$28,(Stundenlastprofil_norm!$H179-1)*24,)) -> 1028.797973 | N186: =SUM(OFFSET(Stundenlastprofil_norm!$U$5:$U$28,(Stundenlastprofil_norm!$H179-1)*24,)) -> 2178.921304
B187: 2023-06-25 | C187: 7 | D187: 6 | E187: 176 | F187: =AVERAGE(OFFSET(Wetterdaten!J$2:J$25,(Wetterdaten!$D177-1)*24,0)) -> 21.0625 | G187: =SUM(OFFSET(Wetterdaten!H$2:H$25,(Wetterdaten!$D177-1)*24,0))/1000 -> 3.607 | H187: 0.1830729167 | I187: 3.423927083 | J187: =Calculation!L177*1000 -> 1279.922076 | K187: =SUM(OFFSET(Stundenlastprofil_norm!$M$5:$M$28,(Stundenlastprofil_norm!$H180-1)*24,)) -> 2.621774061 | L187: =SUM(OFFSET(Stundenlastprofil_norm!$N$5:$N$28,(Stundenlastprofil_norm!$H180-1)*24,)) -> 1688.422496 | M187: =SUM(OFFSET(Stundenlastprofil_norm!$S$5:$S$28,(Stundenlastprofil_norm!$H180-1)*24,)) -> 985.5399985 | N187: =SUM(OFFSET(Stundenlastprofil_norm!$U$5:$U$28,(Stundenlastprofil_norm!$H180-1)*24,)) -> 295.6619995
B188: 2023-06-26 | C188: 1 | D188: 6 | E188: 177 | F188: =AVERAGE(OFFSET(Wetterdaten!J$2:J$25,(Wetterdaten!$D178-1)*24,0)) -> 17.55416667 | G188: =SUM(OFFSET(Wetterdaten!H$2:H$25,(Wetterdaten!$D178-1)*24,0))/1000 -> 3.311 | H188: 0.1976909722 | I188: 3.113309028 | J188: =Calculation!L178*1000 -> 1694.069377 | K188: =SUM(OFFSET(Stundenlastprofil_norm!$M$5:$M$28,(Stundenlastprofil_norm!$H181-1)*24,)) -> 1.157156778 | L188: =SUM(OFFSET(Stundenlastprofil_norm!$N$5:$N$28,(Stundenlastprofil_norm!$H181-1)*24,)) -> 745.2089649 | M188: =SUM(OFFSET(Stundenlastprofil_norm!$S$5:$S$28,(Stundenlastprofil_norm!$H181-1)*24,)) -> 1448.091462 | N188: =SUM(OFFSET(Stundenlastprofil_norm!$U$5:$U$28,(Stundenlastprofil_norm!$H181-1)*24,)) -> 247.6719839
B189: 2023-06-27 | C189: 2 | D189: 6 | E189: 178 | F189: =AVERAGE(OFFSET(Wetterdaten!J$2:J$25,(Wetterdaten!$D179-1)*24,0)) -> 16.45416667 | G189: =SUM(OFFSET(Wetterdaten!H$2:H$25,(Wetterdaten!$D179-1)*24,0))/1000 -> 3.141 | H189: 0.2022743056 | I189: 2.938725694 | J189: =Calculation!L179*1000 -> 1823.920787 | K189: =SUM(OFFSET(Stundenlastprofil_norm!$M$5:$M$28,(Stundenlastprofil_norm!$H182-1)*24,)) -> 1.028456126 | L189: =SUM(OFFSET(Stundenlastprofil_norm!$N$5:$N$28,(Stundenlastprofil_norm!$H182-1)*24,)) -> 662.3257452 | M189: =SUM(OFFSET(Stundenlastprofil_norm!$S$5:$S$28,(Stundenlastprofil_norm!$H182-1)*24,)) -> 662.3257452 | N189: =SUM(OFFSET(Stundenlastprofil_norm!$U$5:$U$28,(Stundenlastprofil_norm!$H182-1)*24,)) -> 1163.418962
B190: 2023-06-28 | C190: 3 | D190: 6 | E190: 179 | F190: =AVERAGE(OFFSET(Wetterdaten!J$2:J$25,(Wetterdaten!$D180-1)*24,0)) -> 15.48333333 | G190: =SUM(OFFSET(Wetterdaten!H$2:H$25,(Wetterdaten!$D180-1)*24,0))/1000 -> 1.385 | H190: 0.2063194444 | I190: 1.178680556 | J190: =Calculation!L180*1000 -> 2644.527355 | K190: =SUM(OFFSET(Stundenlastprofil_norm!$M$5:$M$28,(Stundenlastprofil_norm!$H183-1)*24,)) -> 3.695742839 | L190: =SUM(OFFSET(Stundenlastprofil_norm!$N$5:$N$28,(Stundenlastprofil_norm!$H183-1)*24,)) -> 2380.058388 | M190: =SUM(OFFSET(Stundenlastprofil_norm!$S$5:$S$28,(Stundenlastprofil_norm!$H183-1)*24,)) -> 1995.305833 | N190: =SUM(OFFSET(Stundenlastprofil_norm!$U$5:$U$28,(Stundenlastprofil_norm!$H183-1)*24,)) -> 651.8660489
B191: 2023-06-29 | C191: 4 | D191: 6 | E191: 180 | F191: =AVERAGE(OFFSET(Wetterdaten!J$2:J$25,(Wetterdaten!$D181-1)*24,0)) -> 15.4125 | G191: =SUM(OFFSET(Wetterdaten!H$2:H$25,(Wetterdaten!$D181-1)*24,0))/1000 -> 1.389 | H191: 0.2066145833 | I191: 1.182385417 | J191: =Calculation!L181*1000 -> 2707.443765 | K191: =SUM(OFFSET(Stundenlastprofil_norm!$M$5:$M$28,(Stundenlastprofil_norm!$H184-1)*24,)) -> 3.688566292 | L191: =SUM(OFFSET(Stundenlastprofil_norm!$N$5:$N$28,(Stundenlastprofil_norm!$H184-1)*24,)) -> 2375.436692 | M191: =SUM(OFFSET(Stundenlastprofil_norm!$S$5:$S$28,(Stundenlastprofil_norm!$H184-1)*24,)) -> 2424.965344 | N191: =SUM(OFFSET(Stundenlastprofil_norm!$U$5:$U$28,(Stundenlastprofil_norm!$H184-1)*24,)) -> 285.1858652
B192: 2023-06-30 | C192: 5 | D192: 6 | E192: 181 | F192: =AVERAGE(OFFSET(Wetterdaten!J$2:J$25,(Wetterdaten!$D182-1)*24,0)) -> 16.94166667 | G192: =SUM(OFFSET(Wetterdaten!H$2:H$25,(Wetterdaten!$D182-1)*24,0))/1000 -> 1.831 | H192: 0.2002430556 | I192: 1.630756944 | J192: =Calculation!L182*1000 -> 3526.62202 | K192: =SUM(OFFSET(Stundenlastprofil_norm!$M$5:$M$28,(Stundenlastprofil_norm!$H185-1)*24,)) -> 0.0486804632 | L192: =SUM(OFFSET(Stundenlastprofil_norm!$N$5:$N$28,(Stundenlastprofil_norm!$H185-1)*24,)) -> 31.3502183 | M192: =SUM(OFFSET(Stundenlastprofil_norm!$S$5:$S$28,(Stundenlastprofil_norm!$H185-1)*24,)) -> 366.5741223 | N192: =SUM(OFFSET(Stundenlastprofil_norm!$U$5:$U$28,(Stundenlastprofil_norm!$H185-1)*24,)) -> 3163.57452
B193: 2023-07-01 | C193: 6 | D193: 7 | E193: 182 | F193: =AVERAGE(OFFSET(Wetterdaten!J$2:J$25,(Wetterdaten!$D183-1)*24,0)) -> 15.57083333 | G193: =SUM(OFFSET(Wetterdaten!H$2:H$25,(Wetterdaten!$D183-1)*24,0))/1000 -> 3.667 | H193: 0.2059548611 | I193: 3.461045139 | J193: =Calculation!L183*1000 -> 4160.68182 | K193: =SUM(OFFSET(Stundenlastprofil_norm!$M$5:$M$28,(Stundenlastprofil_norm!$H186-1)*24,)) -> 1.372343896 | L193: =SUM(OFFSET(Stundenlastprofil_norm!$N$5:$N$28,(Stundenlastprofil_norm!$H186-1)*24,)) -> 883.7894687 | M193: =SUM(OFFSET(Stundenlastprofil_norm!$S$5:$S$28,(Stundenlastprofil_norm!$H186-1)*24,)) -> 883.7894687 | N193: =SUM(OFFSET(Stundenlastprofil_norm!$U$5:$U$28,(Stundenlastprofil_norm!$H186-1)*24,)) -> 3281.053033
B194: 2023-07-02 | C194: 7 | D194: 7 | E194: 183 | F194: =AVERAGE(OFFSET(Wetterdaten!J$2:J$25,(Wetterdaten!$D184-1)*24,0)) -> 16.34583333 | G194: =SUM(OFFSET(Wetterdaten!H$2:H$25,(Wetterdaten!$D184-1)*24,0))/1000 -> 2.812 | H194: 0.2027256944 | I194: 2.609274306 | J194: =Calculation!L184*1000 -> 1878.427534 | K194: =SUM(OFFSET(Stundenlastprofil_norm!$M$5:$M$28,(Stundenlastprofil_norm!$H187-1)*24,)) -> 0.5273212002 | L194: =SUM(OFFSET(Stundenlastprofil_norm!$N$5:$N$28,(Stundenlastprofil_norm!$H187-1)*24,)) -> 339.5948529 | M194: =SUM(OFFSET(Stundenlastprofil_norm!$S$5:$S$28,(Stundenlastprofil_norm!$H187-1)*24,)) -> 339.5948529 | N194: =SUM(OFFSET(Stundenlastprofil_norm!$U$5:$U$28,(Stundenlastprofil_norm!$H187-1)*24,)) -> 1540.711109
B195: 2023-07-03 | C195: 1 | D195: 7 | E195: 184 | F195: =AVERAGE(OFFSET(Wetterdaten!J$2:J$25,(Wetterdaten!$D185-1)*24,0)) -> 17.79583333 | G195: =SUM(OFFSET(Wetterdaten!H$2:H$25,(Wetterdaten!$D185-1)*24,0))/1000 -> 2.917 | H195: 0.1966840278 | I195: 2.720315972 | J195: =Calculation!L185*1000 -> 1665.541415 | K195: =SUM(OFFSET(Stundenlastprofil_norm!$M$5:$M$28,(Stundenlastprofil_norm!$H188-1)*24,)) -> 3.029515025 | L195: =SUM(OFFSET(Stundenlastprofil_norm!$N$5:$N$28,(Stundenlastprofil_norm!$H188-1)*24,)) -> 1951.007676 | M195: =SUM(OFFSET(Stundenlastprofil_norm!$S$5:$S$28,(Stundenlastprofil_norm!$H188-1)*24,)) -> 1260.774009 | N195: =SUM(OFFSET(Stundenlastprofil_norm!$U$5:$U$28,(Stundenlastprofil_norm!$H188-1)*24,)) -> 406.4329473
B196: 2023-07-04 | C196: 2 | D196: 7 | E196: 185 | F196: =AVERAGE(OFFSET(Wetterdaten!J$2:J$25,(Wetterdaten!$D186-1)*24,0)) -> 14.45 | G196: =SUM(OFFSET(Wetterdaten!H$2:H$25,(Wetterdaten!$D186-1)*24,0))/1000 -> 2.969 | H196: 0.210625 | I196: 2.758375 | J196: =Calculation!L186*1000 -> 3562.366753 | K196: =SUM(OFFSET(Stundenlastprofil_norm!$M$5:$M$28,(Stundenlastprofil_norm!$H189-1)*24,)) -> 1.898820515 | L196: =SUM(OFFSET(Stundenlastprofil_norm!$N$5:$N$28,(Stundenlastprofil_norm!$H189-1)*24,)) -> 1222.840412 | M196: =SUM(OFFSET(Stundenlastprofil_norm!$S$5:$S$28,(Stundenlastprofil_norm!$H189-1)*24,)) -> 1913.074079 | N196: =SUM(OFFSET(Stundenlastprofil_norm!$U$5:$U$28,(Stundenlastprofil_norm!$H189-1)*24,)) -> 1652.855041
B197: 2023-07-05 | C197: 3 | D197: 7 | E197: 186 | F197: =AVERAGE(OFFSET(Wetterdaten!J$2:J$25,(Wetterdaten!$D187-1)*24,0)) -> 14.86666667 | G197: =SUM(OFFSET(Wetterdaten!H$2:H$25,(Wetterdaten!$D187-1)*24,0))/1000 -> 3.475 | H197: 0.2088888889 | I197: 3.266111111 | J197: =Calculation!L187*1000 -> 3192.270221 | K197: =SUM(OFFSET(Stundenlastprofil_norm!$M$5:$M$28,(Stundenlastprofil_norm!$H190-1)*24,)) -> 2.552395853 | L197: =SUM(OFFSET(Stundenlastprofil_norm!$N$5:$N$28,(Stundenlastprofil_norm!$H190-1)*24,)) -> 1643.742929 | M197: =SUM(OFFSET(Stundenlastprofil_norm!$S$5:$S$28,(Stundenlastprofil_norm!$H190-1)*24,)) -> 1643.742929 | N197: =SUM(OFFSET(Stundenlastprofil_norm!$U$5:$U$28,(Stundenlastprofil_norm!$H190-1)*24,)) -> 1551.719562
B198: 2023-07-06 | C198: 4 | D198: 7 | E198: 187 | F198: =AVERAGE(OFFSET(Wetterdaten!J$2:J$25,(Wetterdaten!$D188-1)*24,0)) -> 13.40833333 | G198: =SUM(OFFSET(Wetterdaten!H$2:H$25,(Wetterdaten!$D188-1)*24,0))/1000 -> 1.428 | H198: 0.2149652778 | I198: 1.213034722 | J198: =Calculation!L188*1000 -> 4487.608082 | K198: =SUM(OFFSET(Stundenlastprofil_norm!$M$5:$M$28,(Stundenlastprofil_norm!$H191-1)*24,)) -> 0 | L198: =SUM(OFFSET(Stundenlastprofil_norm!$N$5:$N$28,(Stundenlastprofil_norm!$H191-1)*24,)) -> 0 | M198: =SUM(OFFSET(Stundenlastprofil_norm!$S$5:$S$28,(Stundenlastprofil_norm!$H191-1)*24,)) -> 0 | N198: =SUM(OFFSET(Stundenlastprofil_norm!$U$5:$U$28,(Stundenlastprofil_norm!$H191-1)*24,)) -> 4492.09569
B199: 2023-07-07 | C199: 5 | D199: 7 | E199: 188 | F199: =AVERAGE(OFFSET(Wetterdaten!J$2:J$25,(Wetterdaten!$D189-1)*24,0)) -> 15.74583333 | G199: =SUM(OFFSET(Wetterdaten!H$2:H$25,(Wetterdaten!$D189-1)*24,0))/1000 -> 3.623 | H199: 0.2052256944 | I199: 3.417774306 | J199: =Calculation!L189*1000 -> 4053.605268 | K199: =SUM(OFFSET(Stundenlastprofil_norm!$M$5:$M$28,(Stundenlastprofil_norm!$H192-1)*24,)) -> 2.140048054 | L199: =SUM(OFFSET(Stundenlastprofil_norm!$N$5:$N$28,(Stundenlastprofil_norm!$H192-1)*24,)) -> 1378.190947 | M199: =SUM(OFFSET(Stundenlastprofil_norm!$S$5:$S$28,(Stundenlastprofil_norm!$H192-1)*24,)) -> 1378.190947 | N199: =SUM(OFFSET(Stundenlastprofil_norm!$U$5:$U$28,(Stundenlastprofil_norm!$H192-1)*24,)) -> 2679.467927
B200: 2023-07-08 | C200: 6 | D200: 7 | E200: 189 | F200: =AVERAGE(OFFSET(Wetterdaten!J$2:J$25,(Wetterdaten!$D190-1)*24,0)) -> 17.45833333 | G200: =SUM(OFFSET(Wetterdaten!H$2:H$25,(Wetterdaten!$D190-1)*24,0))/1000 -> 3.108 | H200: 0.1980902778 | I200: 2.909909722 | J200: =Calculation!L190*1000 -> 3449.959256 | K200: =SUM(OFFSET(Stundenlastprofil_norm!$M$5:$M$28,(Stundenlastprofil_norm!$H193-1)*24,)) -> 0.7362878632 | L200: =SUM(OFFSET(Stundenlastprofil_norm!$N$5:$N$28,(Stundenlastprofil_norm!$H193-1)*24,)) -> 474.1693839 | M200: =SUM(OFFSET(Stundenlastprofil_norm!$S$5:$S$28,(Stundenlastprofil_norm!$H193-1)*24,)) -> 474.1693839 | N200: =SUM(OFFSET(Stundenlastprofil_norm!$U$5:$U$28,(Stundenlastprofil_norm!$H193-1)*24,)) -> 2979.239831
B201: 2023-07-09 | C201: 7 | D201: 7 | E201: 190 | F201: =AVERAGE(OFFSET(Wetterdaten!J$2:J$25,(Wetterdaten!$D191-1)*24,0)) -> 20.3875 | G201: =SUM(OFFSET(Wetterdaten!H$2:H$25,(Wetterdaten!$D191-1)*24,0))/1000 -> 3.217 | H201: 0.1858854167 | I201: 3.031114583 | J201: =Calculation!L191*1000 -> 1359.603623 | K201: =SUM(OFFSET(Stundenlastprofil_norm!$M$5:$M$28,(Stundenlastprofil_norm!$H194-1)*24,)) -> 2.327762013 | L201: =SUM(OFFSET(Stundenlastprofil_norm!$N$5:$N$28,(Stundenlastprofil_norm!$H194-1)*24,)) -> 1499.078736 | M201: =SUM(OFFSET(Stundenlastprofil_norm!$S$5:$S$28,(Stundenlastprofil_norm!$H194-1)*24,)) -> 921.0496317 | N201: =SUM(OFFSET(Stundenlastprofil_norm!$U$5:$U$28,(Stundenlastprofil_norm!$H194-1)*24,)) -> 439.913595
B202: 2023-07-10 | C202: 1 | D202: 7 | E202: 191 | F202: =AVERAGE(OFFSET(Wetterdaten!J$2:J$25,(Wetterdaten!$D192-1)*24,0)) -> 18.375 | G202: =SUM(OFFSET(Wetterdaten!H$2:H$25,(Wetterdaten!$D192-1)*24,0))/1000 -> 3.89 | H202: 0.1942708333 | I202: 3.695729167 | J202: =Calculation!L192*1000 -> 1597.17268 | K202: =SUM(OFFSET(Stundenlastprofil_norm!$M$5:$M$28,(Stundenlastprofil_norm!$H195-1)*24,)) -> 1.630442497 | L202: =SUM(OFFSET(Stundenlastprofil_norm!$N$5:$N$28,(Stundenlastprofil_norm!$H195-1)*24,)) -> 1050.004968 | M202: =SUM(OFFSET(Stundenlastprofil_norm!$S$5:$S$28,(Stundenlastprofil_norm!$H195-1)*24,)) -> 1598.769853 | N202: =SUM(OFFSET(Stundenlastprofil_norm!$U$5:$U$28,(Stundenlastprofil_norm!$H195-1)*24,)) -> 0
B203: 2023-07-11 | C203: 2 | D203: 7 | E203: 192 | F203: =AVERAGE(OFFSET(Wetterdaten!J$2:J$25,(Wetterdaten!$D193-1)*24,0)) -> 17.08333333 | G203: =SUM(OFFSET(Wetterdaten!H$2:H$25,(Wetterdaten!$D193-1)*24,0))/1000 -> 3.354 | H203: 0.1996527778 | I203: 3.154347222 | J203: =Calculation!L193*1000 -> 1749.649715 | K203: =SUM(OFFSET(Stundenlastprofil_norm!$M$5:$M$28,(Stundenlastprofil_norm!$H196-1)*24,)) -> 2.540123368 | L203: =SUM(OFFSET(Stundenlastprofil_norm!$N$5:$N$28,(Stundenlastprofil_norm!$H196-1)*24,)) -> 1635.839449 | M203: =SUM(OFFSET(Stundenlastprofil_norm!$S$5:$S$28,(Stundenlastprofil_norm!$H196-1)*24,)) -> 1355.075222 | N203: =SUM(OFFSET(Stundenlastprofil_norm!$U$5:$U$28,(Stundenlastprofil_norm!$H196-1)*24,)) -> 396.3241428
B204: 2023-07-12 | C204: =WEEKDAY(B204,2) -> 3 | D204: 7 | E204: 193 | F204: =AVERAGE(OFFSET(Wetterdaten!J$2:J$25,(Wetterdaten!$D194-1)*24,0)) -> 16.74166667 | G204: =SUM(OFFSET(Wetterdaten!H$2:H$25,(Wetterdaten!$D194-1)*24,0))/1000 -> 1.461 | H204: 0.2010763889 | I204: 1.259923611 | J204: =Calculation!L194*1000 -> 1789.98235 | K204: =SUM(OFFSET(Stundenlastprofil_norm!$M$5:$M$28,(Stundenlastprofil_norm!$H197-1)*24,)) -> 0 | L204: =SUM(OFFSET(Stundenlastprofil_norm!$N$5:$N$28,(Stundenlastprofil_norm!$H197-1)*24,)) -> 0 | M204: =SUM(OFFSET(Stundenlastprofil_norm!$S$5:$S$28,(Stundenlastprofil_norm!$H197-1)*24,)) -> 310.028447 | N204: =SUM(OFFSET(Stundenlastprofil_norm!$U$5:$U$28,(Stundenlastprofil_norm!$H197-1)*24,)) -> 1481.743885
... 177 more rows

Sheet Stundenlastprofil_norm (hidden)
K1: Spez. Ertrag (VDI) | L1: =Eingabe!B24 -> 346.5422058 | M1: Korrektur-Faktor | N1: =L1/L2 -> 0.7142690345 | Q1: Speicherkapazität | R1: =Eingabe!B31*(1.16*(Eingabe!B30-Eingabe!B16)) -> 2614.64 | S1: kWh | T1: VLS BHKW | U1: =SUM(U5:U8764)/Eingabe!B35 -> 5500.000654 | V1: h | W1: Zielwert VLS | X1: =U1-Eingabe!B34 -> 0.00065438818
K2: Spez. Ertrag (Excel) | L2: =SUM(L5:L8764) -> 485.1704177
B3: Jahressumme | N3: =SUM(N5:N8764)/1000 -> 223.1731806 | O3: =SUM(O5:O8764)/1000 -> 36.68357388 | P3: =SUM(P5:P8764)/1000 -> 36.57833883 | S3: =SUM(S5:S8764)/1000 -> 223.0679455 | T3: =SUM(T5:T8764)/1000 -> 2779.932054 | U3: =SUM(U5:U8764)/1000 -> 2199.111693 | V3: 580.820362
B4: Tag | C4: HoD | D4: Monat | E4: DoW | F4: Wochentag | G4: DoY | H4: HoY | I4: Last in kW | J4: Temperatur | K4: Globalstrahlung geneigt in kWh/m² | L4: Kollektorertrag in kWh/m² | M4: Kollektorertrag in kWh/m² normiert | N4: Kollektorertrag in kWh | O4: Speichereintrag in kWh | P4: Speicheraustrag in kWh | Q4: Speicherbilanz | R4: Speicher Proz. Füllung | S4: Solare Nutzwärme | T4: Last nach Solar in kWh | U4: BHKW-Wärme in kWh | V4: Last nach BHKW in kWh
B5: =DATE(Eingabe!$B$5,1,1) -> 2023-01-01 | C5: =HOUR(B5)+1 -> 1 | D5: =MONTH(B5) -> 1 | E5: =WEEKDAY(B5,2) -> 7 | F5: =IF(E5=1, "Montag", IF(E5=2, "Dienstag", IF(E5=3, "Mittwoch", IF(E5=4, "Donnerstag", IF(E5=5, "Freitag", IF(E5=6, "Samstag",IF(E5=7,"Sonntag"))))))) -> Sonntag | G5: =ROUNDDOWN(B5-DATE(YEAR(B5),1,1)+1.001,0) -> 1 | H5: 1 | I5: =VLOOKUP(G5,Tagesbasis!$E$12:$J$376,6)*HLOOKUP(Eingabe!$B$11,Stundenlastprofile!$B$2:$K$26,C5+1,FALSE) -> 288.1006228 | J5: =Wetterdaten!J2 -> 8.8 | K5: =Wetterdaten!G2/1000 -> 0 | L5: =MAX(0,Eingabe!$B$20*Stundenlastprofil_norm!K5-Eingabe!$B$21/1000*('VDI3988'!$C$16-Stundenlastprofil_norm!J5)-Eingabe!$B$22/1000*('VDI3988'!$C$16-Stundenlastprofil_norm!J5)^2) -> 0 | M5: =L5*$N$1 -> 0 | N5: =M5*Eingabe!$B$23 -> 0 | O5: =MAX(N5-I5,0) -> 0 | P5: =MIN(MAX(I5-N5,0),Q5) -> 0 | Q5: 0 | R5: =Q5/$R$1 -> 0 | S5: =N5-O5+P5 -> 0 | T5: =I5-S5 -> 288.1006228 | U5: =MIN(T5,Eingabe!$B$35) -> 288.1006228 | V5: =T5-U5 -> 0
B6: =B5+1/24 -> 2023-01-01T01:00:00 | C6: =HOUR(B6)+1 -> 2 | D6: =MONTH(B6) -> 1 | E6: =WEEKDAY(B6,2) -> 7 | F6: =IF(E6=1, "Montag", IF(E6=2, "Dienstag", IF(E6=3, "Mittwoch", IF(E6=4, "Donnerstag", IF(E6=5, "Freitag", IF(E6=6, "Samstag",IF(E6=7,"Sonntag"))))))) -> Sonntag | G6: =ROUNDDOWN(B6-DATE(YEAR(B6),1,1)+1.001,0) -> 1 | H6: 2 | I6: =VLOOKUP(G6,Tagesbasis!$E$12:$J$376,6)*HLOOKUP(Eingabe!$B$11,Stundenlastprofile!$B$2:$K$26,C6+1,FALSE) -> 279.627075 | J6: =Wetterdaten!J3 -> 8.7 | K6: =Wetterdaten!G3/1000 -> 0 | L6: =MAX(0,Eingabe!$B$20*Stundenlastprofil_norm!K6-Eingabe!$B$21/1000*('VDI3988'!$C$16-Stundenlastprofil_norm!J6)-Eingabe!$B$22/1000*('VDI3988'!$C$16-Stundenlastprofil_norm!J6)^2) -> 0 | M6: =L6*$N$1 -> 0 | N6: =M6*Eingabe!$B$23 -> 0 | O6: =MAX(N6-I6,0) -> 0 | P6: =MIN(MAX(I6-N6,0),Q5) -> 0 | Q6: =MIN(Q5-P6+O6,Stundenlastprofil_norm!$R$1) -> 0 | R6: =Q6/$R$1 -> 0 | S6: 0 | T6: 279.627075 | U6: =MIN(T6,Eingabe!$B$35) -> 279.627075 | V6: 0
B7: =B6+1/24 -> 2023-01-01T02:00:00 | C7: 3 | D7: 1 | E7: 7 | F7: Sonntag | G7: 1 | H7: 3 | I7: =VLOOKUP(G7,Tagesbasis!$E$12:$J$376,6)*HLOOKUP(Eingabe!$B$11,Stundenlastprofile!$B$2:$K$26,C7+1,FALSE) -> 279.627075 | J7: =Wetterdaten!J4 -> 8.5 | K7: =Wetterdaten!G4/1000 -> 0 | L7: =MAX(0,Eingabe!$B$20*Stundenlastprofil_norm!K7-Eingabe!$B$21/1000*('VDI3988'!$C$16-Stundenlastprofil_norm!J7)-Eingabe!$B$22/1000*('VDI3988'!$C$16-Stundenlastprofil_norm!J7)^2) -> 0 | M7: 0 | N7: =M7*Eingabe!$B$23 -> 0 | O7: 0 | P7: 0 | Q7: =MIN(Q6-P7+O7,Stundenlastprofil_norm!$R$1) -> 0 | R7: 0 | S7: 0 | T7: 279.627075 | U7: =MIN(T7,Eingabe!$B$35) -> 279.627075 | V7: 0
B8: 2023-01-01T03:00:00 | C8: 4 | D8: 1 | E8: 7 | F8: Sonntag | G8: 1 | H8: 4 | I8: =VLOOKUP(G8,Tagesbasis!$E$12:$J$376,6)*HLOOKUP(Eingabe!$B$11,Stundenlastprofile!$B$2:$K$26,C8+1,FALSE) -> 271.1535273 | J8: =Wetterdaten!J5 -> 8.4 | K8: =Wetterdaten!G5/1000 -> 0 | L8: =MAX(0,Eingabe!$B$20*Stundenlastprofil_norm!K8-Eingabe!$B$21/1000*('VDI3988'!$C$16-Stundenlastprofil_norm!J8)-Eingabe!$B$22/1000*('VDI3988'!$C$16-Stundenlastprofil_norm!J8)^2) -> 0 | M8: 0 | N8: =M8*Eingabe!$B$23 -> 0 | O8: 0 | P8: 0 | Q8: =MIN(Q7-P8+O8,Stundenlastprofil_norm!$R$1) -> 0 | R8: 0 | S8: 0 | T8: 271.1535273 | U8: =MIN(T8,Eingabe!$B$35) -> 271.1535273 | V8: 0
B9: 2023-01-01T04:00:00 | C9: 5 | D9: 1 | E9: 7 | F9: Sonntag | G9: 1 | H9: 5 | I9: =VLOOKUP(G9,Tagesbasis!$E$12:$J$376,6)*HLOOKUP(Eingabe!$B$11,Stundenlastprofile!$B$2:$K$26,C9+1,FALSE) -> 271.1535273 | J9: =Wetterdaten!J6 -> 8.3 | K9: =Wetterdaten!G6/1000 -> 0 | L9: =MAX(0,Eingabe!$B$20*Stundenlastprofil_norm!K9-Eingabe!$B$21/1000*('VDI3988'!$C$16-Stundenlastprofil_norm!J9)-Eingabe!$B$22/1000*('VDI3988'!$C$16-Stundenlastprofil_norm!J9)^2) -> 0 | M9: 0 | N9: =M9*Eingabe!$B$23 -> 0 | O9: 0 | P9: 0 | Q9: =MIN(Q8-P9+O9,Stundenlastprofil_norm!$R$1) -> 0 | R9: 0 | S9: 0 | T9: 271.1535273 | U9: =MIN(T9,Eingabe!$B$35) -> 271.1535273 | V9: 0
B10: 2023-01-01T05:00:00 | C10: 6 | D10: 1 | E10: 7 | F10: Sonntag | G10: 1 | H10: 6 | I10: =VLOOKUP(G10,Tagesbasis!$E$12:$J$376,6)*HLOOKUP(Eingabe!$B$11,Stundenlastprofile!$B$2:$K$26,C10+1,FALSE) -> 262.6799796 | J10: =Wetterdaten!J7 -> 8.2 | K10: =Wetterdaten!G7/1000 -> 0 | L10: =MAX(0,Eingabe!$B$20*Stundenlastprofil_norm!K10-Eingabe!$B$21/1000*('VDI3988'!$C$16-Stundenlastprofil_norm!J10)-Eingabe!$B$22/1000*('VDI3988'!$C$16-Stundenlastprofil_norm!J10)^2) -> 0 | M10: 0 | N10: =M10*Eingabe!$B$23 -> 0 | O10: 0 | P10: 0 | Q10: =MIN(Q9-P10+O10,Stundenlastprofil_norm!$R$1) -> 0 | R10: 0 | S10: 0 | T10: 262.6799796 | U10: =MIN(T10,Eingabe!$B$35) -> 262.6799796 | V10: 0
B11: 2023-01-01T06:00:00 | C11: 7 | D11: 1 | E11: 7 | F11: Sonntag | G11: 1 | H11: 7 | I11: =VLOOKUP(G11,Tagesbasis!$E$12:$J$376,6)*HLOOKUP(Eingabe!$B$11,Stundenlastprofile!$B$2:$K$26,C11+1,FALSE) -> 305.0477182 | J11: =Wetterdaten!J8 -> 8.1 | K11: =Wetterdaten!G8/1000 -> 0 | L11: =MAX(0,Eingabe!$B$20*Stundenlastprofil_norm!K11-Eingabe!$B$21/1000*('VDI3988'!$C$16-Stundenlastprofil_norm!J11)-Eingabe!$B$22/1000*('VDI3988'!$C$16-Stundenlastprofil_norm!J11)^2) -> 0 | M11: 0 | N11: =M11*Eingabe!$B$23 -> 0 | O11: 0 | P11: 0 | Q11: =MIN(Q10-P11+O11,Stundenlastprofil_norm!$R$1) -> 0 | R11: 0 | S11: 0 | T11: 305.0477182 | U11: =MIN(T11,Eingabe!$B$35) -> 305.0477182 | V11: 0
B12: 2023-01-01T07:00:00 | C12: 8 | D12: 1 | E12: 7 | F12: Sonntag | G12: 1 | H12: 8 | I12: =VLOOKUP(G12,Tagesbasis!$E$12:$J$376,6)*HLOOKUP(Eingabe!$B$11,Stundenlastprofile!$B$2:$K$26,C12+1,FALSE) -> 321.9948137 | J12: =Wetterdaten!J9 -> 8 | K12: =Wetterdaten!G9/1000 -> 0 | L12: =MAX(0,Eingabe!$B$20*Stundenlastprofil_norm!K12-Eingabe!$B$21/1000*('VDI3988'!$C$16-Stundenlastprofil_norm!J12)-Eingabe!$B$22/1000*('VDI3988'!$C$16-Stundenlastprofil_norm!J12)^2) -> 0 | M12: 0 | N12: =M12*Eingabe!$B$23 -> 0 | O12: 0 | P12: 0 | Q12: =MIN(Q11-P12+O12,Stundenlastprofil_norm!$R$1) -> 0 | R12: 0 | S12: 0 | T12: 321.9948137 | U12: =MIN(T12,Eingabe!$B$35) -> 321.9948137 | V12: 0
B13: 2023-01-01T08:00:00 | C13: 9 | D13: 1 | E13: 7 | F13: Sonntag | G13: 1 | H13: 9 | I13: =VLOOKUP(G13,Tagesbasis!$E$12:$J$376,6)*HLOOKUP(Eingabe!$B$11,Stundenlastprofile!$B$2:$K$26,C13+1,FALSE) -> 364.3625523 | J13: =Wetterdaten!J10 -> 8.1 | K13: =Wetterdaten!G10/1000 -> 0 | L13: =MAX(0,Eingabe!$B$20*Stundenlastprofil_norm!K13-Eingabe!$B$21/1000*('VDI3988'!$C$16-Stundenlastprofil_norm!J13)-Eingabe!$B$22/1000*('VDI3988'!$C$16-Stundenlastprofil_norm!J13)^2) -> 0 | M13: 0 | N13: =M13*Eingabe!$B$23 -> 0 | O13: 0 | P13: 0 | Q13: =MIN(Q12-P13+O13,Stundenlastprofil_norm!$R$1) -> 0 | R13: 0 | S13: 0 | T13: 364.3625523 | U13: =MIN(T13,Eingabe!$B$35) -> 364.3625523 | V13: 0
B14: 2023-01-01T09:00:00 | C14: 10 | D14: 1 | E14: 7 | F14: Sonntag | G14: 1 | H14: 10 | I14: =VLOOKUP(G14,Tagesbasis!$E$12:$J$376,6)*HLOOKUP(Eingabe!$B$11,Stundenlastprofile!$B$2:$K$26,C14+1,FALSE) -> 415.2038387 | J14: =Wetterdaten!J11 -> 8.7 | K14: =Wetterdaten!G11/1000 -> 0.018 | L14: =MAX(0,Eingabe!$B$20*Stundenlastprofil_norm!K14-Eingabe!$B$21/1000*('VDI3988'!$C$16-Stundenlastprofil_norm!J14)-Eingabe!$B$22/1000*('VDI3988'!$C$16-Stundenlastprofil_norm!J14)^2) -> 0 | M14: 0 | N14: =M14*Eingabe!$B$23 -> 0 | O14: 0 | P14: 0 | Q14: =MIN(Q13-P14+O14,Stundenlastprofil_norm!$R$1) -> 0 | R14: 0 | S14: 0 | T14: 415.2038387 | U14: =MIN(T14,Eingabe!$B$35) -> 399.838442 | V14: 15.36539673
B15: 2023-01-01T10:00:00 | C15: 11 | D15: 1 | E15: 7 | F15: Sonntag | G15: 1 | H15: 11 | I15: =VLOOKUP(G15,Tagesbasis!$E$12:$J$376,6)*HLOOKUP(Eingabe!$B$11,Stundenlastprofile!$B$2:$K$26,C15+1,FALSE) -> 423.6773864 | J15: =Wetterdaten!J12 -> 9.2 | K15: =Wetterdaten!G12/1000 -> 0.036 | L15: =MAX(0,Eingabe!$B$20*Stundenlastprofil_norm!K15-Eingabe!$B$21/1000*('VDI3988'!$C$16-Stundenlastprofil_norm!J15)-Eingabe!$B$22/1000*('VDI3988'!$C$16-Stundenlastprofil_norm!J15)^2) -> 0 | M15: 0 | N15: =M15*Eingabe!$B$23 -> 0 | O15: 0 | P15: 0 | Q15: =MIN(Q14-P15+O15,Stundenlastprofil_norm!$R$1) -> 0 | R15: 0 | S15: 0 | T15: 423.6773864 | U15: =MIN(T15,Eingabe!$B$35) -> 399.838442 | V15: 23.83894445
B16: 2023-01-01T11:00:00 | C16: 12 | D16: 1 | E16: 7 | F16: Sonntag | G16: 1 | H16: 12 | I16: =VLOOKUP(G16,Tagesbasis!$E$12:$J$376,6)*HLOOKUP(Eingabe!$B$11,Stundenlastprofile!$B$2:$K$26,C16+1,FALSE) -> 432.1509342 | J16: =Wetterdaten!J13 -> 9.7 | K16: =Wetterdaten!G13/1000 -> 0.057 | L16: =MAX(0,Eingabe!$B$20*Stundenlastprofil_norm!K16-Eingabe!$B$21/1000*('VDI3988'!$C$16-Stundenlastprofil_norm!J16)-Eingabe!$B$22/1000*('VDI3988'!$C$16-Stundenlastprofil_norm!J16)^2) -> 0 | M16: 0 | N16: =M16*Eingabe!$B$23 -> 0 | O16: 0 | P16: 0 | Q16: =MIN(Q15-P16+O16,Stundenlastprofil_norm!$R$1) -> 0 | R16: 0 | S16: 0 | T16: 432.1509342 | U16: =MIN(T16,Eingabe!$B$35) -> 399.838442 | V16: 32.31249218
B17: 2023-01-01T12:00:00 | C17: 13 | D17: 1 | E17: 7 | F17: Sonntag | G17: 1 | H17: 13 | I17: =VLOOKUP(G17,Tagesbasis!$E$12:$J$376,6)*HLOOKUP(Eingabe!$B$11,Stundenlastprofile!$B$2:$K$26,C17+1,FALSE) -> 432.1509342 | J17: =Wetterdaten!J14 -> 10.4 | K17: =Wetterdaten!G14/1000 -> 0.089 | L17: =MAX(0,Eingabe!$B$20*Stundenlastprofil_norm!K17-Eingabe!$B$21/1000*('VDI3988'!$C$16-Stundenlastprofil_norm!J17)-Eingabe!$B$22/1000*('VDI3988'!$C$16-Stundenlastprofil_norm!J17)^2) -> 0 | M17: 0 | N17: =M17*Eingabe!$B$23 -> 0 | O17: 0 | P17: 0 | Q17: =MIN(Q16-P17+O17,Stundenlastprofil_norm!$R$1) -> 0 | R17: 0 | S17: 0 | T17: 432.1509342 | U17: =MIN(T17,Eingabe!$B$35) -> 399.838442 | V17: 32.31249218
B18: 2023-01-01T13:00:00 | C18: 14 | D18: 1 | E18: 7 | F18: Sonntag | G18: 1 | H18: 14 | I18: =VLOOKUP(G18,Tagesbasis!$E$12:$J$376,6)*HLOOKUP(Eingabe!$B$11,Stundenlastprofile!$B$2:$K$26,C18+1,FALSE) -> 406.730291 | J18: =Wetterdaten!J15 -> 10.6 | K18: =Wetterdaten!G15/1000 -> 0.07 | L18: =MAX(0,Eingabe!$B$20*Stundenlastprofil_norm!K18-Eingabe!$B$21/1000*('VDI3988'!$C$16-Stundenlastprofil_norm!J18)-Eingabe!$B$22/1000*('VDI3988'!$C$16-Stundenlastprofil_norm!J18)^2) -> 0 | M18: 0 | N18: =M18*Eingabe!$B$23 -> 0 | O18: 0 | P18: 0 | Q18: =MIN(Q17-P18+O18,Stundenlastprofil_norm!$R$1) -> 0 | R18: 0 | S18: 0 | T18: 406.730291 | U18: =MIN(T18,Eingabe!$B$35) -> 399.838442 | V18: 6.891848997
B19: 2023-01-01T14:00:00 | C19: 15 | D19: 1 | E19: 7 | F19: Sonntag | G19: 1 | H19: 15 | I19: =VLOOKUP(G19,Tagesbasis!$E$12:$J$376,6)*HLOOKUP(Eingabe!$B$11,Stundenlastprofile!$B$2:$K$26,C19+1,FALSE) -> 381.3096478 | J19: =Wetterdaten!J16 -> 10.6 | K19: =Wetterdaten!G16/1000 -> 0.041 | L19: =MAX(0,Eingabe!$B$20*Stundenlastprofil_norm!K19-Eingabe!$B$21/1000*('VDI3988'!$C$16-Stundenlastprofil_norm!J19)-Eingabe!$B$22/1000*('VDI3988'!$C$16-Stundenlastprofil_norm!J19)^2) -> 0 | M19: 0 | N19: =M19*Eingabe!$B$23 -> 0 | O19: 0 | P19: 0 | Q19: =MIN(Q18-P19+O19,Stundenlastprofil_norm!$R$1) -> 0 | R19: 0 | S19: 0 | T19: 381.3096478 | U19: =MIN(T19,Eingabe!$B$35) -> 381.3096478 | V19: 0
B20: 2023-01-01T15:00:00 | C20: 16 | D20: 1 | E20: 7 | F20: Sonntag | G20: 1 | H20: 16 | I20: =VLOOKUP(G20,Tagesbasis!$E$12:$J$376,6)*HLOOKUP(Eingabe!$B$11,Stundenlastprofile!$B$2:$K$26,C20+1,FALSE) -> 398.2567432 | J20: =Wetterdaten!J17 -> 10.3 | K20: =Wetterdaten!G17/1000 -> 0.014 | L20: =MAX(0,Eingabe!$B$20*Stundenlastprofil_norm!K20-Eingabe!$B$21/1000*('VDI3988'!$C$16-Stundenlastprofil_norm!J20)-Eingabe!$B$22/1000*('VDI3988'!$C$16-Stundenlastprofil_norm!J20)^2) -> 0 | M20: 0 | N20: =M20*Eingabe!$B$23 -> 0 | O20: 0 | P20: 0 | Q20: =MIN(Q19-P20+O20,Stundenlastprofil_norm!$R$1) -> 0 | R20: 0 | S20: 0 | T20: 398.2567432 | U20: =MIN(T20,Eingabe!$B$35) -> 398.2567432 | V20: 0
B21: 2023-01-01T16:00:00 | C21: 17 | D21: 1 | E21: 7 | F21: Sonntag | G21: 1 | H21: 17 | I21: =VLOOKUP(G21,Tagesbasis!$E$12:$J$376,6)*HLOOKUP(Eingabe!$B$11,Stundenlastprofile!$B$2:$K$26,C21+1,FALSE) -> 406.730291 | J21: =Wetterdaten!J18 -> 9.9 | K21: =Wetterdaten!G18/1000 -> 0 | L21: =MAX(0,Eingabe!$B$20*Stundenlastprofil_norm!K21-Eingabe!$B$21/1000*('VDI3988'!$C$16-Stundenlastprofil_norm!J21)-Eingabe!$B$22/1000*('VDI3988'!$C$16-Stundenlastprofil_norm!J21)^2) -> 0 | M21: 0 | N21: =M21*Eingabe!$B$23 -> 0 | O21: 0 | P21: 0 | Q21: =MIN(Q20-P21+O21,Stundenlastprofil_norm!$R$1) -> 0 | R21: 0 | S21: 0 | T21: 406.730291 | U21: =MIN(T21,Eingabe!$B$35) -> 399.838442 | V21: 6.891848997
B22: 2023-01-01T17:00:00 | C22: 18 | D22: 1 | E22: 7 | F22: Sonntag | G22: 1 | H22: 18 | I22: =VLOOKUP(G22,Tagesbasis!$E$12:$J$376,6)*HLOOKUP(Eingabe!$B$11,Stundenlastprofile!$B$2:$K$26,C22+1,FALSE) -> 415.2038387 | J22: =Wetterdaten!J19 -> 9.5 | K22: =Wetterdaten!G19/1000 -> 0 | L22: =MAX(0,Eingabe!$B$20*Stundenlastprofil_norm!K22-Eingabe!$B$21/1000*('VDI3988'!$C$16-Stundenlastprofil_norm!J22)-Eingabe!$B$22/1000*('VDI3988'!$C$16-Stundenlastprofil_norm!J22)^2) -> 0 | M22: 0 | N22: =M22*Eingabe!$B$23 -> 0 | O22: 0 | P22: 0 | Q22: =MIN(Q21-P22+O22,Stundenlastprofil_norm!$R$1) -> 0 | R22: 0 | S22: 0 | T22: 415.2038387 | U22: =MIN(T22,Eingabe!$B$35) -> 399.838442 | V22: 15.36539673
B23: 2023-01-01T18:00:00 | C23: 19 | D23: 1 | E23: 7 | F23: Sonntag | G23: 1 | H23: 19 | I23: =VLOOKUP(G23,Tagesbasis!$E$12:$J$376,6)*HLOOKUP(Eingabe!$B$11,Stundenlastprofile!$B$2:$K$26,C23+1,FALSE) -> 415.2038387 | J23: =Wetterdaten!J20 -> 9.2 | K23: =Wetterdaten!G20/1000 -> 0 | L23: =MAX(0,Eingabe!$B$20*Stundenlastprofil_norm!K23-Eingabe!$B$21/1000*('VDI3988'!$C$16-Stundenlastprofil_norm!J23)-Eingabe!$B$22/1000*('VDI3988'!$C$16-Stundenlastprofil_norm!J23)^2) -> 0 | M23: 0 | N23: =M23*Eingabe!$B$23 -> 0 | O23: 0 | P23: 0 | Q23: =MIN(Q22-P23+O23,Stundenlastprofil_norm!$R$1) -> 0 | R23: 0 | S23: 0 | T23: 415.2038387 | U23: =MIN(T23,Eingabe!$B$35) -> 399.838442 | V23: 15.36539673
B24: 2023-01-01T19:00:00 | C24: 20 | D24: 1 | E24: 7 | F24: Sonntag | G24: 1 | H24: 20 | I24: =VLOOKUP(G24,Tagesbasis!$E$12:$J$376,6)*HLOOKUP(Eingabe!$B$11,Stundenlastprofile!$B$2:$K$26,C24+1,FALSE) -> 398.2567432 | J24: =Wetterdaten!J21 -> 8.9 | K24: =Wetterdaten!G21/1000 -> 0 | L24: =MAX(0,Eingabe!$B$20*Stundenlastprofil_norm!K24-Eingabe!$B$21/1000*('VDI3988'!$C$16-Stundenlastprofil_norm!J24)-Eingabe!$B$22/1000*('VDI3988'!$C$16-Stundenlastprofil_norm!J24)^2) -> 0 | M24: 0 | N24: =M24*Eingabe!$B$23 -> 0 | O24: 0 | P24: 0 | Q24: =MIN(Q23-P24+O24,Stundenlastprofil_norm!$R$1) -> 0 | R24: 0 | S24: 0 | T24: 398.2567432 | U24: =MIN(T24,Eingabe!$B$35) -> 398.2567432 | V24: 0
B25: 2023-01-01T20:00:00 | C25: 21 | D25: 1 | E25: 7 | F25: Sonntag | G25: 1 | H25: 21 | I25: =VLOOKUP(G25,Tagesbasis!$E$12:$J$376,6)*HLOOKUP(Eingabe!$B$11,Stundenlastprofile!$B$2:$K$26,C25+1,FALSE) -> 372.8361001 | J25: =Wetterdaten!J22 -> 8.5 | K25: =Wetterdaten!G22/1000 -> 0 | L25: =MAX(0,Eingabe!$B$20*Stundenlastprofil_norm!K25-Eingabe!$B$21/1000*('VDI3988'!$C$16-Stundenlastprofil_norm!J25)-Eingabe!$B$22/1000*('VDI3988'!$C$16-Stundenlastprofil_norm!J25)^2) -> 0 | M25: 0 | N25: =M25*Eingabe!$B$23 -> 0 | O25: 0 | P25: 0 | Q25: =MIN(Q24-P25+O25,Stundenlastprofil_norm!$R$1) -> 0 | R25: 0 | S25: 0 | T25: 372.8361001 | U25: =MIN(T25,Eingabe!$B$35) -> 372.8361001 | V25: 0
B26: 2023-01-01T21:00:00 | C26: 22 | D26: 1 | E26: 7 | F26: Sonntag | G26: 1 | H26: 22 | I26: =VLOOKUP(G26,Tagesbasis!$E$12:$J$376,6)*HLOOKUP(Eingabe!$B$11,Stundenlastprofile!$B$2:$K$26,C26+1,FALSE) -> 330.4683614 | J26: =Wetterdaten!J23 -> 8.2 | K26: =Wetterdaten!G23/1000 -> 0 | L26: =MAX(0,Eingabe!$B$20*Stundenlastprofil_norm!K26-Eingabe!$B$21/1000*('VDI3988'!$C$16-Stundenlastprofil_norm!J26)-Eingabe!$B$22/1000*('VDI3988'!$C$16-Stundenlastprofil_norm!J26)^2) -> 0 | M26: 0 | N26: =M26*Eingabe!$B$23 -> 0 | O26: 0 | P26: 0 | Q26: =MIN(Q25-P26+O26,Stundenlastprofil_norm!$R$1) -> 0 | R26: 0 | S26: 0 | T26: 330.4683614 | U26: =MIN(T26,Eingabe!$B$35) -> 330.4683614 | V26: 0
B27: 2023-01-01T22:00:00 | C27: 23 | D27: 1 | E27: 7 | F27: Sonntag | G27: 1 | H27: 23 | I27: =VLOOKUP(G27,Tagesbasis!$E$12:$J$376,6)*HLOOKUP(Eingabe!$B$11,Stundenlastprofile!$B$2:$K$26,C27+1,FALSE) -> 313.521266 | J27: =Wetterdaten!J24 -> 7.8 | K27: =Wetterdaten!G24/1000 -> 0 | L27: =MAX(0,Eingabe!$B$20*Stundenlastprofil_norm!K27-Eingabe!$B$21/1000*('VDI3988'!$C$16-Stundenlastprofil_norm!J27)-Eingabe!$B$22/1000*('VDI3988'!$C$16-Stundenlastprofil_norm!J27)^2) -> 0 | M27: 0 | N27: =M27*Eingabe!$B$23 -> 0 | O27: 0 | P27: 0 | Q27: =MIN(Q26-P27+O27,Stundenlastprofil_norm!$R$1) -> 0 | R27: 0 | S27: 0 | T27: 313.521266 | U27: =MIN(T27,Eingabe!$B$35) -> 313.521266 | V27: 0
B28: 2023-01-01T23:00:00 | C28: 24 | D28: 1 | E28: 7 | F28: Sonntag | G28: 1 | H28: 24 | I28: =VLOOKUP(G28,Tagesbasis!$E$12:$J$376,6)*HLOOKUP(Eingabe!$B$11,Stundenlastprofile!$B$2:$K$26,C28+1,FALSE) -> 296.5741705 | J28: =Wetterdaten!J25 -> 7.5 | K28: =Wetterdaten!G25/1000 -> 0 | L28: =MAX(0,Eingabe!$B$20*Stundenlastprofil_norm!K28-Eingabe!$B$21/1000*('VDI3988'!$C$16-Stundenlastprofil_norm!J28)-Eingabe!$B$22/1000*('VDI3988'!$C$16-Stundenlastprofil_norm!J28)^2) -> 0 | M28: 0 | N28: =M28*Eingabe!$B$23 -> 0 | O28: 0 | P28: 0 | Q28: =MIN(Q27-P28+O28,Stundenlastprofil_norm!$R$1) -> 0 | R28: 0 | S28: 0 | T28: 296.5741705 | U28: =MIN(T28,Eingabe!$B$35) -> 296.5741705 | V28: 0
B29: 2023-01-02 | C29: 1 | D29: 1 | E29: 1 | F29: Montag | G29: 2 | H29: 25 | I29: =VLOOKUP(G29,Tagesbasis!$E$12:$J$376,6)*HLOOKUP(Eingabe!$B$11,Stundenlastprofile!$B$2:$K$26,C29+1,FALSE) -> 415.9467687 | J29: =Wetterdaten!J26 -> 7 | K29: =Wetterdaten!G26/1000 -> 0 | L29: =MAX(0,Eingabe!$B$20*Stundenlastprofil_norm!K29-Eingabe!$B$21/1000*('VDI3988'!$C$16-Stundenlastprofil_norm!J29)-Eingabe!$B$22/1000*('VDI3988'!$C$16-Stundenlastprofil_norm!J29)^2) -> 0 | M29: 0 | N29: =M29*Eingabe!$B$23 -> 0 | O29: 0 | P29: 0 | Q29: =MIN(Q28-P29+O29,Stundenlastprofil_norm!$R$1) -> 0 | R29: 0 | S29: 0 | T29: 415.9467687 | U29: =MIN(T29,Eingabe!$B$35) -> 399.838442 | V29: 16.1083267
B30: 2023-01-02T01:00:00 | C30: 2 | D30: 1 | E30: 1 | F30: Montag | G30: 2 | H30: 26 | I30: =VLOOKUP(G30,Tagesbasis!$E$12:$J$376,6)*HLOOKUP(Eingabe!$B$11,Stundenlastprofile!$B$2:$K$26,C30+1,FALSE) -> 403.7130402 | J30: =Wetterdaten!J27 -> 6.3 | K30: =Wetterdaten!G27/1000 -> 0 | L30: =MAX(0,Eingabe!$B$20*Stundenlastprofil_norm!K30-Eingabe!$B$21/1000*('VDI3988'!$C$16-Stundenlastprofil_norm!J30)-Eingabe!$B$22/1000*('VDI3988'!$C$16-Stundenlastprofil_norm!J30)^2) -> 0 | M30: 0 | N30: =M30*Eingabe!$B$23 -> 0 | O30: 0 | P30: 0 | Q30: =MIN(Q29-P30+O30,Stundenlastprofil_norm!$R$1) -> 0 | R30: 0 | S30: 0 | T30: 403.7130402 | U30: =MIN(T30,Eingabe!$B$35) -> 399.838442 | V30: 3.87459821
B31: 2023-01-02T02:00:00 | C31: 3 | D31: 1 | E31: 1 | F31: Montag | G31: 2 | H31: 27 | I31: =VLOOKUP(G31,Tagesbasis!$E$12:$J$376,6)*HLOOKUP(Eingabe!$B$11,Stundenlastprofile!$B$2:$K$26,C31+1,FALSE) -> 403.7130402 | J31: =Wetterdaten!J28 -> 5.8 | K31: =Wetterdaten!G28/1000 -> 0 | L31: =MAX(0,Eingabe!$B$20*Stundenlastprofil_norm!K31-Eingabe!$B$21/1000*('VDI3988'!$C$16-Stundenlastprofil_norm!J31)-Eingabe!$B$22/1000*('VDI3988'!$C$16-Stundenlastprofil_norm!J31)^2) -> 0 | M31: 0 | N31: =M31*Eingabe!$B$23 -> 0 | O31: 0 | P31: 0 | Q31: =MIN(Q30-P31+O31,Stundenlastprofil_norm!$R$1) -> 0 | R31: 0 | S31: 0 | T31: 403.7130402 | U31: =MIN(T31,Eingabe!$B$35) -> 399.838442 | V31: 3.87459821
B32: 2023-01-02T03:00:00 | C32: 4 | D32: 1 | E32: 1 | F32: Montag | G32: 2 | H32: 28 | I32: =VLOOKUP(G32,Tagesbasis!$E$12:$J$376,6)*HLOOKUP(Eingabe!$B$11,Stundenlastprofile!$B$2:$K$26,C32+1,FALSE) -> 391.4793117 | J32: =Wetterdaten!J29 -> 5.5 | K32: =Wetterdaten!G29/1000 -> 0 | L32: =MAX(0,Eingabe!$B$20*Stundenlastprofil_norm!K32-Eingabe!$B$21/1000*('VDI3988'!$C$16-Stundenlastprofil_norm!J32)-Eingabe!$B$22/1000*('VDI3988'!$C$16-Stundenlastprofil_norm!J32)^2) -> 0 | M32: 0 | N32: =M32*Eingabe!$B$23 -> 0 | O32: 0 | P32: 0 | Q32: =MIN(Q31-P32+O32,Stundenlastprofil_norm!$R$1) -> 0 | R32: 0 | S32: 0 | T32: 391.4793117 | U32: =MIN(T32,Eingabe!$B$35) -> 391.4793117 | V32: 0
B33: 2023-01-02T04:00:00 | C33: 5 | D33: 1 | E33: 1 | F33: Montag | G33: 2 | H33: 29 | I33: =VLOOKUP(G33,Tagesbasis!$E$12:$J$376,6)*HLOOKUP(Eingabe!$B$11,Stundenlastprofile!$B$2:$K$26,C33+1,FALSE) -> 391.4793117 | J33: =Wetterdaten!J30 -> 5.2 | K33: =Wetterdaten!G30/1000 -> 0 | L33: =MAX(0,Eingabe!$B$20*Stundenlastprofil_norm!K33-Eingabe!$B$21/1000*('VDI3988'!$C$16-Stundenlastprofil_norm!J33)-Eingabe!$B$22/1000*('VDI3988'!$C$16-Stundenlastprofil_norm!J33)^2) -> 0 | M33: 0 | N33: =M33*Eingabe!$B$23 -> 0 | O33: 0 | P33: 0 | Q33: =MIN(Q32-P33+O33,Stundenlastprofil_norm!$R$1) -> 0 | R33: 0 | S33: 0 | T33: 391.4793117 | U33: =MIN(T33,Eingabe!$B$35) -> 391.4793117 | V33: 0
B34: 2023-01-02T05:00:00 | C34: 6 | D34: 1 | E34: 1 | F34: Montag | G34: 2 | H34: 30 | I34: =VLOOKUP(G34,Tagesbasis!$E$12:$J$376,6)*HLOOKUP(Eingabe!$B$11,Stundenlastprofile!$B$2:$K$26,C34+1,FALSE) -> 379.2455832 | J34: =Wetterdaten!J31 -> 4.9 | K34: =Wetterdaten!G31/1000 -> 0 | L34: =MAX(0,Eingabe!$B$20*Stundenlastprofil_norm!K34-Eingabe!$B$21/1000*('VDI3988'!$C$16-Stundenlastprofil_norm!J34)-Eingabe!$B$22/1000*('VDI3988'!$C$16-Stundenlastprofil_norm!J34)^2) -> 0 | M34: 0 | N34: =M34*Eingabe!$B$23 -> 0 | O34: 0 | P34: 0 | Q34: =MIN(Q33-P34+O34,Stundenlastprofil_norm!$R$1) -> 0 | R34: 0 | S34: 0 | T34: 379.2455832 | U34: =MIN(T34,Eingabe!$B$35) -> 379.2455832 | V34: 0
B35: 2023-01-02T06:00:00 | C35: 7 | D35: 1 | E35: 1 | F35: Montag | G35: 2 | H35: 31 | I35: =VLOOKUP(G35,Tagesbasis!$E$12:$J$376,6)*HLOOKUP(Eingabe!$B$11,Stundenlastprofile!$B$2:$K$26,C35+1,FALSE) -> 440.4142257 | J35: =Wetterdaten!J32 -> 4.6 | K35: =Wetterdaten!G32/1000 -> 0 | L35: =MAX(0,Eingabe!$B$20*Stundenlastprofil_norm!K35-Eingabe!$B$21/1000*('VDI3988'!$C$16-Stundenlastprofil_norm!J35)-Eingabe!$B$22/1000*('VDI3988'!$C$16-Stundenlastprofil_norm!J35)^2) -> 0 | M35: 0 | N35: =M35*Eingabe!$B$23 -> 0 | O35: 0 | P35: 0 | Q35: =MIN(Q34-P35+O35,Stundenlastprofil_norm!$R$1) -> 0 | R35: 0 | S35: 0 | T35: 440.4142257 | U35: =MIN(T35,Eingabe!$B$35) -> 399.838442 | V35: 40.57578368
B36: 2023-01-02T07:00:00 | C36: 8 | D36: 1 | E36: 1 | F36: Montag | G36: 2 | H36: 32 | I36: =VLOOKUP(G36,Tagesbasis!$E$12:$J$376,6)*HLOOKUP(Eingabe!$B$11,Stundenlastprofile!$B$2:$K$26,C36+1,FALSE) -> 464.8816826 | J36: =Wetterdaten!J33 -> 4.4 | K36: =Wetterdaten!G33/1000 -> 0 | L36: =MAX(0,Eingabe!$B$20*Stundenlastprofil_norm!K36-Eingabe!$B$21/1000*('VDI3988'!$C$16-Stundenlastprofil_norm!J36)-Eingabe!$B$22/1000*('VDI3988'!$C$16-Stundenlastprofil_norm!J36)^2) -> 0 | M36: 0 | N36: =M36*Eingabe!$B$23 -> 0 | O36: 0 | P36: 0 | Q36: =MIN(Q35-P36+O36,Stundenlastprofil_norm!$R$1) -> 0 | R36: 0 | S36: 0 | T36: 464.8816826 | U36: =MIN(T36,Eingabe!$B$35) -> 399.838442 | V36: 65.04324066
B37: 2023-01-02T08:00:00 | C37: 9 | D37: 1 | E37: 1 | F37: Montag | G37: 2 | H37: 33 | I37: =VLOOKUP(G37,Tagesbasis!$E$12:$J$376,6)*HLOOKUP(Eingabe!$B$11,Stundenlastprofile!$B$2:$K$26,C37+1,FALSE) -> 526.0503251 | J37: =Wetterdaten!J34 -> 4.3 | K37: =Wetterdaten!G34/1000 -> 0 | L37: =MAX(0,Eingabe!$B$20*Stundenlastprofil_norm!K37-Eingabe!$B$21/1000*('VDI3988'!$C$16-Stundenlastprofil_norm!J37)-Eingabe!$B$22/1000*('VDI3988'!$C$16-Stundenlastprofil_norm!J37)^2) -> 0 | M37: 0 | N37: =M37*Eingabe!$B$23 -> 0 | O37: 0 | P37: 0 | Q37: =MIN(Q36-P37+O37,Stundenlastprofil_norm!$R$1) -> 0 | R37: 0 | S37: 0 | T37: 526.0503251 | U37: =MIN(T37,Eingabe!$B$35) -> 399.838442 | V37: 126.2118831
B38: 2023-01-02T09:00:00 | C38: 10 | D38: 1 | E38: 1 | F38: Montag | G38: 2 | H38: 34 | I38: =VLOOKUP(G38,Tagesbasis!$E$12:$J$376,6)*HLOOKUP(Eingabe!$B$11,Stundenlastprofile!$B$2:$K$26,C38+1,FALSE) -> 599.452696 | J38: =Wetterdaten!J35 -> 4.5 | K38: =Wetterdaten!G35/1000 -> 0.015 | L38: =MAX(0,Eingabe!$B$20*Stundenlastprofil_norm!K38-Eingabe!$B$21/1000*('VDI3988'!$C$16-Stundenlastprofil_norm!J38)-Eingabe!$B$22/1000*('VDI3988'!$C$16-Stundenlastprofil_norm!J38)^2) -> 0 | M38: 0 | N38: =M38*Eingabe!$B$23 -> 0 | O38: 0 | P38: 0 | Q38: =MIN(Q37-P38+O38,Stundenlastprofil_norm!$R$1) -> 0 | R38: 0 | S38: 0 | T38: 599.452696 | U38: =MIN(T38,Eingabe!$B$35) -> 399.838442 | V38: 199.6142541
B39: 2023-01-02T10:00:00 | C39: 11 | D39: 1 | E39: 1 | F39: Montag | G39: 2 | H39: 35 | I39: =VLOOKUP(G39,Tagesbasis!$E$12:$J$376,6)*HLOOKUP(Eingabe!$B$11,Stundenlastprofile!$B$2:$K$26,C39+1,FALSE) -> 611.6864245 | J39: =Wetterdaten!J36 -> 4.7 | K39: =Wetterdaten!G36/1000 -> 0.034 | L39: =MAX(0,Eingabe!$B$20*Stundenlastprofil_norm!K39-Eingabe!$B$21/1000*('VDI3988'!$C$16-Stundenlastprofil_norm!J39)-Eingabe!$B$22/1000*('VDI3988'!$C$16-Stundenlastprofil_norm!J39)^2) -> 0 | M39: 0 | N39: =M39*Eingabe!$B$23 -> 0 | O39: 0 | P39: 0 | Q39: =MIN(Q38-P39+O39,Stundenlastprofil_norm!$R$1) -> 0 | R39: 0 | S39: 0 | T39: 611.6864245 | U39: =MIN(T39,Eingabe!$B$35) -> 399.838442 | V39: 211.8479825
B40: 2023-01-02T11:00:00 | C40: 12 | D40: 1 | E40: 1 | F40: Montag | G40: 2 | H40: 36 | I40: =VLOOKUP(G40,Tagesbasis!$E$12:$J$376,6)*HLOOKUP(Eingabe!$B$11,Stundenlastprofile!$B$2:$K$26,C40+1,FALSE) -> 623.920153 | J40: =Wetterdaten!J37 -> 4.8 | K40: =Wetterdaten!G37/1000 -> 0.05 | L40: =MAX(0,Eingabe!$B$20*Stundenlastprofil_norm!K40-Eingabe!$B$21/1000*('VDI3988'!$C$16-Stundenlastprofil_norm!J40)-Eingabe!$B$22/1000*('VDI3988'!$C$16-Stundenlastprofil_norm!J40)^2) -> 0 | M40: 0 | N40: =M40*Eingabe!$B$23 -> 0 | O40: 0 | P40: 0 | Q40: =MIN(Q39-P40+O40,Stundenlastprofil_norm!$R$1) -> 0 | R40: 0 | S40: 0 | T40: 623.920153 | U40: =MIN(T40,Eingabe!$B$35) -> 399.838442 | V40: 224.081711
B41: 2023-01-02T12:00:00 | C41: 13 | D41: 1 | E41: 1 | F41: Montag | G41: 2 | H41: 37 | I41: =VLOOKUP(G41,Tagesbasis!$E$12:$J$376,6)*HLOOKUP(Eingabe!$B$11,Stundenlastprofile!$B$2:$K$26,C41+1,FALSE) -> 623.920153 | J41: =Wetterdaten!J38 -> 4.9 | K41: =Wetterdaten!G38/1000 -> 0.05 | L41: =MAX(0,Eingabe!$B$20*Stundenlastprofil_norm!K41-Eingabe!$B$21/1000*('VDI3988'!$C$16-Stundenlastprofil_norm!J41)-Eingabe!$B$22/1000*('VDI3988'!$C$16-Stundenlastprofil_norm!J41)^2) -> 0 | M41: 0 | N41: =M41*Eingabe!$B$23 -> 0 | O41: 0 | P41: 0 | Q41: =MIN(Q40-P41+O41,Stundenlastprofil_norm!$R$1) -> 0 | R41: 0 | S41: 0 | T41: 623.920153 | U41: =MIN(T41,Eingabe!$B$35) -> 399.838442 | V41: 224.081711
B42: 2023-01-02T13:00:00 | C42: 14 | D42: 1 | E42: 1 | F42: Montag | G42: 2 | H42: 38 | I42: =VLOOKUP(G42,Tagesbasis!$E$12:$J$376,6)*HLOOKUP(Eingabe!$B$11,Stundenlastprofile!$B$2:$K$26,C42+1,FALSE) -> 587.2189675 | J42: =Wetterdaten!J39 -> 4.9 | K42: =Wetterdaten!G39/1000 -> 0.04 | L42: =MAX(0,Eingabe!$B$20*Stundenlastprofil_norm!K42-Eingabe!$B$21/1000*('VDI3988'!$C$16-Stundenlastprofil_norm!J42)-Eingabe!$B$22/1000*('VDI3988'!$C$16-Stundenlastprofil_norm!J42)^2) -> 0 | M42: 0 | N42: =M42*Eingabe!$B$23 -> 0 | O42: 0 | P42: 0 | Q42: =MIN(Q41-P42+O42,Stundenlastprofil_norm!$R$1) -> 0 | R42: 0 | S42: 0 | T42: 587.2189675 | U42: =MIN(T42,Eingabe!$B$35) -> 399.838442 | V42: 187.3805256
B43: 2023-01-02T14:00:00 | C43: 15 | D43: 1 | E43: 1 | F43: Montag | G43: 2 | H43: 39 | I43: =VLOOKUP(G43,Tagesbasis!$E$12:$J$376,6)*HLOOKUP(Eingabe!$B$11,Stundenlastprofile!$B$2:$K$26,C43+1,FALSE) -> 550.5177821 | J43: =Wetterdaten!J40 -> 4.8 | K43: =Wetterdaten!G40/1000 -> 0.026 | L43: =MAX(0,Eingabe!$B$20*Stundenlastprofil_norm!K43-Eingabe!$B$21/1000*('VDI3988'!$C$16-Stundenlastprofil_norm!J43)-Eingabe!$B$22/1000*('VDI3988'!$C$16-Stundenlastprofil_norm!J43)^2) -> 0 | M43: 0 | N43: =M43*Eingabe!$B$23 -> 0 | O43: 0 | P43: 0 | Q43: =MIN(Q42-P43+O43,Stundenlastprofil_norm!$R$1) -> 0 | R43: 0 | S43: 0 | T43: 550.5177821 | U43: =MIN(T43,Eingabe!$B$35) -> 399.838442 | V43: 150.6793401
B44: 2023-01-02T15:00:00 | C44: 16 | D44: 1 | E44: 1 | F44: Montag | G44: 2 | H44: 40 | I44: =VLOOKUP(G44,Tagesbasis!$E$12:$J$376,6)*HLOOKUP(Eingabe!$B$11,Stundenlastprofile!$B$2:$K$26,C44+1,FALSE) -> 574.985239 | J44: =Wetterdaten!J41 -> 4.6 | K44: =Wetterdaten!G41/1000 -> 0.009 | L44: =MAX(0,Eingabe!$B$20*Stundenlastprofil_norm!K44-Eingabe!$B$21/1000*('VDI3988'!$C$16-Stundenlastprofil_norm!J44)-Eingabe!$B$22/1000*('VDI3988'!$C$16-Stundenlastprofil_norm!J44)^2) -> 0 | M44: 0 | N44: =M44*Eingabe!$B$23 -> 0 | O44: 0 | P44: 0 | Q44: =MIN(Q43-P44+O44,Stundenlastprofil_norm!$R$1) -> 0 | R44: 0 | S44: 0 | T44: 574.985239 | U44: =MIN(T44,Eingabe!$B$35) -> 399.838442 | V44: 175.1467971
B45: 2023-01-02T16:00:00 | C45: 17 | D45: 1 | E45: 1 | F45: Montag | G45: 2 | H45: 41 | I45: =VLOOKUP(G45,Tagesbasis!$E$12:$J$376,6)*HLOOKUP(Eingabe!$B$11,Stundenlastprofile!$B$2:$K$26,C45+1,FALSE) -> 587.2189675 | J45: =Wetterdaten!J42 -> 4.3 | K45: =Wetterdaten!G42/1000 -> 0 | L45: =MAX(0,Eingabe!$B$20*Stundenlastprofil_norm!K45-Eingabe!$B$21/1000*('VDI3988'!$C$16-Stundenlastprofil_norm!J45)-Eingabe!$B$22/1000*('VDI3988'!$C$16-Stundenlastprofil_norm!J45)^2) -> 0 | M45: 0 | N45: =M45*Eingabe!$B$23 -> 0 | O45: 0 | P45: 0 | Q45: =MIN(Q44-P45+O45,Stundenlastprofil_norm!$R$1) -> 0 | R45: 0 | S45: 0 | T45: 587.2189675 | U45: =MIN(T45,Eingabe!$B$35) -> 399.838442 | V45: 187.3805256
B46: 2023-01-02T17:00:00 | C46: 18 | D46: 1 | E46: 1 | F46: Montag | G46: 2 | H46: 42 | I46: =VLOOKUP(G46,Tagesbasis!$E$12:$J$376,6)*HLOOKUP(Eingabe!$B$11,Stundenlastprofile!$B$2:$K$26,C46+1,FALSE) -> 599.452696 | J46: =Wetterdaten!J43 -> 4.2 | K46: =Wetterdaten!G43/1000 -> 0 | L46: =MAX(0,Eingabe!$B$20*Stundenlastprofil_norm!K46-Eingabe!$B$21/1000*('VDI3988'!$C$16-Stundenlastprofil_norm!J46)-Eingabe!$B$22/1000*('VDI3988'!$C$16-Stundenlastprofil_norm!J46)^2) -> 0 | M46: 0 | N46: =M46*Eingabe!$B$23 -> 0 | O46: 0 | P46: 0 | Q46: =MIN(Q45-P46+O46,Stundenlastprofil_norm!$R$1) -> 0 | R46: 0 | S46: 0 | T46: 599.452696 | U46: =MIN(T46,Eingabe!$B$35) -> 399.838442 | V46: 199.6142541
B47: 2023-01-02T18:00:00 | C47: 19 | D47: 1 | E47: 1 | F47: Montag | G47: 2 | H47: 43 | I47: =VLOOKUP(G47,Tagesbasis!$E$12:$J$376,6)*HLOOKUP(Eingabe!$B$11,Stundenlastprofile!$B$2:$K$26,C47+1,FALSE) -> 599.452696 | J47: =Wetterdaten!J44 -> 4.1 | K47: =Wetterdaten!G44/1000 -> 0 | L47: =MAX(0,Eingabe!$B$20*Stundenlastprofil_norm!K47-Eingabe!$B$21/1000*('VDI3988'!$C$16-Stundenlastprofil_norm!J47)-Eingabe!$B$22/1000*('VDI3988'!$C$16-Stundenlastprofil_norm!J47)^2) -> 0 | M47: 0 | N47: =M47*Eingabe!$B$23 -> 0 | O47: 0 | P47: 0 | Q47: =MIN(Q46-P47+O47,Stundenlastprofil_norm!$R$1) -> 0 | R47: 0 | S47: 0 | T47: 599.452696 | U47: =MIN(T47,Eingabe!$B$35) -> 399.838442 | V47: 199.6142541
B48: 2023-01-02T19:00:00 | C48: 20 | D48: 1 | E48: 1 | F48: Montag | G48: 2 | H48: 44 | I48: =VLOOKUP(G48,Tagesbasis!$E$12:$J$376,6)*HLOOKUP(Eingabe!$B$11,Stundenlastprofile!$B$2:$K$26,C48+1,FALSE) -> 574.985239 | J48: =Wetterdaten!J45 -> 4 | K48: =Wetterdaten!G45/1000 -> 0 | L48: =MAX(0,Eingabe!$B$20*Stundenlastprofil_norm!K48-Eingabe!$B$21/1000*('VDI3988'!$C$16-Stundenlastprofil_norm!J48)-Eingabe!$B$22/1000*('VDI3988'!$C$16-Stundenlastprofil_norm!J48)^2) -> 0 | M48: 0 | N48: =M48*Eingabe!$B$23 -> 0 | O48: 0 | P48: 0 | Q48: =MIN(Q47-P48+O48,Stundenlastprofil_norm!$R$1) -> 0 | R48: 0 | S48: 0 | T48: 574.985239 | U48: =MIN(T48,Eingabe!$B$35) -> 399.838442 | V48: 175.1467971
B49: 2023-01-02T20:00:00 | C49: 21 | D49: 1 | E49: 1 | F49: Montag | G49: 2 | H49: 45 | I49: =VLOOKUP(G49,Tagesbasis!$E$12:$J$376,6)*HLOOKUP(Eingabe!$B$11,Stundenlastprofile!$B$2:$K$26,C49+1,FALSE) -> 538.2840536 | J49: =Wetterdaten!J46 -> 3.9 | K49: =Wetterdaten!G46/1000 -> 0 | L49: =MAX(0,Eingabe!$B$20*Stundenlastprofil_norm!K49-Eingabe!$B$21/1000*('VDI3988'!$C$16-Stundenlastprofil_norm!J49)-Eingabe!$B$22/1000*('VDI3988'!$C$16-Stundenlastprofil_norm!J49)^2) -> 0 | M49: 0 | N49: =M49*Eingabe!$B$23 -> 0 | O49: 0 | P49: 0 | Q49: =MIN(Q48-P49+O49,Stundenlastprofil_norm!$R$1) -> 0 | R49: 0 | S49: 0 | T49: 538.2840536 | U49: =MIN(T49,Eingabe!$B$35) -> 399.838442 | V49: 138.4456116
B50: 2023-01-02T21:00:00 | C50: 22 | D50: 1 | E50: 1 | F50: Montag | G50: 2 | H50: 46 | I50: =VLOOKUP(G50,Tagesbasis!$E$12:$J$376,6)*HLOOKUP(Eingabe!$B$11,Stundenlastprofile!$B$2:$K$26,C50+1,FALSE) -> 477.1154111 | J50: =Wetterdaten!J47 -> 3.8 | K50: =Wetterdaten!G47/1000 -> 0 | L50: =MAX(0,Eingabe!$B$20*Stundenlastprofil_norm!K50-Eingabe!$B$21/1000*('VDI3988'!$C$16-Stundenlastprofil_norm!J50)-Eingabe!$B$22/1000*('VDI3988'!$C$16-Stundenlastprofil_norm!J50)^2) -> 0 | M50: 0 | N50: =M50*Eingabe!$B$23 -> 0 | O50: 0 | P50: 0 | Q50: =MIN(Q49-P50+O50,Stundenlastprofil_norm!$R$1) -> 0 | R50: 0 | S50: 0 | T50: 477.1154111 | U50: =MIN(T50,Eingabe!$B$35) -> 399.838442 | V50: 77.27696915
B51: 2023-01-02T22:00:00 | C51: 23 | D51: 1 | E51: 1 | F51: Montag | G51: 2 | H51: 47 | I51: =VLOOKUP(G51,Tagesbasis!$E$12:$J$376,6)*HLOOKUP(Eingabe!$B$11,Stundenlastprofile!$B$2:$K$26,C51+1,FALSE) -> 452.6479541 | J51: =Wetterdaten!J48 -> 3.7 | K51: =Wetterdaten!G48/1000 -> 0 | L51: =MAX(0,Eingabe!$B$20*Stundenlastprofil_norm!K51-Eingabe!$B$21/1000*('VDI3988'!$C$16-Stundenlastprofil_norm!J51)-Eingabe!$B$22/1000*('VDI3988'!$C$16-Stundenlastprofil_norm!J51)^2) -> 0 | M51: 0 | N51: =M51*Eingabe!$B$23 -> 0 | O51: 0 | P51: 0 | Q51: =MIN(Q50-P51+O51,Stundenlastprofil_norm!$R$1) -> 0 | R51: 0 | S51: 0 | T51: 452.6479541 | U51: =MIN(T51,Eingabe!$B$35) -> 399.838442 | V51: 52.80951217
B52: 2023-01-02T23:00:00 | C52: 24 | D52: 1 | E52: 1 | F52: Montag | G52: 2 | H52: 48 | I52: =VLOOKUP(G52,Tagesbasis!$E$12:$J$376,6)*HLOOKUP(Eingabe!$B$11,Stundenlastprofile!$B$2:$K$26,C52+1,FALSE) -> 428.1804972 | J52: =Wetterdaten!J49 -> 3.3 | K52: =Wetterdaten!G49/1000 -> 0 | L52: =MAX(0,Eingabe!$B$20*Stundenlastprofil_norm!K52-Eingabe!$B$21/1000*('VDI3988'!$C$16-Stundenlastprofil_norm!J52)-Eingabe!$B$22/1000*('VDI3988'!$C$16-Stundenlastprofil_norm!J52)^2) -> 0 | M52: 0 | N52: =M52*Eingabe!$B$23 -> 0 | O52: 0 | P52: 0 | Q52: =MIN(Q51-P52+O52,Stundenlastprofil_norm!$R$1) -> 0 | R52: 0 | S52: 0 | T52: 428.1804972 | U52: =MIN(T52,Eingabe!$B$35) -> 399.838442 | V52: 28.34205519
B53: 2023-01-03 | C53: 1 | D53: 1 | E53: 2 | F53: Dienstag | G53: 3 | H53: 49 | I53: =VLOOKUP(G53,Tagesbasis!$E$12:$J$376,6)*HLOOKUP(Eingabe!$B$11,Stundenlastprofile!$B$2:$K$26,C53+1,FALSE) -> 365.2361419 | J53: =Wetterdaten!J50 -> 3.9 | K53: =Wetterdaten!G50/1000 -> 0 | L53: =MAX(0,Eingabe!$B$20*Stundenlastprofil_norm!K53-Eingabe!$B$21/1000*('VDI3988'!$C$16-Stundenlastprofil_norm!J53)-Eingabe!$B$22/1000*('VDI3988'!$C$16-Stundenlastprofil_norm!J53)^2) -> 0 | M53: 0 | N53: =M53*Eingabe!$B$23 -> 0 | O53: 0 | P53: 0 | Q53: =MIN(Q52-P53+O53,Stundenlastprofil_norm!$R$1) -> 0 | R53: 0 | S53: 0 | T53: 365.2361419 | U53: =MIN(T53,Eingabe!$B$35) -> 365.2361419 | V53: 0
B54: 2023-01-03T01:00:00 | C54: 2 | D54: 1 | E54: 2 | F54: Dienstag | G54: 3 | H54: 50 | I54: =VLOOKUP(G54,Tagesbasis!$E$12:$J$376,6)*HLOOKUP(Eingabe!$B$11,Stundenlastprofile!$B$2:$K$26,C54+1,FALSE) -> 354.4939024 | J54: =Wetterdaten!J51 -> 4.1 | K54: =Wetterdaten!G51/1000 -> 0 | L54: =MAX(0,Eingabe!$B$20*Stundenlastprofil_norm!K54-Eingabe!$B$21/1000*('VDI3988'!$C$16-Stundenlastprofil_norm!J54)-Eingabe!$B$22/1000*('VDI3988'!$C$16-Stundenlastprofil_norm!J54)^2) -> 0 | M54: 0 | N54: =M54*Eingabe!$B$23 -> 0 | O54: 0 | P54: 0 | Q54: =MIN(Q53-P54+O54,Stundenlastprofil_norm!$R$1) -> 0 | R54: 0 | S54: 0 | T54: 354.4939024 | U54: =MIN(T54,Eingabe!$B$35) -> 354.4939024 | V54: 0
B55: 2023-01-03T02:00:00 | C55: 3 | D55: 1 | E55: 2 | F55: Dienstag | G55: 3 | H55: 51 | I55: =VLOOKUP(G55,Tagesbasis!$E$12:$J$376,6)*HLOOKUP(Eingabe!$B$11,Stundenlastprofile!$B$2:$K$26,C55+1,FALSE) -> 354.4939024 | J55: =Wetterdaten!J52 -> 4.3 | K55: =Wetterdaten!G52/1000 -> 0 | L55: =MAX(0,Eingabe!$B$20*Stundenlastprofil_norm!K55-Eingabe!$B$21/1000*('VDI3988'!$C$16-Stundenlastprofil_norm!J55)-Eingabe!$B$22/1000*('VDI3988'!$C$16-Stundenlastprofil_norm!J55)^2) -> 0 | M55: 0 | N55: =M55*Eingabe!$B$23 -> 0 | O55: 0 | P55: 0 | Q55: =MIN(Q54-P55+O55,Stundenlastprofil_norm!$R$1) -> 0 | R55: 0 | S55: 0 | T55: 354.4939024 | U55: =MIN(T55,Eingabe!$B$35) -> 354.4939024 | V55: 0
B56: 2023-01-03T03:00:00 | C56: 4 | D56: 1 | E56: 2 | F56: Dienstag | G56: 3 | H56: 52 | I56: =VLOOKUP(G56,Tagesbasis!$E$12:$J$376,6)*HLOOKUP(Eingabe!$B$11,Stundenlastprofile!$B$2:$K$26,C56+1,FALSE) -> 343.751663 | J56: =Wetterdaten!J53 -> 4.4 | K56: =Wetterdaten!G53/1000 -> 0 | L56: =MAX(0,Eingabe!$B$20*Stundenlastprofil_norm!K56-Eingabe!$B$21/1000*('VDI3988'!$C$16-Stundenlastprofil_norm!J56)-Eingabe!$B$22/1000*('VDI3988'!$C$16-Stundenlastprofil_norm!J56)^2) -> 0 | M56: 0 | N56: =M56*Eingabe!$B$23 -> 0 | O56: 0 | P56: 0 | Q56: =MIN(Q55-P56+O56,Stundenlastprofil_norm!$R$1) -> 0 | R56: 0 | S56: 0 | T56: 343.751663 | U56: =MIN(T56,Eingabe!$B$35) -> 343.751663 | V56: 0
B57: 2023-01-03T04:00:00 | C57: 5 | D57: 1 | E57: 2 | F57: Dienstag | G57: 3 | H57: 53 | I57: =VLOOKUP(G57,Tagesbasis!$E$12:$J$376,6)*HLOOKUP(Eingabe!$B$11,Stundenlastprofile!$B$2:$K$26,C57+1,FALSE) -> 343.751663 | J57: =Wetterdaten!J54 -> 4.7 | K57: =Wetterdaten!G54/1000 -> 0 | L57: =MAX(0,Eingabe!$B$20*Stundenlastprofil_norm!K57-Eingabe!$B$21/1000*('VDI3988'!$C$16-Stundenlastprofil_norm!J57)-Eingabe!$B$22/1000*('VDI3988'!$C$16-Stundenlastprofil_norm!J57)^2) -> 0 | M57: 0 | N57: =M57*Eingabe!$B$23 -> 0 | O57: 0 | P57: 0 | Q57: =MIN(Q56-P57+O57,Stundenlastprofil_norm!$R$1) -> 0 | R57: 0 | S57: 0 | T57: 343.751663 | U57: =MIN(T57,Eingabe!$B$35) -> 343.751663 | V57: 0
B58: 2023-01-03T05:00:00 | C58: 6 | D58: 1 | E58: 2 | F58: Dienstag | G58: 3 | H58: 54 | I58: =VLOOKUP(G58,Tagesbasis!$E$12:$J$376,6)*HLOOKUP(Eingabe!$B$11,Stundenlastprofile!$B$2:$K$26,C58+1,FALSE) -> 333.0094235 | J58: =Wetterdaten!J55 -> 4.9 | K58: =Wetterdaten!G55/1000 -> 0 | L58: =MAX(0,Eingabe!$B$20*Stundenlastprofil_norm!K58-Eingabe!$B$21/1000*('VDI3988'!$C$16-Stundenlastprofil_norm!J58)-Eingabe!$B$22/1000*('VDI3988'!$C$16-Stundenlastprofil_norm!J58)^2) -> 0 | M58: 0 | N58: =M58*Eingabe!$B$23 -> 0 | O58: 0 | P58: 0 | Q58: =MIN(Q57-P58+O58,Stundenlastprofil_norm!$R$1) -> 0 | R58: 0 | S58: 0 | T58: 333.0094235 | U58: =MIN(T58,Eingabe!$B$35) -> 333.0094235 | V58: 0
B59: 2023-01-03T06:00:00 | C59: 7 | D59: 1 | E59: 2 | F59: Dienstag | G59: 3 | H59: 55 | I59: =VLOOKUP(G59,Tagesbasis!$E$12:$J$376,6)*HLOOKUP(Eingabe!$B$11,Stundenlastprofile!$B$2:$K$26,C59+1,FALSE) -> 386.7206208 | J59: =Wetterdaten!J56 -> 5 | K59: =Wetterdaten!G56/1000 -> 0 | L59: =MAX(0,Eingabe!$B$20*Stundenlastprofil_norm!K59-Eingabe!$B$21/1000*('VDI3988'!$C$16-Stundenlastprofil_norm!J59)-Eingabe!$B$22/1000*('VDI3988'!$C$16-Stundenlastprofil_norm!J59)^2) -> 0 | M59: 0 | N59: =M59*Eingabe!$B$23 -> 0 | O59: 0 | P59: 0 | Q59: =MIN(Q58-P59+O59,Stundenlastprofil_norm!$R$1) -> 0 | R59: 0 | S59: 0 | T59: 386.7206208 | U59: =MIN(T59,Eingabe!$B$35) -> 386.7206208 | V59: 0
B60: 2023-01-03T07:00:00 | C60: 8 | D60: 1 | E60: 2 | F60: Dienstag | G60: 3 | H60: 56 | I60: =VLOOKUP(G60,Tagesbasis!$E$12:$J$376,6)*HLOOKUP(Eingabe!$B$11,Stundenlastprofile!$B$2:$K$26,C60+1,FALSE) -> 408.2050998 | J60: =Wetterdaten!J57 -> 5.1 | K60: =Wetterdaten!G57/1000 -> 0 | L60: =MAX(0,Eingabe!$B$20*Stundenlastprofil_norm!K60-Eingabe!$B$21/1000*('VDI3988'!$C$16-Stundenlastprofil_norm!J60)-Eingabe!$B$22/1000*('VDI3988'!$C$16-Stundenlastprofil_norm!J60)^2) -> 0 | M60: 0 | N60: =M60*Eingabe!$B$23 -> 0 | O60: 0 | P60: 0 | Q60: =MIN(Q59-P60+O60,Stundenlastprofil_norm!$R$1) -> 0 | R60: 0 | S60: 0 | T60: 408.2050998 | U60: =MIN(T60,Eingabe!$B$35) -> 399.838442 | V60: 8.366657801
B61: 2023-01-03T08:00:00 | C61: 9 | D61: 1 | E61: 2 | F61: Dienstag | G61: 3 | H61: 57 | I61: =VLOOKUP(G61,Tagesbasis!$E$12:$J$376,6)*HLOOKUP(Eingabe!$B$11,Stundenlastprofile!$B$2:$K$26,C61+1,FALSE) -> 461.9162971 | J61: =Wetterdaten!J58 -> 5.3 | K61: =Wetterdaten!G58/1000 -> 0 | L61: =MAX(0,Eingabe!$B$20*Stundenlastprofil_norm!K61-Eingabe!$B$21/1000*('VDI3988'!$C$16-Stundenlastprofil_norm!J61)-Eingabe!$B$22/1000*('VDI3988'!$C$16-Stundenlastprofil_norm!J61)^2) -> 0 | M61: 0 | N61: =M61*Eingabe!$B$23 -> 0 | O61: 0 | P61: 0 | Q61: =MIN(Q60-P61+O61,Stundenlastprofil_norm!$R$1) -> 0 | R61: 0 | S61: 0 | T61: 461.9162971 | U61: =MIN(T61,Eingabe!$B$35) -> 399.838442 | V61: 62.07785514
B62: 2023-01-03T09:00:00 | C62: 10 | D62: 1 | E62: 2 | F62: Dienstag | G62: 3 | H62: 58 | I62: =VLOOKUP(G62,Tagesbasis!$E$12:$J$376,6)*HLOOKUP(Eingabe!$B$11,Stundenlastprofile!$B$2:$K$26,C62+1,FALSE) -> 526.3697339 | J62: =Wetterdaten!J59 -> 6.1 | K62: =Wetterdaten!G59/1000 -> 0.015 | L62: =MAX(0,Eingabe!$B$20*Stundenlastprofil_norm!K62-Eingabe!$B$21/1000*('VDI3988'!$C$16-Stundenlastprofil_norm!J62)-Eingabe!$B$22/1000*('VDI3988'!$C$16-Stundenlastprofil_norm!J62)^2) -> 0 | M62: 0 | N62: =M62*Eingabe!$B$23 -> 0 | O62: 0 | P62: 0 | Q62: =MIN(Q61-P62+O62,Stundenlastprofil_norm!$R$1) -> 0 | R62: 0 | S62: 0 | T62: 526.3697339 | U62: =MIN(T62,Eingabe!$B$35) -> 399.838442 | V62: 126.5312919
B63: 2023-01-03T10:00:00 | C63: 11 | D63: 1 | E63: 2 | F63: Dienstag | G63: 3 | H63: 59 | I63: =VLOOKUP(G63,Tagesbasis!$E$12:$J$376,6)*HLOOKUP(Eingabe!$B$11,Stundenlastprofile!$B$2:$K$26,C63+1,FALSE) -> 537.1119734 | J63: =Wetterdaten!J60 -> 7.1 | K63: =Wetterdaten!G60/1000 -> 0.036 | L63: =MAX(0,Eingabe!$B$20*Stundenlastprofil_norm!K63-Eingabe!$B$21/1000*('VDI3988'!$C$16-Stundenlastprofil_norm!J63)-Eingabe!$B$22/1000*('VDI3988'!$C$16-Stundenlastprofil_norm!J63)^2) -> 0 | M63: 0 | N63: =M63*Eingabe!$B$23 -> 0 | O63: 0 | P63: 0 | Q63: =MIN(Q62-P63+O63,Stundenlastprofil_norm!$R$1) -> 0 | R63: 0 | S63: 0 | T63: 537.1119734 | U63: =MIN(T63,Eingabe!$B$35) -> 399.838442 | V63: 137.2735314
B64: 2023-01-03T11:00:00 | C64: 12 | D64: 1 | E64: 2 | F64: Dienstag | G64: 3 | H64: 60 | I64: =VLOOKUP(G64,Tagesbasis!$E$12:$J$376,6)*HLOOKUP(Eingabe!$B$11,Stundenlastprofile!$B$2:$K$26,C64+1,FALSE) -> 547.8542129 | J64: =Wetterdaten!J61 -> 7.8 | K64: =Wetterdaten!G61/1000 -> 0.047 | L64: =MAX(0,Eingabe!$B$20*Stundenlastprofil_norm!K64-Eingabe!$B$21/1000*('VDI3988'!$C$16-Stundenlastprofil_norm!J64)-Eingabe!$B$22/1000*('VDI3988'!$C$16-Stundenlastprofil_norm!J64)^2) -> 0 | M64: 0 | N64: =M64*Eingabe!$B$23 -> 0 | O64: 0 | P64: 0 | Q64: =MIN(Q63-P64+O64,Stundenlastprofil_norm!$R$1) -> 0 | R64: 0 | S64: 0 | T64: 547.8542129 | U64: =MIN(T64,Eingabe!$B$35) -> 399.838442 | V64: 148.0157709
B65: 2023-01-03T12:00:00 | C65: 13 | D65: 1 | E65: 2 | F65: Dienstag | G65: 3 | H65: 61 | I65: =VLOOKUP(G65,Tagesbasis!$E$12:$J$376,6)*HLOOKUP(Eingabe!$B$11,Stundenlastprofile!$B$2:$K$26,C65+1,FALSE) -> 547.8542129 | J65: =Wetterdaten!J62 -> 8.2 | K65: =Wetterdaten!G62/1000 -> 0.038 | L65: =MAX(0,Eingabe!$B$20*Stundenlastprofil_norm!K65-Eingabe!$B$21/1000*('VDI3988'!$C$16-Stundenlastprofil_norm!J65)-Eingabe!$B$22/1000*('VDI3988'!$C$16-Stundenlastprofil_norm!J65)^2) -> 0 | M65: 0 | N65: =M65*Eingabe!$B$23 -> 0 | O65: 0 | P65: 0 | Q65: =MIN(Q64-P65+O65,Stundenlastprofil_norm!$R$1) -> 0 | R65: 0 | S65: 0 | T65: 547.8542129 | U65: =MIN(T65,Eingabe!$B$35) -> 399.838442 | V65: 148.0157709
B66: 2023-01-03T13:00:00 | C66: 14 | D66: 1 | E66: 2 | F66: Dienstag | G66: 3 | H66: 62 | I66: =VLOOKUP(G66,Tagesbasis!$E$12:$J$376,6)*HLOOKUP(Eingabe!$B$11,Stundenlastprofile!$B$2:$K$26,C66+1,FALSE) -> 515.6274945 | J66: =Wetterdaten!J63 -> 8.4 | K66: =Wetterdaten!G63/1000 -> 0.035 | L66: =MAX(0,Eingabe!$B$20*Stundenlastprofil_norm!K66-Eingabe!$B$21/1000*('VDI3988'!$C$16-Stundenlastprofil_norm!J66)-Eingabe!$B$22/1000*('VDI3988'!$C$16-Stundenlastprofil_norm!J66)^2) -> 0 | M66: 0 | N66: =M66*Eingabe!$B$23 -> 0 | O66: 0 | P66: 0 | Q66: =MIN(Q65-P66+O66,Stundenlastprofil_norm!$R$1) -> 0 | R66: 0 | S66: 0 | T66: 515.6274945 | U66: =MIN(T66,Eingabe!$B$35) -> 399.838442 | V66: 115.7890525
B67: 2023-01-03T14:00:00 | C67: 15 | D67: 1 | E67: 2 | F67: Dienstag | G67: 3 | H67: 63 | I67: =VLOOKUP(G67,Tagesbasis!$E$12:$J$376,6)*HLOOKUP(Eingabe!$B$11,Stundenlastprofile!$B$2:$K$26,C67+1,FALSE) -> 483.400776 | J67: =Wetterdaten!J64 -> 8.4 | K67: =Wetterdaten!G64/1000 -> 0.027 | L67: =MAX(0,Eingabe!$B$20*Stundenlastprofil_norm!K67-Eingabe!$B$21/1000*('VDI3988'!$C$16-Stundenlastprofil_norm!J67)-Eingabe!$B$22/1000*('VDI3988'!$C$16-Stundenlastprofil_norm!J67)^2) -> 0 | M67: 0 | N67: =M67*Eingabe!$B$23 -> 0 | O67: 0 | P67: 0 | Q67: =MIN(Q66-P67+O67,Stundenlastprofil_norm!$R$1) -> 0 | R67: 0 | S67: 0 | T67: 483.400776 | U67: =MIN(T67,Eingabe!$B$35) -> 399.838442 | V67: 83.56233408
B68: 2023-01-03T15:00:00 | C68: 16 | D68: 1 | E68: 2 | F68: Dienstag | G68: 3 | H68: 64 | I68: =VLOOKUP(G68,Tagesbasis!$E$12:$J$376,6)*HLOOKUP(Eingabe!$B$11,Stundenlastprofile!$B$2:$K$26,C68+1,FALSE) -> 504.885255 | J68: =Wetterdaten!J65 -> 8.1 | K68: =Wetterdaten!G65/1000 -> 0.011 | L68: =MAX(0,Eingabe!$B$20*Stundenlastprofil_norm!K68-Eingabe!$B$21/1000*('VDI3988'!$C$16-Stundenlastprofil_norm!J68)-Eingabe!$B$22/1000*('VDI3988'!$C$16-Stundenlastprofil_norm!J68)^2) -> 0 | M68: 0 | N68: =M68*Eingabe!$B$23 -> 0 | O68: 0 | P68: 0 | Q68: =MIN(Q67-P68+O68,Stundenlastprofil_norm!$R$1) -> 0 | R68: 0 | S68: 0 | T68: 504.885255 | U68: =MIN(T68,Eingabe!$B$35) -> 399.838442 | V68: 105.046813
B69: 2023-01-03T16:00:00 | C69: 17 | D69: 1 | E69: 2 | F69: Dienstag | G69: 3 | H69: 65 | I69: =VLOOKUP(G69,Tagesbasis!$E$12:$J$376,6)*HLOOKUP(Eingabe!$B$11,Stundenlastprofile!$B$2:$K$26,C69+1,FALSE) -> 515.6274945 | J69: =Wetterdaten!J66 -> 7.7 | K69: =Wetterdaten!G66/1000 -> 0 | L69: =MAX(0,Eingabe!$B$20*Stundenlastprofil_norm!K69-Eingabe!$B$21/1000*('VDI3988'!$C$16-Stundenlastprofil_norm!J69)-Eingabe!$B$22/1000*('VDI3988'!$C$16-Stundenlastprofil_norm!J69)^2) -> 0 | M69: 0 | N69: =M69*Eingabe!$B$23 -> 0 | O69: =MAX(N69-I69,0) -> 0 | P69: 0 | Q69: =MIN(Q68-P69+O69,Stundenlastprofil_norm!$R$1) -> 0 | R69: 0 | S69: =N69-O69+P69 -> 0 | T69: =I69-S69 -> 515.6274945 | U69: =MIN(T69,Eingabe!$B$35) -> 399.838442 | V69: =T69-U69 -> 115.7890525
B70: 2023-01-03T17:00:00 | C70: =HOUR(B70)+1 -> 18 | D70: =MONTH(B70) -> 1 | E70: =WEEKDAY(B70,2) -> 2 | F70: =IF(E70=1, "Montag", IF(E70=2, "Dienstag", IF(E70=3, "Mittwoch", IF(E70=4, "Donnerstag", IF(E70=5, "Freitag", IF(E70=6, "Samstag",IF(E70=7,"Sonntag"))))))) -> Dienstag | G70: =ROUNDDOWN(B70-DATE(YEAR(B70),1,1)+1.001,0) -> 3 | H70: 66 | I70: =VLOOKUP(G70,Tagesbasis!$E$12:$J$376,6)*HLOOKUP(Eingabe!$B$11,Stundenlastprofile!$B$2:$K$26,C70+1,FALSE) -> 526.3697339 | J70: =Wetterdaten!J67 -> 7.6 | K70: =Wetterdaten!G67/1000 -> 0 | L70: =MAX(0,Eingabe!$B$20*Stundenlastprofil_norm!K70-Eingabe!$B$21/1000*('VDI3988'!$C$16-Stundenlastprofil_norm!J70)-Eingabe!$B$22/1000*('VDI3988'!$C$16-Stundenlastprofil_norm!J70)^2) -> 0 | M70: =L70*$N$1 -> 0 | N70: =M70*Eingabe!$B$23 -> 0 | O70: 0 | P70: =MIN(MAX(I70-N70,0),Q69) -> 0 | Q70: =MIN(Q69-P70+O70,Stundenlastprofil_norm!$R$1) -> 0 | R70: =Q70/$R$1 -> 0 | S70: 0 | T70: 526.3697339 | U70: =MIN(T70,Eingabe!$B$35) -> 399.838442 | V70: 126.5312919
B71: =B70+1/24 -> 2023-01-03T18:00:00 | C71: 19 | D71: 1 | E71: 2 | F71: Dienstag | G71: 3 | H71: 67 | I71: =VLOOKUP(G71,Tagesbasis!$E$12:$J$376,6)*HLOOKUP(Eingabe!$B$11,Stundenlastprofile!$B$2:$K$26,C71+1,FALSE) -> 526.3697339 | J71: =Wetterdaten!J68 -> 7.4 | K71: =Wetterdaten!G68/1000 -> 0 | L71: =MAX(0,Eingabe!$B$20*Stundenlastprofil_norm!K71-Eingabe!$B$21/1000*('VDI3988'!$C$16-Stundenlastprofil_norm!J71)-Eingabe!$B$22/1000*('VDI3988'!$C$16-Stundenlastprofil_norm!J71)^2) -> 0 | M71: 0 | N71: =M71*Eingabe!$B$23 -> 0 | O71: 0 | P71: 0 | Q71: =MIN(Q70-P71+O71,Stundenlastprofil_norm!$R$1) -> 0 | R71: 0 | S71: 0 | T71: 526.3697339 | U71: =MIN(T71,Eingabe!$B$35) -> 399.838442 | V71: 126.5312919
B72: 2023-01-03T19:00:00 | C72: 20 | D72: 1 | E72: 2 | F72: Dienstag | G72: 3 | H72: 68 | I72: =VLOOKUP(G72,Tagesbasis!$E$12:$J$376,6)*HLOOKUP(Eingabe!$B$11,Stundenlastprofile!$B$2:$K$26,C72+1,FALSE) -> 504.885255 | J72: =Wetterdaten!J69 -> 7.3 | K72: =Wetterdaten!G69/1000 -> 0 | L72: =MAX(0,Eingabe!$B$20*Stundenlastprofil_norm!K72-Eingabe!$B$21/1000*('VDI3988'!$C$16-Stundenlastprofil_norm!J72)-Eingabe!$B$22/1000*('VDI3988'!$C$16-Stundenlastprofil_norm!J72)^2) -> 0 | M72: 0 | N72: =M72*Eingabe!$B$23 -> 0 | O72: 0 | P72: 0 | Q72: =MIN(Q71-P72+O72,Stundenlastprofil_norm!$R$1) -> 0 | R72: 0 | S72: 0 | T72: 504.885255 | U72: =MIN(T72,Eingabe!$B$35) -> 399.838442 | V72: 105.046813
B73: 2023-01-03T20:00:00 | C73: 21 | D73: 1 | E73: 2 | F73: Dienstag | G73: 3 | H73: 69 | I73: =VLOOKUP(G73,Tagesbasis!$E$12:$J$376,6)*HLOOKUP(Eingabe!$B$11,Stundenlastprofile!$B$2:$K$26,C73+1,FALSE) -> 472.6585366 | J73: =Wetterdaten!J70 -> 7.1 | K73: =Wetterdaten!G70/1000 -> 0 | L73: =MAX(0,Eingabe!$B$20*Stundenlastprofil_norm!K73-Eingabe!$B$21/1000*('VDI3988'!$C$16-Stundenlastprofil_norm!J73)-Eingabe!$B$22/1000*('VDI3988'!$C$16-Stundenlastprofil_norm!J73)^2) -> 0 | M73: 0 | N73: =M73*Eingabe!$B$23 -> 0 | O73: 0 | P73: 0 | Q73: =MIN(Q72-P73+O73,Stundenlastprofil_norm!$R$1) -> 0 | R73: 0 | S73: 0 | T73: 472.6585366 | U73: =MIN(T73,Eingabe!$B$35) -> 399.838442 | V73: 72.82009461
B74: 2023-01-03T21:00:00 | C74: 22 | D74: 1 | E74: 2 | F74: Dienstag | G74: 3 | H74: 70 | I74: =VLOOKUP(G74,Tagesbasis!$E$12:$J$376,6)*HLOOKUP(Eingabe!$B$11,Stundenlastprofile!$B$2:$K$26,C74+1,FALSE) -> 418.9473392 | J74: =Wetterdaten!J71 -> 6.8 | K74: =Wetterdaten!G71/1000 -> 0 | L74: =MAX(0,Eingabe!$B$20*Stundenlastprofil_norm!K74-Eingabe!$B$21/1000*('VDI3988'!$C$16-Stundenlastprofil_norm!J74)-Eingabe!$B$22/1000*('VDI3988'!$C$16-Stundenlastprofil_norm!J74)^2) -> 0 | M74: 0 | N74: =M74*Eingabe!$B$23 -> 0 | O74: 0 | P74: 0 | Q74: =MIN(Q73-P74+O74,Stundenlastprofil_norm!$R$1) -> 0 | R74: 0 | S74: 0 | T74: 418.9473392 | U74: =MIN(T74,Eingabe!$B$35) -> 399.838442 | V74: 19.10889727
B75: 2023-01-03T22:00:00 | C75: 23 | D75: 1 | E75: 2 | F75: Dienstag | G75: 3 | H75: 71 | I75: =VLOOKUP(G75,Tagesbasis!$E$12:$J$376,6)*HLOOKUP(Eingabe!$B$11,Stundenlastprofile!$B$2:$K$26,C75+1,FALSE) -> 397.4628603 | J75: =Wetterdaten!J72 -> 6.8 | K75: =Wetterdaten!G72/1000 -> 0 | L75: =MAX(0,Eingabe!$B$20*Stundenlastprofil_norm!K75-Eingabe!$B$21/1000*('VDI3988'!$C$16-Stundenlastprofil_norm!J75)-Eingabe!$B$22/1000*('VDI3988'!$C$16-Stundenlastprofil_norm!J75)^2) -> 0 | M75: 0 | N75: =M75*Eingabe!$B$23 -> 0 | O75: 0 | P75: 0 | Q75: =MIN(Q74-P75+O75,Stundenlastprofil_norm!$R$1) -> 0 | R75: 0 | S75: 0 | T75: 397.4628603 | U75: =MIN(T75,Eingabe!$B$35) -> 397.4628603 | V75: 0
B76: 2023-01-03T23:00:00 | C76: 24 | D76: 1 | E76: 2 | F76: Dienstag | G76: 3 | H76: 72 | I76: =VLOOKUP(G76,Tagesbasis!$E$12:$J$376,6)*HLOOKUP(Eingabe!$B$11,Stundenlastprofile!$B$2:$K$26,C76+1,FALSE) -> 375.9783814 | J76: =Wetterdaten!J73 -> 6.3 | K76: =Wetterdaten!G73/1000 -> 0 | L76: =MAX(0,Eingabe!$B$20*Stundenlastprofil_norm!K76-Eingabe!$B$21/1000*('VDI3988'!$C$16-Stundenlastprofil_norm!J76)-Eingabe!$B$22/1000*('VDI3988'!$C$16-Stundenlastprofil_norm!J76)^2) -> 0 | M76: 0 | N76: =M76*Eingabe!$B$23 -> 0 | O76: 0 | P76: 0 | Q76: =MIN(Q75-P76+O76,Stundenlastprofil_norm!$R$1) -> 0 | R76: 0 | S76: 0 | T76: 375.9783814 | U76: =MIN(T76,Eingabe!$B$35) -> 375.9783814 | V76: 0
B77: 2023-01-04 | C77: 1 | D77: 1 | E77: 3 | F77: Mittwoch | G77: 4 | H77: 73 | I77: =VLOOKUP(G77,Tagesbasis!$E$12:$J$376,6)*HLOOKUP(Eingabe!$B$11,Stundenlastprofile!$B$2:$K$26,C77+1,FALSE) -> 448.2858036 | J77: =Wetterdaten!J74 -> 6.1 | K77: =Wetterdaten!G74/1000 -> 0 | L77: =MAX(0,Eingabe!$B$20*Stundenlastprofil_norm!K77-Eingabe!$B$21/1000*('VDI3988'!$C$16-Stundenlastprofil_norm!J77)-Eingabe!$B$22/1000*('VDI3988'!$C$16-Stundenlastprofil_norm!J77)^2) -> 0 | M77: 0 | N77: =M77*Eingabe!$B$23 -> 0 | O77: 0 | P77: 0 | Q77: =MIN(Q76-P77+O77,Stundenlastprofil_norm!$R$1) -> 0 | R77: 0 | S77: 0 | T77: 448.2858036 | U77: =MIN(T77,Eingabe!$B$35) -> 399.838442 | V77: 48.44736164
B78: 2023-01-04T01:00:00 | C78: 2 | D78: 1 | E78: 3 | F78: Mittwoch | G78: 4 | H78: 74 | I78: =VLOOKUP(G78,Tagesbasis!$E$12:$J$376,6)*HLOOKUP(Eingabe!$B$11,Stundenlastprofile!$B$2:$K$26,C78+1,FALSE) -> 435.100927 | J78: =Wetterdaten!J75 -> 5.4 | K78: =Wetterdaten!G75/1000 -> 0 | L78: =MAX(0,Eingabe!$B$20*Stundenlastprofil_norm!K78-Eingabe!$B$21/1000*('VDI3988'!$C$16-Stundenlastprofil_norm!J78)-Eingabe!$B$22/1000*('VDI3988'!$C$16-Stundenlastprofil_norm!J78)^2) -> 0 | M78: 0 | N78: =M78*Eingabe!$B$23 -> 0 | O78: 0 | P78: 0 | Q78: =MIN(Q77-P78+O78,Stundenlastprofil_norm!$R$1) -> 0 | R78: 0 | S78: 0 | T78: 435.100927 | U78: =MIN(T78,Eingabe!$B$35) -> 399.838442 | V78: 35.26248506
B79: 2023-01-04T02:00:00 | C79: 3 | D79: 1 | E79: 3 | F79: Mittwoch | G79: 4 | H79: 75 | I79: =VLOOKUP(G79,Tagesbasis!$E$12:$J$376,6)*HLOOKUP(Eingabe!$B$11,Stundenlastprofile!$B$2:$K$26,C79+1,FALSE) -> 435.100927 | J79: =Wetterdaten!J76 -> 4.7 | K79: =Wetterdaten!G76/1000 -> 0 | L79: =MAX(0,Eingabe!$B$20*Stundenlastprofil_norm!K79-Eingabe!$B$21/1000*('VDI3988'!$C$16-Stundenlastprofil_norm!J79)-Eingabe!$B$22/1000*('VDI3988'!$C$16-Stundenlastprofil_norm!J79)^2) -> 0 | M79: 0 | N79: =M79*Eingabe!$B$23 -> 0 | O79: 0 | P79: 0 | Q79: =MIN(Q78-P79+O79,Stundenlastprofil_norm!$R$1) -> 0 | R79: 0 | S79: 0 | T79: 435.100927 | U79: =MIN(T79,Eingabe!$B$35) -> 399.838442 | V79: 35.26248506
B80: 2023-01-04T03:00:00 | C80: 4 | D80: 1 | E80: 3 | F80: Mittwoch | G80: 4 | H80: 76 | I80: =VLOOKUP(G80,Tagesbasis!$E$12:$J$376,6)*HLOOKUP(Eingabe!$B$11,Stundenlastprofile!$B$2:$K$26,C80+1,FALSE) -> 421.9160505 | J80: =Wetterdaten!J77 -> 4.3 | K80: =Wetterdaten!G77/1000 -> 0 | L80: =MAX(0,Eingabe!$B$20*Stundenlastprofil_norm!K80-Eingabe!$B$21/1000*('VDI3988'!$C$16-Stundenlastprofil_norm!J80)-Eingabe!$B$22/1000*('VDI3988'!$C$16-Stundenlastprofil_norm!J80)^2) -> 0 | M80: 0 | N80: =M80*Eingabe!$B$23 -> 0 | O80: 0 | P80: 0 | Q80: =MIN(Q79-P80+O80,Stundenlastprofil_norm!$R$1) -> 0 | R80: 0 | S80: 0 | T80: 421.9160505 | U80: =MIN(T80,Eingabe!$B$35) -> 399.838442 | V80: 22.07760849
B81: 2023-01-04T04:00:00 | C81: 5 | D81: 1 | E81: 3 | F81: Mittwoch | G81: 4 | H81: 77 | I81: =VLOOKUP(G81,Tagesbasis!$E$12:$J$376,6)*HLOOKUP(Eingabe!$B$11,Stundenlastprofile!$B$2:$K$26,C81+1,FALSE) -> 421.9160505 | J81: =Wetterdaten!J78 -> 4 | K81: =Wetterdaten!G78/1000 -> 0 | L81: =MAX(0,Eingabe!$B$20*Stundenlastprofil_norm!K81-Eingabe!$B$21/1000*('VDI3988'!$C$16-Stundenlastprofil_norm!J81)-Eingabe!$B$22/1000*('VDI3988'!$C$16-Stundenlastprofil_norm!J81)^2) -> 0 | M81: 0 | N81: =M81*Eingabe!$B$23 -> 0 | O81: 0 | P81: 0 | Q81: =MIN(Q80-P81+O81,Stundenlastprofil_norm!$R$1) -> 0 | R81: 0 | S81: 0 | T81: 421.9160505 | U81: =MIN(T81,Eingabe!$B$35) -> 399.838442 | V81: 22.07760849
B82: 2023-01-04T05:00:00 | C82: 6 | D82: 1 | E82: 3 | F82: Mittwoch | G82: 4 | H82: 78 | I82: =VLOOKUP(G82,Tagesbasis!$E$12:$J$376,6)*HLOOKUP(Eingabe!$B$11,Stundenlastprofile!$B$2:$K$26,C82+1,FALSE) -> 408.7311739 | J82: =Wetterdaten!J79 -> 3.6 | K82: =Wetterdaten!G79/1000 -> 0 | L82: =MAX(0,Eingabe!$B$20*Stundenlastprofil_norm!K82-Eingabe!$B$21/1000*('VDI3988'!$C$16-Stundenlastprofil_norm!J82)-Eingabe!$B$22/1000*('VDI3988'!$C$16-Stundenlastprofil_norm!J82)^2) -> 0 | M82: 0 | N82: =M82*Eingabe!$B$23 -> 0 | O82: 0 | P82: 0 | Q82: =MIN(Q81-P82+O82,Stundenlastprofil_norm!$R$1) -> 0 | R82: 0 | S82: 0 | T82: 408.7311739 | U82: =MIN(T82,Eingabe!$B$35) -> 399.838442 | V82: 8.892731908
B83: 2023-01-04T06:00:00 | C83: 7 | D83: 1 | E83: 3 | F83: Mittwoch | G83: 4 | H83: 79 | I83: =VLOOKUP(G83,Tagesbasis!$E$12:$J$376,6)*HLOOKUP(Eingabe!$B$11,Stundenlastprofile!$B$2:$K$26,C83+1,FALSE) -> 474.6555568 | J83: =Wetterdaten!J80 -> 3.3 | K83: =Wetterdaten!G80/1000 -> 0 | L83: =MAX(0,Eingabe!$B$20*Stundenlastprofil_norm!K83-Eingabe!$B$21/1000*('VDI3988'!$C$16-Stundenlastprofil_norm!J83)-Eingabe!$B$22/1000*('VDI3988'!$C$16-Stundenlastprofil_norm!J83)^2) -> 0 | M83: 0 | N83: =M83*Eingabe!$B$23 -> 0 | O83: 0 | P83: 0 | Q83: =MIN(Q82-P83+O83,Stundenlastprofil_norm!$R$1) -> 0 | R83: 0 | S83: 0 | T83: 474.6555568 | U83: =MIN(T83,Eingabe!$B$35) -> 399.838442 | V83: 74.81711479
B84: 2023-01-04T07:00:00 | C84: 8 | D84: 1 | E84: 3 | F84: Mittwoch | G84: 4 | H84: 80 | I84: =VLOOKUP(G84,Tagesbasis!$E$12:$J$376,6)*HLOOKUP(Eingabe!$B$11,Stundenlastprofile!$B$2:$K$26,C84+1,FALSE) -> 501.0253099 | J84: =Wetterdaten!J81 -> 3.1 | K84: =Wetterdaten!G81/1000 -> 0 | L84: =MAX(0,Eingabe!$B$20*Stundenlastprofil_norm!K84-Eingabe!$B$21/1000*('VDI3988'!$C$16-Stundenlastprofil_norm!J84)-Eingabe!$B$22/1000*('VDI3988'!$C$16-Stundenlastprofil_norm!J84)^2) -> 0 | M84: 0 | N84: =M84*Eingabe!$B$23 -> 0 | O84: 0 | P84: 0 | Q84: =MIN(Q83-P84+O84,Stundenlastprofil_norm!$R$1) -> 0 | R84: 0 | S84: 0 | T84: 501.0253099 | U84: =MIN(T84,Eingabe!$B$35) -> 399.838442 | V84: 101.1868679
B85: 2023-01-04T08:00:00 | C85: 9 | D85: 1 | E85: 3 | F85: Mittwoch | G85: 4 | H85: 81 | I85: =VLOOKUP(G85,Tagesbasis!$E$12:$J$376,6)*HLOOKUP(Eingabe!$B$11,Stundenlastprofile!$B$2:$K$26,C85+1,FALSE) -> 566.9496928 | J85: =Wetterdaten!J82 -> 3.1 | K85: =Wetterdaten!G82/1000 -> 0 | L85: =MAX(0,Eingabe!$B$20*Stundenlastprofil_norm!K85-Eingabe!$B$21/1000*('VDI3988'!$C$16-Stundenlastprofil_norm!J85)-Eingabe!$B$22/1000*('VDI3988'!$C$16-Stundenlastprofil_norm!J85)^2) -> 0 | M85: 0 | N85: =M85*Eingabe!$B$23 -> 0 | O85: 0 | P85: 0 | Q85: =MIN(Q84-P85+O85,Stundenlastprofil_norm!$R$1) -> 0 | R85: 0 | S85: 0 | T85: 566.9496928 | U85: =MIN(T85,Eingabe!$B$35) -> 399.838442 | V85: 167.1112508
B86: 2023-01-04T09:00:00 | C86: 10 | D86: 1 | E86: 3 | F86: Mittwoch | G86: 4 | H86: 82 | I86: =VLOOKUP(G86,Tagesbasis!$E$12:$J$376,6)*HLOOKUP(Eingabe!$B$11,Stundenlastprofile!$B$2:$K$26,C86+1,FALSE) -> 646.0589523 | J86: =Wetterdaten!J83 -> 3.5 | K86: =Wetterdaten!G83/1000 -> 0.025 | L86: =MAX(0,Eingabe!$B$20*Stundenlastprofil_norm!K86-Eingabe!$B$21/1000*('VDI3988'!$C$16-Stundenlastprofil_norm!J86)-Eingabe!$B$22/1000*('VDI3988'!$C$16-Stundenlastprofil_norm!J86)^2) -> 0 | M86: 0 | N86: =M86*Eingabe!$B$23 -> 0 | O86: 0 | P86: 0 | Q86: =MIN(Q85-P86+O86,Stundenlastprofil_norm!$R$1) -> 0 | R86: 0 | S86: 0 | T86: 646.0589523 | U86: =MIN(T86,Eingabe!$B$35) -> 399.838442 | V86: 246.2205103
B87: 2023-01-04T10:00:00 | C87: 11 | D87: 1 | E87: 3 | F87: Mittwoch | G87: 4 | H87: 83 | I87: =VLOOKUP(G87,Tagesbasis!$E$12:$J$376,6)*HLOOKUP(Eingabe!$B$11,Stundenlastprofile!$B$2:$K$26,C87+1,FALSE) -> 659.2438288 | J87: =Wetterdaten!J84 -> 3.8 | K87: =Wetterdaten!G84/1000 -> 0.038 | L87: =MAX(0,Eingabe!$B$20*Stundenlastprofil_norm!K87-Eingabe!$B$21/1000*('VDI3988'!$C$16-Stundenlastprofil_norm!J87)-Eingabe!$B$22/1000*('VDI3988'!$C$16-Stundenlastprofil_norm!J87)^2) -> 0 | M87: 0 | N87: =M87*Eingabe!$B$23 -> 0 | O87: 0 | P87: 0 | Q87: =MIN(Q86-P87+O87,Stundenlastprofil_norm!$R$1) -> 0 | R87: 0 | S87: 0 | T87: 659.2438288 | U87: =MIN(T87,Eingabe!$B$35) -> 399.838442 | V87: 259.4053869
B88: 2023-01-04T11:00:00 | C88: 12 | D88: 1 | E88: 3 | F88: Mittwoch | G88: 4 | H88: 84 | I88: =VLOOKUP(G88,Tagesbasis!$E$12:$J$376,6)*HLOOKUP(Eingabe!$B$11,Stundenlastprofile!$B$2:$K$26,C88+1,FALSE) -> 672.4287054 | J88: =Wetterdaten!J85 -> 4.2 | K88: =Wetterdaten!G85/1000 -> 0.068 | L88: =MAX(0,Eingabe!$B$20*Stundenlastprofil_norm!K88-Eingabe!$B$21/1000*('VDI3988'!$C$16-Stundenlastprofil_norm!J88)-Eingabe!$B$22/1000*('VDI3988'!$C$16-Stundenlastprofil_norm!J88)^2) -> 0 | M88: 0 | N88: =M88*Eingabe!$B$23 -> 0 | O88: 0 | P88: 0 | Q88: =MIN(Q87-P88+O88,Stundenlastprofil_norm!$R$1) -> 0 | R88: 0 | S88: 0 | T88: 672.4287054 | U88: =MIN(T88,Eingabe!$B$35) -> 399.838442 | V88: 272.5902634
B89: 2023-01-04T12:00:00 | C89: 13 | D89: 1 | E89: 3 | F89: Mittwoch | G89: 4 | H89: 85 | I89: =VLOOKUP(G89,Tagesbasis!$E$12:$J$376,6)*HLOOKUP(Eingabe!$B$11,Stundenlastprofile!$B$2:$K$26,C89+1,FALSE) -> 672.4287054 | J89: =Wetterdaten!J86 -> 4.6 | K89: =Wetterdaten!G86/1000 -> 0.094 | L89: =MAX(0,Eingabe!$B$20*Stundenlastprofil_norm!K89-Eingabe!$B$21/1000*('VDI3988'!$C$16-Stundenlastprofil_norm!J89)-Eingabe!$B$22/1000*('VDI3988'!$C$16-Stundenlastprofil_norm!J89)^2) -> 0 | M89: 0 | N89: =M89*Eingabe!$B$23 -> 0 | O89: 0 | P89: 0 | Q89: =MIN(Q88-P89+O89,Stundenlastprofil_norm!$R$1) -> 0 | R89: 0 | S89: 0 | T89: 672.4287054 | U89: =MIN(T89,Eingabe!$B$35) -> 399.838442 | V89: 272.5902634
B90: 2023-01-04T13:00:00 | C90: 14 | D90: 1 | E90: 3 | F90: Mittwoch | G90: 4 | H90: 86 | I90: =VLOOKUP(G90,Tagesbasis!$E$12:$J$376,6)*HLOOKUP(Eingabe!$B$11,Stundenlastprofile!$B$2:$K$26,C90+1,FALSE) -> 632.8740757 | J90: =Wetterdaten!J87 -> 4.8 | K90: =Wetterdaten!G87/1000 -> 0.079 | L90: =MAX(0,Eingabe!$B$20*Stundenlastprofil_norm!K90-Eingabe!$B$21/1000*('VDI3988'!$C$16-Stundenlastprofil_norm!J90)-Eingabe!$B$22/1000*('VDI3988'!$C$16-Stundenlastprofil_norm!J90)^2) -> 0 | M90: 0 | N90: =M90*Eingabe!$B$23 -> 0 | O90: 0 | P90: 0 | Q90: =MIN(Q89-P90+O90,Stundenlastprofil_norm!$R$1) -> 0 | R90: 0 | S90: 0 | T90: 632.8740757 | U90: =MIN(T90,Eingabe!$B$35) -> 399.838442 | V90: 233.0356337
B91: 2023-01-04T14:00:00 | C91: 15 | D91: 1 | E91: 3 | F91: Mittwoch | G91: 4 | H91: 87 | I91: =VLOOKUP(G91,Tagesbasis!$E$12:$J$376,6)*HLOOKUP(Eingabe!$B$11,Stundenlastprofile!$B$2:$K$26,C91+1,FALSE) -> 593.319446 | J91: =Wetterdaten!J88 -> 4.9 | K91: =Wetterdaten!G88/1000 -> 0.129 | L91: =MAX(0,Eingabe!$B$20*Stundenlastprofil_norm!K91-Eingabe!$B$21/1000*('VDI3988'!$C$16-Stundenlastprofil_norm!J91)-Eingabe!$B$22/1000*('VDI3988'!$C$16-Stundenlastprofil_norm!J91)^2) -> 0 | M91: 0 | N91: =M91*Eingabe!$B$23 -> 0 | O91: 0 | P91: 0 | Q91: =MIN(Q90-P91+O91,Stundenlastprofil_norm!$R$1) -> 0 | R91: 0 | S91: 0 | T91: 593.319446 | U91: =MIN(T91,Eingabe!$B$35) -> 399.838442 | V91: 193.481004
B92: 2023-01-04T15:00:00 | C92: 16 | D92: 1 | E92: 3 | F92: Mittwoch | G92: 4 | H92: 88 | I92: =VLOOKUP(G92,Tagesbasis!$E$12:$J$376,6)*HLOOKUP(Eingabe!$B$11,Stundenlastprofile!$B$2:$K$26,C92+1,FALSE) -> 619.6891991 | J92: =Wetterdaten!J89 -> 4.6 | K92: =Wetterdaten!G89/1000 -> 0.023 | L92: =MAX(0,Eingabe!$B$20*Stundenlastprofil_norm!K92-Eingabe!$B$21/1000*('VDI3988'!$C$16-Stundenlastprofil_norm!J92)-Eingabe!$B$22/1000*('VDI3988'!$C$16-Stundenlastprofil_norm!J92)^2) -> 0 | M92: 0 | N92: =M92*Eingabe!$B$23 -> 0 | O92: 0 | P92: 0 | Q92: =MIN(Q91-P92+O92,Stundenlastprofil_norm!$R$1) -> 0 | R92: 0 | S92: 0 | T92: 619.6891991 | U92: =MIN(T92,Eingabe!$B$35) -> 399.838442 | V92: 219.8507571
B93: 2023-01-04T16:00:00 | C93: 17 | D93: 1 | E93: 3 | F93: Mittwoch | G93: 4 | H93: 89 | I93: =VLOOKUP(G93,Tagesbasis!$E$12:$J$376,6)*HLOOKUP(Eingabe!$B$11,Stundenlastprofile!$B$2:$K$26,C93+1,FALSE) -> 632.8740757 | J93: =Wetterdaten!J90 -> 4.2 | K93: =Wetterdaten!G90/1000 -> 0 | L93: =MAX(0,Eingabe!$B$20*Stundenlastprofil_norm!K93-Eingabe!$B$21/1000*('VDI3988'!$C$16-Stundenlastprofil_norm!J93)-Eingabe!$B$22/1000*('VDI3988'!$C$16-Stundenlastprofil_norm!J93)^2) -> 0 | M93: 0 | N93: =M93*Eingabe!$B$23 -> 0 | O93: 0 | P93: 0 | Q93: =MIN(Q92-P93+O93,Stundenlastprofil_norm!$R$1) -> 0 | R93: 0 | S93: 0 | T93: 632.8740757 | U93: =MIN(T93,Eingabe!$B$35) -> 399.838442 | V93: 233.0356337
B94: 2023-01-04T17:00:00 | C94: 18 | D94: 1 | E94: 3 | F94: Mittwoch | G94: 4 | H94: 90 | I94: =VLOOKUP(G94,Tagesbasis!$E$12:$J$376,6)*HLOOKUP(Eingabe!$B$11,Stundenlastprofile!$B$2:$K$26,C94+1,FALSE) -> 646.0589523 | J94: =Wetterdaten!J91 -> 3.6 | K94: =Wetterdaten!G91/1000 -> 0 | L94: =MAX(0,Eingabe!$B$20*Stundenlastprofil_norm!K94-Eingabe!$B$21/1000*('VDI3988'!$C$16-Stundenlastprofil_norm!J94)-Eingabe!$B$22/1000*('VDI3988'!$C$16-Stundenlastprofil_norm!J94)^2) -> 0 | M94: 0 | N94: =M94*Eingabe!$B$23 -> 0 | O94: 0 | P94: 0 | Q94: =MIN(Q93-P94+O94,Stundenlastprofil_norm!$R$1) -> 0 | R94: 0 | S94: 0 | T94: 646.0589523 | U94: =MIN(T94,Eingabe!$B$35) -> 399.838442 | V94: 246.2205103
B95: 2023-01-04T18:00:00 | C95: 19 | D95: 1 | E95: 3 | F95: Mittwoch | G95: 4 | H95: 91 | I95: =VLOOKUP(G95,Tagesbasis!$E$12:$J$376,6)*HLOOKUP(Eingabe!$B$11,Stundenlastprofile!$B$2:$K$26,C95+1,FALSE) -> 646.0589523 | J95: =Wetterdaten!J92 -> 3.1 | K95: =Wetterdaten!G92/1000 -> 0 | L95: =MAX(0,Eingabe!$B$20*Stundenlastprofil_norm!K95-Eingabe!$B$21/1000*('VDI3988'!$C$16-Stundenlastprofil_norm!J95)-Eingabe!$B$22/1000*('VDI3988'!$C$16-Stundenlastprofil_norm!J95)^2) -> 0 | M95: 0 | N95: =M95*Eingabe!$B$23 -> 0 | O95: 0 | P95: 0 | Q95: =MIN(Q94-P95+O95,Stundenlastprofil_norm!$R$1) -> 0 | R95: 0 | S95: 0 | T95: 646.0589523 | U95: =MIN(T95,Eingabe!$B$35) -> 399.838442 | V95: 246.2205103
B96: 2023-01-04T19:00:00 | C96: 20 | D96: 1 | E96: 3 | F96: Mittwoch | G96: 4 | H96: 92 | I96: =VLOOKUP(G96,Tagesbasis!$E$12:$J$376,6)*HLOOKUP(Eingabe!$B$11,Stundenlastprofile!$B$2:$K$26,C96+1,FALSE) -> 619.6891991 | J96: =Wetterdaten!J93 -> 2.6 | K96: =Wetterdaten!G93/1000 -> 0 | L96: =MAX(0,Eingabe!$B$20*Stundenlastprofil_norm!K96-Eingabe!$B$21/1000*('VDI3988'!$C$16-Stundenlastprofil_norm!J96)-Eingabe!$B$22/1000*('VDI3988'!$C$16-Stundenlastprofil_norm!J96)^2) -> 0 | M96: 0 | N96: =M96*Eingabe!$B$23 -> 0 | O96: 0 | P96: 0 | Q96: =MIN(Q95-P96+O96,Stundenlastprofil_norm!$R$1) -> 0 | R96: 0 | S96: 0 | T96: 619.6891991 | U96: =MIN(T96,Eingabe!$B$35) -> 399.838442 | V96: 219.8507571
B97: 2023-01-04T20:00:00 | C97: 21 | D97: 1 | E97: 3 | F97: Mittwoch | G97: 4 | H97: 93 | I97: =VLOOKUP(G97,Tagesbasis!$E$12:$J$376,6)*HLOOKUP(Eingabe!$B$11,Stundenlastprofile!$B$2:$K$26,C97+1,FALSE) -> 580.1345694 | J97: =Wetterdaten!J94 -> 2.1 | K97: =Wetterdaten!G94/1000 -> 0 | L97: =MAX(0,Eingabe!$B$20*Stundenlastprofil_norm!K97-Eingabe!$B$21/1000*('VDI3988'!$C$16-Stundenlastprofil_norm!J97)-Eingabe!$B$22/1000*('VDI3988'!$C$16-Stundenlastprofil_norm!J97)^2) -> 0 | M97: 0 | N97: =M97*Eingabe!$B$23 -> 0 | O97: 0 | P97: 0 | Q97: =MIN(Q96-P97+O97,Stundenlastprofil_norm!$R$1) -> 0 | R97: 0 | S97: 0 | T97: 580.1345694 | U97: =MIN(T97,Eingabe!$B$35) -> 399.838442 | V97: 180.2961274
B98: 2023-01-04T21:00:00 | C98: 22 | D98: 1 | E98: 3 | F98: Mittwoch | G98: 4 | H98: 94 | I98: =VLOOKUP(G98,Tagesbasis!$E$12:$J$376,6)*HLOOKUP(Eingabe!$B$11,Stundenlastprofile!$B$2:$K$26,C98+1,FALSE) -> 514.2101865 | J98: =Wetterdaten!J95 -> 1.6 | K98: =Wetterdaten!G95/1000 -> 0 | L98: =MAX(0,Eingabe!$B$20*Stundenlastprofil_norm!K98-Eingabe!$B$21/1000*('VDI3988'!$C$16-Stundenlastprofil_norm!J98)-Eingabe!$B$22/1000*('VDI3988'!$C$16-Stundenlastprofil_norm!J98)^2) -> 0 | M98: 0 | N98: =M98*Eingabe!$B$23 -> 0 | O98: 0 | P98: 0 | Q98: =MIN(Q97-P98+O98,Stundenlastprofil_norm!$R$1) -> 0 | R98: 0 | S98: 0 | T98: 514.2101865 | U98: =MIN(T98,Eingabe!$B$35) -> 399.838442 | V98: 114.3717445
B99: 2023-01-04T22:00:00 | C99: 23 | D99: 1 | E99: 3 | F99: Mittwoch | G99: 4 | H99: 95 | I99: =VLOOKUP(G99,Tagesbasis!$E$12:$J$376,6)*HLOOKUP(Eingabe!$B$11,Stundenlastprofile!$B$2:$K$26,C99+1,FALSE) -> 487.8404333 | J99: =Wetterdaten!J96 -> 1.1 | K99: =Wetterdaten!G96/1000 -> 0 | L99: =MAX(0,Eingabe!$B$20*Stundenlastprofil_norm!K99-Eingabe!$B$21/1000*('VDI3988'!$C$16-Stundenlastprofil_norm!J99)-Eingabe!$B$22/1000*('VDI3988'!$C$16-Stundenlastprofil_norm!J99)^2) -> 0 | M99: 0 | N99: =M99*Eingabe!$B$23 -> 0 | O99: 0 | P99: 0 | Q99: =MIN(Q98-P99+O99,Stundenlastprofil_norm!$R$1) -> 0 | R99: 0 | S99: 0 | T99: 487.8404333 | U99: =MIN(T99,Eingabe!$B$35) -> 399.838442 | V99: 88.00199137
B100: 2023-01-04T23:00:00 | C100: 24 | D100: 1 | E100: 3 | F100: Mittwoch | G100: 4 | H100: 96 | I100: =VLOOKUP(G100,Tagesbasis!$E$12:$J$376,6)*HLOOKUP(Eingabe!$B$11,Stundenlastprofile!$B$2:$K$26,C100+1,FALSE) -> 461.4706802 | J100: =Wetterdaten!J97 -> 0.5 | K100: =Wetterdaten!G97/1000 -> 0 | L100: =MAX(0,Eingabe!$B$20*Stundenlastprofil_norm!K100-Eingabe!$B$21/1000*('VDI3988'!$C$16-Stundenlastprofil_norm!J100)-Eingabe!$B$22/1000*('VDI3988'!$C$16-Stundenlastprofil_norm!J100)^2) -> 0 | M100: 0 | N100: =M100*Eingabe!$B$23 -> 0 | O100: 0 | P100: 0 | Q100: =MIN(Q99-P100+O100,Stundenlastprofil_norm!$R$1) -> 0 | R100: 0 | S100: 0 | T100: 461.4706802 | U100: =MIN(T100,Eingabe!$B$35) -> 399.838442 | V100: 61.63223822
B101: 2023-01-05 | C101: 1 | D101: 1 | E101: 4 | F101: Donnerstag | G101: 5 | H101: 97 | I101: =VLOOKUP(G101,Tagesbasis!$E$12:$J$376,6)*HLOOKUP(Eingabe!$B$11,Stundenlastprofile!$B$2:$K$26,C101+1,FALSE) -> 503.4005791 | J101: =Wetterdaten!J98 -> 0.1 | K101: =Wetterdaten!G98/1000 -> 0 | L101: =MAX(0,Eingabe!$B$20*Stundenlastprofil_norm!K101-Eingabe!$B$21/1000*('VDI3988'!$C$16-Stundenlastprofil_norm!J101)-Eingabe!$B$22/1000*('VDI3988'!$C$16-Stundenlastprofil_norm!J101)^2) -> 0 | M101: 0 | N101: =M101*Eingabe!$B$23 -> 0 | O101: 0 | P101: 0 | Q101: =MIN(Q100-P101+O101,Stundenlastprofil_norm!$R$1) -> 0 | R101: 0 | S101: 0 | T101: 503.4005791 | U101: =MIN(T101,Eingabe!$B$35) -> 399.838442 | V101: 103.5621371
B102: 2023-01-05T01:00:00 | C102: 2 | D102: 1 | E102: 4 | F102: Donnerstag | G102: 5 | H102: 98 | I102: =VLOOKUP(G102,Tagesbasis!$E$12:$J$376,6)*HLOOKUP(Eingabe!$B$11,Stundenlastprofile!$B$2:$K$26,C102+1,FALSE) -> 488.5946797 | J102: =Wetterdaten!J99 -> -0.3 | K102: =Wetterdaten!G99/1000 -> 0 | L102: =MAX(0,Eingabe!$B$20*Stundenlastprofil_norm!K102-Eingabe!$B$21/1000*('VDI3988'!$C$16-Stundenlastprofil_norm!J102)-Eingabe!$B$22/1000*('VDI3988'!$C$16-Stundenlastprofil_norm!J102)^2) -> 0 | M102: 0 | N102: =M102*Eingabe!$B$23 -> 0 | O102: 0 | P102: 0 | Q102: =MIN(Q101-P102+O102,Stundenlastprofil_norm!$R$1) -> 0 | R102: 0 | S102: 0 | T102: 488.5946797 | U102: =MIN(T102,Eingabe!$B$35) -> 399.838442 | V102: 88.75623775
B103: 2023-01-05T02:00:00 | C103: 3 | D103: 1 | E103: 4 | F103: Donnerstag | G103: 5 | H103: 99 | I103: =VLOOKUP(G103,Tagesbasis!$E$12:$J$376,6)*HLOOKUP(Eingabe!$B$11,Stundenlastprofile!$B$2:$K$26,C103+1,FALSE) -> 488.5946797 | J103: =Wetterdaten!J100 -> -0.7 | K103: =Wetterdaten!G100/1000 -> 0 | L103: =MAX(0,Eingabe!$B$20*Stundenlastprofil_norm!K103-Eingabe!$B$21/1000*('VDI3988'!$C$16-Stundenlastprofil_norm!J103)-Eingabe!$B$22/1000*('VDI3988'!$C$16-Stundenlastprofil_norm!J103)^2) -> 0 | M103: 0 | N103: =M103*Eingabe!$B$23 -> 0 | O103: 0 | P103: 0 | Q103: =MIN(Q102-P103+O103,Stundenlastprofil_norm!$R$1) -> 0 | R103: 0 | S103: 0 | T103: 488.5946797 | U103: =MIN(T103,Eingabe!$B$35) -> 399.838442 | V103: 88.75623775
B104: 2023-01-05T03:00:00 | C104: 4 | D104: 1 | E104: 4 | F104: Donnerstag | G104: 5 | H104: 100 | I104: =VLOOKUP(G104,Tagesbasis!$E$12:$J$376,6)*HLOOKUP(Eingabe!$B$11,Stundenlastprofile!$B$2:$K$26,C104+1,FALSE) -> 473.7887803 | J104: =Wetterdaten!J101 -> -0.9 | K104: =Wetterdaten!G101/1000 -> 0 | L104: =MAX(0,Eingabe!$B$20*Stundenlastprofil_norm!K104-Eingabe!$B$21/1000*('VDI3988'!$C$16-Stundenlastprofil_norm!J104)-Eingabe!$B$22/1000*('VDI3988'!$C$16-Stundenlastprofil_norm!J104)^2) -> 0 | M104: 0 | N104: =M104*Eingabe!$B$23 -> 0 | O104: 0 | P104: 0 | Q104: =MIN(Q103-P104+O104,Stundenlastprofil_norm!$R$1) -> 0 | R104: 0 | S104: 0 | T104: 473.7887803 | U104: =MIN(T104,Eingabe!$B$35) -> 399.838442 | V104: 73.95033837
B105: 2023-01-05T04:00:00 | C105: 5 | D105: 1 | E105: 4 | F105: Donnerstag | G105: 5 | H105: 101 | I105: =VLOOKUP(G105,Tagesbasis!$E$12:$J$376,6)*HLOOKUP(Eingabe!$B$11,Stundenlastprofile!$B$2:$K$26,C105+1,FALSE) -> 473.7887803 | J105: =Wetterdaten!J102 -> -1.1 | K105: =Wetterdaten!G102/1000 -> 0 | L105: =MAX(0,Eingabe!$B$20*Stundenlastprofil_norm!K105-Eingabe!$B$21/1000*('VDI3988'!$C$16-Stundenlastprofil_norm!J105)-Eingabe!$B$22/1000*('VDI3988'!$C$16-Stundenlastprofil_norm!J105)^2) -> 0 | M105: 0 | N105: =M105*Eingabe!$B$23 -> 0 | O105: 0 | P105: 0 | Q105: =MIN(Q104-P105+O105,Stundenlastprofil_norm!$R$1) -> 0 | R105: 0 | S105: 0 | T105: 473.7887803 | U105: =MIN(T105,Eingabe!$B$35) -> 399.838442 | V105: 73.95033837
B106: 2023-01-05T05:00:00 | C106: 6 | D106: 1 | E106: 4 | F106: Donnerstag | G106: 5 | H106: 102 | I106: =VLOOKUP(G106,Tagesbasis!$E$12:$J$376,6)*HLOOKUP(Eingabe!$B$11,Stundenlastprofile!$B$2:$K$26,C106+1,FALSE) -> 458.982881 | J106: =Wetterdaten!J103 -> -1.3 | K106: =Wetterdaten!G103/1000 -> 0 | L106: =MAX(0,Eingabe!$B$20*Stundenlastprofil_norm!K106-Eingabe!$B$21/1000*('VDI3988'!$C$16-Stundenlastprofil_norm!J106)-Eingabe!$B$22/1000*('VDI3988'!$C$16-Stundenlastprofil_norm!J106)^2) -> 0 | M106: 0 | N106: =M106*Eingabe!$B$23 -> 0 | O106: 0 | P106: 0 | Q106: =MIN(Q105-P106+O106,Stundenlastprofil_norm!$R$1) -> 0 | R106: 0 | S106: 0 | T106: 458.982881 | U106: =MIN(T106,Eingabe!$B$35) -> 399.838442 | V106: 59.14443898
B107: 2023-01-05T06:00:00 | C107: 7 | D107: 1 | E107: 4 | F107: Donnerstag | G107: 5 | H107: 103 | I107: =VLOOKUP(G107,Tagesbasis!$E$12:$J$376,6)*HLOOKUP(Eingabe!$B$11,Stundenlastprofile!$B$2:$K$26,C107+1,FALSE) -> 533.0123779 | J107: =Wetterdaten!J104 -> -1.5 | K107: =Wetterdaten!G104/1000 -> 0 | L107: =MAX(0,Eingabe!$B$20*Stundenlastprofil_norm!K107-Eingabe!$B$21/1000*('VDI3988'!$C$16-Stundenlastprofil_norm!J107)-Eingabe!$B$22/1000*('VDI3988'!$C$16-Stundenlastprofil_norm!J107)^2) -> 0 | M107: 0 | N107: =M107*Eingabe!$B$23 -> 0 | O107: 0 | P107: 0 | Q107: =MIN(Q106-P107+O107,Stundenlastprofil_norm!$R$1) -> 0 | R107: 0 | S107: 0 | T107: 533.0123779 | U107: =MIN(T107,Eingabe!$B$35) -> 399.838442 | V107: 133.1739359
B108: 2023-01-05T07:00:00 | C108: 8 | D108: 1 | E108: 4 | F108: Donnerstag | G108: 5 | H108: 104 | I108: =VLOOKUP(G108,Tagesbasis!$E$12:$J$376,6)*HLOOKUP(Eingabe!$B$11,Stundenlastprofile!$B$2:$K$26,C108+1,FALSE) -> 562.6241767 | J108: =Wetterdaten!J105 -> -1.6 | K108: =Wetterdaten!G105/1000 -> 0 | L108: =MAX(0,Eingabe!$B$20*Stundenlastprofil_norm!K108-Eingabe!$B$21/1000*('VDI3988'!$C$16-Stundenlastprofil_norm!J108)-Eingabe!$B$22/1000*('VDI3988'!$C$16-Stundenlastprofil_norm!J108)^2) -> 0 | M108: 0 | N108: =M108*Eingabe!$B$23 -> 0 | O108: 0 | P108: 0 | Q108: =MIN(Q107-P108+O108,Stundenlastprofil_norm!$R$1) -> 0 | R108: 0 | S108: 0 | T108: 562.6241767 | U108: =MIN(T108,Eingabe!$B$35) -> 399.838442 | V108: 162.7857347
B109: 2023-01-05T08:00:00 | C109: 9 | D109: 1 | E109: 4 | F109: Donnerstag | G109: 5 | H109: 105 | I109: =VLOOKUP(G109,Tagesbasis!$E$12:$J$376,6)*HLOOKUP(Eingabe!$B$11,Stundenlastprofile!$B$2:$K$26,C109+1,FALSE) -> 636.6536736 | J109: =Wetterdaten!J106 -> -1.5 | K109: =Wetterdaten!G106/1000 -> 0.001 | L109: =MAX(0,Eingabe!$B$20*Stundenlastprofil_norm!K109-Eingabe!$B$21/1000*('VDI3988'!$C$16-Stundenlastprofil_norm!J109)-Eingabe!$B$22/1000*('VDI3988'!$C$16-Stundenlastprofil_norm!J109)^2) -> 0 | M109: 0 | N109: =M109*Eingabe!$B$23 -> 0 | O109: 0 | P109: 0 | Q109: =MIN(Q108-P109+O109,Stundenlastprofil_norm!$R$1) -> 0 | R109: 0 | S109: 0 | T109: 636.6536736 | U109: =MIN(T109,Eingabe!$B$35) -> 399.838442 | V109: 236.8152316
B110: 2023-01-05T09:00:00 | C110: 10 | D110: 1 | E110: 4 | F110: Donnerstag | G110: 5 | H110: 106 | I110: =VLOOKUP(G110,Tagesbasis!$E$12:$J$376,6)*HLOOKUP(Eingabe!$B$11,Stundenlastprofile!$B$2:$K$26,C110+1,FALSE) -> 725.4890699 | J110: =Wetterdaten!J107 -> 0.5 | K110: =Wetterdaten!G107/1000 -> 0.236 | L110: =MAX(0,Eingabe!$B$20*Stundenlastprofil_norm!K110-Eingabe!$B$21/1000*('VDI3988'!$C$16-Stundenlastprofil_norm!J110)-Eingabe!$B$22/1000*('VDI3988'!$C$16-Stundenlastprofil_norm!J110)^2) -> 0 | M110: 0 | N110: =M110*Eingabe!$B$23 -> 0 | O110: 0 | P110: 0 | Q110: =MIN(Q109-P110+O110,Stundenlastprofil_norm!$R$1) -> 0 | R110: 0 | S110: 0 | T110: 725.4890699 | U110: =MIN(T110,Eingabe!$B$35) -> 399.838442 | V110: 325.6506279
B111: 2023-01-05T10:00:00 | C111: 11 | D111: 1 | E111: 4 | F111: Donnerstag | G111: 5 | H111: 107 | I111: =VLOOKUP(G111,Tagesbasis!$E$12:$J$376,6)*HLOOKUP(Eingabe!$B$11,Stundenlastprofile!$B$2:$K$26,C111+1,FALSE) -> 740.2949693 | J111: =Wetterdaten!J108 -> 2.6 | K111: =Wetterdaten!G108/1000 -> 0.377 | L111: =MAX(0,Eingabe!$B$20*Stundenlastprofil_norm!K111-Eingabe!$B$21/1000*('VDI3988'!$C$16-Stundenlastprofil_norm!J111)-Eingabe!$B$22/1000*('VDI3988'!$C$16-Stundenlastprofil_norm!J111)^2) -> 0.11302288 | M111: 0.08072874337 | N111: =M111*Eingabe!$B$23 -> 51.98931073 | O111: 0 | P111: 0 | Q111: =MIN(Q110-P111+O111,Stundenlastprofil_norm!$R$1) -> 0 | R111: 0 | S111: 51.98931073 | T111: 688.3056585 | U111: =MIN(T111,Eingabe!$B$35) -> 399.838442 | V111: 288.4672166
B112: 2023-01-05T11:00:00 | C112: 12 | D112: 1 | E112: 4 | F112: Donnerstag | G112: 5 | H112: 108 | I112: =VLOOKUP(G112,Tagesbasis!$E$12:$J$376,6)*HLOOKUP(Eingabe!$B$11,Stundenlastprofile!$B$2:$K$26,C112+1,FALSE) -> 755.1008687 | J112: =Wetterdaten!J109 -> 4.2 | K112: =Wetterdaten!G109/1000 -> 0.442 | L112: =MAX(0,Eingabe!$B$20*Stundenlastprofil_norm!K112-Eingabe!$B$21/1000*('VDI3988'!$C$16-Stundenlastprofil_norm!J112)-Eingabe!$B$22/1000*('VDI3988'!$C$16-Stundenlastprofil_norm!J112)^2) -> 0.17201632 | M112: 0.1228659308 | N112: =M112*Eingabe!$B$23 -> 79.12565944 | O112: 0 | P112: 0 | Q112: =MIN(Q111-P112+O112,Stundenlastprofil_norm!$R$1) -> 0 | R112: 0 | S112: 79.12565944 | T112: 675.9752092 | U112: =MIN(T112,Eingabe!$B$35) -> 399.838442 | V112: 276.1367673
B113: 2023-01-05T12:00:00 | C113: 13 | D113: 1 | E113: 4 | F113: Donnerstag | G113: 5 | H113: 109 | I113: =VLOOKUP(G113,Tagesbasis!$E$12:$J$376,6)*HLOOKUP(Eingabe!$B$11,Stundenlastprofile!$B$2:$K$26,C113+1,FALSE) -> 755.1008687 | J113: =Wetterdaten!J110 -> 5.6 | K113: =Wetterdaten!G110/1000 -> 0.54 | L113: =MAX(0,Eingabe!$B$20*Stundenlastprofil_norm!K113-Eingabe!$B$21/1000*('VDI3988'!$C$16-Stundenlastprofil_norm!J113)-Eingabe!$B$22/1000*('VDI3988'!$C$16-Stundenlastprofil_norm!J113)^2) -> 0.25730768 | M113: 0.1837869082 | N113: =M113*Eingabe!$B$23 -> 118.3587689 | O113: 0 | P113: 0 | Q113: =MIN(Q112-P113+O113,Stundenlastprofil_norm!$R$1) -> 0 | R113: 0 | S113: 118.3587689 | T113: 636.7420998 | U113: =MIN(T113,Eingabe!$B$35) -> 399.838442 | V113: 236.9036578
B114: 2023-01-05T13:00:00 | C114: 14 | D114: 1 | E114: 4 | F114: Donnerstag | G114: 5 | H114: 110 | I114: =VLOOKUP(G114,Tagesbasis!$E$12:$J$376,6)*HLOOKUP(Eingabe!$B$11,Stundenlastprofile!$B$2:$K$26,C114+1,FALSE) -> 710.6831705 | J114: =Wetterdaten!J111 -> 6.3 | K114: =Wetterdaten!G111/1000 -> 0.487 | L114: =MAX(0,Eingabe!$B$20*Stundenlastprofil_norm!K114-Eingabe!$B$21/1000*('VDI3988'!$C$16-Stundenlastprofil_norm!J114)-Eingabe!$B$22/1000*('VDI3988'!$C$16-Stundenlastprofil_norm!J114)^2) -> 0.21629572 | M114: 0.1544933351 | N114: =M114*Eingabe!$B$23 -> 99.4937078 | O114: 0 | P114: 0 | Q114: =MIN(Q113-P114+O114,Stundenlastprofil_norm!$R$1) -> 0 | R114: 0 | S114: 99.4937078 | T114: 611.1894627 | U114: =MIN(T114,Eingabe!$B$35) -> 399.838442 | V114: 211.3510207
B115: 2023-01-05T14:00:00 | C115: 15 | D115: 1 | E115: 4 | F115: Donnerstag | G115: 5 | H115: 111 | I115: =VLOOKUP(G115,Tagesbasis!$E$12:$J$376,6)*HLOOKUP(Eingabe!$B$11,Stundenlastprofile!$B$2:$K$26,C115+1,FALSE) -> 666.2654724 | J115: =Wetterdaten!J112 -> 6.3 | K115: =Wetterdaten!G112/1000 -> 0.397 | L115: =MAX(0,Eingabe!$B$20*Stundenlastprofil_norm!K115-Eingabe!$B$21/1000*('VDI3988'!$C$16-Stundenlastprofil_norm!J115)-Eingabe!$B$22/1000*('VDI3988'!$C$16-Stundenlastprofil_norm!J115)^2) -> 0.14249572 | M115: 0.1017802803 | N115: =M115*Eingabe!$B$23 -> 65.54650054 | O115: 0 | P115: 0 | Q115: =MIN(Q114-P115+O115,Stundenlastprofil_norm!$R$1) -> 0 | R115: 0 | S115: 65.54650054 | T115: 600.7189718 | U115: =MIN(T115,Eingabe!$B$35) -> 399.838442 | V115: 200.8805298
B116: 2023-01-05T15:00:00 | C116: 16 | D116: 1 | E116: 4 | F116: Donnerstag | G116: 5 | H116: 112 | I116: =VLOOKUP(G116,Tagesbasis!$E$12:$J$376,6)*HLOOKUP(Eingabe!$B$11,Stundenlastprofile!$B$2:$K$26,C116+1,FALSE) -> 695.8772711 | J116: =Wetterdaten!J113 -> 5.4 | K116: =Wetterdaten!G113/1000 -> 0.192 | L116: =MAX(0,Eingabe!$B$20*Stundenlastprofil_norm!K116-Eingabe!$B$21/1000*('VDI3988'!$C$16-Stundenlastprofil_norm!J116)-Eingabe!$B$22/1000*('VDI3988'!$C$16-Stundenlastprofil_norm!J116)^2) -> 0 | M116: 0 | N116: =M116*Eingabe!$B$23 -> 0 | O116: 0 | P116: 0 | Q116: =MIN(Q115-P116+O116,Stundenlastprofil_norm!$R$1) -> 0 | R116: 0 | S116: 0 | T116: 695.8772711 | U116: =MIN(T116,Eingabe!$B$35) -> 399.838442 | V116: 296.0388291
B117: 2023-01-05T16:00:00 | C117: 17 | D117: 1 | E117: 4 | F117: Donnerstag | G117: 5 | H117: 113 | I117: =VLOOKUP(G117,Tagesbasis!$E$12:$J$376,6)*HLOOKUP(Eingabe!$B$11,Stundenlastprofile!$B$2:$K$26,C117+1,FALSE) -> 710.6831705 | J117: =Wetterdaten!J114 -> 4 | K117: =Wetterdaten!G114/1000 -> 0 | L117: =MAX(0,Eingabe!$B$20*Stundenlastprofil_norm!K117-Eingabe!$B$21/1000*('VDI3988'!$C$16-Stundenlastprofil_norm!J117)-Eingabe!$B$22/1000*('VDI3988'!$C$16-Stundenlastprofil_norm!J117)^2) -> 0 | M117: 0 | N117: =M117*Eingabe!$B$23 -> 0 | O117: 0 | P117: 0 | Q117: =MIN(Q116-P117+O117,Stundenlastprofil_norm!$R$1) -> 0 | R117: 0 | S117: 0 | T117: 710.6831705 | U117: =MIN(T117,Eingabe!$B$35) -> 399.838442 | V117: 310.8447285
B118: 2023-01-05T17:00:00 | C118: 18 | D118: 1 | E118: 4 | F118: Donnerstag | G118: 5 | H118: 114 | I118: =VLOOKUP(G118,Tagesbasis!$E$12:$J$376,6)*HLOOKUP(Eingabe!$B$11,Stundenlastprofile!$B$2:$K$26,C118+1,FALSE) -> 725.4890699 | J118: =Wetterdaten!J115 -> 3.6 | K118: =Wetterdaten!G115/1000 -> 0 | L118: =MAX(0,Eingabe!$B$20*Stundenlastprofil_norm!K118-Eingabe!$B$21/1000*('VDI3988'!$C$16-Stundenlastprofil_norm!J118)-Eingabe!$B$22/1000*('VDI3988'!$C$16-Stundenlastprofil_norm!J118)^2) -> 0 | M118: 0 | N118: =M118*Eingabe!$B$23 -> 0 | O118: 0 | P118: 0 | Q118: =MIN(Q117-P118+O118,Stundenlastprofil_norm!$R$1) -> 0 | R118: 0 | S118: 0 | T118: 725.4890699 | U118: =MIN(T118,Eingabe!$B$35) -> 399.838442 | V118: 325.6506279
B119: 2023-01-05T18:00:00 | C119: 19 | D119: 1 | E119: 4 | F119: Donnerstag | G119: 5 | H119: 115 | I119: =VLOOKUP(G119,Tagesbasis!$E$12:$J$376,6)*HLOOKUP(Eingabe!$B$11,Stundenlastprofile!$B$2:$K$26,C119+1,FALSE) -> 725.4890699 | J119: =Wetterdaten!J116 -> 3.2 | K119: =Wetterdaten!G116/1000 -> 0 | L119: =MAX(0,Eingabe!$B$20*Stundenlastprofil_norm!K119-Eingabe!$B$21/1000*('VDI3988'!$C$16-Stundenlastprofil_norm!J119)-Eingabe!$B$22/1000*('VDI3988'!$C$16-Stundenlastprofil_norm!J119)^2) -> 0 | M119: 0 | N119: =M119*Eingabe!$B$23 -> 0 | O119: 0 | P119: 0 | Q119: =MIN(Q118-P119+O119,Stundenlastprofil_norm!$R$1) -> 0 | R119: 0 | S119: 0 | T119: 725.4890699 | U119: =MIN(T119,Eingabe!$B$35) -> 399.838442 | V119: 325.6506279
B120: 2023-01-05T19:00:00 | C120: 20 | D120: 1 | E120: 4 | F120: Donnerstag | G120: 5 | H120: 116 | I120: =VLOOKUP(G120,Tagesbasis!$E$12:$J$376,6)*HLOOKUP(Eingabe!$B$11,Stundenlastprofile!$B$2:$K$26,C120+1,FALSE) -> 695.8772711 | J120: =Wetterdaten!J117 -> 2.8 | K120: =Wetterdaten!G117/1000 -> 0 | L120: =MAX(0,Eingabe!$B$20*Stundenlastprofil_norm!K120-Eingabe!$B$21/1000*('VDI3988'!$C$16-Stundenlastprofil_norm!J120)-Eingabe!$B$22/1000*('VDI3988'!$C$16-Stundenlastprofil_norm!J120)^2) -> 0 | M120: 0 | N120: =M120*Eingabe!$B$23 -> 0 | O120: 0 | P120: 0 | Q120: =MIN(Q119-P120+O120,Stundenlastprofil_norm!$R$1) -> 0 | R120: 0 | S120: 0 | T120: 695.8772711 | U120: =MIN(T120,Eingabe!$B$35) -> 399.838442 | V120: 296.0388291
B121: 2023-01-05T20:00:00 | C121: 21 | D121: 1 | E121: 4 | F121: Donnerstag | G121: 5 | H121: 117 | I121: =VLOOKUP(G121,Tagesbasis!$E$12:$J$376,6)*HLOOKUP(Eingabe!$B$11,Stundenlastprofile!$B$2:$K$26,C121+1,FALSE) -> 651.459573 | J121: =Wetterdaten!J118 -> 2.4 | K121: =Wetterdaten!G118/1000 -> 0 | L121: =MAX(0,Eingabe!$B$20*Stundenlastprofil_norm!K121-Eingabe!$B$21/1000*('VDI3988'!$C$16-Stundenlastprofil_norm!J121)-Eingabe!$B$22/1000*('VDI3988'!$C$16-Stundenlastprofil_norm!J121)^2) -> 0 | M121: 0 | N121: =M121*Eingabe!$B$23 -> 0 | O121: 0 | P121: 0 | Q121: =MIN(Q120-P121+O121,Stundenlastprofil_norm!$R$1) -> 0 | R121: 0 | S121: 0 | T121: 651.459573 | U121: =MIN(T121,Eingabe!$B$35) -> 399.838442 | V121: 251.621131
B122: 2023-01-05T21:00:00 | C122: 22 | D122: 1 | E122: 4 | F122: Donnerstag | G122: 5 | H122: 118 | I122: =VLOOKUP(G122,Tagesbasis!$E$12:$J$376,6)*HLOOKUP(Eingabe!$B$11,Stundenlastprofile!$B$2:$K$26,C122+1,FALSE) -> 577.430076 | J122: =Wetterdaten!J119 -> 2 | K122: =Wetterdaten!G119/1000 -> 0 | L122: =MAX(0,Eingabe!$B$20*Stundenlastprofil_norm!K122-Eingabe!$B$21/1000*('VDI3988'!$C$16-Stundenlastprofil_norm!J122)-Eingabe!$B$22/1000*('VDI3988'!$C$16-Stundenlastprofil_norm!J122)^2) -> 0 | M122: 0 | N122: =M122*Eingabe!$B$23 -> 0 | O122: 0 | P122: 0 | Q122: =MIN(Q121-P122+O122,Stundenlastprofil_norm!$R$1) -> 0 | R122: 0 | S122: 0 | T122: 577.430076 | U122: =MIN(T122,Eingabe!$B$35) -> 399.838442 | V122: 177.5916341
B123: 2023-01-05T22:00:00 | C123: 23 | D123: 1 | E123: 4 | F123: Donnerstag | G123: 5 | H123: 119 | I123: =VLOOKUP(G123,Tagesbasis!$E$12:$J$376,6)*HLOOKUP(Eingabe!$B$11,Stundenlastprofile!$B$2:$K$26,C123+1,FALSE) -> 547.8182773 | J123: =Wetterdaten!J120 -> 1.6 | K123: =Wetterdaten!G120/1000 -> 0 | L123: =MAX(0,Eingabe!$B$20*Stundenlastprofil_norm!K123-Eingabe!$B$21/1000*('VDI3988'!$C$16-Stundenlastprofil_norm!J123)-Eingabe!$B$22/1000*('VDI3988'!$C$16-Stundenlastprofil_norm!J123)^2) -> 0 | M123: 0 | N123: =M123*Eingabe!$B$23 -> 0 | O123: 0 | P123: 0 | Q123: =MIN(Q122-P123+O123,Stundenlastprofil_norm!$R$1) -> 0 | R123: 0 | S123: 0 | T123: 547.8182773 | U123: =MIN(T123,Eingabe!$B$35) -> 399.838442 | V123: 147.9798353
B124: 2023-01-05T23:00:00 | C124: 24 | D124: 1 | E124: 4 | F124: Donnerstag | G124: 5 | H124: 120 | I124: =VLOOKUP(G124,Tagesbasis!$E$12:$J$376,6)*HLOOKUP(Eingabe!$B$11,Stundenlastprofile!$B$2:$K$26,C124+1,FALSE) -> 518.2064785 | J124: =Wetterdaten!J121 -> 1.3 | K124: =Wetterdaten!G121/1000 -> 0 | L124: =MAX(0,Eingabe!$B$20*Stundenlastprofil_norm!K124-Eingabe!$B$21/1000*('VDI3988'!$C$16-Stundenlastprofil_norm!J124)-Eingabe!$B$22/1000*('VDI3988'!$C$16-Stundenlastprofil_norm!J124)^2) -> 0 | M124: 0 | N124: =M124*Eingabe!$B$23 -> 0 | O124: 0 | P124: 0 | Q124: =MIN(Q123-P124+O124,Stundenlastprofil_norm!$R$1) -> 0 | R124: 0 | S124: 0 | T124: 518.2064785 | U124: =MIN(T124,Eingabe!$B$35) -> 399.838442 | V124: 118.3680365
B125: 2023-01-06 | C125: 1 | D125: 1 | E125: 5 | F125: Freitag | G125: 6 | H125: 121 | I125: =VLOOKUP(G125,Tagesbasis!$E$12:$J$376,6)*HLOOKUP(Eingabe!$B$11,Stundenlastprofile!$B$2:$K$26,C125+1,FALSE) -> 463.5698459 | J125: =Wetterdaten!J122 -> 0.9 | K125: =Wetterdaten!G122/1000 -> 0 | L125: =MAX(0,Eingabe!$B$20*Stundenlastprofil_norm!K125-Eingabe!$B$21/1000*('VDI3988'!$C$16-Stundenlastprofil_norm!J125)-Eingabe!$B$22/1000*('VDI3988'!$C$16-Stundenlastprofil_norm!J125)^2) -> 0 | M125: 0 | N125: =M125*Eingabe!$B$23 -> 0 | O125: 0 | P125: 0 | Q125: =MIN(Q124-P125+O125,Stundenlastprofil_norm!$R$1) -> 0 | R125: 0 | S125: 0 | T125: 463.5698459 | U125: =MIN(T125,Eingabe!$B$35) -> 399.838442 | V125: 63.73140388
B126: 2023-01-06T01:00:00 | C126: 2 | D126: 1 | E126: 5 | F126: Freitag | G126: 6 | H126: 122 | I126: =VLOOKUP(G126,Tagesbasis!$E$12:$J$376,6)*HLOOKUP(Eingabe!$B$11,Stundenlastprofile!$B$2:$K$26,C126+1,FALSE) -> 449.9354386 | J126: =Wetterdaten!J123 -> 0.5 | K126: =Wetterdaten!G123/1000 -> 0 | L126: =MAX(0,Eingabe!$B$20*Stundenlastprofil_norm!K126-Eingabe!$B$21/1000*('VDI3988'!$C$16-Stundenlastprofil_norm!J126)-Eingabe!$B$22/1000*('VDI3988'!$C$16-Stundenlastprofil_norm!J126)^2) -> 0 | M126: 0 | N126: =M126*Eingabe!$B$23 -> 0 | O126: 0 | P126: 0 | Q126: =MIN(Q125-P126+O126,Stundenlastprofil_norm!$R$1) -> 0 | R126: 0 | S126: 0 | T126: 449.9354386 | U126: =MIN(T126,Eingabe!$B$35) -> 399.838442 | V126: 50.09699665
B127: 2023-01-06T02:00:00 | C127: 3 | D127: 1 | E127: 5 | F127: Freitag | G127: 6 | H127: 123 | I127: =VLOOKUP(G127,Tagesbasis!$E$12:$J$376,6)*HLOOKUP(Eingabe!$B$11,Stundenlastprofile!$B$2:$K$26,C127+1,FALSE) -> 449.9354386 | J127: =Wetterdaten!J124 -> 0 | K127: =Wetterdaten!G124/1000 -> 0 | L127: =MAX(0,Eingabe!$B$20*Stundenlastprofil_norm!K127-Eingabe!$B$21/1000*('VDI3988'!$C$16-Stundenlastprofil_norm!J127)-Eingabe!$B$22/1000*('VDI3988'!$C$16-Stundenlastprofil_norm!J127)^2) -> 0 | M127: 0 | N127: =M127*Eingabe!$B$23 -> 0 | O127: 0 | P127: 0 | Q127: =MIN(Q126-P127+O127,Stundenlastprofil_norm!$R$1) -> 0 | R127: 0 | S127: 0 | T127: 449.9354386 | U127: =MIN(T127,Eingabe!$B$35) -> 399.838442 | V127: 50.09699665
B128: 2023-01-06T03:00:00 | C128: 4 | D128: 1 | E128: 5 | F128: Freitag | G128: 6 | H128: 124 | I128: =VLOOKUP(G128,Tagesbasis!$E$12:$J$376,6)*HLOOKUP(Eingabe!$B$11,Stundenlastprofile!$B$2:$K$26,C128+1,FALSE) -> 436.3010314 | J128: =Wetterdaten!J125 -> -0.2 | K128: =Wetterdaten!G125/1000 -> 0 | L128: =MAX(0,Eingabe!$B$20*Stundenlastprofil_norm!K128-Eingabe!$B$21/1000*('VDI3988'!$C$16-Stundenlastprofil_norm!J128)-Eingabe!$B$22/1000*('VDI3988'!$C$16-Stundenlastprofil_norm!J128)^2) -> 0 | M128: 0 | N128: =M128*Eingabe!$B$23 -> 0 | O128: 0 | P128: 0 | Q128: =MIN(Q127-P128+O128,Stundenlastprofil_norm!$R$1) -> 0 | R128: 0 | S128: 0 | T128: 436.3010314 | U128: =MIN(T128,Eingabe!$B$35) -> 399.838442 | V128: 36.46258942
B129: 2023-01-06T04:00:00 | C129: 5 | D129: 1 | E129: 5 | F129: Freitag | G129: 6 | H129: 125 | I129: =VLOOKUP(G129,Tagesbasis!$E$12:$J$376,6)*HLOOKUP(Eingabe!$B$11,Stundenlastprofile!$B$2:$K$26,C129+1,FALSE) -> 436.3010314 | J129: =Wetterdaten!J126 -> -0.4 | K129: =Wetterdaten!G126/1000 -> 0 | L129: =MAX(0,Eingabe!$B$20*Stundenlastprofil_norm!K129-Eingabe!$B$21/1000*('VDI3988'!$C$16-Stundenlastprofil_norm!J129)-Eingabe!$B$22/1000*('VDI3988'!$C$16-Stundenlastprofil_norm!J129)^2) -> 0 | M129: 0 | N129: =M129*Eingabe!$B$23 -> 0 | O129: 0 | P129: 0 | Q129: =MIN(Q128-P129+O129,Stundenlastprofil_norm!$R$1) -> 0 | R129: 0 | S129: 0 | T129: 436.3010314 | U129: =MIN(T129,Eingabe!$B$35) -> 399.838442 | V129: 36.46258942
B130: 2023-01-06T05:00:00 | C130: 6 | D130: 1 | E130: 5 | F130: Freitag | G130: 6 | H130: 126 | I130: =VLOOKUP(G130,Tagesbasis!$E$12:$J$376,6)*HLOOKUP(Eingabe!$B$11,Stundenlastprofile!$B$2:$K$26,C130+1,FALSE) -> 422.6666242 | J130: =Wetterdaten!J127 -> -0.6 | K130: =Wetterdaten!G127/1000 -> 0 | L130: =MAX(0,Eingabe!$B$20*Stundenlastprofil_norm!K130-Eingabe!$B$21/1000*('VDI3988'!$C$16-Stundenlastprofil_norm!J130)-Eingabe!$B$22/1000*('VDI3988'!$C$16-Stundenlastprofil_norm!J130)^2) -> 0 | M130: 0 | N130: =M130*Eingabe!$B$23 -> 0 | O130: 0 | P130: 0 | Q130: =MIN(Q129-P130+O130,Stundenlastprofil_norm!$R$1) -> 0 | R130: 0 | S130: 0 | T130: 422.6666242 | U130: =MIN(T130,Eingabe!$B$35) -> 399.838442 | V130: 22.82818219
B131: 2023-01-06T06:00:00 | C131: 7 | D131: 1 | E131: 5 | F131: Freitag | G131: 6 | H131: 127 | I131: =VLOOKUP(G131,Tagesbasis!$E$12:$J$376,6)*HLOOKUP(Eingabe!$B$11,Stundenlastprofile!$B$2:$K$26,C131+1,FALSE) -> 490.8386603 | J131: =Wetterdaten!J128 -> -0.8 | K131: =Wetterdaten!G128/1000 -> 0 | L131: =MAX(0,Eingabe!$B$20*Stundenlastprofil_norm!K131-Eingabe!$B$21/1000*('VDI3988'!$C$16-Stundenlastprofil_norm!J131)-Eingabe!$B$22/1000*('VDI3988'!$C$16-Stundenlastprofil_norm!J131)^2) -> 0 | M131: 0 | N131: =M131*Eingabe!$B$23 -> 0 | O131: 0 | P131: 0 | Q131: =MIN(Q130-P131+O131,Stundenlastprofil_norm!$R$1) -> 0 | R131: 0 | S131: 0 | T131: 490.8386603 | U131: =MIN(T131,Eingabe!$B$35) -> 399.838442 | V131: 91.00021834
B132: 2023-01-06T07:00:00 | C132: 8 | D132: 1 | E132: 5 | F132: Freitag | G132: 6 | H132: 128 | I132: =VLOOKUP(G132,Tagesbasis!$E$12:$J$376,6)*HLOOKUP(Eingabe!$B$11,Stundenlastprofile!$B$2:$K$26,C132+1,FALSE) -> 518.1074748 | J132: =Wetterdaten!J129 -> -0.9 | K132: =Wetterdaten!G129/1000 -> 0 | L132: =MAX(0,Eingabe!$B$20*Stundenlastprofil_norm!K132-Eingabe!$B$21/1000*('VDI3988'!$C$16-Stundenlastprofil_norm!J132)-Eingabe!$B$22/1000*('VDI3988'!$C$16-Stundenlastprofil_norm!J132)^2) -> 0 | M132: 0 | N132: =M132*Eingabe!$B$23 -> 0 | O132: 0 | P132: 0 | Q132: =MIN(Q131-P132+O132,Stundenlastprofil_norm!$R$1) -> 0 | R132: 0 | S132: 0 | T132: 518.1074748 | U132: =MIN(T132,Eingabe!$B$35) -> 399.838442 | V132: 118.2690328
B133: 2023-01-06T08:00:00 | C133: 9 | D133: 1 | E133: 5 | F133: Freitag | G133: 6 | H133: 129 | I133: =VLOOKUP(G133,Tagesbasis!$E$12:$J$376,6)*HLOOKUP(Eingabe!$B$11,Stundenlastprofile!$B$2:$K$26,C133+1,FALSE) -> 586.2795109 | J133: =Wetterdaten!J130 -> -0.9 | K133: =Wetterdaten!G130/1000 -> 0 | L133: =MAX(0,Eingabe!$B$20*Stundenlastprofil_norm!K133-Eingabe!$B$21/1000*('VDI3988'!$C$16-Stundenlastprofil_norm!J133)-Eingabe!$B$22/1000*('VDI3988'!$C$16-Stundenlastprofil_norm!J133)^2) -> 0 | M133: 0 | N133: =M133*Eingabe!$B$23 -> 0 | O133: =MAX(N133-I133,0) -> 0 | P133: 0 | Q133: =MIN(Q132-P133+O133,Stundenlastprofil_norm!$R$1) -> 0 | R133: 0 | S133: =N133-O133+P133 -> 0 | T133: =I133-S133 -> 586.2795109 | U133: =MIN(T133,Eingabe!$B$35) -> 399.838442 | V133: =T133-U133 -> 186.441069
B134: 2023-01-06T09:00:00 | C134: =HOUR(B134)+1 -> 10 | D134: =MONTH(B134) -> 1 | E134: =WEEKDAY(B134,2) -> 5 | F134: =IF(E134=1, "Montag", IF(E134=2, "Dienstag", IF(E134=3, "Mittwoch", IF(E134=4, "Donnerstag", IF(E134=5, "Freitag", IF(E134=6, "Samstag",IF(E134=7,"Sonntag"))))))) -> Freitag | G134: =ROUNDDOWN(B134-DATE(YEAR(B134),1,1)+1.001,0) -> 6 | H134: 130 | I134: =VLOOKUP(G134,Tagesbasis!$E$12:$J$376,6)*HLOOKUP(Eingabe!$B$11,Stundenlastprofile!$B$2:$K$26,C134+1,FALSE) -> 668.0859543 | J134: =Wetterdaten!J131 -> -0.6 | K134: =Wetterdaten!G131/1000 -> 0.012 | L134: =MAX(0,Eingabe!$B$20*Stundenlastprofil_norm!K134-Eingabe!$B$21/1000*('VDI3988'!$C$16-Stundenlastprofil_norm!J134)-Eingabe!$B$22/1000*('VDI3988'!$C$16-Stundenlastprofil_norm!J134)^2) -> 0 | M134: =L134*$N$1 -> 0 | N134: =M134*Eingabe!$B$23 -> 0 | O134: 0 | P134: =MIN(MAX(I134-N134,0),Q133) -> 0 | Q134: =MIN(Q133-P134+O134,Stundenlastprofil_norm!$R$1) -> 0 | R134: =Q134/$R$1 -> 0 | S134: 0 | T134: 668.0859543 | U134: =MIN(T134,Eingabe!$B$35) -> 399.838442 | V134: 268.2475123
B135: =B134+1/24 -> 2023-01-06T10:00:00 | C135: 11 | D135: 1 | E135: 5 | F135: Freitag | G135: 6 | H135: 131 | I135: =VLOOKUP(G135,Tagesbasis!$E$12:$J$376,6)*HLOOKUP(Eingabe!$B$11,Stundenlastprofile!$B$2:$K$26,C135+1,FALSE) -> 681.7203615 | J135: =Wetterdaten!J132 -> -0.5 | K135: =Wetterdaten!G132/1000 -> 0.015 | L135: =MAX(0,Eingabe!$B$20*Stundenlastprofil_norm!K135-Eingabe!$B$21/1000*('VDI3988'!$C$16-Stundenlastprofil_norm!J135)-Eingabe!$B$22/1000*('VDI3988'!$C$16-Stundenlastprofil_norm!J135)^2) -> 0 | M135: 0 | N135: =M135*Eingabe!$B$23 -> 0 | O135: 0 | P135: 0 | Q135: =MIN(Q134-P135+O135,Stundenlastprofil_norm!$R$1) -> 0 | R135: 0 | S135: 0 | T135: 681.7203615 | U135: =MIN(T135,Eingabe!$B$35) -> 399.838442 | V135: 281.8819196
B136: 2023-01-06T11:00:00 | C136: 12 | D136: 1 | E136: 5 | F136: Freitag | G136: 6 | H136: 132 | I136: =VLOOKUP(G136,Tagesbasis!$E$12:$J$376,6)*HLOOKUP(Eingabe!$B$11,Stundenlastprofile!$B$2:$K$26,C136+1,FALSE) -> 695.3547688 | J136: =Wetterdaten!J133 -> -0.2 | K136: =Wetterdaten!G133/1000 -> 0.023 | L136: =MAX(0,Eingabe!$B$20*Stundenlastprofil_norm!K136-Eingabe!$B$21/1000*('VDI3988'!$C$16-Stundenlastprofil_norm!J136)-Eingabe!$B$22/1000*('VDI3988'!$C$16-Stundenlastprofil_norm!J136)^2) -> 0 | M136: 0 | N136: =M136*Eingabe!$B$23 -> 0 | O136: 0 | P136: 0 | Q136: =MIN(Q135-P136+O136,Stundenlastprofil_norm!$R$1) -> 0 | R136: 0 | S136: 0 | T136: 695.3547688 | U136: =MIN(T136,Eingabe!$B$35) -> 399.838442 | V136: 295.5163268
B137: 2023-01-06T12:00:00 | C137: 13 | D137: 1 | E137: 5 | F137: Freitag | G137: 6 | H137: 133 | I137: =VLOOKUP(G137,Tagesbasis!$E$12:$J$376,6)*HLOOKUP(Eingabe!$B$11,Stundenlastprofile!$B$2:$K$26,C137+1,FALSE) -> 695.3547688 | J137: =Wetterdaten!J134 -> 0 | K137: =Wetterdaten!G134/1000 -> 0.032 | L137: =MAX(0,Eingabe!$B$20*Stundenlastprofil_norm!K137-Eingabe!$B$21/1000*('VDI3988'!$C$16-Stundenlastprofil_norm!J137)-Eingabe!$B$22/1000*('VDI3988'!$C$16-Stundenlastprofil_norm!J137)^2) -> 0 | M137: 0 | N137: =M137*Eingabe!$B$23 -> 0 | O137: 0 | P137: 0 | Q137: =MIN(Q136-P137+O137,Stundenlastprofil_norm!$R$1) -> 0 | R137: 0 | S137: 0 | T137: 695.3547688 | U137: =MIN(T137,Eingabe!$B$35) -> 399.838442 | V137: 295.5163268
B138: 2023-01-06T13:00:00 | C138: 14 | D138: 1 | E138: 5 | F138: Freitag | G138: 6 | H138: 134 | I138: =VLOOKUP(G138,Tagesbasis!$E$12:$J$376,6)*HLOOKUP(Eingabe!$B$11,Stundenlastprofile!$B$2:$K$26,C138+1,FALSE) -> 654.4515471 | J138: =Wetterdaten!J135 -> 1.1 | K138: =Wetterdaten!G135/1000 -> 0.298 | L138: =MAX(0,Eingabe!$B$20*Stundenlastprofil_norm!K138-Eingabe!$B$21/1000*('VDI3988'!$C$16-Stundenlastprofil_norm!J138)-Eingabe!$B$22/1000*('VDI3988'!$C$16-Stundenlastprofil_norm!J138)^2) -> 0.04284948 | M138: 0.03060605671 | N138: =M138*Eingabe!$B$23 -> 19.71030052 | O138: 0 | P138: 0 | Q138: =MIN(Q137-P138+O138,Stundenlastprofil_norm!$R$1) -> 0 | R138: 0 | S138: 19.71030052 | T138: 634.7412466 | U138: =MIN(T138,Eingabe!$B$35) -> 399.838442 | V138: 234.9028046
B139: 2023-01-06T14:00:00 | C139: 15 | D139: 1 | E139: 5 | F139: Freitag | G139: 6 | H139: 135 | I139: =VLOOKUP(G139,Tagesbasis!$E$12:$J$376,6)*HLOOKUP(Eingabe!$B$11,Stundenlastprofile!$B$2:$K$26,C139+1,FALSE) -> 613.5483254 | J139: =Wetterdaten!J136 -> 1.5 | K139: =Wetterdaten!G136/1000 -> 0.191 | L139: =MAX(0,Eingabe!$B$20*Stundenlastprofil_norm!K139-Eingabe!$B$21/1000*('VDI3988'!$C$16-Stundenlastprofil_norm!J139)-Eingabe!$B$22/1000*('VDI3988'!$C$16-Stundenlastprofil_norm!J139)^2) -> 0 | M139: 0 | N139: =M139*Eingabe!$B$23 -> 0 | O139: 0 | P139: 0 | Q139: =MIN(Q138-P139+O139,Stundenlastprofil_norm!$R$1) -> 0 | R139: 0 | S139: 0 | T139: 613.5483254 | U139: =MIN(T139,Eingabe!$B$35) -> 399.838442 | V139: 213.7098834
B140: 2023-01-06T15:00:00 | C140: 16 | D140: 1 | E140: 5 | F140: Freitag | G140: 6 | H140: 136 | I140: =VLOOKUP(G140,Tagesbasis!$E$12:$J$376,6)*HLOOKUP(Eingabe!$B$11,Stundenlastprofile!$B$2:$K$26,C140+1,FALSE) -> 640.8171399 | J140: =Wetterdaten!J137 -> 1.5 | K140: =Wetterdaten!G137/1000 -> 0.133 | L140: =MAX(0,Eingabe!$B$20*Stundenlastprofil_norm!K140-Eingabe!$B$21/1000*('VDI3988'!$C$16-Stundenlastprofil_norm!J140)-Eingabe!$B$22/1000*('VDI3988'!$C$16-Stundenlastprofil_norm!J140)^2) -> 0 | M140: 0 | N140: =M140*Eingabe!$B$23 -> 0 | O140: 0 | P140: 0 | Q140: =MIN(Q139-P140+O140,Stundenlastprofil_norm!$R$1) -> 0 | R140: 0 | S140: 0 | T140: 640.8171399 | U140: =MIN(T140,Eingabe!$B$35) -> 399.838442 | V140: 240.9786979
B141: 2023-01-06T16:00:00 | C141: 17 | D141: 1 | E141: 5 | F141: Freitag | G141: 6 | H141: 137 | I141: =VLOOKUP(G141,Tagesbasis!$E$12:$J$376,6)*HLOOKUP(Eingabe!$B$11,Stundenlastprofile!$B$2:$K$26,C141+1,FALSE) -> 654.4515471 | J141: =Wetterdaten!J138 -> 0.9 | K141: =Wetterdaten!G138/1000 -> 0 | L141: =MAX(0,Eingabe!$B$20*Stundenlastprofil_norm!K141-Eingabe!$B$21/1000*('VDI3988'!$C$16-Stundenlastprofil_norm!J141)-Eingabe!$B$22/1000*('VDI3988'!$C$16-Stundenlastprofil_norm!J141)^2) -> 0 | M141: 0 | N141: =M141*Eingabe!$B$23 -> 0 | O141: 0 | P141: 0 | Q141: =MIN(Q140-P141+O141,Stundenlastprofil_norm!$R$1) -> 0 | R141: 0 | S141: 0 | T141: 654.4515471 | U141: =MIN(T141,Eingabe!$B$35) -> 399.838442 | V141: 254.6131051
B142: 2023-01-06T17:00:00 | C142: 18 | D142: 1 | E142: 5 | F142: Freitag | G142: 6 | H142: 138 | I142: =VLOOKUP(G142,Tagesbasis!$E$12:$J$376,6)*HLOOKUP(Eingabe!$B$11,Stundenlastprofile!$B$2:$K$26,C142+1,FALSE) -> 668.0859543 | J142: =Wetterdaten!J139 -> 0.7 | K142: =Wetterdaten!G139/1000 -> 0 | L142: =MAX(0,Eingabe!$B$20*Stundenlastprofil_norm!K142-Eingabe!$B$21/1000*('VDI3988'!$C$16-Stundenlastprofil_norm!J142)-Eingabe!$B$22/1000*('VDI3988'!$C$16-Stundenlastprofil_norm!J142)^2) -> 0 | M142: 0 | N142: =M142*Eingabe!$B$23 -> 0 | O142: 0 | P142: 0 | Q142: =MIN(Q141-P142+O142,Stundenlastprofil_norm!$R$1) -> 0 | R142: 0 | S142: 0 | T142: 668.0859543 | U142: =MIN(T142,Eingabe!$B$35) -> 399.838442 | V142: 268.2475123
B143: 2023-01-06T18:00:00 | C143: 19 | D143: 1 | E143: 5 | F143: Freitag | G143: 6 | H143: 139 | I143: =VLOOKUP(G143,Tagesbasis!$E$12:$J$376,6)*HLOOKUP(Eingabe!$B$11,Stundenlastprofile!$B$2:$K$26,C143+1,FALSE) -> 668.0859543 | J143: =Wetterdaten!J140 -> 0.5 | K143: =Wetterdaten!G140/1000 -> 0 | L143: =MAX(0,Eingabe!$B$20*Stundenlastprofil_norm!K143-Eingabe!$B$21/1000*('VDI3988'!$C$16-Stundenlastprofil_norm!J143)-Eingabe!$B$22/1000*('VDI3988'!$C$16-Stundenlastprofil_norm!J143)^2) -> 0 | M143: 0 | N143: =M143*Eingabe!$B$23 -> 0 | O143: 0 | P143: 0 | Q143: =MIN(Q142-P143+O143,Stundenlastprofil_norm!$R$1) -> 0 | R143: 0 | S143: 0 | T143: 668.0859543 | U143: =MIN(T143,Eingabe!$B$35) -> 399.838442 | V143: 268.2475123
B144: 2023-01-06T19:00:00 | C144: 20 | D144: 1 | E144: 5 | F144: Freitag | G144: 6 | H144: 140 | I144: =VLOOKUP(G144,Tagesbasis!$E$12:$J$376,6)*HLOOKUP(Eingabe!$B$11,Stundenlastprofile!$B$2:$K$26,C144+1,FALSE) -> 640.8171399 | J144: =Wetterdaten!J141 -> 0.3 | K144: =Wetterdaten!G141/1000 -> 0 | L144: =MAX(0,Eingabe!$B$20*Stundenlastprofil_norm!K144-Eingabe!$B$21/1000*('VDI3988'!$C$16-Stundenlastprofil_norm!J144)-Eingabe!$B$22/1000*('VDI3988'!$C$16-Stundenlastprofil_norm!J144)^2) -> 0 | M144: 0 | N144: =M144*Eingabe!$B$23 -> 0 | O144: 0 | P144: 0 | Q144: =MIN(Q143-P144+O144,Stundenlastprofil_norm!$R$1) -> 0 | R144: 0 | S144: 0 | T144: 640.8171399 | U144: =MIN(T144,Eingabe!$B$35) -> 399.838442 | V144: 240.9786979
B145: 2023-01-06T20:00:00 | C145: 21 | D145: 1 | E145: 5 | F145: Freitag | G145: 6 | H145: 141 | I145: =VLOOKUP(G145,Tagesbasis!$E$12:$J$376,6)*HLOOKUP(Eingabe!$B$11,Stundenlastprofile!$B$2:$K$26,C145+1,FALSE) -> 599.9139182 | J145: =Wetterdaten!J142 -> 0.1 | K145: =Wetterdaten!G142/1000 -> 0 | L145: =MAX(0,Eingabe!$B$20*Stundenlastprofil_norm!K145-Eingabe!$B$21/1000*('VDI3988'!$C$16-Stundenlastprofil_norm!J145)-Eingabe!$B$22/1000*('VDI3988'!$C$16-Stundenlastprofil_norm!J145)^2) -> 0 | M145: 0 | N145: =M145*Eingabe!$B$23 -> 0 | O145: 0 | P145: 0 | Q145: =MIN(Q144-P145+O145,Stundenlastprofil_norm!$R$1) -> 0 | R145: 0 | S145: 0 | T145: 599.9139182 | U145: =MIN(T145,Eingabe!$B$35) -> 399.838442 | V145: 200.0754762
B146: 2023-01-06T21:00:00 | C146: 22 | D146: 1 | E146: 5 | F146: Freitag | G146: 6 | H146: 142 | I146: =VLOOKUP(G146,Tagesbasis!$E$12:$J$376,6)*HLOOKUP(Eingabe!$B$11,Stundenlastprofile!$B$2:$K$26,C146+1,FALSE) -> 531.741882 | J146: =Wetterdaten!J143 -> -0.1 | K146: =Wetterdaten!G143/1000 -> 0 | L146: =MAX(0,Eingabe!$B$20*Stundenlastprofil_norm!K146-Eingabe!$B$21/1000*('VDI3988'!$C$16-Stundenlastprofil_norm!J146)-Eingabe!$B$22/1000*('VDI3988'!$C$16-Stundenlastprofil_norm!J146)^2) -> 0 | M146: 0 | N146: =M146*Eingabe!$B$23 -> 0 | O146: 0 | P146: 0 | Q146: =MIN(Q145-P146+O146,Stundenlastprofil_norm!$R$1) -> 0 | R146: 0 | S146: 0 | T146: 531.741882 | U146: =MIN(T146,Eingabe!$B$35) -> 399.838442 | V146: 131.90344
B147: 2023-01-06T22:00:00 | C147: 23 | D147: 1 | E147: 5 | F147: Freitag | G147: 6 | H147: 143 | I147: =VLOOKUP(G147,Tagesbasis!$E$12:$J$376,6)*HLOOKUP(Eingabe!$B$11,Stundenlastprofile!$B$2:$K$26,C147+1,FALSE) -> 504.4730675 | J147: =Wetterdaten!J144 -> -0.3 | K147: =Wetterdaten!G144/1000 -> 0 | L147: =MAX(0,Eingabe!$B$20*Stundenlastprofil_norm!K147-Eingabe!$B$21/1000*('VDI3988'!$C$16-Stundenlastprofil_norm!J147)-Eingabe!$B$22/1000*('VDI3988'!$C$16-Stundenlastprofil_norm!J147)^2) -> 0 | M147: 0 | N147: =M147*Eingabe!$B$23 -> 0 | O147: 0 | P147: 0 | Q147: =MIN(Q146-P147+O147,Stundenlastprofil_norm!$R$1) -> 0 | R147: 0 | S147: 0 | T147: 504.4730675 | U147: =MIN(T147,Eingabe!$B$35) -> 399.838442 | V147: 104.6346256
B148: 2023-01-06T23:00:00 | C148: 24 | D148: 1 | E148: 5 | F148: Freitag | G148: 6 | H148: 144 | I148: =VLOOKUP(G148,Tagesbasis!$E$12:$J$376,6)*HLOOKUP(Eingabe!$B$11,Stundenlastprofile!$B$2:$K$26,C148+1,FALSE) -> 477.2042531 | J148: =Wetterdaten!J145 -> -0.4 | K148: =Wetterdaten!G145/1000 -> 0 | L148: =MAX(0,Eingabe!$B$20*Stundenlastprofil_norm!K148-Eingabe!$B$21/1000*('VDI3988'!$C$16-Stundenlastprofil_norm!J148)-Eingabe!$B$22/1000*('VDI3988'!$C$16-Stundenlastprofil_norm!J148)^2) -> 0 | M148: 0 | N148: =M148*Eingabe!$B$23 -> 0 | O148: 0 | P148: 0 | Q148: =MIN(Q147-P148+O148,Stundenlastprofil_norm!$R$1) -> 0 | R148: 0 | S148: 0 | T148: 477.2042531 | U148: =MIN(T148,Eingabe!$B$35) -> 399.838442 | V148: 77.36581111
B149: 2023-01-07 | C149: 1 | D149: 1 | E149: 6 | F149: Samstag | G149: 7 | H149: 145 | I149: =VLOOKUP(G149,Tagesbasis!$E$12:$J$376,6)*HLOOKUP(Eingabe!$B$11,Stundenlastprofile!$B$2:$K$26,C149+1,FALSE) -> 454.901744 | J149: =Wetterdaten!J146 -> -0.5 | K149: =Wetterdaten!G146/1000 -> 0 | L149: =MAX(0,Eingabe!$B$20*Stundenlastprofil_norm!K149-Eingabe!$B$21/1000*('VDI3988'!$C$16-Stundenlastprofil_norm!J149)-Eingabe!$B$22/1000*('VDI3988'!$C$16-Stundenlastprofil_norm!J149)^2) -> 0 | M149: 0 | N149: =M149*Eingabe!$B$23 -> 0 | O149: 0 | P149: 0 | Q149: =MIN(Q148-P149+O149,Stundenlastprofil_norm!$R$1) -> 0 | R149: 0 | S149: 0 | T149: 454.901744 | U149: =MIN(T149,Eingabe!$B$35) -> 399.838442 | V149: 55.06330205
B150: 2023-01-07T01:00:00 | C150: 2 | D150: 1 | E150: 6 | F150: Samstag | G150: 7 | H150: 146 | I150: =VLOOKUP(G150,Tagesbasis!$E$12:$J$376,6)*HLOOKUP(Eingabe!$B$11,Stundenlastprofile!$B$2:$K$26,C150+1,FALSE) -> 441.522281 | J150: =Wetterdaten!J147 -> -0.6 | K150: =Wetterdaten!G147/1000 -> 0 | L150: =MAX(0,Eingabe!$B$20*Stundenlastprofil_norm!K150-Eingabe!$B$21/1000*('VDI3988'!$C$16-Stundenlastprofil_norm!J150)-Eingabe!$B$22/1000*('VDI3988'!$C$16-Stundenlastprofil_norm!J150)^2) -> 0 | M150: 0 | N150: =M150*Eingabe!$B$23 -> 0 | O150: 0 | P150: 0 | Q150: =MIN(Q149-P150+O150,Stundenlastprofil_norm!$R$1) -> 0 | R150: 0 | S150: 0 | T150: 441.522281 | U150: =MIN(T150,Eingabe!$B$35) -> 399.838442 | V150: 41.68383899
B151: 2023-01-07T02:00:00 | C151: 3 | D151: 1 | E151: 6 | F151: Samstag | G151: 7 | H151: 147 | I151: =VLOOKUP(G151,Tagesbasis!$E$12:$J$376,6)*HLOOKUP(Eingabe!$B$11,Stundenlastprofile!$B$2:$K$26,C151+1,FALSE) -> 441.522281 | J151: =Wetterdaten!J148 -> -0.6 | K151: =Wetterdaten!G148/1000 -> 0 | L151: =MAX(0,Eingabe!$B$20*Stundenlastprofil_norm!K151-Eingabe!$B$21/1000*('VDI3988'!$C$16-Stundenlastprofil_norm!J151)-Eingabe!$B$22/1000*('VDI3988'!$C$16-Stundenlastprofil_norm!J151)^2) -> 0 | M151: 0 | N151: =M151*Eingabe!$B$23 -> 0 | O151: 0 | P151: 0 | Q151: =MIN(Q150-P151+O151,Stundenlastprofil_norm!$R$1) -> 0 | R151: 0 | S151: 0 | T151: 441.522281 | U151: =MIN(T151,Eingabe!$B$35) -> 399.838442 | V151: 41.68383899
B152: 2023-01-07T03:00:00 | C152: 4 | D152: 1 | E152: 6 | F152: Samstag | G152: 7 | H152: 148 | I152: =VLOOKUP(G152,Tagesbasis!$E$12:$J$376,6)*HLOOKUP(Eingabe!$B$11,Stundenlastprofile!$B$2:$K$26,C152+1,FALSE) -> 428.1428179 | J152: =Wetterdaten!J149 -> -0.6 | K152: =Wetterdaten!G149/1000 -> 0 | L152: =MAX(0,Eingabe!$B$20*Stundenlastprofil_norm!K152-Eingabe!$B$21/1000*('VDI3988'!$C$16-Stundenlastprofil_norm!J152)-Eingabe!$B$22/1000*('VDI3988'!$C$16-Stundenlastprofil_norm!J152)^2) -> 0 | M152: 0 | N152: =M152*Eingabe!$B$23 -> 0 | O152: 0 | P152: 0 | Q152: =MIN(Q151-P152+O152,Stundenlastprofil_norm!$R$1) -> 0 | R152: 0 | S152: 0 | T152: 428.1428179 | U152: =MIN(T152,Eingabe!$B$35) -> 399.838442 | V152: 28.30437593
B153: 2023-01-07T04:00:00 | C153: 5 | D153: 1 | E153: 6 | F153: Samstag | G153: 7 | H153: 149 | I153: =VLOOKUP(G153,Tagesbasis!$E$12:$J$376,6)*HLOOKUP(Eingabe!$B$11,Stundenlastprofile!$B$2:$K$26,C153+1,FALSE) -> 428.1428179 | J153: =Wetterdaten!J150 -> -0.7 | K153: =Wetterdaten!G150/1000 -> 0 | L153: =MAX(0,Eingabe!$B$20*Stundenlastprofil_norm!K153-Eingabe!$B$21/1000*('VDI3988'!$C$16-Stundenlastprofil_norm!J153)-Eingabe!$B$22/1000*('VDI3988'!$C$16-Stundenlastprofil_norm!J153)^2) -> 0 | M153: 0 | N153: =M153*Eingabe!$B$23 -> 0 | O153: 0 | P153: 0 | Q153: =MIN(Q152-P153+O153,Stundenlastprofil_norm!$R$1) -> 0 | R153: 0 | S153: 0 | T153: 428.1428179 | U153: =MIN(T153,Eingabe!$B$35) -> 399.838442 | V153: 28.30437593
B154: 2023-01-07T05:00:00 | C154: 6 | D154: 1 | E154: 6 | F154: Samstag | G154: 7 | H154: 150 | I154: =VLOOKUP(G154,Tagesbasis!$E$12:$J$376,6)*HLOOKUP(Eingabe!$B$11,Stundenlastprofile!$B$2:$K$26,C154+1,FALSE) -> 414.7633548 | J154: =Wetterdaten!J151 -> -0.7 | K154: =Wetterdaten!G151/1000 -> 0 | L154: =MAX(0,Eingabe!$B$20*Stundenlastprofil_norm!K154-Eingabe!$B$21/1000*('VDI3988'!$C$16-Stundenlastprofil_norm!J154)-Eingabe!$B$22/1000*('VDI3988'!$C$16-Stundenlastprofil_norm!J154)^2) -> 0 | M154: 0 | N154: =M154*Eingabe!$B$23 -> 0 | O154: 0 | P154: 0 | Q154: =MIN(Q153-P154+O154,Stundenlastprofil_norm!$R$1) -> 0 | R154: 0 | S154: 0 | T154: 414.7633548 | U154: =MIN(T154,Eingabe!$B$35) -> 399.838442 | V154: 14.92491287
B155: 2023-01-07T06:00:00 | C155: 7 | D155: 1 | E155: 6 | F155: Samstag | G155: 7 | H155: 151 | I155: =VLOOKUP(G155,Tagesbasis!$E$12:$J$376,6)*HLOOKUP(Eingabe!$B$11,Stundenlastprofile!$B$2:$K$26,C155+1,FALSE) -> 481.6606701 | J155: =Wetterdaten!J152 -> -0.7 | K155: =Wetterdaten!G152/1000 -> 0 | L155: =MAX(0,Eingabe!$B$20*Stundenlastprofil_norm!K155-Eingabe!$B$21/1000*('VDI3988'!$C$16-Stundenlastprofil_norm!J155)-Eingabe!$B$22/1000*('VDI3988'!$C$16-Stundenlastprofil_norm!J155)^2) -> 0 | M155: 0 | N155: =M155*Eingabe!$B$23 -> 0 | O155: 0 | P155: 0 | Q155: =MIN(Q154-P155+O155,Stundenlastprofil_norm!$R$1) -> 0 | R155: 0 | S155: 0 | T155: 481.6606701 | U155: =MIN(T155,Eingabe!$B$35) -> 399.838442 | V155: 81.82222817
B156: 2023-01-07T07:00:00 | C156: 8 | D156: 1 | E156: 6 | F156: Samstag | G156: 7 | H156: 152 | I156: =VLOOKUP(G156,Tagesbasis!$E$12:$J$376,6)*HLOOKUP(Eingabe!$B$11,Stundenlastprofile!$B$2:$K$26,C156+1,FALSE) -> 508.4195963 | J156: =Wetterdaten!J153 -> -0.7 | K156: =Wetterdaten!G153/1000 -> 0 | L156: =MAX(0,Eingabe!$B$20*Stundenlastprofil_norm!K156-Eingabe!$B$21/1000*('VDI3988'!$C$16-Stundenlastprofil_norm!J156)-Eingabe!$B$22/1000*('VDI3988'!$C$16-Stundenlastprofil_norm!J156)^2) -> 0 | M156: 0 | N156: =M156*Eingabe!$B$23 -> 0 | O156: 0 | P156: 0 | Q156: =MIN(Q155-P156+O156,Stundenlastprofil_norm!$R$1) -> 0 | R156: 0 | S156: 0 | T156: 508.4195963 | U156: =MIN(T156,Eingabe!$B$35) -> 399.838442 | V156: 108.5811543
B157: 2023-01-07T08:00:00 | C157: 9 | D157: 1 | E157: 6 | F157: Samstag | G157: 7 | H157: 153 | I157: =VLOOKUP(G157,Tagesbasis!$E$12:$J$376,6)*HLOOKUP(Eingabe!$B$11,Stundenlastprofile!$B$2:$K$26,C157+1,FALSE) -> 575.3169116 | J157: =Wetterdaten!J154 -> -0.6 | K157: =Wetterdaten!G154/1000 -> 0 | L157: =MAX(0,Eingabe!$B$20*Stundenlastprofil_norm!K157-Eingabe!$B$21/1000*('VDI3988'!$C$16-Stundenlastprofil_norm!J157)-Eingabe!$B$22/1000*('VDI3988'!$C$16-Stundenlastprofil_norm!J157)^2) -> 0 | M157: 0 | N157: =M157*Eingabe!$B$23 -> 0 | O157: 0 | P157: 0 | Q157: =MIN(Q156-P157+O157,Stundenlastprofil_norm!$R$1) -> 0 | R157: 0 | S157: 0 | T157: 575.3169116 | U157: =MIN(T157,Eingabe!$B$35) -> 399.838442 | V157: 175.4784696
B158: 2023-01-07T09:00:00 | C158: 10 | D158: 1 | E158: 6 | F158: Samstag | G158: 7 | H158: 154 | I158: =VLOOKUP(G158,Tagesbasis!$E$12:$J$376,6)*HLOOKUP(Eingabe!$B$11,Stundenlastprofile!$B$2:$K$26,C158+1,FALSE) -> 655.5936899 | J158: =Wetterdaten!J155 -> 0.3 | K158: =Wetterdaten!G155/1000 -> 0.024 | L158: =MAX(0,Eingabe!$B$20*Stundenlastprofil_norm!K158-Eingabe!$B$21/1000*('VDI3988'!$C$16-Stundenlastprofil_norm!J158)-Eingabe!$B$22/1000*('VDI3988'!$C$16-Stundenlastprofil_norm!J158)^2) -> 0 | M158: 0 | N158: =M158*Eingabe!$B$23 -> 0 | O158: 0 | P158: 0 | Q158: =MIN(Q157-P158+O158,Stundenlastprofil_norm!$R$1) -> 0 | R158: 0 | S158: 0 | T158: 655.5936899 | U158: =MIN(T158,Eingabe!$B$35) -> 399.838442 | V158: 255.7552479
B159: 2023-01-07T10:00:00 | C159: 11 | D159: 1 | E159: 6 | F159: Samstag | G159: 7 | H159: 155 | I159: =VLOOKUP(G159,Tagesbasis!$E$12:$J$376,6)*HLOOKUP(Eingabe!$B$11,Stundenlastprofile!$B$2:$K$26,C159+1,FALSE) -> 668.973153 | J159: =Wetterdaten!J156 -> 1 | K159: =Wetterdaten!G156/1000 -> 0.042 | L159: =MAX(0,Eingabe!$B$20*Stundenlastprofil_norm!K159-Eingabe!$B$21/1000*('VDI3988'!$C$16-Stundenlastprofil_norm!J159)-Eingabe!$B$22/1000*('VDI3988'!$C$16-Stundenlastprofil_norm!J159)^2) -> 0 | M159: 0 | N159: =M159*Eingabe!$B$23 -> 0 | O159: 0 | P159: 0 | Q159: =MIN(Q158-P159+O159,Stundenlastprofil_norm!$R$1) -> 0 | R159: 0 | S159: 0 | T159: 668.973153 | U159: =MIN(T159,Eingabe!$B$35) -> 399.838442 | V159: 269.134711
B160: 2023-01-07T11:00:00 | C160: 12 | D160: 1 | E160: 6 | F160: Samstag | G160: 7 | H160: 156 | I160: =VLOOKUP(G160,Tagesbasis!$E$12:$J$376,6)*HLOOKUP(Eingabe!$B$11,Stundenlastprofile!$B$2:$K$26,C160+1,FALSE) -> 682.352616 | J160: =Wetterdaten!J157 -> 1.7 | K160: =Wetterdaten!G157/1000 -> 0.066 | L160: =MAX(0,Eingabe!$B$20*Stundenlastprofil_norm!K160-Eingabe!$B$21/1000*('VDI3988'!$C$16-Stundenlastprofil_norm!J160)-Eingabe!$B$22/1000*('VDI3988'!$C$16-Stundenlastprofil_norm!J160)^2) -> 0 | M160: 0 | N160: =M160*Eingabe!$B$23 -> 0 | O160: 0 | P160: 0 | Q160: =MIN(Q159-P160+O160,Stundenlastprofil_norm!$R$1) -> 0 | R160: 0 | S160: 0 | T160: 682.352616 | U160: =MIN(T160,Eingabe!$B$35) -> 399.838442 | V160: 282.5141741
B161: 2023-01-07T12:00:00 | C161: 13 | D161: 1 | E161: 6 | F161: Samstag | G161: 7 | H161: 157 | I161: =VLOOKUP(G161,Tagesbasis!$E$12:$J$376,6)*HLOOKUP(Eingabe!$B$11,Stundenlastprofile!$B$2:$K$26,C161+1,FALSE) -> 682.352616 | J161: =Wetterdaten!J158 -> 2.2 | K161: =Wetterdaten!G158/1000 -> 0.07 | L161: =MAX(0,Eingabe!$B$20*Stundenlastprofil_norm!K161-Eingabe!$B$21/1000*('VDI3988'!$C$16-Stundenlastprofil_norm!J161)-Eingabe!$B$22/1000*('VDI3988'!$C$16-Stundenlastprofil_norm!J161)^2) -> 0 | M161: 0 | N161: =M161*Eingabe!$B$23 -> 0 | O161: 0 | P161: 0 | Q161: =MIN(Q160-P161+O161,Stundenlastprofil_norm!$R$1) -> 0 | R161: 0 | S161: 0 | T161: 682.352616 | U161: =MIN(T161,Eingabe!$B$35) -> 399.838442 | V161: 282.5141741
B162: 2023-01-07T13:00:00 | C162: 14 | D162: 1 | E162: 6 | F162: Samstag | G162: 7 | H162: 158 | I162: =VLOOKUP(G162,Tagesbasis!$E$12:$J$376,6)*HLOOKUP(Eingabe!$B$11,Stundenlastprofile!$B$2:$K$26,C162+1,FALSE) -> 642.2142269 | J162: =Wetterdaten!J159 -> 2.4 | K162: =Wetterdaten!G159/1000 -> 0.056 | L162: =MAX(0,Eingabe!$B$20*Stundenlastprofil_norm!K162-Eingabe!$B$21/1000*('VDI3988'!$C$16-Stundenlastprofil_norm!J162)-Eingabe!$B$22/1000*('VDI3988'!$C$16-Stundenlastprofil_norm!J162)^2) -> 0 | M162: 0 | N162: =M162*Eingabe!$B$23 -> 0 | O162: 0 | P162: 0 | Q162: =MIN(Q161-P162+O162,Stundenlastprofil_norm!$R$1) -> 0 | R162: 0 | S162: 0 | T162: 642.2142269 | U162: =MIN(T162,Eingabe!$B$35) -> 399.838442 | V162: 242.3757849
B163: 2023-01-07T14:00:00 | C163: 15 | D163: 1 | E163: 6 | F163: Samstag | G163: 7 | H163: 159 | I163: =VLOOKUP(G163,Tagesbasis!$E$12:$J$376,6)*HLOOKUP(Eingabe!$B$11,Stundenlastprofile!$B$2:$K$26,C163+1,FALSE) -> 602.0758377 | J163: =Wetterdaten!J160 -> 2.3 | K163: =Wetterdaten!G160/1000 -> 0.037 | L163: =MAX(0,Eingabe!$B$20*Stundenlastprofil_norm!K163-Eingabe!$B$21/1000*('VDI3988'!$C$16-Stundenlastprofil_norm!J163)-Eingabe!$B$22/1000*('VDI3988'!$C$16-Stundenlastprofil_norm!J163)^2) -> 0 | M163: 0 | N163: =M163*Eingabe!$B$23 -> 0 | O163: 0 | P163: 0 | Q163: =MIN(Q162-P163+O163,Stundenlastprofil_norm!$R$1) -> 0 | R163: 0 | S163: 0 | T163: 602.0758377 | U163: =MIN(T163,Eingabe!$B$35) -> 399.838442 | V163: 202.2373957
B164: 2023-01-07T15:00:00 | C164: 16 | D164: 1 | E164: 6 | F164: Samstag | G164: 7 | H164: 160 | I164: =VLOOKUP(G164,Tagesbasis!$E$12:$J$376,6)*HLOOKUP(Eingabe!$B$11,Stundenlastprofile!$B$2:$K$26,C164+1,FALSE) -> 628.8347638 | J164: =Wetterdaten!J161 -> 2 | K164: =Wetterdaten!G161/1000 -> 0.016 | L164: =MAX(0,Eingabe!$B$20*Stundenlastprofil_norm!K164-Eingabe!$B$21/1000*('VDI3988'!$C$16-Stundenlastprofil_norm!J164)-Eingabe!$B$22/1000*('VDI3988'!$C$16-Stundenlastprofil_norm!J164)^2) -> 0 | M164: 0 | N164: =M164*Eingabe!$B$23 -> 0 | O164: 0 | P164: 0 | Q164: =MIN(Q163-P164+O164,Stundenlastprofil_norm!$R$1) -> 0 | R164: 0 | S164: 0 | T164: 628.8347638 | U164: =MIN(T164,Eingabe!$B$35) -> 399.838442 | V164: 228.9963218
B165: 2023-01-07T16:00:00 | C165: 17 | D165: 1 | E165: 6 | F165: Samstag | G165: 7 | H165: 161 | I165: =VLOOKUP(G165,Tagesbasis!$E$12:$J$376,6)*HLOOKUP(Eingabe!$B$11,Stundenlastprofile!$B$2:$K$26,C165+1,FALSE) -> 642.2142269 | J165: =Wetterdaten!J162 -> 1.5 | K165: =Wetterdaten!G162/1000 -> 0 | L165: =MAX(0,Eingabe!$B$20*Stundenlastprofil_norm!K165-Eingabe!$B$21/1000*('VDI3988'!$C$16-Stundenlastprofil_norm!J165)-Eingabe!$B$22/1000*('VDI3988'!$C$16-Stundenlastprofil_norm!J165)^2) -> 0 | M165: 0 | N165: =M165*Eingabe!$B$23 -> 0 | O165: 0 | P165: 0 | Q165: =MIN(Q164-P165+O165,Stundenlastprofil_norm!$R$1) -> 0 | R165: 0 | S165: 0 | T165: 642.2142269 | U165: =MIN(T165,Eingabe!$B$35) -> 399.838442 | V165: 242.3757849
B166: 2023-01-07T17:00:00 | C166: 18 | D166: 1 | E166: 6 | F166: Samstag | G166: 7 | H166: 162 | I166: =VLOOKUP(G166,Tagesbasis!$E$12:$J$376,6)*HLOOKUP(Eingabe!$B$11,Stundenlastprofile!$B$2:$K$26,C166+1,FALSE) -> 655.5936899 | J166: =Wetterdaten!J163 -> 1.3 | K166: =Wetterdaten!G163/1000 -> 0 | L166: =MAX(0,Eingabe!$B$20*Stundenlastprofil_norm!K166-Eingabe!$B$21/1000*('VDI3988'!$C$16-Stundenlastprofil_norm!J166)-Eingabe!$B$22/1000*('VDI3988'!$C$16-Stundenlastprofil_norm!J166)^2) -> 0 | M166: 0 | N166: =M166*Eingabe!$B$23 -> 0 | O166: 0 | P166: 0 | Q166: =MIN(Q165-P166+O166,Stundenlastprofil_norm!$R$1) -> 0 | R166: 0 | S166: 0 | T166: 655.5936899 | U166: =MIN(T166,Eingabe!$B$35) -> 399.838442 | V166: 255.7552479
B167: 2023-01-07T18:00:00 | C167: 19 | D167: 1 | E167: 6 | F167: Samstag | G167: 7 | H167: 163 | I167: =VLOOKUP(G167,Tagesbasis!$E$12:$J$376,6)*HLOOKUP(Eingabe!$B$11,Stundenlastprofile!$B$2:$K$26,C167+1,FALSE) -> 655.5936899 | J167: =Wetterdaten!J164 -> 1.1 | K167: =Wetterdaten!G164/1000 -> 0 | L167: =MAX(0,Eingabe!$B$20*Stundenlastprofil_norm!K167-Eingabe!$B$21/1000*('VDI3988'!$C$16-Stundenlastprofil_norm!J167)-Eingabe!$B$22/1000*('VDI3988'!$C$16-Stundenlastprofil_norm!J167)^2) -> 0 | M167: 0 | N167: =M167*Eingabe!$B$23 -> 0 | O167: 0 | P167: 0 | Q167: =MIN(Q166-P167+O167,Stundenlastprofil_norm!$R$1) -> 0 | R167: 0 | S167: 0 | T167: 655.5936899 | U167: =MIN(T167,Eingabe!$B$35) -> 399.838442 | V167: 255.7552479
B168: 2023-01-07T19:00:00 | C168: 20 | D168: 1 | E168: 6 | F168: Samstag | G168: 7 | H168: 164 | I168: =VLOOKUP(G168,Tagesbasis!$E$12:$J$376,6)*HLOOKUP(Eingabe!$B$11,Stundenlastprofile!$B$2:$K$26,C168+1,FALSE) -> 628.8347638 | J168: =Wetterdaten!J165 -> 0.7 | K168: =Wetterdaten!G165/1000 -> 0 | L168: =MAX(0,Eingabe!$B$20*Stundenlastprofil_norm!K168-Eingabe!$B$21/1000*('VDI3988'!$C$16-Stundenlastprofil_norm!J168)-Eingabe!$B$22/1000*('VDI3988'!$C$16-Stundenlastprofil_norm!J168)^2) -> 0 | M168: 0 | N168: =M168*Eingabe!$B$23 -> 0 | O168: 0 | P168: 0 | Q168: =MIN(Q167-P168+O168,Stundenlastprofil_norm!$R$1) -> 0 | R168: 0 | S168: 0 | T168: 628.8347638 | U168: =MIN(T168,Eingabe!$B$35) -> 399.838442 | V168: 228.9963218
B169: 2023-01-07T20:00:00 | C169: 21 | D169: 1 | E169: 6 | F169: Samstag | G169: 7 | H169: 165 | I169: =VLOOKUP(G169,Tagesbasis!$E$12:$J$376,6)*HLOOKUP(Eingabe!$B$11,Stundenlastprofile!$B$2:$K$26,C169+1,FALSE) -> 588.6963746 | J169: =Wetterdaten!J166 -> 0.7 | K169: =Wetterdaten!G166/1000 -> 0 | L169: =MAX(0,Eingabe!$B$20*Stundenlastprofil_norm!K169-Eingabe!$B$21/1000*('VDI3988'!$C$16-Stundenlastprofil_norm!J169)-Eingabe!$B$22/1000*('VDI3988'!$C$16-Stundenlastprofil_norm!J169)^2) -> 0 | M169: 0 | N169: =M169*Eingabe!$B$23 -> 0 | O169: 0 | P169: 0 | Q169: =MIN(Q168-P169+O169,Stundenlastprofil_norm!$R$1) -> 0 | R169: 0 | S169: 0 | T169: 588.6963746 | U169: =MIN(T169,Eingabe!$B$35) -> 399.838442 | V169: 188.8579326
B170: 2023-01-07T21:00:00 | C170: 22 | D170: 1 | E170: 6 | F170: Samstag | G170: 7 | H170: 166 | I170: =VLOOKUP(G170,Tagesbasis!$E$12:$J$376,6)*HLOOKUP(Eingabe!$B$11,Stundenlastprofile!$B$2:$K$26,C170+1,FALSE) -> 521.7990593 | J170: =Wetterdaten!J167 -> 0.4 | K170: =Wetterdaten!G167/1000 -> 0 | L170: =MAX(0,Eingabe!$B$20*Stundenlastprofil_norm!K170-Eingabe!$B$21/1000*('VDI3988'!$C$16-Stundenlastprofil_norm!J170)-Eingabe!$B$22/1000*('VDI3988'!$C$16-Stundenlastprofil_norm!J170)^2) -> 0 | M170: 0 | N170: =M170*Eingabe!$B$23 -> 0 | O170: 0 | P170: 0 | Q170: =MIN(Q169-P170+O170,Stundenlastprofil_norm!$R$1) -> 0 | R170: 0 | S170: 0 | T170: 521.7990593 | U170: =MIN(T170,Eingabe!$B$35) -> 399.838442 | V170: 121.9606173
B171: 2023-01-07T22:00:00 | C171: 23 | D171: 1 | E171: 6 | F171: Samstag | G171: 7 | H171: 167 | I171: =VLOOKUP(G171,Tagesbasis!$E$12:$J$376,6)*HLOOKUP(Eingabe!$B$11,Stundenlastprofile!$B$2:$K$26,C171+1,FALSE) -> 495.0401332 | J171: =Wetterdaten!J168 -> 0.2 | K171: =Wetterdaten!G168/1000 -> 0 | L171: =MAX(0,Eingabe!$B$20*Stundenlastprofil_norm!K171-Eingabe!$B$21/1000*('VDI3988'!$C$16-Stundenlastprofil_norm!J171)-Eingabe!$B$22/1000*('VDI3988'!$C$16-Stundenlastprofil_norm!J171)^2) -> 0 | M171: 0 | N171: =M171*Eingabe!$B$23 -> 0 | O171: 0 | P171: 0 | Q171: =MIN(Q170-P171+O171,Stundenlastprofil_norm!$R$1) -> 0 | R171: 0 | S171: 0 | T171: 495.0401332 | U171: =MIN(T171,Eingabe!$B$35) -> 399.838442 | V171: 95.20169123
B172: 2023-01-07T23:00:00 | C172: 24 | D172: 1 | E172: 6 | F172: Samstag | G172: 7 | H172: 168 | I172: =VLOOKUP(G172,Tagesbasis!$E$12:$J$376,6)*HLOOKUP(Eingabe!$B$11,Stundenlastprofile!$B$2:$K$26,C172+1,FALSE) -> 468.2812071 | J172: =Wetterdaten!J169 -> 0 | K172: =Wetterdaten!G169/1000 -> 0 | L172: =MAX(0,Eingabe!$B$20*Stundenlastprofil_norm!K172-Eingabe!$B$21/1000*('VDI3988'!$C$16-Stundenlastprofil_norm!J172)-Eingabe!$B$22/1000*('VDI3988'!$C$16-Stundenlastprofil_norm!J172)^2) -> 0 | M172: 0 | N172: =M172*Eingabe!$B$23 -> 0 | O172: 0 | P172: 0 | Q172: =MIN(Q171-P172+O172,Stundenlastprofil_norm!$R$1) -> 0 | R172: 0 | S172: 0 | T172: 468.2812071 | U172: =MIN(T172,Eingabe!$B$35) -> 399.838442 | V172: 68.44276511
B173: 2023-01-08 | C173: 1 | D173: 1 | E173: 7 | F173: Sonntag | G173: 8 | H173: 169 | I173: =VLOOKUP(G173,Tagesbasis!$E$12:$J$376,6)*HLOOKUP(Eingabe!$B$11,Stundenlastprofile!$B$2:$K$26,C173+1,FALSE) -> 582.4235906 | J173: =Wetterdaten!J170 -> -0.3 | K173: =Wetterdaten!G170/1000 -> 0 | L173: =MAX(0,Eingabe!$B$20*Stundenlastprofil_norm!K173-Eingabe!$B$21/1000*('VDI3988'!$C$16-Stundenlastprofil_norm!J173)-Eingabe!$B$22/1000*('VDI3988'!$C$16-Stundenlastprofil_norm!J173)^2) -> 0 | M173: 0 | N173: =M173*Eingabe!$B$23 -> 0 | O173: 0 | P173: 0 | Q173: =MIN(Q172-P173+O173,Stundenlastprofil_norm!$R$1) -> 0 | R173: 0 | S173: 0 | T173: 582.4235906 | U173: =MIN(T173,Eingabe!$B$35) -> 399.838442 | V173: 182.5851486
B174: 2023-01-08T01:00:00 | C174: 2 | D174: 1 | E174: 7 | F174: Sonntag | G174: 8 | H174: 170 | I174: =VLOOKUP(G174,Tagesbasis!$E$12:$J$376,6)*HLOOKUP(Eingabe!$B$11,Stundenlastprofile!$B$2:$K$26,C174+1,FALSE) -> 565.293485 | J174: =Wetterdaten!J171 -> -0.6 | K174: =Wetterdaten!G171/1000 -> 0 | L174: =MAX(0,Eingabe!$B$20*Stundenlastprofil_norm!K174-Eingabe!$B$21/1000*('VDI3988'!$C$16-Stundenlastprofil_norm!J174)-Eingabe!$B$22/1000*('VDI3988'!$C$16-Stundenlastprofil_norm!J174)^2) -> 0 | M174: 0 | N174: =M174*Eingabe!$B$23 -> 0 | O174: 0 | P174: 0 | Q174: =MIN(Q173-P174+O174,Stundenlastprofil_norm!$R$1) -> 0 | R174: 0 | S174: 0 | T174: 565.293485 | U174: =MIN(T174,Eingabe!$B$35) -> 399.838442 | V174: 165.455043
B175: 2023-01-08T02:00:00 | C175: 3 | D175: 1 | E175: 7 | F175: Sonntag | G175: 8 | H175: 171 | I175: =VLOOKUP(G175,Tagesbasis!$E$12:$J$376,6)*HLOOKUP(Eingabe!$B$11,Stundenlastprofile!$B$2:$K$26,C175+1,FALSE) -> 565.293485 | J175: =Wetterdaten!J172 -> -1 | K175: =Wetterdaten!G172/1000 -> 0 | L175: =MAX(0,Eingabe!$B$20*Stundenlastprofil_norm!K175-Eingabe!$B$21/1000*('VDI3988'!$C$16-Stundenlastprofil_norm!J175)-Eingabe!$B$22/1000*('VDI3988'!$C$16-Stundenlastprofil_norm!J175)^2) -> 0 | M175: 0 | N175: =M175*Eingabe!$B$23 -> 0 | O175: 0 | P175: 0 | Q175: =MIN(Q174-P175+O175,Stundenlastprofil_norm!$R$1) -> 0 | R175: 0 | S175: 0 | T175: 565.293485 | U175: =MIN(T175,Eingabe!$B$35) -> 399.838442 | V175: 165.455043
B176: 2023-01-08T03:00:00 | C176: 4 | D176: 1 | E176: 7 | F176: Sonntag | G176: 8 | H176: 172 | I176: =VLOOKUP(G176,Tagesbasis!$E$12:$J$376,6)*HLOOKUP(Eingabe!$B$11,Stundenlastprofile!$B$2:$K$26,C176+1,FALSE) -> 548.1633793 | J176: =Wetterdaten!J173 -> -1.1 | K176: =Wetterdaten!G173/1000 -> 0 | L176: =MAX(0,Eingabe!$B$20*Stundenlastprofil_norm!K176-Eingabe!$B$21/1000*('VDI3988'!$C$16-Stundenlastprofil_norm!J176)-Eingabe!$B$22/1000*('VDI3988'!$C$16-Stundenlastprofil_norm!J176)^2) -> 0 | M176: 0 | N176: =M176*Eingabe!$B$23 -> 0 | O176: 0 | P176: 0 | Q176: =MIN(Q175-P176+O176,Stundenlastprofil_norm!$R$1) -> 0 | R176: 0 | S176: 0 | T176: 548.1633793 | U176: =MIN(T176,Eingabe!$B$35) -> 399.838442 | V176: 148.3249374
B177: 2023-01-08T04:00:00 | C177: 5 | D177: 1 | E177: 7 | F177: Sonntag | G177: 8 | H177: 173 | I177: =VLOOKUP(G177,Tagesbasis!$E$12:$J$376,6)*HLOOKUP(Eingabe!$B$11,Stundenlastprofile!$B$2:$K$26,C177+1,FALSE) -> 548.1633793 | J177: =Wetterdaten!J174 -> -1.3 | K177: =Wetterdaten!G174/1000 -> 0 | L177: =MAX(0,Eingabe!$B$20*Stundenlastprofil_norm!K177-Eingabe!$B$21/1000*('VDI3988'!$C$16-Stundenlastprofil_norm!J177)-Eingabe!$B$22/1000*('VDI3988'!$C$16-Stundenlastprofil_norm!J177)^2) -> 0 | M177: 0 | N177: =M177*Eingabe!$B$23 -> 0 | O177: 0 | P177: 0 | Q177: =MIN(Q176-P177+O177,Stundenlastprofil_norm!$R$1) -> 0 | R177: 0 | S177: 0 | T177: 548.1633793 | U177: =MIN(T177,Eingabe!$B$35) -> 399.838442 | V177: 148.3249374
B178: 2023-01-08T05:00:00 | C178: 6 | D178: 1 | E178: 7 | F178: Sonntag | G178: 8 | H178: 174 | I178: =VLOOKUP(G178,Tagesbasis!$E$12:$J$376,6)*HLOOKUP(Eingabe!$B$11,Stundenlastprofile!$B$2:$K$26,C178+1,FALSE) -> 531.0332737 | J178: =Wetterdaten!J175 -> -1.5 | K178: =Wetterdaten!G175/1000 -> 0 | L178: =MAX(0,Eingabe!$B$20*Stundenlastprofil_norm!K178-Eingabe!$B$21/1000*('VDI3988'!$C$16-Stundenlastprofil_norm!J178)-Eingabe!$B$22/1000*('VDI3988'!$C$16-Stundenlastprofil_norm!J178)^2) -> 0 | M178: 0 | N178: =M178*Eingabe!$B$23 -> 0 | O178: 0 | P178: 0 | Q178: =MIN(Q177-P178+O178,Stundenlastprofil_norm!$R$1) -> 0 | R178: 0 | S178: 0 | T178: 531.0332737 | U178: =MIN(T178,Eingabe!$B$35) -> 399.838442 | V178: 131.1948318
B179: 2023-01-08T06:00:00 | C179: 7 | D179: 1 | E179: 7 | F179: Sonntag | G179: 8 | H179: 175 | I179: =VLOOKUP(G179,Tagesbasis!$E$12:$J$376,6)*HLOOKUP(Eingabe!$B$11,Stundenlastprofile!$B$2:$K$26,C179+1,FALSE) -> 616.6838018 | J179: =Wetterdaten!J176 -> -1.6 | K179: =Wetterdaten!G176/1000 -> 0 | L179: =MAX(0,Eingabe!$B$20*Stundenlastprofil_norm!K179-Eingabe!$B$21/1000*('VDI3988'!$C$16-Stundenlastprofil_norm!J179)-Eingabe!$B$22/1000*('VDI3988'!$C$16-Stundenlastprofil_norm!J179)^2) -> 0 | M179: 0 | N179: =M179*Eingabe!$B$23 -> 0 | O179: 0 | P179: 0 | Q179: =MIN(Q178-P179+O179,Stundenlastprofil_norm!$R$1) -> 0 | R179: 0 | S179: 0 | T179: 616.6838018 | U179: =MIN(T179,Eingabe!$B$35) -> 399.838442 | V179: 216.8453598
B180: 2023-01-08T07:00:00 | C180: 8 | D180: 1 | E180: 7 | F180: Sonntag | G180: 8 | H180: 176 | I180: =VLOOKUP(G180,Tagesbasis!$E$12:$J$376,6)*HLOOKUP(Eingabe!$B$11,Stundenlastprofile!$B$2:$K$26,C180+1,FALSE) -> 650.944013 | J180: =Wetterdaten!J177 -> -1.7 | K180: =Wetterdaten!G177/1000 -> 0 | L180: =MAX(0,Eingabe!$B$20*Stundenlastprofil_norm!K180-Eingabe!$B$21/1000*('VDI3988'!$C$16-Stundenlastprofil_norm!J180)-Eingabe!$B$22/1000*('VDI3988'!$C$16-Stundenlastprofil_norm!J180)^2) -> 0 | M180: 0 | N180: =M180*Eingabe!$B$23 -> 0 | O180: 0 | P180: 0 | Q180: =MIN(Q179-P180+O180,Stundenlastprofil_norm!$R$1) -> 0 | R180: 0 | S180: 0 | T180: 650.944013 | U180: =MIN(T180,Eingabe!$B$35) -> 399.838442 | V180: 251.105571
B181: 2023-01-08T08:00:00 | C181: 9 | D181: 1 | E181: 7 | F181: Sonntag | G181: 8 | H181: 177 | I181: =VLOOKUP(G181,Tagesbasis!$E$12:$J$376,6)*HLOOKUP(Eingabe!$B$11,Stundenlastprofile!$B$2:$K$26,C181+1,FALSE) -> 736.594541 | J181: =Wetterdaten!J178 -> -1.7 | K181: =Wetterdaten!G178/1000 -> 0.001 | L181: =MAX(0,Eingabe!$B$20*Stundenlastprofil_norm!K181-Eingabe!$B$21/1000*('VDI3988'!$C$16-Stundenlastprofil_norm!J181)-Eingabe!$B$22/1000*('VDI3988'!$C$16-Stundenlastprofil_norm!J181)^2) -> 0 | M181: 0 | N181: =M181*Eingabe!$B$23 -> 0 | O181: 0 | P181: 0 | Q181: =MIN(Q180-P181+O181,Stundenlastprofil_norm!$R$1) -> 0 | R181: 0 | S181: 0 | T181: 736.594541 | U181: =MIN(T181,Eingabe!$B$35) -> 399.838442 | V181: 336.756099
B182: 2023-01-08T09:00:00 | C182: 10 | D182: 1 | E182: 7 | F182: Sonntag | G182: 8 | H182: 178 | I182: =VLOOKUP(G182,Tagesbasis!$E$12:$J$376,6)*HLOOKUP(Eingabe!$B$11,Stundenlastprofile!$B$2:$K$26,C182+1,FALSE) -> 839.3751746 | J182: =Wetterdaten!J179 -> -0.8 | K182: =Wetterdaten!G179/1000 -> 0.033 | L182: =MAX(0,Eingabe!$B$20*Stundenlastprofil_norm!K182-Eingabe!$B$21/1000*('VDI3988'!$C$16-Stundenlastprofil_norm!J182)-Eingabe!$B$22/1000*('VDI3988'!$C$16-Stundenlastprofil_norm!J182)^2) -> 0 | M182: 0 | N182: =M182*Eingabe!$B$23 -> 0 | O182: 0 | P182: 0 | Q182: =MIN(Q181-P182+O182,Stundenlastprofil_norm!$R$1) -> 0 | R182: 0 | S182: 0 | T182: 839.3751746 | U182: =MIN(T182,Eingabe!$B$35) -> 399.838442 | V182: 439.5367326
B183: 2023-01-08T10:00:00 | C183: 11 | D183: 1 | E183: 7 | F183: Sonntag | G183: 8 | H183: 179 | I183: =VLOOKUP(G183,Tagesbasis!$E$12:$J$376,6)*HLOOKUP(Eingabe!$B$11,Stundenlastprofile!$B$2:$K$26,C183+1,FALSE) -> 856.5052802 | J183: =Wetterdaten!J180 -> -0.3 | K183: =Wetterdaten!G180/1000 -> 0.05 | L183: =MAX(0,Eingabe!$B$20*Stundenlastprofil_norm!K183-Eingabe!$B$21/1000*('VDI3988'!$C$16-Stundenlastprofil_norm!J183)-Eingabe!$B$22/1000*('VDI3988'!$C$16-Stundenlastprofil_norm!J183)^2) -> 0 | M183: 0 | N183: =M183*Eingabe!$B$23 -> 0 | O183: 0 | P183: 0 | Q183: =MIN(Q182-P183+O183,Stundenlastprofil_norm!$R$1) -> 0 | R183: 0 | S183: 0 | T183: 856.5052802 | U183: =MIN(T183,Eingabe!$B$35) -> 399.838442 | V183: 456.6668383
B184: 2023-01-08T11:00:00 | C184: 12 | D184: 1 | E184: 7 | F184: Sonntag | G184: 8 | H184: 180 | I184: =VLOOKUP(G184,Tagesbasis!$E$12:$J$376,6)*HLOOKUP(Eingabe!$B$11,Stundenlastprofile!$B$2:$K$26,C184+1,FALSE) -> 873.6353858 | J184: =Wetterdaten!J181 -> 0.2 | K184: =Wetterdaten!G181/1000 -> 0.06 | L184: =MAX(0,Eingabe!$B$20*Stundenlastprofil_norm!K184-Eingabe!$B$21/1000*('VDI3988'!$C$16-Stundenlastprofil_norm!J184)-Eingabe!$B$22/1000*('VDI3988'!$C$16-Stundenlastprofil_norm!J184)^2) -> 0 | M184: 0 | N184: =M184*Eingabe!$B$23 -> 0 | O184: 0 | P184: 0 | Q184: =MIN(Q183-P184+O184,Stundenlastprofil_norm!$R$1) -> 0 | R184: 0 | S184: 0 | T184: 873.6353858 | U184: =MIN(T184,Eingabe!$B$35) -> 399.838442 | V184: 473.7969439
B185: 2023-01-08T12:00:00 | C185: 13 | D185: 1 | E185: 7 | F185: Sonntag | G185: 8 | H185: 181 | I185: =VLOOKUP(G185,Tagesbasis!$E$12:$J$376,6)*HLOOKUP(Eingabe!$B$11,Stundenlastprofile!$B$2:$K$26,C185+1,FALSE) -> 873.6353858 | J185: =Wetterdaten!J182 -> 0.3 | K185: =Wetterdaten!G182/1000 -> 0.051 | L185: =MAX(0,Eingabe!$B$20*Stundenlastprofil_norm!K185-Eingabe!$B$21/1000*('VDI3988'!$C$16-Stundenlastprofil_norm!J185)-Eingabe!$B$22/1000*('VDI3988'!$C$16-Stundenlastprofil_norm!J185)^2) -> 0 | M185: 0 | N185: =M185*Eingabe!$B$23 -> 0 | O185: 0 | P185: 0 | Q185: =MIN(Q184-P185+O185,Stundenlastprofil_norm!$R$1) -> 0 | R185: 0 | S185: 0 | T185: 873.6353858 | U185: =MIN(T185,Eingabe!$B$35) -> 399.838442 | V185: 473.7969439
B186: 2023-01-08T13:00:00 | C186: 14 | D186: 1 | E186: 7 | F186: Sonntag | G186: 8 | H186: 182 | I186: =VLOOKUP(G186,Tagesbasis!$E$12:$J$376,6)*HLOOKUP(Eingabe!$B$11,Stundenlastprofile!$B$2:$K$26,C186+1,FALSE) -> 822.245069 | J186: =Wetterdaten!J183 -> 0.5 | K186: =Wetterdaten!G183/1000 -> 0.065 | L186: =MAX(0,Eingabe!$B$20*Stundenlastprofil_norm!K186-Eingabe!$B$21/1000*('VDI3988'!$C$16-Stundenlastprofil_norm!J186)-Eingabe!$B$22/1000*('VDI3988'!$C$16-Stundenlastprofil_norm!J186)^2) -> 0 | M186: 0 | N186: =M186*Eingabe!$B$23 -> 0 | O186: 0 | P186: 0 | Q186: =MIN(Q185-P186+O186,Stundenlastprofil_norm!$R$1) -> 0 | R186: 0 | S186: 0 | T186: 822.245069 | U186: =MIN(T186,Eingabe!$B$35) -> 399.838442 | V186: 422.406627
B187: 2023-01-08T14:00:00 | C187: 15 | D187: 1 | E187: 7 | F187: Sonntag | G187: 8 | H187: 183 | I187: =VLOOKUP(G187,Tagesbasis!$E$12:$J$376,6)*HLOOKUP(Eingabe!$B$11,Stundenlastprofile!$B$2:$K$26,C187+1,FALSE) -> 770.8547522 | J187: =Wetterdaten!J184 -> 0.6 | K187: =Wetterdaten!G184/1000 -> 0.052 | L187: =MAX(0,Eingabe!$B$20*Stundenlastprofil_norm!K187-Eingabe!$B$21/1000*('VDI3988'!$C$16-Stundenlastprofil_norm!J187)-Eingabe!$B$22/1000*('VDI3988'!$C$16-Stundenlastprofil_norm!J187)^2) -> 0 | M187: 0 | N187: =M187*Eingabe!$B$23 -> 0 | O187: 0 | P187: 0 | Q187: =MIN(Q186-P187+O187,Stundenlastprofil_norm!$R$1) -> 0 | R187: 0 | S187: 0 | T187: 770.8547522 | U187: =MIN(T187,Eingabe!$B$35) -> 399.838442 | V187: 371.0163102
B188: 2023-01-08T15:00:00 | C188: 16 | D188: 1 | E188: 7 | F188: Sonntag | G188: 8 | H188: 184 | I188: =VLOOKUP(G188,Tagesbasis!$E$12:$J$376,6)*HLOOKUP(Eingabe!$B$11,Stundenlastprofile!$B$2:$K$26,C188+1,FALSE) -> 805.1149634 | J188: =Wetterdaten!J185 -> 0.3 | K188: =Wetterdaten!G185/1000 -> 0.021 | L188: =MAX(0,Eingabe!$B$20*Stundenlastprofil_norm!K188-Eingabe!$B$21/1000*('VDI3988'!$C$16-Stundenlastprofil_norm!J188)-Eingabe!$B$22/1000*('VDI3988'!$C$16-Stundenlastprofil_norm!J188)^2) -> 0 | M188: 0 | N188: =M188*Eingabe!$B$23 -> 0 | O188: 0 | P188: 0 | Q188: =MIN(Q187-P188+O188,Stundenlastprofil_norm!$R$1) -> 0 | R188: 0 | S188: 0 | T188: 805.1149634 | U188: =MIN(T188,Eingabe!$B$35) -> 399.838442 | V188: 405.2765214
B189: 2023-01-08T16:00:00 | C189: 17 | D189: 1 | E189: 7 | F189: Sonntag | G189: 8 | H189: 185 | I189: =VLOOKUP(G189,Tagesbasis!$E$12:$J$376,6)*HLOOKUP(Eingabe!$B$11,Stundenlastprofile!$B$2:$K$26,C189+1,FALSE) -> 822.245069 | J189: =Wetterdaten!J186 -> -0.1 | K189: =Wetterdaten!G186/1000 -> 0 | L189: =MAX(0,Eingabe!$B$20*Stundenlastprofil_norm!K189-Eingabe!$B$21/1000*('VDI3988'!$C$16-Stundenlastprofil_norm!J189)-Eingabe!$B$22/1000*('VDI3988'!$C$16-Stundenlastprofil_norm!J189)^2) -> 0 | M189: 0 | N189: =M189*Eingabe!$B$23 -> 0 | O189: 0 | P189: 0 | Q189: =MIN(Q188-P189+O189,Stundenlastprofil_norm!$R$1) -> 0 | R189: 0 | S189: 0 | T189: 822.245069 | U189: =MIN(T189,Eingabe!$B$35) -> 399.838442 | V189: 422.406627
B190: 2023-01-08T17:00:00 | C190: 18 | D190: 1 | E190: 7 | F190: Sonntag | G190: 8 | H190: 186 | I190: =VLOOKUP(G190,Tagesbasis!$E$12:$J$376,6)*HLOOKUP(Eingabe!$B$11,Stundenlastprofile!$B$2:$K$26,C190+1,FALSE) -> 839.3751746 | J190: =Wetterdaten!J187 -> -0.4 | K190: =Wetterdaten!G187/1000 -> 0 | L190: =MAX(0,Eingabe!$B$20*Stundenlastprofil_norm!K190-Eingabe!$B$21/1000*('VDI3988'!$C$16-Stundenlastprofil_norm!J190)-Eingabe!$B$22/1000*('VDI3988'!$C$16-Stundenlastprofil_norm!J190)^2) -> 0 | M190: 0 | N190: =M190*Eingabe!$B$23 -> 0 | O190: 0 | P190: 0 | Q190: =MIN(Q189-P190+O190,Stundenlastprofil_norm!$R$1) -> 0 | R190: 0 | S190: 0 | T190: 839.3751746 | U190: =MIN(T190,Eingabe!$B$35) -> 399.838442 | V190: 439.5367326
B191: 2023-01-08T18:00:00 | C191: 19 | D191: 1 | E191: 7 | F191: Sonntag | G191: 8 | H191: 187 | I191: =VLOOKUP(G191,Tagesbasis!$E$12:$J$376,6)*HLOOKUP(Eingabe!$B$11,Stundenlastprofile!$B$2:$K$26,C191+1,FALSE) -> 839.3751746 | J191: =Wetterdaten!J188 -> -0.8 | K191: =Wetterdaten!G188/1000 -> 0 | L191: =MAX(0,Eingabe!$B$20*Stundenlastprofil_norm!K191-Eingabe!$B$21/1000*('VDI3988'!$C$16-Stundenlastprofil_norm!J191)-Eingabe!$B$22/1000*('VDI3988'!$C$16-Stundenlastprofil_norm!J191)^2) -> 0 | M191: 0 | N191: =M191*Eingabe!$B$23 -> 0 | O191: 0 | P191: 0 | Q191: =MIN(Q190-P191+O191,Stundenlastprofil_norm!$R$1) -> 0 | R191: 0 | S191: 0 | T191: 839.3751746 | U191: =MIN(T191,Eingabe!$B$35) -> 399.838442 | V191: 439.5367326
B192: 2023-01-08T19:00:00 | C192: 20 | D192: 1 | E192: 7 | F192: Sonntag | G192: 8 | H192: 188 | I192: =VLOOKUP(G192,Tagesbasis!$E$12:$J$376,6)*HLOOKUP(Eingabe!$B$11,Stundenlastprofile!$B$2:$K$26,C192+1,FALSE) -> 805.1149634 | J192: =Wetterdaten!J189 -> -1.2 | K192: =Wetterdaten!G189/1000 -> 0 | L192: =MAX(0,Eingabe!$B$20*Stundenlastprofil_norm!K192-Eingabe!$B$21/1000*('VDI3988'!$C$16-Stundenlastprofil_norm!J192)-Eingabe!$B$22/1000*('VDI3988'!$C$16-Stundenlastprofil_norm!J192)^2) -> 0 | M192: 0 | N192: =M192*Eingabe!$B$23 -> 0 | O192: 0 | P192: 0 | Q192: =MIN(Q191-P192+O192,Stundenlastprofil_norm!$R$1) -> 0 | R192: 0 | S192: 0 | T192: 805.1149634 | U192: =MIN(T192,Eingabe!$B$35) -> 399.838442 | V192: 405.2765214
B193: 2023-01-08T20:00:00 | C193: 21 | D193: 1 | E193: 7 | F193: Sonntag | G193: 8 | H193: 189 | I193: =VLOOKUP(G193,Tagesbasis!$E$12:$J$376,6)*HLOOKUP(Eingabe!$B$11,Stundenlastprofile!$B$2:$K$26,C193+1,FALSE) -> 753.7246466 | J193: =Wetterdaten!J190 -> -1.3 | K193: =Wetterdaten!G190/1000 -> 0 | L193: =MAX(0,Eingabe!$B$20*Stundenlastprofil_norm!K193-Eingabe!$B$21/1000*('VDI3988'!$C$16-Stundenlastprofil_norm!J193)-Eingabe!$B$22/1000*('VDI3988'!$C$16-Stundenlastprofil_norm!J193)^2) -> 0 | M193: 0 | N193: =M193*Eingabe!$B$23 -> 0 | O193: 0 | P193: 0 | Q193: =MIN(Q192-P193+O193,Stundenlastprofil_norm!$R$1) -> 0 | R193: 0 | S193: 0 | T193: 753.7246466 | U193: =MIN(T193,Eingabe!$B$35) -> 399.838442 | V193: 353.8862046
B194: 2023-01-08T21:00:00 | C194: 22 | D194: 1 | E194: 7 | F194: Sonntag | G194: 8 | H194: 190 | I194: =VLOOKUP(G194,Tagesbasis!$E$12:$J$376,6)*HLOOKUP(Eingabe!$B$11,Stundenlastprofile!$B$2:$K$26,C194+1,FALSE) -> 668.0741186 | J194: =Wetterdaten!J191 -> -1.7 | K194: =Wetterdaten!G191/1000 -> 0 | L194: =MAX(0,Eingabe!$B$20*Stundenlastprofil_norm!K194-Eingabe!$B$21/1000*('VDI3988'!$C$16-Stundenlastprofil_norm!J194)-Eingabe!$B$22/1000*('VDI3988'!$C$16-Stundenlastprofil_norm!J194)^2) -> 0 | M194: 0 | N194: =M194*Eingabe!$B$23 -> 0 | O194: 0 | P194: 0 | Q194: =MIN(Q193-P194+O194,Stundenlastprofil_norm!$R$1) -> 0 | R194: 0 | S194: 0 | T194: 668.0741186 | U194: =MIN(T194,Eingabe!$B$35) -> 399.838442 | V194: 268.2356766
B195: 2023-01-08T22:00:00 | C195: 23 | D195: 1 | E195: 7 | F195: Sonntag | G195: 8 | H195: 191 | I195: =VLOOKUP(G195,Tagesbasis!$E$12:$J$376,6)*HLOOKUP(Eingabe!$B$11,Stundenlastprofile!$B$2:$K$26,C195+1,FALSE) -> 633.8139074 | J195: =Wetterdaten!J192 -> -2 | K195: =Wetterdaten!G192/1000 -> 0 | L195: =MAX(0,Eingabe!$B$20*Stundenlastprofil_norm!K195-Eingabe!$B$21/1000*('VDI3988'!$C$16-Stundenlastprofil_norm!J195)-Eingabe!$B$22/1000*('VDI3988'!$C$16-Stundenlastprofil_norm!J195)^2) -> 0 | M195: 0 | N195: =M195*Eingabe!$B$23 -> 0 | O195: 0 | P195: 0 | Q195: =MIN(Q194-P195+O195,Stundenlastprofil_norm!$R$1) -> 0 | R195: 0 | S195: 0 | T195: 633.8139074 | U195: =MIN(T195,Eingabe!$B$35) -> 399.838442 | V195: 233.9754654
